Workbook

Sheet Tabelle1 (hidden)

Sheet PLC24
A1: Bauvorhaben: | D1: ELEKTRO-Unternehmen : | F1: DL… Dauerlicht
F2: GL ... Geschaltetes Licht
D3: verantwortlicher Monteur: | F3: BL … Bereitschaftslicht
J5: Version | K5: 4.0
A6: Gerätename: | E6: PLC24 Stromkreis-Nummer: 1
A7: Stromkreis-Bezeichnung:
A8: Stromkreisbelegung | B8: ID 1 | C8: ID 2 | D8: Bezeichnung | E8: Zusatzinfo | F8: DL | H8: GL | J8: BL
F9: ID1 | G9: ID2 | H9: ID1 | I9: ID2 | J9: ID1 | K9: ID2
A10: SK Teilnehmer 1 | B10: =_xlfn.IFNA(INDEX(VLC!A:A,MATCH(101,VLC!V:V,0)),"") ->  | C10: =_xlfn.IFNA(INDEX(VLC!A:A,MATCH(141,VLC!V:V,0)),"") ->  | D10: =_xlfn.IFNA(INDEX(VLC!B:B,MATCH(101,VLC!V:V,0)),"") ->  | E10: =_xlfn.IFNA(INDEX(VLC!C:C,MATCH(101,VLC!V:V,0)),"") ->  | F10: =_xlfn.IFNA(IF(INDEX(VLC!H:H,MATCH(101,VLC!V:V,0))="x",_xlfn.IFNA(INDEX(VLC!H:H,MATCH(101,VLC!V:V,0)),""),""),"") ->  | G10: =_xlfn.IFNA(IF(INDEX(VLC!H:H,MATCH(141,VLC!V:V,0))="x",_xlfn.IFNA(INDEX(VLC!H:H,MATCH(141,VLC!V:V,0)),""),""),"") ->  | H10: =_xlfn.IFNA(IF(INDEX(VLC!I:I,MATCH(101,VLC!V:V,0))<>"",_xlfn.IFNA(INDEX(VLC!I:I,MATCH(101,VLC!V:V,0)),""),""),"") ->  | I10: =_xlfn.IFNA(IF(INDEX(VLC!I:I,MATCH(141,VLC!V:V,0))<>"",_xlfn.IFNA(INDEX(VLC!I:I,MATCH(141,VLC!V:V,0)),""),""),"") ->  | J10: =_xlfn.IFNA(IF(INDEX(VLC!J:J,MATCH(101,VLC!V:V,0))="x",_xlfn.IFNA(INDEX(VLC!J:J,MATCH(101,VLC!V:V,0)),""),""),"") ->  | K10: =_xlfn.IFNA(IF(INDEX(VLC!J:J,MATCH(141,VLC!V:V,0))="x",_xlfn.IFNA(INDEX(VLC!J:J,MATCH(141,VLC!V:V,0)),""),""),"") ->  | L10: =1000+ROW(A10)-9 -> 1001 | M10: =L10+40 -> 1041
A11: SK Teilnehmer 2 | B11: =_xlfn.IFNA(INDEX(VLC!A:A,MATCH(102,VLC!V:V,0)),"") ->  | C11: =_xlfn.IFNA(INDEX(VLC!A:A,MATCH(142,VLC!V:V,0)),"") ->  | D11: =_xlfn.IFNA(INDEX(VLC!B:B,MATCH(102,VLC!V:V,0)),"") ->  | E11: =_xlfn.IFNA(INDEX(VLC!C:C,MATCH(102,VLC!V:V,0)),"") ->  | F11: =_xlfn.IFNA(IF(INDEX(VLC!H:H,MATCH(102,VLC!V:V,0))="x",_xlfn.IFNA(INDEX(VLC!H:H,MATCH(102,VLC!V:V,0)),""),""),"") ->  | G11: =_xlfn.IFNA(IF(INDEX(VLC!H:H,MATCH(142,VLC!V:V,0))="x",_xlfn.IFNA(INDEX(VLC!H:H,MATCH(142,VLC!V:V,0)),""),""),"") ->  | H11: =_xlfn.IFNA(IF(INDEX(VLC!I:I,MATCH(102,VLC!V:V,0))<>"",_xlfn.IFNA(INDEX(VLC!I:I,MATCH(102,VLC!V:V,0)),""),""),"") ->  | I11: =_xlfn.IFNA(IF(INDEX(VLC!I:I,MATCH(142,VLC!V:V,0))<>"",_xlfn.IFNA(INDEX(VLC!I:I,MATCH(142,VLC!V:V,0)),""),""),"") ->  | J11: =_xlfn.IFNA(IF(INDEX(VLC!J:J,MATCH(102,VLC!V:V,0))="x",_xlfn.IFNA(INDEX(VLC!J:J,MATCH(102,VLC!V:V,0)),""),""),"") ->  | K11: =_xlfn.IFNA(IF(INDEX(VLC!J:J,MATCH(142,VLC!V:V,0))="x",_xlfn.IFNA(INDEX(VLC!J:J,MATCH(142,VLC!V:V,0)),""),""),"") ->  | L11: =1000+ROW(A11)-9 -> 1002 | M11: =L11+40 -> 1042
A12: SK Teilnehmer 3 | B12: =_xlfn.IFNA(INDEX(VLC!A:A,MATCH(103,VLC!V:V,0)),"") ->  | C12: =_xlfn.IFNA(INDEX(VLC!A:A,MATCH(143,VLC!V:V,0)),"") ->  | D12: =_xlfn.IFNA(INDEX(VLC!B:B,MATCH(103,VLC!V:V,0)),"") ->  | E12: =_xlfn.IFNA(INDEX(VLC!C:C,MATCH(103,VLC!V:V,0)),"") ->  | F12: =_xlfn.IFNA(IF(INDEX(VLC!H:H,MATCH(103,VLC!V:V,0))="x",_xlfn.IFNA(INDEX(VLC!H:H,MATCH(103,VLC!V:V,0)),""),""),"") ->  | G12: =_xlfn.IFNA(IF(INDEX(VLC!H:H,MATCH(143,VLC!V:V,0))="x",_xlfn.IFNA(INDEX(VLC!H:H,MATCH(143,VLC!V:V,0)),""),""),"") ->  | H12: =_xlfn.IFNA(IF(INDEX(VLC!I:I,MATCH(103,VLC!V:V,0))<>"",_xlfn.IFNA(INDEX(VLC!I:I,MATCH(103,VLC!V:V,0)),""),""),"") ->  | I12: =_xlfn.IFNA(IF(INDEX(VLC!I:I,MATCH(143,VLC!V:V,0))<>"",_xlfn.IFNA(INDEX(VLC!I:I,MATCH(143,VLC!V:V,0)),""),""),"") ->  | J12: =_xlfn.IFNA(IF(INDEX(VLC!J:J,MATCH(103,VLC!V:V,0))="x",_xlfn.IFNA(INDEX(VLC!J:J,MATCH(103,VLC!V:V,0)),""),""),"") ->  | K12: =_xlfn.IFNA(IF(INDEX(VLC!J:J,MATCH(143,VLC!V:V,0))="x",_xlfn.IFNA(INDEX(VLC!J:J,MATCH(143,VLC!V:V,0)),""),""),"") ->  | L12: 1003 | M12: 1043
A13: SK Teilnehmer 4 | B13: =_xlfn.IFNA(INDEX(VLC!A:A,MATCH(104,VLC!V:V,0)),"") ->  | C13: =_xlfn.IFNA(INDEX(VLC!A:A,MATCH(144,VLC!V:V,0)),"") ->  | D13: =_xlfn.IFNA(INDEX(VLC!B:B,MATCH(104,VLC!V:V,0)),"") ->  | E13: =_xlfn.IFNA(INDEX(VLC!C:C,MATCH(104,VLC!V:V,0)),"") ->  | F13: =_xlfn.IFNA(IF(INDEX(VLC!H:H,MATCH(104,VLC!V:V,0))="x",_xlfn.IFNA(INDEX(VLC!H:H,MATCH(104,VLC!V:V,0)),""),""),"") ->  | G13: =_xlfn.IFNA(IF(INDEX(VLC!H:H,MATCH(144,VLC!V:V,0))="x",_xlfn.IFNA(INDEX(VLC!H:H,MATCH(144,VLC!V:V,0)),""),""),"") ->  | H13: =_xlfn.IFNA(IF(INDEX(VLC!I:I,MATCH(104,VLC!V:V,0))<>"",_xlfn.IFNA(INDEX(VLC!I:I,MATCH(104,VLC!V:V,0)),""),""),"") ->  | I13: =_xlfn.IFNA(IF(INDEX(VLC!I:I,MATCH(144,VLC!V:V,0))<>"",_xlfn.IFNA(INDEX(VLC!I:I,MATCH(144,VLC!V:V,0)),""),""),"") ->  | J13: =_xlfn.IFNA(IF(INDEX(VLC!J:J,MATCH(104,VLC!V:V,0))="x",_xlfn.IFNA(INDEX(VLC!J:J,MATCH(104,VLC!V:V,0)),""),""),"") ->  | K13: =_xlfn.IFNA(IF(INDEX(VLC!J:J,MATCH(144,VLC!V:V,0))="x",_xlfn.IFNA(INDEX(VLC!J:J,MATCH(144,VLC!V:V,0)),""),""),"") ->  | L13: 1004 | M13: 1044
A14: SK Teilnehmer 5 | B14: =_xlfn.IFNA(INDEX(VLC!A:A,MATCH(105,VLC!V:V,0)),"") ->  | C14: =_xlfn.IFNA(INDEX(VLC!A:A,MATCH(145,VLC!V:V,0)),"") ->  | D14: =_xlfn.IFNA(INDEX(VLC!B:B,MATCH(105,VLC!V:V,0)),"") ->  | E14: =_xlfn.IFNA(INDEX(VLC!C:C,MATCH(105,VLC!V:V,0)),"") ->  | F14: =_xlfn.IFNA(IF(INDEX(VLC!H:H,MATCH(105,VLC!V:V,0))="x",_xlfn.IFNA(INDEX(VLC!H:H,MATCH(105,VLC!V:V,0)),""),""),"") ->  | G14: =_xlfn.IFNA(IF(INDEX(VLC!H:H,MATCH(145,VLC!V:V,0))="x",_xlfn.IFNA(INDEX(VLC!H:H,MATCH(145,VLC!V:V,0)),""),""),"") ->  | H14: =_xlfn.IFNA(IF(INDEX(VLC!I:I,MATCH(105,VLC!V:V,0))<>"",_xlfn.IFNA(INDEX(VLC!I:I,MATCH(105,VLC!V:V,0)),""),""),"") ->  | I14: =_xlfn.IFNA(IF(INDEX(VLC!I:I,MATCH(145,VLC!V:V,0))<>"",_xlfn.IFNA(INDEX(VLC!I:I,MATCH(145,VLC!V:V,0)),""),""),"") ->  | J14: =_xlfn.IFNA(IF(INDEX(VLC!J:J,MATCH(105,VLC!V:V,0))="x",_xlfn.IFNA(INDEX(VLC!J:J,MATCH(105,VLC!V:V,0)),""),""),"") ->  | K14: =_xlfn.IFNA(IF(INDEX(VLC!J:J,MATCH(145,VLC!V:V,0))="x",_xlfn.IFNA(INDEX(VLC!J:J,MATCH(145,VLC!V:V,0)),""),""),"") ->  | L14: 1005 | M14: 1045
A15: SK Teilnehmer 6 | B15: =_xlfn.IFNA(INDEX(VLC!A:A,MATCH(106,VLC!V:V,0)),"") ->  | C15: =_xlfn.IFNA(INDEX(VLC!A:A,MATCH(146,VLC!V:V,0)),"") ->  | D15: =_xlfn.IFNA(INDEX(VLC!B:B,MATCH(106,VLC!V:V,0)),"") ->  | E15: =_xlfn.IFNA(INDEX(VLC!C:C,MATCH(106,VLC!V:V,0)),"") ->  | F15: =_xlfn.IFNA(IF(INDEX(VLC!H:H,MATCH(106,VLC!V:V,0))="x",_xlfn.IFNA(INDEX(VLC!H:H,MATCH(106,VLC!V:V,0)),""),""),"") ->  | G15: =_xlfn.IFNA(IF(INDEX(VLC!H:H,MATCH(146,VLC!V:V,0))="x",_xlfn.IFNA(INDEX(VLC!H:H,MATCH(146,VLC!V:V,0)),""),""),"") ->  | H15: =_xlfn.IFNA(IF(INDEX(VLC!I:I,MATCH(106,VLC!V:V,0))<>"",_xlfn.IFNA(INDEX(VLC!I:I,MATCH(106,VLC!V:V,0)),""),""),"") ->  | I15: =_xlfn.IFNA(IF(INDEX(VLC!I:I,MATCH(146,VLC!V:V,0))<>"",_xlfn.IFNA(INDEX(VLC!I:I,MATCH(146,VLC!V:V,0)),""),""),"") ->  | J15: =_xlfn.IFNA(IF(INDEX(VLC!J:J,MATCH(106,VLC!V:V,0))="x",_xlfn.IFNA(INDEX(VLC!J:J,MATCH(106,VLC!V:V,0)),""),""),"") ->  | K15: =_xlfn.IFNA(IF(INDEX(VLC!J:J,MATCH(146,VLC!V:V,0))="x",_xlfn.IFNA(INDEX(VLC!J:J,MATCH(146,VLC!V:V,0)),""),""),"") ->  | L15: 1006 | M15: 1046
A16: SK Teilnehmer 7 | B16: =_xlfn.IFNA(INDEX(VLC!A:A,MATCH(107,VLC!V:V,0)),"") ->  | C16: =_xlfn.IFNA(INDEX(VLC!A:A,MATCH(147,VLC!V:V,0)),"") ->  | D16: =_xlfn.IFNA(INDEX(VLC!B:B,MATCH(107,VLC!V:V,0)),"") ->  | E16: =_xlfn.IFNA(INDEX(VLC!C:C,MATCH(107,VLC!V:V,0)),"") ->  | F16: =_xlfn.IFNA(IF(INDEX(VLC!H:H,MATCH(107,VLC!V:V,0))="x",_xlfn.IFNA(INDEX(VLC!H:H,MATCH(107,VLC!V:V,0)),""),""),"") ->  | G16: =_xlfn.IFNA(IF(INDEX(VLC!H:H,MATCH(147,VLC!V:V,0))="x",_xlfn.IFNA(INDEX(VLC!H:H,MATCH(147,VLC!V:V,0)),""),""),"") ->  | H16: =_xlfn.IFNA(IF(INDEX(VLC!I:I,MATCH(107,VLC!V:V,0))<>"",_xlfn.IFNA(INDEX(VLC!I:I,MATCH(107,VLC!V:V,0)),""),""),"") ->  | I16: =_xlfn.IFNA(IF(INDEX(VLC!I:I,MATCH(147,VLC!V:V,0))<>"",_xlfn.IFNA(INDEX(VLC!I:I,MATCH(147,VLC!V:V,0)),""),""),"") ->  | J16: =_xlfn.IFNA(IF(INDEX(VLC!J:J,MATCH(107,VLC!V:V,0))="x",_xlfn.IFNA(INDEX(VLC!J:J,MATCH(107,VLC!V:V,0)),""),""),"") ->  | K16: =_xlfn.IFNA(IF(INDEX(VLC!J:J,MATCH(147,VLC!V:V,0))="x",_xlfn.IFNA(INDEX(VLC!J:J,MATCH(147,VLC!V:V,0)),""),""),"") ->  | L16: 1007 | M16: 1047
A17: SK Teilnehmer 8 | B17: =_xlfn.IFNA(INDEX(VLC!A:A,MATCH(108,VLC!V:V,0)),"") ->  | C17: =_xlfn.IFNA(INDEX(VLC!A:A,MATCH(148,VLC!V:V,0)),"") ->  | D17: =_xlfn.IFNA(INDEX(VLC!B:B,MATCH(108,VLC!V:V,0)),"") ->  | E17: =_xlfn.IFNA(INDEX(VLC!C:C,MATCH(108,VLC!V:V,0)),"") ->  | F17: =_xlfn.IFNA(IF(INDEX(VLC!H:H,MATCH(108,VLC!V:V,0))="x",_xlfn.IFNA(INDEX(VLC!H:H,MATCH(108,VLC!V:V,0)),""),""),"") ->  | G17: =_xlfn.IFNA(IF(INDEX(VLC!H:H,MATCH(148,VLC!V:V,0))="x",_xlfn.IFNA(INDEX(VLC!H:H,MATCH(148,VLC!V:V,0)),""),""),"") ->  | H17: =_xlfn.IFNA(IF(INDEX(VLC!I:I,MATCH(108,VLC!V:V,0))<>"",_xlfn.IFNA(INDEX(VLC!I:I,MATCH(108,VLC!V:V,0)),""),""),"") ->  | I17: =_xlfn.IFNA(IF(INDEX(VLC!I:I,MATCH(148,VLC!V:V,0))<>"",_xlfn.IFNA(INDEX(VLC!I:I,MATCH(148,VLC!V:V,0)),""),""),"") ->  | J17: =_xlfn.IFNA(IF(INDEX(VLC!J:J,MATCH(108,VLC!V:V,0))="x",_xlfn.IFNA(INDEX(VLC!J:J,MATCH(108,VLC!V:V,0)),""),""),"") ->  | K17: =_xlfn.IFNA(IF(INDEX(VLC!J:J,MATCH(148,VLC!V:V,0))="x",_xlfn.IFNA(INDEX(VLC!J:J,MATCH(148,VLC!V:V,0)),""),""),"") ->  | L17: 1008 | M17: 1048
A18: SK Teilnehmer 9 | B18: =_xlfn.IFNA(INDEX(VLC!A:A,MATCH(109,VLC!V:V,0)),"") ->  | C18: =_xlfn.IFNA(INDEX(VLC!A:A,MATCH(149,VLC!V:V,0)),"") ->  | D18: =_xlfn.IFNA(INDEX(VLC!B:B,MATCH(109,VLC!V:V,0)),"") ->  | E18: =_xlfn.IFNA(INDEX(VLC!C:C,MATCH(109,VLC!V:V,0)),"") ->  | F18: =_xlfn.IFNA(IF(INDEX(VLC!H:H,MATCH(109,VLC!V:V,0))="x",_xlfn.IFNA(INDEX(VLC!H:H,MATCH(109,VLC!V:V,0)),""),""),"") ->  | G18: =_xlfn.IFNA(IF(INDEX(VLC!H:H,MATCH(149,VLC!V:V,0))="x",_xlfn.IFNA(INDEX(VLC!H:H,MATCH(149,VLC!V:V,0)),""),""),"") ->  | H18: =_xlfn.IFNA(IF(INDEX(VLC!I:I,MATCH(109,VLC!V:V,0))<>"",_xlfn.IFNA(INDEX(VLC!I:I,MATCH(109,VLC!V:V,0)),""),""),"") ->  | I18: =_xlfn.IFNA(IF(INDEX(VLC!I:I,MATCH(149,VLC!V:V,0))<>"",_xlfn.IFNA(INDEX(VLC!I:I,MATCH(149,VLC!V:V,0)),""),""),"") ->  | J18: =_xlfn.IFNA(IF(INDEX(VLC!J:J,MATCH(109,VLC!V:V,0))="x",_xlfn.IFNA(INDEX(VLC!J:J,MATCH(109,VLC!V:V,0)),""),""),"") ->  | K18: =_xlfn.IFNA(IF(INDEX(VLC!J:J,MATCH(149,VLC!V:V,0))="x",_xlfn.IFNA(INDEX(VLC!J:J,MATCH(149,VLC!V:V,0)),""),""),"") ->  | L18: 1009 | M18: 1049
A19: SK Teilnehmer 10 | B19: =_xlfn.IFNA(INDEX(VLC!A:A,MATCH(110,VLC!V:V,0)),"") ->  | C19: =_xlfn.IFNA(INDEX(VLC!A:A,MATCH(150,VLC!V:V,0)),"") ->  | D19: =_xlfn.IFNA(INDEX(VLC!B:B,MATCH(110,VLC!V:V,0)),"") ->  | E19: =_xlfn.IFNA(INDEX(VLC!C:C,MATCH(110,VLC!V:V,0)),"") ->  | F19: =_xlfn.IFNA(IF(INDEX(VLC!H:H,MATCH(110,VLC!V:V,0))="x",_xlfn.IFNA(INDEX(VLC!H:H,MATCH(110,VLC!V:V,0)),""),""),"") ->  | G19: =_xlfn.IFNA(IF(INDEX(VLC!H:H,MATCH(150,VLC!V:V,0))="x",_xlfn.IFNA(INDEX(VLC!H:H,MATCH(150,VLC!V:V,0)),""),""),"") ->  | H19: =_xlfn.IFNA(IF(INDEX(VLC!I:I,MATCH(110,VLC!V:V,0))<>"",_xlfn.IFNA(INDEX(VLC!I:I,MATCH(110,VLC!V:V,0)),""),""),"") ->  | I19: =_xlfn.IFNA(IF(INDEX(VLC!I:I,MATCH(150,VLC!V:V,0))<>"",_xlfn.IFNA(INDEX(VLC!I:I,MATCH(150,VLC!V:V,0)),""),""),"") ->  | J19: =_xlfn.IFNA(IF(INDEX(VLC!J:J,MATCH(110,VLC!V:V,0))="x",_xlfn.IFNA(INDEX(VLC!J:J,MATCH(110,VLC!V:V,0)),""),""),"") ->  | K19: =_xlfn.IFNA(IF(INDEX(VLC!J:J,MATCH(150,VLC!V:V,0))="x",_xlfn.IFNA(INDEX(VLC!J:J,MATCH(150,VLC!V:V,0)),""),""),"") ->  | L19: 1010 | M19: 1050
A20: SK Teilnehmer 11 | B20: =_xlfn.IFNA(INDEX(VLC!A:A,MATCH(111,VLC!V:V,0)),"") ->  | C20: =_xlfn.IFNA(INDEX(VLC!A:A,MATCH(151,VLC!V:V,0)),"") ->  | D20: =_xlfn.IFNA(INDEX(VLC!B:B,MATCH(111,VLC!V:V,0)),"") ->  | E20: =_xlfn.IFNA(INDEX(VLC!C:C,MATCH(111,VLC!V:V,0)),"") ->  | F20: =_xlfn.IFNA(IF(INDEX(VLC!H:H,MATCH(111,VLC!V:V,0))="x",_xlfn.IFNA(INDEX(VLC!H:H,MATCH(111,VLC!V:V,0)),""),""),"") ->  | G20: =_xlfn.IFNA(IF(INDEX(VLC!H:H,MATCH(151,VLC!V:V,0))="x",_xlfn.IFNA(INDEX(VLC!H:H,MATCH(151,VLC!V:V,0)),""),""),"") ->  | H20: =_xlfn.IFNA(IF(INDEX(VLC!I:I,MATCH(111,VLC!V:V,0))<>"",_xlfn.IFNA(INDEX(VLC!I:I,MATCH(111,VLC!V:V,0)),""),""),"") ->  | I20: =_xlfn.IFNA(IF(INDEX(VLC!I:I,MATCH(151,VLC!V:V,0))<>"",_xlfn.IFNA(INDEX(VLC!I:I,MATCH(151,VLC!V:V,0)),""),""),"") ->  | J20: =_xlfn.IFNA(IF(INDEX(VLC!J:J,MATCH(111,VLC!V:V,0))="x",_xlfn.IFNA(INDEX(VLC!J:J,MATCH(111,VLC!V:V,0)),""),""),"") ->  | K20: =_xlfn.IFNA(IF(INDEX(VLC!J:J,MATCH(151,VLC!V:V,0))="x",_xlfn.IFNA(INDEX(VLC!J:J,MATCH(151,VLC!V:V,0)),""),""),"") ->  | L20: 1011 | M20: 1051
A21: SK Teilnehmer 12 | B21: =_xlfn.IFNA(INDEX(VLC!A:A,MATCH(112,VLC!V:V,0)),"") ->  | C21: =_xlfn.IFNA(INDEX(VLC!A:A,MATCH(152,VLC!V:V,0)),"") ->  | D21: =_xlfn.IFNA(INDEX(VLC!B:B,MATCH(112,VLC!V:V,0)),"") ->  | E21: =_xlfn.IFNA(INDEX(VLC!C:C,MATCH(112,VLC!V:V,0)),"") ->  | F21: =_xlfn.IFNA(IF(INDEX(VLC!H:H,MATCH(112,VLC!V:V,0))="x",_xlfn.IFNA(INDEX(VLC!H:H,MATCH(112,VLC!V:V,0)),""),""),"") ->  | G21: =_xlfn.IFNA(IF(INDEX(VLC!H:H,MATCH(152,VLC!V:V,0))="x",_xlfn.IFNA(INDEX(VLC!H:H,MATCH(152,VLC!V:V,0)),""),""),"") ->  | H21: =_xlfn.IFNA(IF(INDEX(VLC!I:I,MATCH(112,VLC!V:V,0))<>"",_xlfn.IFNA(INDEX(VLC!I:I,MATCH(112,VLC!V:V,0)),""),""),"") ->  | I21: =_xlfn.IFNA(IF(INDEX(VLC!I:I,MATCH(152,VLC!V:V,0))<>"",_xlfn.IFNA(INDEX(VLC!I:I,MATCH(152,VLC!V:V,0)),""),""),"") ->  | J21: =_xlfn.IFNA(IF(INDEX(VLC!J:J,MATCH(112,VLC!V:V,0))="x",_xlfn.IFNA(INDEX(VLC!J:J,MATCH(112,VLC!V:V,0)),""),""),"") ->  | K21: =_xlfn.IFNA(IF(INDEX(VLC!J:J,MATCH(152,VLC!V:V,0))="x",_xlfn.IFNA(INDEX(VLC!J:J,MATCH(152,VLC!V:V,0)),""),""),"") ->  | L21: 1012 | M21: 1052
A22: SK Teilnehmer 13 | B22: =_xlfn.IFNA(INDEX(VLC!A:A,MATCH(113,VLC!V:V,0)),"") ->  | C22: =_xlfn.IFNA(INDEX(VLC!A:A,MATCH(153,VLC!V:V,0)),"") ->  | D22: =_xlfn.IFNA(INDEX(VLC!B:B,MATCH(113,VLC!V:V,0)),"") ->  | E22: =_xlfn.IFNA(INDEX(VLC!C:C,MATCH(113,VLC!V:V,0)),"") ->  | F22: =_xlfn.IFNA(IF(INDEX(VLC!H:H,MATCH(113,VLC!V:V,0))="x",_xlfn.IFNA(INDEX(VLC!H:H,MATCH(113,VLC!V:V,0)),""),""),"") ->  | G22: =_xlfn.IFNA(IF(INDEX(VLC!H:H,MATCH(153,VLC!V:V,0))="x",_xlfn.IFNA(INDEX(VLC!H:H,MATCH(153,VLC!V:V,0)),""),""),"") ->  | H22: =_xlfn.IFNA(IF(INDEX(VLC!I:I,MATCH(113,VLC!V:V,0))<>"",_xlfn.IFNA(INDEX(VLC!I:I,MATCH(113,VLC!V:V,0)),""),""),"") ->  | I22: =_xlfn.IFNA(IF(INDEX(VLC!I:I,MATCH(153,VLC!V:V,0))<>"",_xlfn.IFNA(INDEX(VLC!I:I,MATCH(153,VLC!V:V,0)),""),""),"") ->  | J22: =_xlfn.IFNA(IF(INDEX(VLC!J:J,MATCH(113,VLC!V:V,0))="x",_xlfn.IFNA(INDEX(VLC!J:J,MATCH(113,VLC!V:V,0)),""),""),"") ->  | K22: =_xlfn.IFNA(IF(INDEX(VLC!J:J,MATCH(153,VLC!V:V,0))="x",_xlfn.IFNA(INDEX(VLC!J:J,MATCH(153,VLC!V:V,0)),""),""),"") ->  | L22: 1013 | M22: 1053
A23: SK Teilnehmer 14 | B23: =_xlfn.IFNA(INDEX(VLC!A:A,MATCH(114,VLC!V:V,0)),"") ->  | C23: =_xlfn.IFNA(INDEX(VLC!A:A,MATCH(154,VLC!V:V,0)),"") ->  | D23: =_xlfn.IFNA(INDEX(VLC!B:B,MATCH(114,VLC!V:V,0)),"") ->  | E23: =_xlfn.IFNA(INDEX(VLC!C:C,MATCH(114,VLC!V:V,0)),"") ->  | F23: =_xlfn.IFNA(IF(INDEX(VLC!H:H,MATCH(114,VLC!V:V,0))="x",_xlfn.IFNA(INDEX(VLC!H:H,MATCH(114,VLC!V:V,0)),""),""),"") ->  | G23: =_xlfn.IFNA(IF(INDEX(VLC!H:H,MATCH(154,VLC!V:V,0))="x",_xlfn.IFNA(INDEX(VLC!H:H,MATCH(154,VLC!V:V,0)),""),""),"") ->  | H23: =_xlfn.IFNA(IF(INDEX(VLC!I:I,MATCH(114,VLC!V:V,0))<>"",_xlfn.IFNA(INDEX(VLC!I:I,MATCH(114,VLC!V:V,0)),""),""),"") ->  | I23: =_xlfn.IFNA(IF(INDEX(VLC!I:I,MATCH(154,VLC!V:V,0))<>"",_xlfn.IFNA(INDEX(VLC!I:I,MATCH(154,VLC!V:V,0)),""),""),"") ->  | J23: =_xlfn.IFNA(IF(INDEX(VLC!J:J,MATCH(114,VLC!V:V,0))="x",_xlfn.IFNA(INDEX(VLC!J:J,MATCH(114,VLC!V:V,0)),""),""),"") ->  | K23: =_xlfn.IFNA(IF(INDEX(VLC!J:J,MATCH(154,VLC!V:V,0))="x",_xlfn.IFNA(INDEX(VLC!J:J,MATCH(154,VLC!V:V,0)),""),""),"") ->  | L23: 1014 | M23: 1054
A24: SK Teilnehmer 15 | B24: =_xlfn.IFNA(INDEX(VLC!A:A,MATCH(115,VLC!V:V,0)),"") ->  | C24: =_xlfn.IFNA(INDEX(VLC!A:A,MATCH(155,VLC!V:V,0)),"") ->  | D24: =_xlfn.IFNA(INDEX(VLC!B:B,MATCH(115,VLC!V:V,0)),"") ->  | E24: =_xlfn.IFNA(INDEX(VLC!C:C,MATCH(115,VLC!V:V,0)),"") ->  | F24: =_xlfn.IFNA(IF(INDEX(VLC!H:H,MATCH(115,VLC!V:V,0))="x",_xlfn.IFNA(INDEX(VLC!H:H,MATCH(115,VLC!V:V,0)),""),""),"") ->  | G24: =_xlfn.IFNA(IF(INDEX(VLC!H:H,MATCH(155,VLC!V:V,0))="x",_xlfn.IFNA(INDEX(VLC!H:H,MATCH(155,VLC!V:V,0)),""),""),"") ->  | H24: =_xlfn.IFNA(IF(INDEX(VLC!I:I,MATCH(115,VLC!V:V,0))<>"",_xlfn.IFNA(INDEX(VLC!I:I,MATCH(115,VLC!V:V,0)),""),""),"") ->  | I24: =_xlfn.IFNA(IF(INDEX(VLC!I:I,MATCH(155,VLC!V:V,0))<>"",_xlfn.IFNA(INDEX(VLC!I:I,MATCH(155,VLC!V:V,0)),""),""),"") ->  | J24: =_xlfn.IFNA(IF(INDEX(VLC!J:J,MATCH(115,VLC!V:V,0))="x",_xlfn.IFNA(INDEX(VLC!J:J,MATCH(115,VLC!V:V,0)),""),""),"") ->  | K24: =_xlfn.IFNA(IF(INDEX(VLC!J:J,MATCH(155,VLC!V:V,0))="x",_xlfn.IFNA(INDEX(VLC!J:J,MATCH(155,VLC!V:V,0)),""),""),"") ->  | L24: 1015 | M24: 1055
A25: SK Teilnehmer 16 | B25: =_xlfn.IFNA(INDEX(VLC!A:A,MATCH(116,VLC!V:V,0)),"") ->  | C25: =_xlfn.IFNA(INDEX(VLC!A:A,MATCH(156,VLC!V:V,0)),"") ->  | D25: =_xlfn.IFNA(INDEX(VLC!B:B,MATCH(116,VLC!V:V,0)),"") ->  | E25: =_xlfn.IFNA(INDEX(VLC!C:C,MATCH(116,VLC!V:V,0)),"") ->  | F25: =_xlfn.IFNA(IF(INDEX(VLC!H:H,MATCH(116,VLC!V:V,0))="x",_xlfn.IFNA(INDEX(VLC!H:H,MATCH(116,VLC!V:V,0)),""),""),"") ->  | G25: =_xlfn.IFNA(IF(INDEX(VLC!H:H,MATCH(156,VLC!V:V,0))="x",_xlfn.IFNA(INDEX(VLC!H:H,MATCH(156,VLC!V:V,0)),""),""),"") ->  | H25: =_xlfn.IFNA(IF(INDEX(VLC!I:I,MATCH(116,VLC!V:V,0))<>"",_xlfn.IFNA(INDEX(VLC!I:I,MATCH(116,VLC!V:V,0)),""),""),"") ->  | I25: =_xlfn.IFNA(IF(INDEX(VLC!I:I,MATCH(156,VLC!V:V,0))<>"",_xlfn.IFNA(INDEX(VLC!I:I,MATCH(156,VLC!V:V,0)),""),""),"") ->  | J25: =_xlfn.IFNA(IF(INDEX(VLC!J:J,MATCH(116,VLC!V:V,0))="x",_xlfn.IFNA(INDEX(VLC!J:J,MATCH(116,VLC!V:V,0)),""),""),"") ->  | K25: =_xlfn.IFNA(IF(INDEX(VLC!J:J,MATCH(156,VLC!V:V,0))="x",_xlfn.IFNA(INDEX(VLC!J:J,MATCH(156,VLC!V:V,0)),""),""),"") ->  | L25: 1016 | M25: 1056
A26: SK Teilnehmer 17 | B26: =_xlfn.IFNA(INDEX(VLC!A:A,MATCH(117,VLC!V:V,0)),"") ->  | C26: =_xlfn.IFNA(INDEX(VLC!A:A,MATCH(157,VLC!V:V,0)),"") ->  | D26: =_xlfn.IFNA(INDEX(VLC!B:B,MATCH(117,VLC!V:V,0)),"") ->  | E26: =_xlfn.IFNA(INDEX(VLC!C:C,MATCH(117,VLC!V:V,0)),"") ->  | F26: =_xlfn.IFNA(IF(INDEX(VLC!H:H,MATCH(117,VLC!V:V,0))="x",_xlfn.IFNA(INDEX(VLC!H:H,MATCH(117,VLC!V:V,0)),""),""),"") ->  | G26: =_xlfn.IFNA(IF(INDEX(VLC!H:H,MATCH(157,VLC!V:V,0))="x",_xlfn.IFNA(INDEX(VLC!H:H,MATCH(157,VLC!V:V,0)),""),""),"") ->  | H26: =_xlfn.IFNA(IF(INDEX(VLC!I:I,MATCH(117,VLC!V:V,0))<>"",_xlfn.IFNA(INDEX(VLC!I:I,MATCH(117,VLC!V:V,0)),""),""),"") ->  | I26: =_xlfn.IFNA(IF(INDEX(VLC!I:I,MATCH(157,VLC!V:V,0))<>"",_xlfn.IFNA(INDEX(VLC!I:I,MATCH(157,VLC!V:V,0)),""),""),"") ->  | J26: =_xlfn.IFNA(IF(INDEX(VLC!J:J,MATCH(117,VLC!V:V,0))="x",_xlfn.IFNA(INDEX(VLC!J:J,MATCH(117,VLC!V:V,0)),""),""),"") ->  | K26: =_xlfn.IFNA(IF(INDEX(VLC!J:J,MATCH(157,VLC!V:V,0))="x",_xlfn.IFNA(INDEX(VLC!J:J,MATCH(157,VLC!V:V,0)),""),""),"") ->  | L26: 1017 | M26: 1057
A27: SK Teilnehmer 18 | B27: =_xlfn.IFNA(INDEX(VLC!A:A,MATCH(118,VLC!V:V,0)),"") ->  | C27: =_xlfn.IFNA(INDEX(VLC!A:A,MATCH(158,VLC!V:V,0)),"") ->  | D27: =_xlfn.IFNA(INDEX(VLC!B:B,MATCH(118,VLC!V:V,0)),"") ->  | E27: =_xlfn.IFNA(INDEX(VLC!C:C,MATCH(118,VLC!V:V,0)),"") ->  | F27: =_xlfn.IFNA(IF(INDEX(VLC!H:H,MATCH(118,VLC!V:V,0))="x",_xlfn.IFNA(INDEX(VLC!H:H,MATCH(118,VLC!V:V,0)),""),""),"") ->  | G27: =_xlfn.IFNA(IF(INDEX(VLC!H:H,MATCH(158,VLC!V:V,0))="x",_xlfn.IFNA(INDEX(VLC!H:H,MATCH(158,VLC!V:V,0)),""),""),"") ->  | H27: =_xlfn.IFNA(IF(INDEX(VLC!I:I,MATCH(118,VLC!V:V,0))<>"",_xlfn.IFNA(INDEX(VLC!I:I,MATCH(118,VLC!V:V,0)),""),""),"") ->  | I27: =_xlfn.IFNA(IF(INDEX(VLC!I:I,MATCH(158,VLC!V:V,0))<>"",_xlfn.IFNA(INDEX(VLC!I:I,MATCH(158,VLC!V:V,0)),""),""),"") ->  | J27: =_xlfn.IFNA(IF(INDEX(VLC!J:J,MATCH(118,VLC!V:V,0))="x",_xlfn.IFNA(INDEX(VLC!J:J,MATCH(118,VLC!V:V,0)),""),""),"") ->  | K27: =_xlfn.IFNA(IF(INDEX(VLC!J:J,MATCH(158,VLC!V:V,0))="x",_xlfn.IFNA(INDEX(VLC!J:J,MATCH(158,VLC!V:V,0)),""),""),"") ->  | L27: 1018 | M27: 1058
A28: SK Teilnehmer 19 | B28: =_xlfn.IFNA(INDEX(VLC!A:A,MATCH(119,VLC!V:V,0)),"") ->  | C28: =_xlfn.IFNA(INDEX(VLC!A:A,MATCH(159,VLC!V:V,0)),"") ->  | D28: =_xlfn.IFNA(INDEX(VLC!B:B,MATCH(119,VLC!V:V,0)),"") ->  | E28: =_xlfn.IFNA(INDEX(VLC!C:C,MATCH(119,VLC!V:V,0)),"") ->  | F28: =_xlfn.IFNA(IF(INDEX(VLC!H:H,MATCH(119,VLC!V:V,0))="x",_xlfn.IFNA(INDEX(VLC!H:H,MATCH(119,VLC!V:V,0)),""),""),"") ->  | G28: =_xlfn.IFNA(IF(INDEX(VLC!H:H,MATCH(159,VLC!V:V,0))="x",_xlfn.IFNA(INDEX(VLC!H:H,MATCH(159,VLC!V:V,0)),""),""),"") ->  | H28: =_xlfn.IFNA(IF(INDEX(VLC!I:I,MATCH(119,VLC!V:V,0))<>"",_xlfn.IFNA(INDEX(VLC!I:I,MATCH(119,VLC!V:V,0)),""),""),"") ->  | I28: =_xlfn.IFNA(IF(INDEX(VLC!I:I,MATCH(159,VLC!V:V,0))<>"",_xlfn.IFNA(INDEX(VLC!I:I,MATCH(159,VLC!V:V,0)),""),""),"") ->  | J28: =_xlfn.IFNA(IF(INDEX(VLC!J:J,MATCH(119,VLC!V:V,0))="x",_xlfn.IFNA(INDEX(VLC!J:J,MATCH(119,VLC!V:V,0)),""),""),"") ->  | K28: =_xlfn.IFNA(IF(INDEX(VLC!J:J,MATCH(159,VLC!V:V,0))="x",_xlfn.IFNA(INDEX(VLC!J:J,MATCH(159,VLC!V:V,0)),""),""),"") ->  | L28: 1019 | M28: 1059
A29: SK Teilnehmer 20 | B29: =_xlfn.IFNA(INDEX(VLC!A:A,MATCH(120,VLC!V:V,0)),"") ->  | C29: =_xlfn.IFNA(INDEX(VLC!A:A,MATCH(160,VLC!V:V,0)),"") ->  | D29: =_xlfn.IFNA(INDEX(VLC!B:B,MATCH(120,VLC!V:V,0)),"") ->  | E29: =_xlfn.IFNA(INDEX(VLC!C:C,MATCH(120,VLC!V:V,0)),"") ->  | F29: =_xlfn.IFNA(IF(INDEX(VLC!H:H,MATCH(120,VLC!V:V,0))="x",_xlfn.IFNA(INDEX(VLC!H:H,MATCH(120,VLC!V:V,0)),""),""),"") ->  | G29: =_xlfn.IFNA(IF(INDEX(VLC!H:H,MATCH(160,VLC!V:V,0))="x",_xlfn.IFNA(INDEX(VLC!H:H,MATCH(160,VLC!V:V,0)),""),""),"") ->  | H29: =_xlfn.IFNA(IF(INDEX(VLC!I:I,MATCH(120,VLC!V:V,0))<>"",_xlfn.IFNA(INDEX(VLC!I:I,MATCH(120,VLC!V:V,0)),""),""),"") ->  | I29: =_xlfn.IFNA(IF(INDEX(VLC!I:I,MATCH(160,VLC!V:V,0))<>"",_xlfn.IFNA(INDEX(VLC!I:I,MATCH(160,VLC!V:V,0)),""),""),"") ->  | J29: =_xlfn.IFNA(IF(INDEX(VLC!J:J,MATCH(120,VLC!V:V,0))="x",_xlfn.IFNA(INDEX(VLC!J:J,MATCH(120,VLC!V:V,0)),""),""),"") ->  | K29: =_xlfn.IFNA(IF(INDEX(VLC!J:J,MATCH(160,VLC!V:V,0))="x",_xlfn.IFNA(INDEX(VLC!J:J,MATCH(160,VLC!V:V,0)),""),""),"") ->  | L29: 1020 | M29: 1060
A30: Gerätename: | B30: =$B$6 -> 0 | E30: PLC24 Stromkreis-Nummer: 2
A31: Stromkreis-Bezeichnung:
A32: Stromkreisbelegung | B32: ID 1 | C32: ID 2 | D32: Bezeichnung | E32: Zusatzinfo | F32: DL | H32: GL | J32: BL
F33: ID1 | G33: ID2 | H33: ID1 | I33: ID2 | J33: ID1 | K33: ID2
A34: SK Teilnehmer 1 | B34: =_xlfn.IFNA(INDEX(VLC!A:A,MATCH(201,VLC!V:V,0)),"") ->  | C34: =_xlfn.IFNA(INDEX(VLC!A:A,MATCH(241,VLC!V:V,0)),"") ->  | D34: =_xlfn.IFNA(INDEX(VLC!B:B,MATCH(201,VLC!V:V,0)),"") ->  | E34: =_xlfn.IFNA(INDEX(VLC!C:C,MATCH(201,VLC!V:V,0)),"") ->  | F34: =_xlfn.IFNA(IF(INDEX(VLC!H:H,MATCH(201+ROW(A1)-1,VLC!V:V,0))="x",_xlfn.IFNA(INDEX(VLC!H:H,MATCH(201+ROW(A1)-1,VLC!V:V,0)),""),""),"") ->  | G34: =_xlfn.IFNA(IF(INDEX(VLC!H:H,MATCH(241+ROW(A1)-1,VLC!V:V,0))="x",_xlfn.IFNA(INDEX(VLC!H:H,MATCH(241+ROW(A1)-1,VLC!V:V,0)),""),""),"") ->  | H34: =_xlfn.IFNA(IF(INDEX(VLC!I:I,MATCH(201+ROW(A1)-1,VLC!V:V,0))<>"",_xlfn.IFNA(INDEX(VLC!I:I,MATCH(201+ROW(A1)-1,VLC!V:V,0)),""),""),"") ->  | I34: =_xlfn.IFNA(IF(INDEX(VLC!I:I,MATCH(241+ROW(A1)-1,VLC!V:V,0))<>"",_xlfn.IFNA(INDEX(VLC!I:I,MATCH(241+ROW(A1)-1,VLC!V:V,0)),""),""),"") ->  | J34: =_xlfn.IFNA(IF(INDEX(VLC!J:J,MATCH(201+ROW(A1)-1,VLC!V:V,0))="x",_xlfn.IFNA(INDEX(VLC!J:J,MATCH(201+ROW(A1)-1,VLC!V:V,0)),""),""),"") ->  | K34: =_xlfn.IFNA(IF(INDEX(VLC!J:J,MATCH(241+ROW(A1)-1,VLC!V:V,0))="x",_xlfn.IFNA(INDEX(VLC!J:J,MATCH(241+ROW(A1)-1,VLC!V:V,0)),""),""),"") ->  | L34: =2000+ROW(A34)-33 -> 2001 | M34: =L34+40 -> 2041
A35: SK Teilnehmer 2 | B35: =_xlfn.IFNA(INDEX(VLC!A:A,MATCH(202,VLC!V:V,0)),"") ->  | C35: =_xlfn.IFNA(INDEX(VLC!A:A,MATCH(242,VLC!V:V,0)),"") ->  | D35: =_xlfn.IFNA(INDEX(VLC!B:B,MATCH(202,VLC!V:V,0)),"") ->  | E35: =_xlfn.IFNA(INDEX(VLC!C:C,MATCH(202,VLC!V:V,0)),"") ->  | F35: =_xlfn.IFNA(IF(INDEX(VLC!H:H,MATCH(201+ROW(A2)-1,VLC!V:V,0))="x",_xlfn.IFNA(INDEX(VLC!H:H,MATCH(201+ROW(A2)-1,VLC!V:V,0)),""),""),"") ->  | G35: =_xlfn.IFNA(IF(INDEX(VLC!H:H,MATCH(241+ROW(A2)-1,VLC!V:V,0))="x",_xlfn.IFNA(INDEX(VLC!H:H,MATCH(241+ROW(A2)-1,VLC!V:V,0)),""),""),"") ->  | H35: =_xlfn.IFNA(IF(INDEX(VLC!I:I,MATCH(201+ROW(A2)-1,VLC!V:V,0))<>"",_xlfn.IFNA(INDEX(VLC!I:I,MATCH(201+ROW(A2)-1,VLC!V:V,0)),""),""),"") ->  | I35: =_xlfn.IFNA(IF(INDEX(VLC!I:I,MATCH(241+ROW(A2)-1,VLC!V:V,0))<>"",_xlfn.IFNA(INDEX(VLC!I:I,MATCH(241+ROW(A2)-1,VLC!V:V,0)),""),""),"") ->  | J35: =_xlfn.IFNA(IF(INDEX(VLC!J:J,MATCH(201+ROW(A2)-1,VLC!V:V,0))="x",_xlfn.IFNA(INDEX(VLC!J:J,MATCH(201+ROW(A2)-1,VLC!V:V,0)),""),""),"") ->  | K35: =_xlfn.IFNA(IF(INDEX(VLC!J:J,MATCH(241+ROW(A2)-1,VLC!V:V,0))="x",_xlfn.IFNA(INDEX(VLC!J:J,MATCH(241+ROW(A2)-1,VLC!V:V,0)),""),""),"") ->  | L35: =2000+ROW(A35)-33 -> 2002 | M35: =L35+40 -> 2042
A36: SK Teilnehmer 3 | B36: =_xlfn.IFNA(INDEX(VLC!A:A,MATCH(203,VLC!V:V,0)),"") ->  | C36: =_xlfn.IFNA(INDEX(VLC!A:A,MATCH(243,VLC!V:V,0)),"") ->  | D36: =_xlfn.IFNA(INDEX(VLC!B:B,MATCH(203,VLC!V:V,0)),"") ->  | E36: =_xlfn.IFNA(INDEX(VLC!C:C,MATCH(203,VLC!V:V,0)),"") ->  | F36: =_xlfn.IFNA(IF(INDEX(VLC!H:H,MATCH(201+ROW(A3)-1,VLC!V:V,0))="x",_xlfn.IFNA(INDEX(VLC!H:H,MATCH(201+ROW(A3)-1,VLC!V:V,0)),""),""),"") ->  | G36: =_xlfn.IFNA(IF(INDEX(VLC!H:H,MATCH(241+ROW(A3)-1,VLC!V:V,0))="x",_xlfn.IFNA(INDEX(VLC!H:H,MATCH(241+ROW(A3)-1,VLC!V:V,0)),""),""),"") ->  | H36: =_xlfn.IFNA(IF(INDEX(VLC!I:I,MATCH(201+ROW(A3)-1,VLC!V:V,0))<>"",_xlfn.IFNA(INDEX(VLC!I:I,MATCH(201+ROW(A3)-1,VLC!V:V,0)),""),""),"") ->  | I36: =_xlfn.IFNA(IF(INDEX(VLC!I:I,MATCH(241+ROW(A3)-1,VLC!V:V,0))<>"",_xlfn.IFNA(INDEX(VLC!I:I,MATCH(241+ROW(A3)-1,VLC!V:V,0)),""),""),"") ->  | J36: =_xlfn.IFNA(IF(INDEX(VLC!J:J,MATCH(201+ROW(A3)-1,VLC!V:V,0))="x",_xlfn.IFNA(INDEX(VLC!J:J,MATCH(201+ROW(A3)-1,VLC!V:V,0)),""),""),"") ->  | K36: =_xlfn.IFNA(IF(INDEX(VLC!J:J,MATCH(241+ROW(A3)-1,VLC!V:V,0))="x",_xlfn.IFNA(INDEX(VLC!J:J,MATCH(241+ROW(A3)-1,VLC!V:V,0)),""),""),"") ->  | L36: 2003 | M36: 2043
A37: SK Teilnehmer 4 | B37: =_xlfn.IFNA(INDEX(VLC!A:A,MATCH(204,VLC!V:V,0)),"") ->  | C37: =_xlfn.IFNA(INDEX(VLC!A:A,MATCH(244,VLC!V:V,0)),"") ->  | D37: =_xlfn.IFNA(INDEX(VLC!B:B,MATCH(204,VLC!V:V,0)),"") ->  | E37: =_xlfn.IFNA(INDEX(VLC!C:C,MATCH(204,VLC!V:V,0)),"") ->  | F37: =_xlfn.IFNA(IF(INDEX(VLC!H:H,MATCH(201+ROW(A4)-1,VLC!V:V,0))="x",_xlfn.IFNA(INDEX(VLC!H:H,MATCH(201+ROW(A4)-1,VLC!V:V,0)),""),""),"") ->  | G37: =_xlfn.IFNA(IF(INDEX(VLC!H:H,MATCH(241+ROW(A4)-1,VLC!V:V,0))="x",_xlfn.IFNA(INDEX(VLC!H:H,MATCH(241+ROW(A4)-1,VLC!V:V,0)),""),""),"") ->  | H37: =_xlfn.IFNA(IF(INDEX(VLC!I:I,MATCH(201+ROW(A4)-1,VLC!V:V,0))<>"",_xlfn.IFNA(INDEX(VLC!I:I,MATCH(201+ROW(A4)-1,VLC!V:V,0)),""),""),"") ->  | I37: =_xlfn.IFNA(IF(INDEX(VLC!I:I,MATCH(241+ROW(A4)-1,VLC!V:V,0))<>"",_xlfn.IFNA(INDEX(VLC!I:I,MATCH(241+ROW(A4)-1,VLC!V:V,0)),""),""),"") ->  | J37: =_xlfn.IFNA(IF(INDEX(VLC!J:J,MATCH(201+ROW(A4)-1,VLC!V:V,0))="x",_xlfn.IFNA(INDEX(VLC!J:J,MATCH(201+ROW(A4)-1,VLC!V:V,0)),""),""),"") ->  | K37: =_xlfn.IFNA(IF(INDEX(VLC!J:J,MATCH(241+ROW(A4)-1,VLC!V:V,0))="x",_xlfn.IFNA(INDEX(VLC!J:J,MATCH(241+ROW(A4)-1,VLC!V:V,0)),""),""),"") ->  | L37: 2004 | M37: 2044
A38: SK Teilnehmer 5 | B38: =_xlfn.IFNA(INDEX(VLC!A:A,MATCH(205,VLC!V:V,0)),"") ->  | C38: =_xlfn.IFNA(INDEX(VLC!A:A,MATCH(245,VLC!V:V,0)),"") ->  | D38: =_xlfn.IFNA(INDEX(VLC!B:B,MATCH(205,VLC!V:V,0)),"") ->  | E38: =_xlfn.IFNA(INDEX(VLC!C:C,MATCH(205,VLC!V:V,0)),"") ->  | F38: =_xlfn.IFNA(IF(INDEX(VLC!H:H,MATCH(201+ROW(A5)-1,VLC!V:V,0))="x",_xlfn.IFNA(INDEX(VLC!H:H,MATCH(201+ROW(A5)-1,VLC!V:V,0)),""),""),"") ->  | G38: =_xlfn.IFNA(IF(INDEX(VLC!H:H,MATCH(241+ROW(A5)-1,VLC!V:V,0))="x",_xlfn.IFNA(INDEX(VLC!H:H,MATCH(241+ROW(A5)-1,VLC!V:V,0)),""),""),"") ->  | H38: =_xlfn.IFNA(IF(INDEX(VLC!I:I,MATCH(201+ROW(A5)-1,VLC!V:V,0))<>"",_xlfn.IFNA(INDEX(VLC!I:I,MATCH(201+ROW(A5)-1,VLC!V:V,0)),""),""),"") ->  | I38: =_xlfn.IFNA(IF(INDEX(VLC!I:I,MATCH(241+ROW(A5)-1,VLC!V:V,0))<>"",_xlfn.IFNA(INDEX(VLC!I:I,MATCH(241+ROW(A5)-1,VLC!V:V,0)),""),""),"") ->  | J38: =_xlfn.IFNA(IF(INDEX(VLC!J:J,MATCH(201+ROW(A5)-1,VLC!V:V,0))="x",_xlfn.IFNA(INDEX(VLC!J:J,MATCH(201+ROW(A5)-1,VLC!V:V,0)),""),""),"") ->  | K38: =_xlfn.IFNA(IF(INDEX(VLC!J:J,MATCH(241+ROW(A5)-1,VLC!V:V,0))="x",_xlfn.IFNA(INDEX(VLC!J:J,MATCH(241+ROW(A5)-1,VLC!V:V,0)),""),""),"") ->  | L38: 2005 | M38: 2045
A39: SK Teilnehmer 6 | B39: =_xlfn.IFNA(INDEX(VLC!A:A,MATCH(206,VLC!V:V,0)),"") ->  | C39: =_xlfn.IFNA(INDEX(VLC!A:A,MATCH(246,VLC!V:V,0)),"") ->  | D39: =_xlfn.IFNA(INDEX(VLC!B:B,MATCH(206,VLC!V:V,0)),"") ->  | E39: =_xlfn.IFNA(INDEX(VLC!C:C,MATCH(206,VLC!V:V,0)),"") ->  | F39: =_xlfn.IFNA(IF(INDEX(VLC!H:H,MATCH(201+ROW(A6)-1,VLC!V:V,0))="x",_xlfn.IFNA(INDEX(VLC!H:H,MATCH(201+ROW(A6)-1,VLC!V:V,0)),""),""),"") ->  | G39: =_xlfn.IFNA(IF(INDEX(VLC!H:H,MATCH(241+ROW(A6)-1,VLC!V:V,0))="x",_xlfn.IFNA(INDEX(VLC!H:H,MATCH(241+ROW(A6)-1,VLC!V:V,0)),""),""),"") ->  | H39: =_xlfn.IFNA(IF(INDEX(VLC!I:I,MATCH(201+ROW(A6)-1,VLC!V:V,0))<>"",_xlfn.IFNA(INDEX(VLC!I:I,MATCH(201+ROW(A6)-1,VLC!V:V,0)),""),""),"") ->  | I39: =_xlfn.IFNA(IF(INDEX(VLC!I:I,MATCH(241+ROW(A6)-1,VLC!V:V,0))<>"",_xlfn.IFNA(INDEX(VLC!I:I,MATCH(241+ROW(A6)-1,VLC!V:V,0)),""),""),"") ->  | J39: =_xlfn.IFNA(IF(INDEX(VLC!J:J,MATCH(201+ROW(A6)-1,VLC!V:V,0))="x",_xlfn.IFNA(INDEX(VLC!J:J,MATCH(201+ROW(A6)-1,VLC!V:V,0)),""),""),"") ->  | K39: =_xlfn.IFNA(IF(INDEX(VLC!J:J,MATCH(241+ROW(A6)-1,VLC!V:V,0))="x",_xlfn.IFNA(INDEX(VLC!J:J,MATCH(241+ROW(A6)-1,VLC!V:V,0)),""),""),"") ->  | L39: 2006 | M39: 2046
A40: SK Teilnehmer 7 | B40: =_xlfn.IFNA(INDEX(VLC!A:A,MATCH(207,VLC!V:V,0)),"") ->  | C40: =_xlfn.IFNA(INDEX(VLC!A:A,MATCH(247,VLC!V:V,0)),"") ->  | D40: =_xlfn.IFNA(INDEX(VLC!B:B,MATCH(207,VLC!V:V,0)),"") ->  | E40: =_xlfn.IFNA(INDEX(VLC!C:C,MATCH(207,VLC!V:V,0)),"") ->  | F40: =_xlfn.IFNA(IF(INDEX(VLC!H:H,MATCH(201+ROW(A7)-1,VLC!V:V,0))="x",_xlfn.IFNA(INDEX(VLC!H:H,MATCH(201+ROW(A7)-1,VLC!V:V,0)),""),""),"") ->  | G40: =_xlfn.IFNA(IF(INDEX(VLC!H:H,MATCH(241+ROW(A7)-1,VLC!V:V,0))="x",_xlfn.IFNA(INDEX(VLC!H:H,MATCH(241+ROW(A7)-1,VLC!V:V,0)),""),""),"") ->  | H40: =_xlfn.IFNA(IF(INDEX(VLC!I:I,MATCH(201+ROW(A7)-1,VLC!V:V,0))<>"",_xlfn.IFNA(INDEX(VLC!I:I,MATCH(201+ROW(A7)-1,VLC!V:V,0)),""),""),"") ->  | I40: =_xlfn.IFNA(IF(INDEX(VLC!I:I,MATCH(241+ROW(A7)-1,VLC!V:V,0))<>"",_xlfn.IFNA(INDEX(VLC!I:I,MATCH(241+ROW(A7)-1,VLC!V:V,0)),""),""),"") ->  | J40: =_xlfn.IFNA(IF(INDEX(VLC!J:J,MATCH(201+ROW(A7)-1,VLC!V:V,0))="x",_xlfn.IFNA(INDEX(VLC!J:J,MATCH(201+ROW(A7)-1,VLC!V:V,0)),""),""),"") ->  | K40: =_xlfn.IFNA(IF(INDEX(VLC!J:J,MATCH(241+ROW(A7)-1,VLC!V:V,0))="x",_xlfn.IFNA(INDEX(VLC!J:J,MATCH(241+ROW(A7)-1,VLC!V:V,0)),""),""),"") ->  | L40: 2007 | M40: 2047
A41: SK Teilnehmer 8 | B41: =_xlfn.IFNA(INDEX(VLC!A:A,MATCH(208,VLC!V:V,0)),"") ->  | C41: =_xlfn.IFNA(INDEX(VLC!A:A,MATCH(248,VLC!V:V,0)),"") ->  | D41: =_xlfn.IFNA(INDEX(VLC!B:B,MATCH(208,VLC!V:V,0)),"") ->  | E41: =_xlfn.IFNA(INDEX(VLC!C:C,MATCH(208,VLC!V:V,0)),"") ->  | F41: =_xlfn.IFNA(IF(INDEX(VLC!H:H,MATCH(201+ROW(A8)-1,VLC!V:V,0))="x",_xlfn.IFNA(INDEX(VLC!H:H,MATCH(201+ROW(A8)-1,VLC!V:V,0)),""),""),"") ->  | G41: =_xlfn.IFNA(IF(INDEX(VLC!H:H,MATCH(241+ROW(A8)-1,VLC!V:V,0))="x",_xlfn.IFNA(INDEX(VLC!H:H,MATCH(241+ROW(A8)-1,VLC!V:V,0)),""),""),"") ->  | H41: =_xlfn.IFNA(IF(INDEX(VLC!I:I,MATCH(201+ROW(A8)-1,VLC!V:V,0))<>"",_xlfn.IFNA(INDEX(VLC!I:I,MATCH(201+ROW(A8)-1,VLC!V:V,0)),""),""),"") ->  | I41: =_xlfn.IFNA(IF(INDEX(VLC!I:I,MATCH(241+ROW(A8)-1,VLC!V:V,0))<>"",_xlfn.IFNA(INDEX(VLC!I:I,MATCH(241+ROW(A8)-1,VLC!V:V,0)),""),""),"") ->  | J41: =_xlfn.IFNA(IF(INDEX(VLC!J:J,MATCH(201+ROW(A8)-1,VLC!V:V,0))="x",_xlfn.IFNA(INDEX(VLC!J:J,MATCH(201+ROW(A8)-1,VLC!V:V,0)),""),""),"") ->  | K41: =_xlfn.IFNA(IF(INDEX(VLC!J:J,MATCH(241+ROW(A8)-1,VLC!V:V,0))="x",_xlfn.IFNA(INDEX(VLC!J:J,MATCH(241+ROW(A8)-1,VLC!V:V,0)),""),""),"") ->  | L41: 2008 | M41: 2048
A42: SK Teilnehmer 9 | B42: =_xlfn.IFNA(INDEX(VLC!A:A,MATCH(209,VLC!V:V,0)),"") ->  | C42: =_xlfn.IFNA(INDEX(VLC!A:A,MATCH(249,VLC!V:V,0)),"") ->  | D42: =_xlfn.IFNA(INDEX(VLC!B:B,MATCH(209,VLC!V:V,0)),"") ->  | E42: =_xlfn.IFNA(INDEX(VLC!C:C,MATCH(209,VLC!V:V,0)),"") ->  | F42: =_xlfn.IFNA(IF(INDEX(VLC!H:H,MATCH(201+ROW(A9)-1,VLC!V:V,0))="x",_xlfn.IFNA(INDEX(VLC!H:H,MATCH(201+ROW(A9)-1,VLC!V:V,0)),""),""),"") ->  | G42: =_xlfn.IFNA(IF(INDEX(VLC!H:H,MATCH(241+ROW(A9)-1,VLC!V:V,0))="x",_xlfn.IFNA(INDEX(VLC!H:H,MATCH(241+ROW(A9)-1,VLC!V:V,0)),""),""),"") ->  | H42: =_xlfn.IFNA(IF(INDEX(VLC!I:I,MATCH(201+ROW(A9)-1,VLC!V:V,0))<>"",_xlfn.IFNA(INDEX(VLC!I:I,MATCH(201+ROW(A9)-1,VLC!V:V,0)),""),""),"") ->  | I42: =_xlfn.IFNA(IF(INDEX(VLC!I:I,MATCH(241+ROW(A9)-1,VLC!V:V,0))<>"",_xlfn.IFNA(INDEX(VLC!I:I,MATCH(241+ROW(A9)-1,VLC!V:V,0)),""),""),"") ->  | J42: =_xlfn.IFNA(IF(INDEX(VLC!J:J,MATCH(201+ROW(A9)-1,VLC!V:V,0))="x",_xlfn.IFNA(INDEX(VLC!J:J,MATCH(201+ROW(A9)-1,VLC!V:V,0)),""),""),"") ->  | K42: =_xlfn.IFNA(IF(INDEX(VLC!J:J,MATCH(241+ROW(A9)-1,VLC!V:V,0))="x",_xlfn.IFNA(INDEX(VLC!J:J,MATCH(241+ROW(A9)-1,VLC!V:V,0)),""),""),"") ->  | L42: 2009 | M42: 2049
A43: SK Teilnehmer 10 | B43: =_xlfn.IFNA(INDEX(VLC!A:A,MATCH(210,VLC!V:V,0)),"") ->  | C43: =_xlfn.IFNA(INDEX(VLC!A:A,MATCH(250,VLC!V:V,0)),"") ->  | D43: =_xlfn.IFNA(INDEX(VLC!B:B,MATCH(210,VLC!V:V,0)),"") ->  | E43: =_xlfn.IFNA(INDEX(VLC!C:C,MATCH(210,VLC!V:V,0)),"") ->  | F43: =_xlfn.IFNA(IF(INDEX(VLC!H:H,MATCH(201+ROW(A10)-1,VLC!V:V,0))="x",_xlfn.IFNA(INDEX(VLC!H:H,MATCH(201+ROW(A10)-1,VLC!V:V,0)),""),""),"") ->  | G43: =_xlfn.IFNA(IF(INDEX(VLC!H:H,MATCH(241+ROW(A10)-1,VLC!V:V,0))="x",_xlfn.IFNA(INDEX(VLC!H:H,MATCH(241+ROW(A10)-1,VLC!V:V,0)),""),""),"") ->  | H43: =_xlfn.IFNA(IF(INDEX(VLC!I:I,MATCH(201+ROW(A10)-1,VLC!V:V,0))<>"",_xlfn.IFNA(INDEX(VLC!I:I,MATCH(201+ROW(A10)-1,VLC!V:V,0)),""),""),"") ->  | I43: =_xlfn.IFNA(IF(INDEX(VLC!I:I,MATCH(241+ROW(A10)-1,VLC!V:V,0))<>"",_xlfn.IFNA(INDEX(VLC!I:I,MATCH(241+ROW(A10)-1,VLC!V:V,0)),""),""),"") ->  | J43: =_xlfn.IFNA(IF(INDEX(VLC!J:J,MATCH(201+ROW(A10)-1,VLC!V:V,0))="x",_xlfn.IFNA(INDEX(VLC!J:J,MATCH(201+ROW(A10)-1,VLC!V:V,0)),""),""),"") ->  | K43: =_xlfn.IFNA(IF(INDEX(VLC!J:J,MATCH(241+ROW(A10)-1,VLC!V:V,0))="x",_xlfn.IFNA(INDEX(VLC!J:J,MATCH(241+ROW(A10)-1,VLC!V:V,0)),""),""),"") ->  | L43: 2010 | M43: 2050
A44: SK Teilnehmer 11 | B44: =_xlfn.IFNA(INDEX(VLC!A:A,MATCH(211,VLC!V:V,0)),"") ->  | C44: =_xlfn.IFNA(INDEX(VLC!A:A,MATCH(251,VLC!V:V,0)),"") ->  | D44: =_xlfn.IFNA(INDEX(VLC!B:B,MATCH(211,VLC!V:V,0)),"") ->  | E44: =_xlfn.IFNA(INDEX(VLC!C:C,MATCH(211,VLC!V:V,0)),"") ->  | F44: =_xlfn.IFNA(IF(INDEX(VLC!H:H,MATCH(201+ROW(A11)-1,VLC!V:V,0))="x",_xlfn.IFNA(INDEX(VLC!H:H,MATCH(201+ROW(A11)-1,VLC!V:V,0)),""),""),"") ->  | G44: =_xlfn.IFNA(IF(INDEX(VLC!H:H,MATCH(241+ROW(A11)-1,VLC!V:V,0))="x",_xlfn.IFNA(INDEX(VLC!H:H,MATCH(241+ROW(A11)-1,VLC!V:V,0)),""),""),"") ->  | H44: =_xlfn.IFNA(IF(INDEX(VLC!I:I,MATCH(201+ROW(A11)-1,VLC!V:V,0))<>"",_xlfn.IFNA(INDEX(VLC!I:I,MATCH(201+ROW(A11)-1,VLC!V:V,0)),""),""),"") ->  | I44: =_xlfn.IFNA(IF(INDEX(VLC!I:I,MATCH(241+ROW(A11)-1,VLC!V:V,0))<>"",_xlfn.IFNA(INDEX(VLC!I:I,MATCH(241+ROW(A11)-1,VLC!V:V,0)),""),""),"") ->  | J44: =_xlfn.IFNA(IF(INDEX(VLC!J:J,MATCH(201+ROW(A11)-1,VLC!V:V,0))="x",_xlfn.IFNA(INDEX(VLC!J:J,MATCH(201+ROW(A11)-1,VLC!V:V,0)),""),""),"") ->  | K44: =_xlfn.IFNA(IF(INDEX(VLC!J:J,MATCH(241+ROW(A11)-1,VLC!V:V,0))="x",_xlfn.IFNA(INDEX(VLC!J:J,MATCH(241+ROW(A11)-1,VLC!V:V,0)),""),""),"") ->  | L44: 2011 | M44: 2051
A45: SK Teilnehmer 12 | B45: =_xlfn.IFNA(INDEX(VLC!A:A,MATCH(212,VLC!V:V,0)),"") ->  | C45: =_xlfn.IFNA(INDEX(VLC!A:A,MATCH(252,VLC!V:V,0)),"") ->  | D45: =_xlfn.IFNA(INDEX(VLC!B:B,MATCH(212,VLC!V:V,0)),"") ->  | E45: =_xlfn.IFNA(INDEX(VLC!C:C,MATCH(212,VLC!V:V,0)),"") ->  | F45: =_xlfn.IFNA(IF(INDEX(VLC!H:H,MATCH(201+ROW(A12)-1,VLC!V:V,0))="x",_xlfn.IFNA(INDEX(VLC!H:H,MATCH(201+ROW(A12)-1,VLC!V:V,0)),""),""),"") ->  | G45: =_xlfn.IFNA(IF(INDEX(VLC!H:H,MATCH(241+ROW(A12)-1,VLC!V:V,0))="x",_xlfn.IFNA(INDEX(VLC!H:H,MATCH(241+ROW(A12)-1,VLC!V:V,0)),""),""),"") ->  | H45: =_xlfn.IFNA(IF(INDEX(VLC!I:I,MATCH(201+ROW(A12)-1,VLC!V:V,0))<>"",_xlfn.IFNA(INDEX(VLC!I:I,MATCH(201+ROW(A12)-1,VLC!V:V,0)),""),""),"") ->  | I45: =_xlfn.IFNA(IF(INDEX(VLC!I:I,MATCH(241+ROW(A12)-1,VLC!V:V,0))<>"",_xlfn.IFNA(INDEX(VLC!I:I,MATCH(241+ROW(A12)-1,VLC!V:V,0)),""),""),"") ->  | J45: =_xlfn.IFNA(IF(INDEX(VLC!J:J,MATCH(201+ROW(A12)-1,VLC!V:V,0))="x",_xlfn.IFNA(INDEX(VLC!J:J,MATCH(201+ROW(A12)-1,VLC!V:V,0)),""),""),"") ->  | K45: =_xlfn.IFNA(IF(INDEX(VLC!J:J,MATCH(241+ROW(A12)-1,VLC!V:V,0))="x",_xlfn.IFNA(INDEX(VLC!J:J,MATCH(241+ROW(A12)-1,VLC!V:V,0)),""),""),"") ->  | L45: 2012 | M45: 2052
A46: SK Teilnehmer 13 | B46: =_xlfn.IFNA(INDEX(VLC!A:A,MATCH(213,VLC!V:V,0)),"") ->  | C46: =_xlfn.IFNA(INDEX(VLC!A:A,MATCH(253,VLC!V:V,0)),"") ->  | D46: =_xlfn.IFNA(INDEX(VLC!B:B,MATCH(213,VLC!V:V,0)),"") ->  | E46: =_xlfn.IFNA(INDEX(VLC!C:C,MATCH(213,VLC!V:V,0)),"") ->  | F46: =_xlfn.IFNA(IF(INDEX(VLC!H:H,MATCH(201+ROW(A13)-1,VLC!V:V,0))="x",_xlfn.IFNA(INDEX(VLC!H:H,MATCH(201+ROW(A13)-1,VLC!V:V,0)),""),""),"") ->  | G46: =_xlfn.IFNA(IF(INDEX(VLC!H:H,MATCH(241+ROW(A13)-1,VLC!V:V,0))="x",_xlfn.IFNA(INDEX(VLC!H:H,MATCH(241+ROW(A13)-1,VLC!V:V,0)),""),""),"") ->  | H46: =_xlfn.IFNA(IF(INDEX(VLC!I:I,MATCH(201+ROW(A13)-1,VLC!V:V,0))<>"",_xlfn.IFNA(INDEX(VLC!I:I,MATCH(201+ROW(A13)-1,VLC!V:V,0)),""),""),"") ->  | I46: =_xlfn.IFNA(IF(INDEX(VLC!I:I,MATCH(241+ROW(A13)-1,VLC!V:V,0))<>"",_xlfn.IFNA(INDEX(VLC!I:I,MATCH(241+ROW(A13)-1,VLC!V:V,0)),""),""),"") ->  | J46: =_xlfn.IFNA(IF(INDEX(VLC!J:J,MATCH(201+ROW(A13)-1,VLC!V:V,0))="x",_xlfn.IFNA(INDEX(VLC!J:J,MATCH(201+ROW(A13)-1,VLC!V:V,0)),""),""),"") ->  | K46: =_xlfn.IFNA(IF(INDEX(VLC!J:J,MATCH(241+ROW(A13)-1,VLC!V:V,0))="x",_xlfn.IFNA(INDEX(VLC!J:J,MATCH(241+ROW(A13)-1,VLC!V:V,0)),""),""),"") ->  | L46: 2013 | M46: 2053
A47: SK Teilnehmer 14 | B47: =_xlfn.IFNA(INDEX(VLC!A:A,MATCH(214,VLC!V:V,0)),"") ->  | C47: =_xlfn.IFNA(INDEX(VLC!A:A,MATCH(254,VLC!V:V,0)),"") ->  | D47: =_xlfn.IFNA(INDEX(VLC!B:B,MATCH(214,VLC!V:V,0)),"") ->  | E47: =_xlfn.IFNA(INDEX(VLC!C:C,MATCH(214,VLC!V:V,0)),"") ->  | F47: =_xlfn.IFNA(IF(INDEX(VLC!H:H,MATCH(201+ROW(A14)-1,VLC!V:V,0))="x",_xlfn.IFNA(INDEX(VLC!H:H,MATCH(201+ROW(A14)-1,VLC!V:V,0)),""),""),"") ->  | G47: =_xlfn.IFNA(IF(INDEX(VLC!H:H,MATCH(241+ROW(A14)-1,VLC!V:V,0))="x",_xlfn.IFNA(INDEX(VLC!H:H,MATCH(241+ROW(A14)-1,VLC!V:V,0)),""),""),"") ->  | H47: =_xlfn.IFNA(IF(INDEX(VLC!I:I,MATCH(201+ROW(A14)-1,VLC!V:V,0))<>"",_xlfn.IFNA(INDEX(VLC!I:I,MATCH(201+ROW(A14)-1,VLC!V:V,0)),""),""),"") ->  | I47: =_xlfn.IFNA(IF(INDEX(VLC!I:I,MATCH(241+ROW(A14)-1,VLC!V:V,0))<>"",_xlfn.IFNA(INDEX(VLC!I:I,MATCH(241+ROW(A14)-1,VLC!V:V,0)),""),""),"") ->  | J47: =_xlfn.IFNA(IF(INDEX(VLC!J:J,MATCH(201+ROW(A14)-1,VLC!V:V,0))="x",_xlfn.IFNA(INDEX(VLC!J:J,MATCH(201+ROW(A14)-1,VLC!V:V,0)),""),""),"") ->  | K47: =_xlfn.IFNA(IF(INDEX(VLC!J:J,MATCH(241+ROW(A14)-1,VLC!V:V,0))="x",_xlfn.IFNA(INDEX(VLC!J:J,MATCH(241+ROW(A14)-1,VLC!V:V,0)),""),""),"") ->  | L47: 2014 | M47: 2054
A48: SK Teilnehmer 15 | B48: =_xlfn.IFNA(INDEX(VLC!A:A,MATCH(215,VLC!V:V,0)),"") ->  | C48: =_xlfn.IFNA(INDEX(VLC!A:A,MATCH(255,VLC!V:V,0)),"") ->  | D48: =_xlfn.IFNA(INDEX(VLC!B:B,MATCH(215,VLC!V:V,0)),"") ->  | E48: =_xlfn.IFNA(INDEX(VLC!C:C,MATCH(215,VLC!V:V,0)),"") ->  | F48: =_xlfn.IFNA(IF(INDEX(VLC!H:H,MATCH(201+ROW(A15)-1,VLC!V:V,0))="x",_xlfn.IFNA(INDEX(VLC!H:H,MATCH(201+ROW(A15)-1,VLC!V:V,0)),""),""),"") ->  | G48: =_xlfn.IFNA(IF(INDEX(VLC!H:H,MATCH(241+ROW(A15)-1,VLC!V:V,0))="x",_xlfn.IFNA(INDEX(VLC!H:H,MATCH(241+ROW(A15)-1,VLC!V:V,0)),""),""),"") ->  | H48: =_xlfn.IFNA(IF(INDEX(VLC!I:I,MATCH(201+ROW(A15)-1,VLC!V:V,0))<>"",_xlfn.IFNA(INDEX(VLC!I:I,MATCH(201+ROW(A15)-1,VLC!V:V,0)),""),""),"") ->  | I48: =_xlfn.IFNA(IF(INDEX(VLC!I:I,MATCH(241+ROW(A15)-1,VLC!V:V,0))<>"",_xlfn.IFNA(INDEX(VLC!I:I,MATCH(241+ROW(A15)-1,VLC!V:V,0)),""),""),"") ->  | J48: =_xlfn.IFNA(IF(INDEX(VLC!J:J,MATCH(201+ROW(A15)-1,VLC!V:V,0))="x",_xlfn.IFNA(INDEX(VLC!J:J,MATCH(201+ROW(A15)-1,VLC!V:V,0)),""),""),"") ->  | K48: =_xlfn.IFNA(IF(INDEX(VLC!J:J,MATCH(241+ROW(A15)-1,VLC!V:V,0))="x",_xlfn.IFNA(INDEX(VLC!J:J,MATCH(241+ROW(A15)-1,VLC!V:V,0)),""),""),"") ->  | L48: 2015 | M48: 2055
A49: SK Teilnehmer 16 | B49: =_xlfn.IFNA(INDEX(VLC!A:A,MATCH(216,VLC!V:V,0)),"") ->  | C49: =_xlfn.IFNA(INDEX(VLC!A:A,MATCH(256,VLC!V:V,0)),"") ->  | D49: =_xlfn.IFNA(INDEX(VLC!B:B,MATCH(216,VLC!V:V,0)),"") ->  | E49: =_xlfn.IFNA(INDEX(VLC!C:C,MATCH(216,VLC!V:V,0)),"") ->  | F49: =_xlfn.IFNA(IF(INDEX(VLC!H:H,MATCH(201+ROW(A16)-1,VLC!V:V,0))="x",_xlfn.IFNA(INDEX(VLC!H:H,MATCH(201+ROW(A16)-1,VLC!V:V,0)),""),""),"") ->  | G49: =_xlfn.IFNA(IF(INDEX(VLC!H:H,MATCH(241+ROW(A16)-1,VLC!V:V,0))="x",_xlfn.IFNA(INDEX(VLC!H:H,MATCH(241+ROW(A16)-1,VLC!V:V,0)),""),""),"") ->  | H49: =_xlfn.IFNA(IF(INDEX(VLC!I:I,MATCH(201+ROW(A16)-1,VLC!V:V,0))<>"",_xlfn.IFNA(INDEX(VLC!I:I,MATCH(201+ROW(A16)-1,VLC!V:V,0)),""),""),"") ->  | I49: =_xlfn.IFNA(IF(INDEX(VLC!I:I,MATCH(241+ROW(A16)-1,VLC!V:V,0))<>"",_xlfn.IFNA(INDEX(VLC!I:I,MATCH(241+ROW(A16)-1,VLC!V:V,0)),""),""),"") ->  | J49: =_xlfn.IFNA(IF(INDEX(VLC!J:J,MATCH(201+ROW(A16)-1,VLC!V:V,0))="x",_xlfn.IFNA(INDEX(VLC!J:J,MATCH(201+ROW(A16)-1,VLC!V:V,0)),""),""),"") ->  | K49: =_xlfn.IFNA(IF(INDEX(VLC!J:J,MATCH(241+ROW(A16)-1,VLC!V:V,0))="x",_xlfn.IFNA(INDEX(VLC!J:J,MATCH(241+ROW(A16)-1,VLC!V:V,0)),""),""),"") ->  | L49: 2016 | M49: 2056
A50: SK Teilnehmer 17 | B50: =_xlfn.IFNA(INDEX(VLC!A:A,MATCH(217,VLC!V:V,0)),"") ->  | C50: =_xlfn.IFNA(INDEX(VLC!A:A,MATCH(257,VLC!V:V,0)),"") ->  | D50: =_xlfn.IFNA(INDEX(VLC!B:B,MATCH(217,VLC!V:V,0)),"") ->  | E50: =_xlfn.IFNA(INDEX(VLC!C:C,MATCH(217,VLC!V:V,0)),"") ->  | F50: =_xlfn.IFNA(IF(INDEX(VLC!H:H,MATCH(201+ROW(A17)-1,VLC!V:V,0))="x",_xlfn.IFNA(INDEX(VLC!H:H,MATCH(201+ROW(A17)-1,VLC!V:V,0)),""),""),"") ->  | G50: =_xlfn.IFNA(IF(INDEX(VLC!H:H,MATCH(241+ROW(A17)-1,VLC!V:V,0))="x",_xlfn.IFNA(INDEX(VLC!H:H,MATCH(241+ROW(A17)-1,VLC!V:V,0)),""),""),"") ->  | H50: =_xlfn.IFNA(IF(INDEX(VLC!I:I,MATCH(201+ROW(A17)-1,VLC!V:V,0))<>"",_xlfn.IFNA(INDEX(VLC!I:I,MATCH(201+ROW(A17)-1,VLC!V:V,0)),""),""),"") ->  | I50: =_xlfn.IFNA(IF(INDEX(VLC!I:I,MATCH(241+ROW(A17)-1,VLC!V:V,0))<>"",_xlfn.IFNA(INDEX(VLC!I:I,MATCH(241+ROW(A17)-1,VLC!V:V,0)),""),""),"") ->  | J50: =_xlfn.IFNA(IF(INDEX(VLC!J:J,MATCH(201+ROW(A17)-1,VLC!V:V,0))="x",_xlfn.IFNA(INDEX(VLC!J:J,MATCH(201+ROW(A17)-1,VLC!V:V,0)),""),""),"") ->  | K50: =_xlfn.IFNA(IF(INDEX(VLC!J:J,MATCH(241+ROW(A17)-1,VLC!V:V,0))="x",_xlfn.IFNA(INDEX(VLC!J:J,MATCH(241+ROW(A17)-1,VLC!V:V,0)),""),""),"") ->  | L50: 2017 | M50: 2057
A51: SK Teilnehmer 18 | B51: =_xlfn.IFNA(INDEX(VLC!A:A,MATCH(218,VLC!V:V,0)),"") ->  | C51: =_xlfn.IFNA(INDEX(VLC!A:A,MATCH(258,VLC!V:V,0)),"") ->  | D51: =_xlfn.IFNA(INDEX(VLC!B:B,MATCH(218,VLC!V:V,0)),"") ->  | E51: =_xlfn.IFNA(INDEX(VLC!C:C,MATCH(218,VLC!V:V,0)),"") ->  | F51: =_xlfn.IFNA(IF(INDEX(VLC!H:H,MATCH(201+ROW(A18)-1,VLC!V:V,0))="x",_xlfn.IFNA(INDEX(VLC!H:H,MATCH(201+ROW(A18)-1,VLC!V:V,0)),""),""),"") ->  | G51: =_xlfn.IFNA(IF(INDEX(VLC!H:H,MATCH(241+ROW(A18)-1,VLC!V:V,0))="x",_xlfn.IFNA(INDEX(VLC!H:H,MATCH(241+ROW(A18)-1,VLC!V:V,0)),""),""),"") ->  | H51: =_xlfn.IFNA(IF(INDEX(VLC!I:I,MATCH(201+ROW(A18)-1,VLC!V:V,0))<>"",_xlfn.IFNA(INDEX(VLC!I:I,MATCH(201+ROW(A18)-1,VLC!V:V,0)),""),""),"") ->  | I51: =_xlfn.IFNA(IF(INDEX(VLC!I:I,MATCH(241+ROW(A18)-1,VLC!V:V,0))<>"",_xlfn.IFNA(INDEX(VLC!I:I,MATCH(241+ROW(A18)-1,VLC!V:V,0)),""),""),"") ->  | J51: =_xlfn.IFNA(IF(INDEX(VLC!J:J,MATCH(201+ROW(A18)-1,VLC!V:V,0))="x",_xlfn.IFNA(INDEX(VLC!J:J,MATCH(201+ROW(A18)-1,VLC!V:V,0)),""),""),"") ->  | K51: =_xlfn.IFNA(IF(INDEX(VLC!J:J,MATCH(241+ROW(A18)-1,VLC!V:V,0))="x",_xlfn.IFNA(INDEX(VLC!J:J,MATCH(241+ROW(A18)-1,VLC!V:V,0)),""),""),"") ->  | L51: 2018 | M51: 2058
A52: SK Teilnehmer 19 | B52: =_xlfn.IFNA(INDEX(VLC!A:A,MATCH(219,VLC!V:V,0)),"") ->  | C52: =_xlfn.IFNA(INDEX(VLC!A:A,MATCH(259,VLC!V:V,0)),"") ->  | D52: =_xlfn.IFNA(INDEX(VLC!B:B,MATCH(219,VLC!V:V,0)),"") ->  | E52: =_xlfn.IFNA(INDEX(VLC!C:C,MATCH(219,VLC!V:V,0)),"") ->  | F52: =_xlfn.IFNA(IF(INDEX(VLC!H:H,MATCH(201+ROW(A19)-1,VLC!V:V,0))="x",_xlfn.IFNA(INDEX(VLC!H:H,MATCH(201+ROW(A19)-1,VLC!V:V,0)),""),""),"") ->  | G52: =_xlfn.IFNA(IF(INDEX(VLC!H:H,MATCH(241+ROW(A19)-1,VLC!V:V,0))="x",_xlfn.IFNA(INDEX(VLC!H:H,MATCH(241+ROW(A19)-1,VLC!V:V,0)),""),""),"") ->  | H52: =_xlfn.IFNA(IF(INDEX(VLC!I:I,MATCH(201+ROW(A19)-1,VLC!V:V,0))<>"",_xlfn.IFNA(INDEX(VLC!I:I,MATCH(201+ROW(A19)-1,VLC!V:V,0)),""),""),"") ->  | I52: =_xlfn.IFNA(IF(INDEX(VLC!I:I,MATCH(241+ROW(A19)-1,VLC!V:V,0))<>"",_xlfn.IFNA(INDEX(VLC!I:I,MATCH(241+ROW(A19)-1,VLC!V:V,0)),""),""),"") ->  | J52: =_xlfn.IFNA(IF(INDEX(VLC!J:J,MATCH(201+ROW(A19)-1,VLC!V:V,0))="x",_xlfn.IFNA(INDEX(VLC!J:J,MATCH(201+ROW(A19)-1,VLC!V:V,0)),""),""),"") ->  | K52: =_xlfn.IFNA(IF(INDEX(VLC!J:J,MATCH(241+ROW(A19)-1,VLC!V:V,0))="x",_xlfn.IFNA(INDEX(VLC!J:J,MATCH(241+ROW(A19)-1,VLC!V:V,0)),""),""),"") ->  | L52: 2019 | M52: 2059
A53: SK Teilnehmer 20 | B53: =_xlfn.IFNA(INDEX(VLC!A:A,MATCH(220,VLC!V:V,0)),"") ->  | C53: =_xlfn.IFNA(INDEX(VLC!A:A,MATCH(260,VLC!V:V,0)),"") ->  | D53: =_xlfn.IFNA(INDEX(VLC!B:B,MATCH(220,VLC!V:V,0)),"") ->  | E53: =_xlfn.IFNA(INDEX(VLC!C:C,MATCH(220,VLC!V:V,0)),"") ->  | F53: =_xlfn.IFNA(IF(INDEX(VLC!H:H,MATCH(201+ROW(A20)-1,VLC!V:V,0))="x",_xlfn.IFNA(INDEX(VLC!H:H,MATCH(201+ROW(A20)-1,VLC!V:V,0)),""),""),"") ->  | G53: =_xlfn.IFNA(IF(INDEX(VLC!H:H,MATCH(241+ROW(A20)-1,VLC!V:V,0))="x",_xlfn.IFNA(INDEX(VLC!H:H,MATCH(241+ROW(A20)-1,VLC!V:V,0)),""),""),"") ->  | H53: =_xlfn.IFNA(IF(INDEX(VLC!I:I,MATCH(201+ROW(A20)-1,VLC!V:V,0))<>"",_xlfn.IFNA(INDEX(VLC!I:I,MATCH(201+ROW(A20)-1,VLC!V:V,0)),""),""),"") ->  | I53: =_xlfn.IFNA(IF(INDEX(VLC!I:I,MATCH(241+ROW(A20)-1,VLC!V:V,0))<>"",_xlfn.IFNA(INDEX(VLC!I:I,MATCH(241+ROW(A20)-1,VLC!V:V,0)),""),""),"") ->  | J53: =_xlfn.IFNA(IF(INDEX(VLC!J:J,MATCH(201+ROW(A20)-1,VLC!V:V,0))="x",_xlfn.IFNA(INDEX(VLC!J:J,MATCH(201+ROW(A20)-1,VLC!V:V,0)),""),""),"") ->  | K53: =_xlfn.IFNA(IF(INDEX(VLC!J:J,MATCH(241+ROW(A20)-1,VLC!V:V,0))="x",_xlfn.IFNA(INDEX(VLC!J:J,MATCH(241+ROW(A20)-1,VLC!V:V,0)),""),""),"") ->  | L53: 2020 | M53: 2060
A54: Gerätename: | B54: =$B$6 -> 0 | E54: PLC24 Stromkreis-Nummer: 3
A55: Stromkreis-Bezeichnung:
A56: Stromkreisbelegung | B56: ID 1 | C56: ID 2 | D56: Bezeichnung | E56: Zusatzinfo | F56: DL | H56: GL | J56: BL
F57: ID1 | G57: ID2 | H57: ID1 | I57: ID2 | J57: ID1 | K57: ID2
A58: SK Teilnehmer 1 | B58: =_xlfn.IFNA(INDEX(VLC!A:A,MATCH(301,VLC!V:V,0)),"") ->  | C58: =_xlfn.IFNA(INDEX(VLC!A:A,MATCH(341,VLC!V:V,0)),"") ->  | D58: =_xlfn.IFNA(INDEX(VLC!B:B,MATCH(301+ROW(A1)-1,VLC!V:V,0)),"") ->  | E58: =_xlfn.IFNA(INDEX(VLC!C:C,MATCH(301+ROW(A1)-1,VLC!V:V,0)),"") ->  | F58: =_xlfn.IFNA(IF(INDEX(VLC!H:H,MATCH(301+ROW(A1)-1,VLC!V:V,0))="x",_xlfn.IFNA(INDEX(VLC!H:H,MATCH(301+ROW(A1)-1,VLC!V:V,0)),""),""),"") ->  | G58: =_xlfn.IFNA(IF(INDEX(VLC!H:H,MATCH(341+ROW(A1)-1,VLC!V:V,0))="x",_xlfn.IFNA(INDEX(VLC!H:H,MATCH(341+ROW(A1)-1,VLC!V:V,0)),""),""),"") ->  | H58: =_xlfn.IFNA(IF(INDEX(VLC!I:I,MATCH(301+ROW(A1)-1,VLC!V:V,0))<>"",_xlfn.IFNA(INDEX(VLC!I:I,MATCH(301+ROW(A1)-1,VLC!V:V,0)),""),""),"") ->  | I58: =_xlfn.IFNA(IF(INDEX(VLC!I:I,MATCH(341+ROW(A1)-1,VLC!V:V,0))<>"",_xlfn.IFNA(INDEX(VLC!I:I,MATCH(341+ROW(A1)-1,VLC!V:V,0)),""),""),"") ->  | J58: =_xlfn.IFNA(IF(INDEX(VLC!J:J,MATCH(301+ROW(A1)-1,VLC!V:V,0))="x",_xlfn.IFNA(INDEX(VLC!J:J,MATCH(301+ROW(A1)-1,VLC!V:V,0)),""),""),"") ->  | K58: =_xlfn.IFNA(IF(INDEX(VLC!J:J,MATCH(341+ROW(A1)-1,VLC!V:V,0))="x",_xlfn.IFNA(INDEX(VLC!J:J,MATCH(341+ROW(A1)-1,VLC!V:V,0)),""),""),"") ->  | L58: =3000+ROW(A58)-57 -> 3001 | M58: =L58+40 -> 3041
A59: SK Teilnehmer 2 | B59: =_xlfn.IFNA(INDEX(VLC!A:A,MATCH(302,VLC!V:V,0)),"") ->  | C59: =_xlfn.IFNA(INDEX(VLC!A:A,MATCH(342,VLC!V:V,0)),"") ->  | D59: =_xlfn.IFNA(INDEX(VLC!B:B,MATCH(301+ROW(A2)-1,VLC!V:V,0)),"") ->  | E59: =_xlfn.IFNA(INDEX(VLC!C:C,MATCH(301+ROW(A2)-1,VLC!V:V,0)),"") ->  | F59: =_xlfn.IFNA(IF(INDEX(VLC!H:H,MATCH(301+ROW(A2)-1,VLC!V:V,0))="x",_xlfn.IFNA(INDEX(VLC!H:H,MATCH(301+ROW(A2)-1,VLC!V:V,0)),""),""),"") ->  | G59: =_xlfn.IFNA(IF(INDEX(VLC!H:H,MATCH(341+ROW(A2)-1,VLC!V:V,0))="x",_xlfn.IFNA(INDEX(VLC!H:H,MATCH(341+ROW(A2)-1,VLC!V:V,0)),""),""),"") ->  | H59: =_xlfn.IFNA(IF(INDEX(VLC!I:I,MATCH(301+ROW(A2)-1,VLC!V:V,0))<>"",_xlfn.IFNA(INDEX(VLC!I:I,MATCH(301+ROW(A2)-1,VLC!V:V,0)),""),""),"") ->  | I59: =_xlfn.IFNA(IF(INDEX(VLC!I:I,MATCH(341+ROW(A2)-1,VLC!V:V,0))<>"",_xlfn.IFNA(INDEX(VLC!I:I,MATCH(341+ROW(A2)-1,VLC!V:V,0)),""),""),"") ->  | J59: =_xlfn.IFNA(IF(INDEX(VLC!J:J,MATCH(301+ROW(A2)-1,VLC!V:V,0))="x",_xlfn.IFNA(INDEX(VLC!J:J,MATCH(301+ROW(A2)-1,VLC!V:V,0)),""),""),"") ->  | K59: =_xlfn.IFNA(IF(INDEX(VLC!J:J,MATCH(341+ROW(A2)-1,VLC!V:V,0))="x",_xlfn.IFNA(INDEX(VLC!J:J,MATCH(341+ROW(A2)-1,VLC!V:V,0)),""),""),"") ->  | L59: =3000+ROW(A59)-57 -> 3002 | M59: =L59+40 -> 3042
A60: SK Teilnehmer 3 | B60: =_xlfn.IFNA(INDEX(VLC!A:A,MATCH(303,VLC!V:V,0)),"") ->  | C60: =_xlfn.IFNA(INDEX(VLC!A:A,MATCH(343,VLC!V:V,0)),"") ->  | D60: =_xlfn.IFNA(INDEX(VLC!B:B,MATCH(301+ROW(A3)-1,VLC!V:V,0)),"") ->  | E60: =_xlfn.IFNA(INDEX(VLC!C:C,MATCH(301+ROW(A3)-1,VLC!V:V,0)),"") ->  | F60: =_xlfn.IFNA(IF(INDEX(VLC!H:H,MATCH(301+ROW(A3)-1,VLC!V:V,0))="x",_xlfn.IFNA(INDEX(VLC!H:H,MATCH(301+ROW(A3)-1,VLC!V:V,0)),""),""),"") ->  | G60: =_xlfn.IFNA(IF(INDEX(VLC!H:H,MATCH(341+ROW(A3)-1,VLC!V:V,0))="x",_xlfn.IFNA(INDEX(VLC!H:H,MATCH(341+ROW(A3)-1,VLC!V:V,0)),""),""),"") ->  | H60: =_xlfn.IFNA(IF(INDEX(VLC!I:I,MATCH(301+ROW(A3)-1,VLC!V:V,0))<>"",_xlfn.IFNA(INDEX(VLC!I:I,MATCH(301+ROW(A3)-1,VLC!V:V,0)),""),""),"") ->  | I60: =_xlfn.IFNA(IF(INDEX(VLC!I:I,MATCH(341+ROW(A3)-1,VLC!V:V,0))<>"",_xlfn.IFNA(INDEX(VLC!I:I,MATCH(341+ROW(A3)-1,VLC!V:V,0)),""),""),"") ->  | J60: =_xlfn.IFNA(IF(INDEX(VLC!J:J,MATCH(301+ROW(A3)-1,VLC!V:V,0))="x",_xlfn.IFNA(INDEX(VLC!J:J,MATCH(301+ROW(A3)-1,VLC!V:V,0)),""),""),"") ->  | K60: =_xlfn.IFNA(IF(INDEX(VLC!J:J,MATCH(341+ROW(A3)-1,VLC!V:V,0))="x",_xlfn.IFNA(INDEX(VLC!J:J,MATCH(341+ROW(A3)-1,VLC!V:V,0)),""),""),"") ->  | L60: 3003 | M60: 3043
A61: SK Teilnehmer 4 | B61: =_xlfn.IFNA(INDEX(VLC!A:A,MATCH(304,VLC!V:V,0)),"") ->  | C61: =_xlfn.IFNA(INDEX(VLC!A:A,MATCH(344,VLC!V:V,0)),"") ->  | D61: =_xlfn.IFNA(INDEX(VLC!B:B,MATCH(301+ROW(A4)-1,VLC!V:V,0)),"") ->  | E61: =_xlfn.IFNA(INDEX(VLC!C:C,MATCH(301+ROW(A4)-1,VLC!V:V,0)),"") ->  | F61: =_xlfn.IFNA(IF(INDEX(VLC!H:H,MATCH(301+ROW(A4)-1,VLC!V:V,0))="x",_xlfn.IFNA(INDEX(VLC!H:H,MATCH(301+ROW(A4)-1,VLC!V:V,0)),""),""),"") ->  | G61: =_xlfn.IFNA(IF(INDEX(VLC!H:H,MATCH(341+ROW(A4)-1,VLC!V:V,0))="x",_xlfn.IFNA(INDEX(VLC!H:H,MATCH(341+ROW(A4)-1,VLC!V:V,0)),""),""),"") ->  | H61: =_xlfn.IFNA(IF(INDEX(VLC!I:I,MATCH(301+ROW(A4)-1,VLC!V:V,0))<>"",_xlfn.IFNA(INDEX(VLC!I:I,MATCH(301+ROW(A4)-1,VLC!V:V,0)),""),""),"") ->  | I61: =_xlfn.IFNA(IF(INDEX(VLC!I:I,MATCH(341+ROW(A4)-1,VLC!V:V,0))<>"",_xlfn.IFNA(INDEX(VLC!I:I,MATCH(341+ROW(A4)-1,VLC!V:V,0)),""),""),"") ->  | J61: =_xlfn.IFNA(IF(INDEX(VLC!J:J,MATCH(301+ROW(A4)-1,VLC!V:V,0))="x",_xlfn.IFNA(INDEX(VLC!J:J,MATCH(301+ROW(A4)-1,VLC!V:V,0)),""),""),"") ->  | K61: =_xlfn.IFNA(IF(INDEX(VLC!J:J,MATCH(341+ROW(A4)-1,VLC!V:V,0))="x",_xlfn.IFNA(INDEX(VLC!J:J,MATCH(341+ROW(A4)-1,VLC!V:V,0)),""),""),"") ->  | L61: 3004 | M61: 3044
A62: SK Teilnehmer 5 | B62: =_xlfn.IFNA(INDEX(VLC!A:A,MATCH(305,VLC!V:V,0)),"") ->  | C62: =_xlfn.IFNA(INDEX(VLC!A:A,MATCH(345,VLC!V:V,0)),"") ->  | D62: =_xlfn.IFNA(INDEX(VLC!B:B,MATCH(301+ROW(A5)-1,VLC!V:V,0)),"") ->  | E62: =_xlfn.IFNA(INDEX(VLC!C:C,MATCH(301+ROW(A5)-1,VLC!V:V,0)),"") ->  | F62: =_xlfn.IFNA(IF(INDEX(VLC!H:H,MATCH(301+ROW(A5)-1,VLC!V:V,0))="x",_xlfn.IFNA(INDEX(VLC!H:H,MATCH(301+ROW(A5)-1,VLC!V:V,0)),""),""),"") ->  | G62: =_xlfn.IFNA(IF(INDEX(VLC!H:H,MATCH(341+ROW(A5)-1,VLC!V:V,0))="x",_xlfn.IFNA(INDEX(VLC!H:H,MATCH(341+ROW(A5)-1,VLC!V:V,0)),""),""),"") ->  | H62: =_xlfn.IFNA(IF(INDEX(VLC!I:I,MATCH(301+ROW(A5)-1,VLC!V:V,0))<>"",_xlfn.IFNA(INDEX(VLC!I:I,MATCH(301+ROW(A5)-1,VLC!V:V,0)),""),""),"") ->  | I62: =_xlfn.IFNA(IF(INDEX(VLC!I:I,MATCH(341+ROW(A5)-1,VLC!V:V,0))<>"",_xlfn.IFNA(INDEX(VLC!I:I,MATCH(341+ROW(A5)-1,VLC!V:V,0)),""),""),"") ->  | J62: =_xlfn.IFNA(IF(INDEX(VLC!J:J,MATCH(301+ROW(A5)-1,VLC!V:V,0))="x",_xlfn.IFNA(INDEX(VLC!J:J,MATCH(301+ROW(A5)-1,VLC!V:V,0)),""),""),"") ->  | K62: =_xlfn.IFNA(IF(INDEX(VLC!J:J,MATCH(341+ROW(A5)-1,VLC!V:V,0))="x",_xlfn.IFNA(INDEX(VLC!J:J,MATCH(341+ROW(A5)-1,VLC!V:V,0)),""),""),"") ->  | L62: 3005 | M62: 3045
A63: SK Teilnehmer 6 | B63: =_xlfn.IFNA(INDEX(VLC!A:A,MATCH(306,VLC!V:V,0)),"") ->  | C63: =_xlfn.IFNA(INDEX(VLC!A:A,MATCH(346,VLC!V:V,0)),"") ->  | D63: =_xlfn.IFNA(INDEX(VLC!B:B,MATCH(301+ROW(A6)-1,VLC!V:V,0)),"") ->  | E63: =_xlfn.IFNA(INDEX(VLC!C:C,MATCH(301+ROW(A6)-1,VLC!V:V,0)),"") ->  | F63: =_xlfn.IFNA(IF(INDEX(VLC!H:H,MATCH(301+ROW(A6)-1,VLC!V:V,0))="x",_xlfn.IFNA(INDEX(VLC!H:H,MATCH(301+ROW(A6)-1,VLC!V:V,0)),""),""),"") ->  | G63: =_xlfn.IFNA(IF(INDEX(VLC!H:H,MATCH(341+ROW(A6)-1,VLC!V:V,0))="x",_xlfn.IFNA(INDEX(VLC!H:H,MATCH(341+ROW(A6)-1,VLC!V:V,0)),""),""),"") ->  | H63: =_xlfn.IFNA(IF(INDEX(VLC!I:I,MATCH(301+ROW(A6)-1,VLC!V:V,0))<>"",_xlfn.IFNA(INDEX(VLC!I:I,MATCH(301+ROW(A6)-1,VLC!V:V,0)),""),""),"") ->  | I63: =_xlfn.IFNA(IF(INDEX(VLC!I:I,MATCH(341+ROW(A6)-1,VLC!V:V,0))<>"",_xlfn.IFNA(INDEX(VLC!I:I,MATCH(341+ROW(A6)-1,VLC!V:V,0)),""),""),"") ->  | J63: =_xlfn.IFNA(IF(INDEX(VLC!J:J,MATCH(301+ROW(A6)-1,VLC!V:V,0))="x",_xlfn.IFNA(INDEX(VLC!J:J,MATCH(301+ROW(A6)-1,VLC!V:V,0)),""),""),"") ->  | K63: =_xlfn.IFNA(IF(INDEX(VLC!J:J,MATCH(341+ROW(A6)-1,VLC!V:V,0))="x",_xlfn.IFNA(INDEX(VLC!J:J,MATCH(341+ROW(A6)-1,VLC!V:V,0)),""),""),"") ->  | L63: 3006 | M63: 3046
A64: SK Teilnehmer 7 | B64: =_xlfn.IFNA(INDEX(VLC!A:A,MATCH(307,VLC!V:V,0)),"") ->  | C64: =_xlfn.IFNA(INDEX(VLC!A:A,MATCH(347,VLC!V:V,0)),"") ->  | D64: =_xlfn.IFNA(INDEX(VLC!B:B,MATCH(301+ROW(A7)-1,VLC!V:V,0)),"") ->  | E64: =_xlfn.IFNA(INDEX(VLC!C:C,MATCH(301+ROW(A7)-1,VLC!V:V,0)),"") ->  | F64: =_xlfn.IFNA(IF(INDEX(VLC!H:H,MATCH(301+ROW(A7)-1,VLC!V:V,0))="x",_xlfn.IFNA(INDEX(VLC!H:H,MATCH(301+ROW(A7)-1,VLC!V:V,0)),""),""),"") ->  | G64: =_xlfn.IFNA(IF(INDEX(VLC!H:H,MATCH(341+ROW(A7)-1,VLC!V:V,0))="x",_xlfn.IFNA(INDEX(VLC!H:H,MATCH(341+ROW(A7)-1,VLC!V:V,0)),""),""),"") ->  | H64: =_xlfn.IFNA(IF(INDEX(VLC!I:I,MATCH(301+ROW(A7)-1,VLC!V:V,0))<>"",_xlfn.IFNA(INDEX(VLC!I:I,MATCH(301+ROW(A7)-1,VLC!V:V,0)),""),""),"") ->  | I64: =_xlfn.IFNA(IF(INDEX(VLC!I:I,MATCH(341+ROW(A7)-1,VLC!V:V,0))<>"",_xlfn.IFNA(INDEX(VLC!I:I,MATCH(341+ROW(A7)-1,VLC!V:V,0)),""),""),"") ->  | J64: =_xlfn.IFNA(IF(INDEX(VLC!J:J,MATCH(301+ROW(A7)-1,VLC!V:V,0))="x",_xlfn.IFNA(INDEX(VLC!J:J,MATCH(301+ROW(A7)-1,VLC!V:V,0)),""),""),"") ->  | K64: =_xlfn.IFNA(IF(INDEX(VLC!J:J,MATCH(341+ROW(A7)-1,VLC!V:V,0))="x",_xlfn.IFNA(INDEX(VLC!J:J,MATCH(341+ROW(A7)-1,VLC!V:V,0)),""),""),"") ->  | L64: 3007 | M64: 3047
A65: SK Teilnehmer 8 | B65: =_xlfn.IFNA(INDEX(VLC!A:A,MATCH(308,VLC!V:V,0)),"") ->  | C65: =_xlfn.IFNA(INDEX(VLC!A:A,MATCH(348,VLC!V:V,0)),"") ->  | D65: =_xlfn.IFNA(INDEX(VLC!B:B,MATCH(301+ROW(A8)-1,VLC!V:V,0)),"") ->  | E65: =_xlfn.IFNA(INDEX(VLC!C:C,MATCH(301+ROW(A8)-1,VLC!V:V,0)),"") ->  | F65: =_xlfn.IFNA(IF(INDEX(VLC!H:H,MATCH(301+ROW(A8)-1,VLC!V:V,0))="x",_xlfn.IFNA(INDEX(VLC!H:H,MATCH(301+ROW(A8)-1,VLC!V:V,0)),""),""),"") ->  | G65: =_xlfn.IFNA(IF(INDEX(VLC!H:H,MATCH(341+ROW(A8)-1,VLC!V:V,0))="x",_xlfn.IFNA(INDEX(VLC!H:H,MATCH(341+ROW(A8)-1,VLC!V:V,0)),""),""),"") ->  | H65: =_xlfn.IFNA(IF(INDEX(VLC!I:I,MATCH(301+ROW(A8)-1,VLC!V:V,0))<>"",_xlfn.IFNA(INDEX(VLC!I:I,MATCH(301+ROW(A8)-1,VLC!V:V,0)),""),""),"") ->  | I65: =_xlfn.IFNA(IF(INDEX(VLC!I:I,MATCH(341+ROW(A8)-1,VLC!V:V,0))<>"",_xlfn.IFNA(INDEX(VLC!I:I,MATCH(341+ROW(A8)-1,VLC!V:V,0)),""),""),"") ->  | J65: =_xlfn.IFNA(IF(INDEX(VLC!J:J,MATCH(301+ROW(A8)-1,VLC!V:V,0))="x",_xlfn.IFNA(INDEX(VLC!J:J,MATCH(301+ROW(A8)-1,VLC!V:V,0)),""),""),"") ->  | K65: =_xlfn.IFNA(IF(INDEX(VLC!J:J,MATCH(341+ROW(A8)-1,VLC!V:V,0))="x",_xlfn.IFNA(INDEX(VLC!J:J,MATCH(341+ROW(A8)-1,VLC!V:V,0)),""),""),"") ->  | L65: 3008 | M65: 3048
A66: SK Teilnehmer 9 | B66: =_xlfn.IFNA(INDEX(VLC!A:A,MATCH(309,VLC!V:V,0)),"") ->  | C66: =_xlfn.IFNA(INDEX(VLC!A:A,MATCH(349,VLC!V:V,0)),"") ->  | D66: =_xlfn.IFNA(INDEX(VLC!B:B,MATCH(301+ROW(A9)-1,VLC!V:V,0)),"") ->  | E66: =_xlfn.IFNA(INDEX(VLC!C:C,MATCH(301+ROW(A9)-1,VLC!V:V,0)),"") ->  | F66: =_xlfn.IFNA(IF(INDEX(VLC!H:H,MATCH(301+ROW(A9)-1,VLC!V:V,0))="x",_xlfn.IFNA(INDEX(VLC!H:H,MATCH(301+ROW(A9)-1,VLC!V:V,0)),""),""),"") ->  | G66: =_xlfn.IFNA(IF(INDEX(VLC!H:H,MATCH(341+ROW(A9)-1,VLC!V:V,0))="x",_xlfn.IFNA(INDEX(VLC!H:H,MATCH(341+ROW(A9)-1,VLC!V:V,0)),""),""),"") ->  | H66: =_xlfn.IFNA(IF(INDEX(VLC!I:I,MATCH(301+ROW(A9)-1,VLC!V:V,0))<>"",_xlfn.IFNA(INDEX(VLC!I:I,MATCH(301+ROW(A9)-1,VLC!V:V,0)),""),""),"") ->  | I66: =_xlfn.IFNA(IF(INDEX(VLC!I:I,MATCH(341+ROW(A9)-1,VLC!V:V,0))<>"",_xlfn.IFNA(INDEX(VLC!I:I,MATCH(341+ROW(A9)-1,VLC!V:V,0)),""),""),"") ->  | J66: =_xlfn.IFNA(IF(INDEX(VLC!J:J,MATCH(301+ROW(A9)-1,VLC!V:V,0))="x",_xlfn.IFNA(INDEX(VLC!J:J,MATCH(301+ROW(A9)-1,VLC!V:V,0)),""),""),"") ->  | K66: =_xlfn.IFNA(IF(INDEX(VLC!J:J,MATCH(341+ROW(A9)-1,VLC!V:V,0))="x",_xlfn.IFNA(INDEX(VLC!J:J,MATCH(341+ROW(A9)-1,VLC!V:V,0)),""),""),"") ->  | L66: 3009 | M66: 3049
A67: SK Teilnehmer 10 | B67: =_xlfn.IFNA(INDEX(VLC!A:A,MATCH(310,VLC!V:V,0)),"") ->  | C67: =_xlfn.IFNA(INDEX(VLC!A:A,MATCH(350,VLC!V:V,0)),"") ->  | D67: =_xlfn.IFNA(INDEX(VLC!B:B,MATCH(301+ROW(A10)-1,VLC!V:V,0)),"") ->  | E67: =_xlfn.IFNA(INDEX(VLC!C:C,MATCH(301+ROW(A10)-1,VLC!V:V,0)),"") ->  | F67: =_xlfn.IFNA(IF(INDEX(VLC!H:H,MATCH(301+ROW(A10)-1,VLC!V:V,0))="x",_xlfn.IFNA(INDEX(VLC!H:H,MATCH(301+ROW(A10)-1,VLC!V:V,0)),""),""),"") ->  | G67: =_xlfn.IFNA(IF(INDEX(VLC!H:H,MATCH(341+ROW(A10)-1,VLC!V:V,0))="x",_xlfn.IFNA(INDEX(VLC!H:H,MATCH(341+ROW(A10)-1,VLC!V:V,0)),""),""),"") ->  | H67: =_xlfn.IFNA(IF(INDEX(VLC!I:I,MATCH(301+ROW(A10)-1,VLC!V:V,0))<>"",_xlfn.IFNA(INDEX(VLC!I:I,MATCH(301+ROW(A10)-1,VLC!V:V,0)),""),""),"") ->  | I67: =_xlfn.IFNA(IF(INDEX(VLC!I:I,MATCH(341+ROW(A10)-1,VLC!V:V,0))<>"",_xlfn.IFNA(INDEX(VLC!I:I,MATCH(341+ROW(A10)-1,VLC!V:V,0)),""),""),"") ->  | J67: =_xlfn.IFNA(IF(INDEX(VLC!J:J,MATCH(301+ROW(A10)-1,VLC!V:V,0))="x",_xlfn.IFNA(INDEX(VLC!J:J,MATCH(301+ROW(A10)-1,VLC!V:V,0)),""),""),"") ->  | K67: =_xlfn.IFNA(IF(INDEX(VLC!J:J,MATCH(341+ROW(A10)-1,VLC!V:V,0))="x",_xlfn.IFNA(INDEX(VLC!J:J,MATCH(341+ROW(A10)-1,VLC!V:V,0)),""),""),"") ->  | L67: 3010 | M67: 3050
A68: SK Teilnehmer 11 | B68: =_xlfn.IFNA(INDEX(VLC!A:A,MATCH(311,VLC!V:V,0)),"") ->  | C68: =_xlfn.IFNA(INDEX(VLC!A:A,MATCH(351,VLC!V:V,0)),"") ->  | D68: =_xlfn.IFNA(INDEX(VLC!B:B,MATCH(301+ROW(A11)-1,VLC!V:V,0)),"") ->  | E68: =_xlfn.IFNA(INDEX(VLC!C:C,MATCH(301+ROW(A11)-1,VLC!V:V,0)),"") ->  | F68: =_xlfn.IFNA(IF(INDEX(VLC!H:H,MATCH(301+ROW(A11)-1,VLC!V:V,0))="x",_xlfn.IFNA(INDEX(VLC!H:H,MATCH(301+ROW(A11)-1,VLC!V:V,0)),""),""),"") ->  | G68: =_xlfn.IFNA(IF(INDEX(VLC!H:H,MATCH(341+ROW(A11)-1,VLC!V:V,0))="x",_xlfn.IFNA(INDEX(VLC!H:H,MATCH(341+ROW(A11)-1,VLC!V:V,0)),""),""),"") ->  | H68: =_xlfn.IFNA(IF(INDEX(VLC!I:I,MATCH(301+ROW(A11)-1,VLC!V:V,0))<>"",_xlfn.IFNA(INDEX(VLC!I:I,MATCH(301+ROW(A11)-1,VLC!V:V,0)),""),""),"") ->  | I68: =_xlfn.IFNA(IF(INDEX(VLC!I:I,MATCH(341+ROW(A11)-1,VLC!V:V,0))<>"",_xlfn.IFNA(INDEX(VLC!I:I,MATCH(341+ROW(A11)-1,VLC!V:V,0)),""),""),"") ->  | J68: =_xlfn.IFNA(IF(INDEX(VLC!J:J,MATCH(301+ROW(A11)-1,VLC!V:V,0))="x",_xlfn.IFNA(INDEX(VLC!J:J,MATCH(301+ROW(A11)-1,VLC!V:V,0)),""),""),"") ->  | K68: =_xlfn.IFNA(IF(INDEX(VLC!J:J,MATCH(341+ROW(A11)-1,VLC!V:V,0))="x",_xlfn.IFNA(INDEX(VLC!J:J,MATCH(341+ROW(A11)-1,VLC!V:V,0)),""),""),"") ->  | L68: 3011 | M68: 3051
A69: SK Teilnehmer 12 | B69: =_xlfn.IFNA(INDEX(VLC!A:A,MATCH(312,VLC!V:V,0)),"") ->  | C69: =_xlfn.IFNA(INDEX(VLC!A:A,MATCH(352,VLC!V:V,0)),"") ->  | D69: =_xlfn.IFNA(INDEX(VLC!B:B,MATCH(301+ROW(A12)-1,VLC!V:V,0)),"") ->  | E69: =_xlfn.IFNA(INDEX(VLC!C:C,MATCH(301+ROW(A12)-1,VLC!V:V,0)),"") ->  | F69: =_xlfn.IFNA(IF(INDEX(VLC!H:H,MATCH(301+ROW(A12)-1,VLC!V:V,0))="x",_xlfn.IFNA(INDEX(VLC!H:H,MATCH(301+ROW(A12)-1,VLC!V:V,0)),""),""),"") ->  | G69: =_xlfn.IFNA(IF(INDEX(VLC!H:H,MATCH(341+ROW(A12)-1,VLC!V:V,0))="x",_xlfn.IFNA(INDEX(VLC!H:H,MATCH(341+ROW(A12)-1,VLC!V:V,0)),""),""),"") ->  | H69: =_xlfn.IFNA(IF(INDEX(VLC!I:I,MATCH(301+ROW(A12)-1,VLC!V:V,0))<>"",_xlfn.IFNA(INDEX(VLC!I:I,MATCH(301+ROW(A12)-1,VLC!V:V,0)),""),""),"") ->  | I69: =_xlfn.IFNA(IF(INDEX(VLC!I:I,MATCH(341+ROW(A12)-1,VLC!V:V,0))<>"",_xlfn.IFNA(INDEX(VLC!I:I,MATCH(341+ROW(A12)-1,VLC!V:V,0)),""),""),"") ->  | J69: =_xlfn.IFNA(IF(INDEX(VLC!J:J,MATCH(301+ROW(A12)-1,VLC!V:V,0))="x",_xlfn.IFNA(INDEX(VLC!J:J,MATCH(301+ROW(A12)-1,VLC!V:V,0)),""),""),"") ->  | K69: =_xlfn.IFNA(IF(INDEX(VLC!J:J,MATCH(341+ROW(A12)-1,VLC!V:V,0))="x",_xlfn.IFNA(INDEX(VLC!J:J,MATCH(341+ROW(A12)-1,VLC!V:V,0)),""),""),"") ->  | L69: 3012 | M69: 3052
A70: SK Teilnehmer 13 | B70: =_xlfn.IFNA(INDEX(VLC!A:A,MATCH(313,VLC!V:V,0)),"") ->  | C70: =_xlfn.IFNA(INDEX(VLC!A:A,MATCH(353,VLC!V:V,0)),"") ->  | D70: =_xlfn.IFNA(INDEX(VLC!B:B,MATCH(301+ROW(A13)-1,VLC!V:V,0)),"") ->  | E70: =_xlfn.IFNA(INDEX(VLC!C:C,MATCH(301+ROW(A13)-1,VLC!V:V,0)),"") ->  | F70: =_xlfn.IFNA(IF(INDEX(VLC!H:H,MATCH(301+ROW(A13)-1,VLC!V:V,0))="x",_xlfn.IFNA(INDEX(VLC!H:H,MATCH(301+ROW(A13)-1,VLC!V:V,0)),""),""),"") ->  | G70: =_xlfn.IFNA(IF(INDEX(VLC!H:H,MATCH(341+ROW(A13)-1,VLC!V:V,0))="x",_xlfn.IFNA(INDEX(VLC!H:H,MATCH(341+ROW(A13)-1,VLC!V:V,0)),""),""),"") ->  | H70: =_xlfn.IFNA(IF(INDEX(VLC!I:I,MATCH(301+ROW(A13)-1,VLC!V:V,0))<>"",_xlfn.IFNA(INDEX(VLC!I:I,MATCH(301+ROW(A13)-1,VLC!V:V,0)),""),""),"") ->  | I70: =_xlfn.IFNA(IF(INDEX(VLC!I:I,MATCH(341+ROW(A13)-1,VLC!V:V,0))<>"",_xlfn.IFNA(INDEX(VLC!I:I,MATCH(341+ROW(A13)-1,VLC!V:V,0)),""),""),"") ->  | J70: =_xlfn.IFNA(IF(INDEX(VLC!J:J,MATCH(301+ROW(A13)-1,VLC!V:V,0))="x",_xlfn.IFNA(INDEX(VLC!J:J,MATCH(301+ROW(A13)-1,VLC!V:V,0)),""),""),"") ->  | K70: =_xlfn.IFNA(IF(INDEX(VLC!J:J,MATCH(341+ROW(A13)-1,VLC!V:V,0))="x",_xlfn.IFNA(INDEX(VLC!J:J,MATCH(341+ROW(A13)-1,VLC!V:V,0)),""),""),"") ->  | L70: 3013 | M70: 3053
A71: SK Teilnehmer 14 | B71: =_xlfn.IFNA(INDEX(VLC!A:A,MATCH(314,VLC!V:V,0)),"") ->  | C71: =_xlfn.IFNA(INDEX(VLC!A:A,MATCH(354,VLC!V:V,0)),"") ->  | D71: =_xlfn.IFNA(INDEX(VLC!B:B,MATCH(301+ROW(A14)-1,VLC!V:V,0)),"") ->  | E71: =_xlfn.IFNA(INDEX(VLC!C:C,MATCH(301+ROW(A14)-1,VLC!V:V,0)),"") ->  | F71: =_xlfn.IFNA(IF(INDEX(VLC!H:H,MATCH(301+ROW(A14)-1,VLC!V:V,0))="x",_xlfn.IFNA(INDEX(VLC!H:H,MATCH(301+ROW(A14)-1,VLC!V:V,0)),""),""),"") ->  | G71: =_xlfn.IFNA(IF(INDEX(VLC!H:H,MATCH(341+ROW(A14)-1,VLC!V:V,0))="x",_xlfn.IFNA(INDEX(VLC!H:H,MATCH(341+ROW(A14)-1,VLC!V:V,0)),""),""),"") ->  | H71: =_xlfn.IFNA(IF(INDEX(VLC!I:I,MATCH(301+ROW(A14)-1,VLC!V:V,0))<>"",_xlfn.IFNA(INDEX(VLC!I:I,MATCH(301+ROW(A14)-1,VLC!V:V,0)),""),""),"") ->  | I71: =_xlfn.IFNA(IF(INDEX(VLC!I:I,MATCH(341+ROW(A14)-1,VLC!V:V,0))<>"",_xlfn.IFNA(INDEX(VLC!I:I,MATCH(341+ROW(A14)-1,VLC!V:V,0)),""),""),"") ->  | J71: =_xlfn.IFNA(IF(INDEX(VLC!J:J,MATCH(301+ROW(A14)-1,VLC!V:V,0))="x",_xlfn.IFNA(INDEX(VLC!J:J,MATCH(301+ROW(A14)-1,VLC!V:V,0)),""),""),"") ->  | K71: =_xlfn.IFNA(IF(INDEX(VLC!J:J,MATCH(341+ROW(A14)-1,VLC!V:V,0))="x",_xlfn.IFNA(INDEX(VLC!J:J,MATCH(341+ROW(A14)-1,VLC!V:V,0)),""),""),"") ->  | L71: 3014 | M71: 3054
A72: SK Teilnehmer 15 | B72: =_xlfn.IFNA(INDEX(VLC!A:A,MATCH(315,VLC!V:V,0)),"") ->  | C72: =_xlfn.IFNA(INDEX(VLC!A:A,MATCH(355,VLC!V:V,0)),"") ->  | D72: =_xlfn.IFNA(INDEX(VLC!B:B,MATCH(301+ROW(A15)-1,VLC!V:V,0)),"") ->  | E72: =_xlfn.IFNA(INDEX(VLC!C:C,MATCH(301+ROW(A15)-1,VLC!V:V,0)),"") ->  | F72: =_xlfn.IFNA(IF(INDEX(VLC!H:H,MATCH(301+ROW(A15)-1,VLC!V:V,0))="x",_xlfn.IFNA(INDEX(VLC!H:H,MATCH(301+ROW(A15)-1,VLC!V:V,0)),""),""),"") ->  | G72: =_xlfn.IFNA(IF(INDEX(VLC!H:H,MATCH(341+ROW(A15)-1,VLC!V:V,0))="x",_xlfn.IFNA(INDEX(VLC!H:H,MATCH(341+ROW(A15)-1,VLC!V:V,0)),""),""),"") ->  | H72: =_xlfn.IFNA(IF(INDEX(VLC!I:I,MATCH(301+ROW(A15)-1,VLC!V:V,0))<>"",_xlfn.IFNA(INDEX(VLC!I:I,MATCH(301+ROW(A15)-1,VLC!V:V,0)),""),""),"") ->  | I72: =_xlfn.IFNA(IF(INDEX(VLC!I:I,MATCH(341+ROW(A15)-1,VLC!V:V,0))<>"",_xlfn.IFNA(INDEX(VLC!I:I,MATCH(341+ROW(A15)-1,VLC!V:V,0)),""),""),"") ->  | J72: =_xlfn.IFNA(IF(INDEX(VLC!J:J,MATCH(301+ROW(A15)-1,VLC!V:V,0))="x",_xlfn.IFNA(INDEX(VLC!J:J,MATCH(301+ROW(A15)-1,VLC!V:V,0)),""),""),"") ->  | K72: =_xlfn.IFNA(IF(INDEX(VLC!J:J,MATCH(341+ROW(A15)-1,VLC!V:V,0))="x",_xlfn.IFNA(INDEX(VLC!J:J,MATCH(341+ROW(A15)-1,VLC!V:V,0)),""),""),"") ->  | L72: 3015 | M72: 3055
A73: SK Teilnehmer 16 | B73: =_xlfn.IFNA(INDEX(VLC!A:A,MATCH(316,VLC!V:V,0)),"") ->  | C73: =_xlfn.IFNA(INDEX(VLC!A:A,MATCH(356,VLC!V:V,0)),"") ->  | D73: =_xlfn.IFNA(INDEX(VLC!B:B,MATCH(301+ROW(A16)-1,VLC!V:V,0)),"") ->  | E73: =_xlfn.IFNA(INDEX(VLC!C:C,MATCH(301+ROW(A16)-1,VLC!V:V,0)),"") ->  | F73: =_xlfn.IFNA(IF(INDEX(VLC!H:H,MATCH(301+ROW(A16)-1,VLC!V:V,0))="x",_xlfn.IFNA(INDEX(VLC!H:H,MATCH(301+ROW(A16)-1,VLC!V:V,0)),""),""),"") ->  | G73: =_xlfn.IFNA(IF(INDEX(VLC!H:H,MATCH(341+ROW(A16)-1,VLC!V:V,0))="x",_xlfn.IFNA(INDEX(VLC!H:H,MATCH(341+ROW(A16)-1,VLC!V:V,0)),""),""),"") ->  | H73: =_xlfn.IFNA(IF(INDEX(VLC!I:I,MATCH(301+ROW(A16)-1,VLC!V:V,0))<>"",_xlfn.IFNA(INDEX(VLC!I:I,MATCH(301+ROW(A16)-1,VLC!V:V,0)),""),""),"") ->  | I73: =_xlfn.IFNA(IF(INDEX(VLC!I:I,MATCH(341+ROW(A16)-1,VLC!V:V,0))<>"",_xlfn.IFNA(INDEX(VLC!I:I,MATCH(341+ROW(A16)-1,VLC!V:V,0)),""),""),"") ->  | J73: =_xlfn.IFNA(IF(INDEX(VLC!J:J,MATCH(301+ROW(A16)-1,VLC!V:V,0))="x",_xlfn.IFNA(INDEX(VLC!J:J,MATCH(301+ROW(A16)-1,VLC!V:V,0)),""),""),"") ->  | K73: =_xlfn.IFNA(IF(INDEX(VLC!J:J,MATCH(341+ROW(A16)-1,VLC!V:V,0))="x",_xlfn.IFNA(INDEX(VLC!J:J,MATCH(341+ROW(A16)-1,VLC!V:V,0)),""),""),"") ->  | L73: 3016 | M73: 3056
A74: SK Teilnehmer 17 | B74: =_xlfn.IFNA(INDEX(VLC!A:A,MATCH(317,VLC!V:V,0)),"") ->  | C74: =_xlfn.IFNA(INDEX(VLC!A:A,MATCH(357,VLC!V:V,0)),"") ->  | D74: =_xlfn.IFNA(INDEX(VLC!B:B,MATCH(301+ROW(A17)-1,VLC!V:V,0)),"") ->  | E74: =_xlfn.IFNA(INDEX(VLC!C:C,MATCH(301+ROW(A17)-1,VLC!V:V,0)),"") ->  | F74: =_xlfn.IFNA(IF(INDEX(VLC!H:H,MATCH(301+ROW(A17)-1,VLC!V:V,0))="x",_xlfn.IFNA(INDEX(VLC!H:H,MATCH(301+ROW(A17)-1,VLC!V:V,0)),""),""),"") ->  | G74: =_xlfn.IFNA(IF(INDEX(VLC!H:H,MATCH(341+ROW(A17)-1,VLC!V:V,0))="x",_xlfn.IFNA(INDEX(VLC!H:H,MATCH(341+ROW(A17)-1,VLC!V:V,0)),""),""),"") ->  | H74: =_xlfn.IFNA(IF(INDEX(VLC!I:I,MATCH(301+ROW(A17)-1,VLC!V:V,0))<>"",_xlfn.IFNA(INDEX(VLC!I:I,MATCH(301+ROW(A17)-1,VLC!V:V,0)),""),""),"") ->  | I74: =_xlfn.IFNA(IF(INDEX(VLC!I:I,MATCH(341+ROW(A17)-1,VLC!V:V,0))<>"",_xlfn.IFNA(INDEX(VLC!I:I,MATCH(341+ROW(A17)-1,VLC!V:V,0)),""),""),"") ->  | J74: =_xlfn.IFNA(IF(INDEX(VLC!J:J,MATCH(301+ROW(A17)-1,VLC!V:V,0))="x",_xlfn.IFNA(INDEX(VLC!J:J,MATCH(301+ROW(A17)-1,VLC!V:V,0)),""),""),"") ->  | K74: =_xlfn.IFNA(IF(INDEX(VLC!J:J,MATCH(341+ROW(A17)-1,VLC!V:V,0))="x",_xlfn.IFNA(INDEX(VLC!J:J,MATCH(341+ROW(A17)-1,VLC!V:V,0)),""),""),"") ->  | L74: 3017 | M74: 3057
A75: SK Teilnehmer 18 | B75: =_xlfn.IFNA(INDEX(VLC!A:A,MATCH(318,VLC!V:V,0)),"") ->  | C75: =_xlfn.IFNA(INDEX(VLC!A:A,MATCH(358,VLC!V:V,0)),"") ->  | D75: =_xlfn.IFNA(INDEX(VLC!B:B,MATCH(301+ROW(A18)-1,VLC!V:V,0)),"") ->  | E75: =_xlfn.IFNA(INDEX(VLC!C:C,MATCH(301+ROW(A18)-1,VLC!V:V,0)),"") ->  | F75: =_xlfn.IFNA(IF(INDEX(VLC!H:H,MATCH(301+ROW(A18)-1,VLC!V:V,0))="x",_xlfn.IFNA(INDEX(VLC!H:H,MATCH(301+ROW(A18)-1,VLC!V:V,0)),""),""),"") ->  | G75: =_xlfn.IFNA(IF(INDEX(VLC!H:H,MATCH(341+ROW(A18)-1,VLC!V:V,0))="x",_xlfn.IFNA(INDEX(VLC!H:H,MATCH(341+ROW(A18)-1,VLC!V:V,0)),""),""),"") ->  | H75: =_xlfn.IFNA(IF(INDEX(VLC!I:I,MATCH(301+ROW(A18)-1,VLC!V:V,0))<>"",_xlfn.IFNA(INDEX(VLC!I:I,MATCH(301+ROW(A18)-1,VLC!V:V,0)),""),""),"") ->  | I75: =_xlfn.IFNA(IF(INDEX(VLC!I:I,MATCH(341+ROW(A18)-1,VLC!V:V,0))<>"",_xlfn.IFNA(INDEX(VLC!I:I,MATCH(341+ROW(A18)-1,VLC!V:V,0)),""),""),"") ->  | J75: =_xlfn.IFNA(IF(INDEX(VLC!J:J,MATCH(301+ROW(A18)-1,VLC!V:V,0))="x",_xlfn.IFNA(INDEX(VLC!J:J,MATCH(301+ROW(A18)-1,VLC!V:V,0)),""),""),"") ->  | K75: =_xlfn.IFNA(IF(INDEX(VLC!J:J,MATCH(341+ROW(A18)-1,VLC!V:V,0))="x",_xlfn.IFNA(INDEX(VLC!J:J,MATCH(341+ROW(A18)-1,VLC!V:V,0)),""),""),"") ->  | L75: 3018 | M75: 3058
A76: SK Teilnehmer 19 | B76: =_xlfn.IFNA(INDEX(VLC!A:A,MATCH(319,VLC!V:V,0)),"") ->  | C76: =_xlfn.IFNA(INDEX(VLC!A:A,MATCH(359,VLC!V:V,0)),"") ->  | D76: =_xlfn.IFNA(INDEX(VLC!B:B,MATCH(301+ROW(A19)-1,VLC!V:V,0)),"") ->  | E76: =_xlfn.IFNA(INDEX(VLC!C:C,MATCH(301+ROW(A19)-1,VLC!V:V,0)),"") ->  | F76: =_xlfn.IFNA(IF(INDEX(VLC!H:H,MATCH(301+ROW(A19)-1,VLC!V:V,0))="x",_xlfn.IFNA(INDEX(VLC!H:H,MATCH(301+ROW(A19)-1,VLC!V:V,0)),""),""),"") ->  | G76: =_xlfn.IFNA(IF(INDEX(VLC!H:H,MATCH(341+ROW(A19)-1,VLC!V:V,0))="x",_xlfn.IFNA(INDEX(VLC!H:H,MATCH(341+ROW(A19)-1,VLC!V:V,0)),""),""),"") ->  | H76: =_xlfn.IFNA(IF(INDEX(VLC!I:I,MATCH(301+ROW(A19)-1,VLC!V:V,0))<>"",_xlfn.IFNA(INDEX(VLC!I:I,MATCH(301+ROW(A19)-1,VLC!V:V,0)),""),""),"") ->  | I76: =_xlfn.IFNA(IF(INDEX(VLC!I:I,MATCH(341+ROW(A19)-1,VLC!V:V,0))<>"",_xlfn.IFNA(INDEX(VLC!I:I,MATCH(341+ROW(A19)-1,VLC!V:V,0)),""),""),"") ->  | J76: =_xlfn.IFNA(IF(INDEX(VLC!J:J,MATCH(301+ROW(A19)-1,VLC!V:V,0))="x",_xlfn.IFNA(INDEX(VLC!J:J,MATCH(301+ROW(A19)-1,VLC!V:V,0)),""),""),"") ->  | K76: =_xlfn.IFNA(IF(INDEX(VLC!J:J,MATCH(341+ROW(A19)-1,VLC!V:V,0))="x",_xlfn.IFNA(INDEX(VLC!J:J,MATCH(341+ROW(A19)-1,VLC!V:V,0)),""),""),"") ->  | L76: 3019 | M76: 3059
A77: SK Teilnehmer 20 | B77: =_xlfn.IFNA(INDEX(VLC!A:A,MATCH(320,VLC!V:V,0)),"") ->  | C77: =_xlfn.IFNA(INDEX(VLC!A:A,MATCH(360,VLC!V:V,0)),"") ->  | D77: =_xlfn.IFNA(INDEX(VLC!B:B,MATCH(301+ROW(A20)-1,VLC!V:V,0)),"") ->  | E77: =_xlfn.IFNA(INDEX(VLC!C:C,MATCH(301+ROW(A20)-1,VLC!V:V,0)),"") ->  | F77: =_xlfn.IFNA(IF(INDEX(VLC!H:H,MATCH(301+ROW(A20)-1,VLC!V:V,0))="x",_xlfn.IFNA(INDEX(VLC!H:H,MATCH(301+ROW(A20)-1,VLC!V:V,0)),""),""),"") ->  | G77: =_xlfn.IFNA(IF(INDEX(VLC!H:H,MATCH(341+ROW(A20)-1,VLC!V:V,0))="x",_xlfn.IFNA(INDEX(VLC!H:H,MATCH(341+ROW(A20)-1,VLC!V:V,0)),""),""),"") ->  | H77: =_xlfn.IFNA(IF(INDEX(VLC!I:I,MATCH(301+ROW(A20)-1,VLC!V:V,0))<>"",_xlfn.IFNA(INDEX(VLC!I:I,MATCH(301+ROW(A20)-1,VLC!V:V,0)),""),""),"") ->  | I77: =_xlfn.IFNA(IF(INDEX(VLC!I:I,MATCH(341+ROW(A20)-1,VLC!V:V,0))<>"",_xlfn.IFNA(INDEX(VLC!I:I,MATCH(341+ROW(A20)-1,VLC!V:V,0)),""),""),"") ->  | J77: =_xlfn.IFNA(IF(INDEX(VLC!J:J,MATCH(301+ROW(A20)-1,VLC!V:V,0))="x",_xlfn.IFNA(INDEX(VLC!J:J,MATCH(301+ROW(A20)-1,VLC!V:V,0)),""),""),"") ->  | K77: =_xlfn.IFNA(IF(INDEX(VLC!J:J,MATCH(341+ROW(A20)-1,VLC!V:V,0))="x",_xlfn.IFNA(INDEX(VLC!J:J,MATCH(341+ROW(A20)-1,VLC!V:V,0)),""),""),"") ->  | L77: 3020 | M77: 3060
A78: Gerätename: | B78: =$B$6 -> 0 | E78: PLC24 Stromkreis-Nummer: 4
A79: Stromkreis-Bezeichnung:
A80: Stromkreisbelegung | B80: ID 1 | C80: ID 2 | D80: Bezeichnung | E80: Zusatzinfo | F80: DL | H80: GL | J80: BL
F81: ID1 | G81: ID2 | H81: ID1 | I81: ID2 | J81: ID1 | K81: ID2
A82: SK Teilnehmer 1 | B82: =_xlfn.IFNA(INDEX(VLC!A:A,MATCH(401,VLC!V:V,0)),"") ->  | C82: =_xlfn.IFNA(INDEX(VLC!A:A,MATCH(441,VLC!V:V,0)),"") ->  | D82: =_xlfn.IFNA(INDEX(VLC!B:B,MATCH(401+ROW(A1)-1,VLC!V:V,0)),"") ->  | E82: =_xlfn.IFNA(INDEX(VLC!C:C,MATCH(401+ROW(A1)-1,VLC!V:V,0)),"") ->  | F82: =_xlfn.IFNA(IF(INDEX(VLC!H:H,MATCH(401+ROW(A1)-1,VLC!V:V,0))="x",_xlfn.IFNA(INDEX(VLC!H:H,MATCH(401+ROW(A1)-1,VLC!V:V,0)),""),""),"") ->  | G82: =_xlfn.IFNA(IF(INDEX(VLC!H:H,MATCH(441+ROW(A1)-1,VLC!V:V,0))="x",_xlfn.IFNA(INDEX(VLC!H:H,MATCH(441+ROW(A1)-1,VLC!V:V,0)),""),""),"") ->  | H82: =_xlfn.IFNA(IF(INDEX(VLC!I:I,MATCH(401+ROW(A1)-1,VLC!V:V,0))<>"",_xlfn.IFNA(INDEX(VLC!I:I,MATCH(401+ROW(A1)-1,VLC!V:V,0)),""),""),"") ->  | I82: =_xlfn.IFNA(IF(INDEX(VLC!I:I,MATCH(441+ROW(A1)-1,VLC!V:V,0))<>"",_xlfn.IFNA(INDEX(VLC!I:I,MATCH(441+ROW(A1)-1,VLC!V:V,0)),""),""),"") ->  | J82: =_xlfn.IFNA(IF(INDEX(VLC!J:J,MATCH(401+ROW(A1)-1,VLC!V:V,0))="x",_xlfn.IFNA(INDEX(VLC!J:J,MATCH(401+ROW(A1)-1,VLC!V:V,0)),""),""),"") ->  | K82: =_xlfn.IFNA(IF(INDEX(VLC!J:J,MATCH(441+ROW(A1)-1,VLC!V:V,0))="x",_xlfn.IFNA(INDEX(VLC!J:J,MATCH(441+ROW(A1)-1,VLC!V:V,0)),""),""),"") ->  | L82: =4000+ROW(A82)-81 -> 4001 | M82: =L82+40 -> 4041
A83: SK Teilnehmer 2 | B83: =_xlfn.IFNA(INDEX(VLC!A:A,MATCH(402,VLC!V:V,0)),"") ->  | C83: =_xlfn.IFNA(INDEX(VLC!A:A,MATCH(442,VLC!V:V,0)),"") ->  | D83: =_xlfn.IFNA(INDEX(VLC!B:B,MATCH(401+ROW(A2)-1,VLC!V:V,0)),"") ->  | E83: =_xlfn.IFNA(INDEX(VLC!C:C,MATCH(401+ROW(A2)-1,VLC!V:V,0)),"") ->  | F83: =_xlfn.IFNA(IF(INDEX(VLC!H:H,MATCH(401+ROW(A2)-1,VLC!V:V,0))="x",_xlfn.IFNA(INDEX(VLC!H:H,MATCH(401+ROW(A2)-1,VLC!V:V,0)),""),""),"") ->  | G83: =_xlfn.IFNA(IF(INDEX(VLC!H:H,MATCH(441+ROW(A2)-1,VLC!V:V,0))="x",_xlfn.IFNA(INDEX(VLC!H:H,MATCH(441+ROW(A2)-1,VLC!V:V,0)),""),""),"") ->  | H83: =_xlfn.IFNA(IF(INDEX(VLC!I:I,MATCH(401+ROW(A2)-1,VLC!V:V,0))<>"",_xlfn.IFNA(INDEX(VLC!I:I,MATCH(401+ROW(A2)-1,VLC!V:V,0)),""),""),"") ->  | I83: =_xlfn.IFNA(IF(INDEX(VLC!I:I,MATCH(441+ROW(A2)-1,VLC!V:V,0))<>"",_xlfn.IFNA(INDEX(VLC!I:I,MATCH(441+ROW(A2)-1,VLC!V:V,0)),""),""),"") ->  | J83: =_xlfn.IFNA(IF(INDEX(VLC!J:J,MATCH(401+ROW(A2)-1,VLC!V:V,0))="x",_xlfn.IFNA(INDEX(VLC!J:J,MATCH(401+ROW(A2)-1,VLC!V:V,0)),""),""),"") ->  | K83: =_xlfn.IFNA(IF(INDEX(VLC!J:J,MATCH(441+ROW(A2)-1,VLC!V:V,0))="x",_xlfn.IFNA(INDEX(VLC!J:J,MATCH(441+ROW(A2)-1,VLC!V:V,0)),""),""),"") ->  | L83: =4000+ROW(A83)-81 -> 4002 | M83: =L83+40 -> 4042
A84: SK Teilnehmer 3 | B84: =_xlfn.IFNA(INDEX(VLC!A:A,MATCH(403,VLC!V:V,0)),"") ->  | C84: =_xlfn.IFNA(INDEX(VLC!A:A,MATCH(443,VLC!V:V,0)),"") ->  | D84: =_xlfn.IFNA(INDEX(VLC!B:B,MATCH(401+ROW(A3)-1,VLC!V:V,0)),"") ->  | E84: =_xlfn.IFNA(INDEX(VLC!C:C,MATCH(401+ROW(A3)-1,VLC!V:V,0)),"") ->  | F84: =_xlfn.IFNA(IF(INDEX(VLC!H:H,MATCH(401+ROW(A3)-1,VLC!V:V,0))="x",_xlfn.IFNA(INDEX(VLC!H:H,MATCH(401+ROW(A3)-1,VLC!V:V,0)),""),""),"") ->  | G84: =_xlfn.IFNA(IF(INDEX(VLC!H:H,MATCH(441+ROW(A3)-1,VLC!V:V,0))="x",_xlfn.IFNA(INDEX(VLC!H:H,MATCH(441+ROW(A3)-1,VLC!V:V,0)),""),""),"") ->  | H84: =_xlfn.IFNA(IF(INDEX(VLC!I:I,MATCH(401+ROW(A3)-1,VLC!V:V,0))<>"",_xlfn.IFNA(INDEX(VLC!I:I,MATCH(401+ROW(A3)-1,VLC!V:V,0)),""),""),"") ->  | I84: =_xlfn.IFNA(IF(INDEX(VLC!I:I,MATCH(441+ROW(A3)-1,VLC!V:V,0))<>"",_xlfn.IFNA(INDEX(VLC!I:I,MATCH(441+ROW(A3)-1,VLC!V:V,0)),""),""),"") ->  | J84: =_xlfn.IFNA(IF(INDEX(VLC!J:J,MATCH(401+ROW(A3)-1,VLC!V:V,0))="x",_xlfn.IFNA(INDEX(VLC!J:J,MATCH(401+ROW(A3)-1,VLC!V:V,0)),""),""),"") ->  | K84: =_xlfn.IFNA(IF(INDEX(VLC!J:J,MATCH(441+ROW(A3)-1,VLC!V:V,0))="x",_xlfn.IFNA(INDEX(VLC!J:J,MATCH(441+ROW(A3)-1,VLC!V:V,0)),""),""),"") ->  | L84: 4003 | M84: 4043
A85: SK Teilnehmer 4 | B85: =_xlfn.IFNA(INDEX(VLC!A:A,MATCH(404,VLC!V:V,0)),"") ->  | C85: =_xlfn.IFNA(INDEX(VLC!A:A,MATCH(444,VLC!V:V,0)),"") ->  | D85: =_xlfn.IFNA(INDEX(VLC!B:B,MATCH(401+ROW(A4)-1,VLC!V:V,0)),"") ->  | E85: =_xlfn.IFNA(INDEX(VLC!C:C,MATCH(401+ROW(A4)-1,VLC!V:V,0)),"") ->  | F85: =_xlfn.IFNA(IF(INDEX(VLC!H:H,MATCH(401+ROW(A4)-1,VLC!V:V,0))="x",_xlfn.IFNA(INDEX(VLC!H:H,MATCH(401+ROW(A4)-1,VLC!V:V,0)),""),""),"") ->  | G85: =_xlfn.IFNA(IF(INDEX(VLC!H:H,MATCH(441+ROW(A4)-1,VLC!V:V,0))="x",_xlfn.IFNA(INDEX(VLC!H:H,MATCH(441+ROW(A4)-1,VLC!V:V,0)),""),""),"") ->  | H85: =_xlfn.IFNA(IF(INDEX(VLC!I:I,MATCH(401+ROW(A4)-1,VLC!V:V,0))<>"",_xlfn.IFNA(INDEX(VLC!I:I,MATCH(401+ROW(A4)-1,VLC!V:V,0)),""),""),"") ->  | I85: =_xlfn.IFNA(IF(INDEX(VLC!I:I,MATCH(441+ROW(A4)-1,VLC!V:V,0))<>"",_xlfn.IFNA(INDEX(VLC!I:I,MATCH(441+ROW(A4)-1,VLC!V:V,0)),""),""),"") ->  | J85: =_xlfn.IFNA(IF(INDEX(VLC!J:J,MATCH(401+ROW(A4)-1,VLC!V:V,0))="x",_xlfn.IFNA(INDEX(VLC!J:J,MATCH(401+ROW(A4)-1,VLC!V:V,0)),""),""),"") ->  | K85: =_xlfn.IFNA(IF(INDEX(VLC!J:J,MATCH(441+ROW(A4)-1,VLC!V:V,0))="x",_xlfn.IFNA(INDEX(VLC!J:J,MATCH(441+ROW(A4)-1,VLC!V:V,0)),""),""),"") ->  | L85: 4004 | M85: 4044
A86: SK Teilnehmer 5 | B86: =_xlfn.IFNA(INDEX(VLC!A:A,MATCH(405,VLC!V:V,0)),"") ->  | C86: =_xlfn.IFNA(INDEX(VLC!A:A,MATCH(445,VLC!V:V,0)),"") ->  | D86: =_xlfn.IFNA(INDEX(VLC!B:B,MATCH(401+ROW(A5)-1,VLC!V:V,0)),"") ->  | E86: =_xlfn.IFNA(INDEX(VLC!C:C,MATCH(401+ROW(A5)-1,VLC!V:V,0)),"") ->  | F86: =_xlfn.IFNA(IF(INDEX(VLC!H:H,MATCH(401+ROW(A5)-1,VLC!V:V,0))="x",_xlfn.IFNA(INDEX(VLC!H:H,MATCH(401+ROW(A5)-1,VLC!V:V,0)),""),""),"") ->  | G86: =_xlfn.IFNA(IF(INDEX(VLC!H:H,MATCH(441+ROW(A5)-1,VLC!V:V,0))="x",_xlfn.IFNA(INDEX(VLC!H:H,MATCH(441+ROW(A5)-1,VLC!V:V,0)),""),""),"") ->  | H86: =_xlfn.IFNA(IF(INDEX(VLC!I:I,MATCH(401+ROW(A5)-1,VLC!V:V,0))<>"",_xlfn.IFNA(INDEX(VLC!I:I,MATCH(401+ROW(A5)-1,VLC!V:V,0)),""),""),"") ->  | I86: =_xlfn.IFNA(IF(INDEX(VLC!I:I,MATCH(441+ROW(A5)-1,VLC!V:V,0))<>"",_xlfn.IFNA(INDEX(VLC!I:I,MATCH(441+ROW(A5)-1,VLC!V:V,0)),""),""),"") ->  | J86: =_xlfn.IFNA(IF(INDEX(VLC!J:J,MATCH(401+ROW(A5)-1,VLC!V:V,0))="x",_xlfn.IFNA(INDEX(VLC!J:J,MATCH(401+ROW(A5)-1,VLC!V:V,0)),""),""),"") ->  | K86: =_xlfn.IFNA(IF(INDEX(VLC!J:J,MATCH(441+ROW(A5)-1,VLC!V:V,0))="x",_xlfn.IFNA(INDEX(VLC!J:J,MATCH(441+ROW(A5)-1,VLC!V:V,0)),""),""),"") ->  | L86: 4005 | M86: 4045
A87: SK Teilnehmer 6 | B87: =_xlfn.IFNA(INDEX(VLC!A:A,MATCH(406,VLC!V:V,0)),"") ->  | C87: =_xlfn.IFNA(INDEX(VLC!A:A,MATCH(446,VLC!V:V,0)),"") ->  | D87: =_xlfn.IFNA(INDEX(VLC!B:B,MATCH(401+ROW(A6)-1,VLC!V:V,0)),"") ->  | E87: =_xlfn.IFNA(INDEX(VLC!C:C,MATCH(401+ROW(A6)-1,VLC!V:V,0)),"") ->  | F87: =_xlfn.IFNA(IF(INDEX(VLC!H:H,MATCH(401+ROW(A6)-1,VLC!V:V,0))="x",_xlfn.IFNA(INDEX(VLC!H:H,MATCH(401+ROW(A6)-1,VLC!V:V,0)),""),""),"") ->  | G87: =_xlfn.IFNA(IF(INDEX(VLC!H:H,MATCH(441+ROW(A6)-1,VLC!V:V,0))="x",_xlfn.IFNA(INDEX(VLC!H:H,MATCH(441+ROW(A6)-1,VLC!V:V,0)),""),""),"") ->  | H87: =_xlfn.IFNA(IF(INDEX(VLC!I:I,MATCH(401+ROW(A6)-1,VLC!V:V,0))<>"",_xlfn.IFNA(INDEX(VLC!I:I,MATCH(401+ROW(A6)-1,VLC!V:V,0)),""),""),"") ->  | I87: =_xlfn.IFNA(IF(INDEX(VLC!I:I,MATCH(441+ROW(A6)-1,VLC!V:V,0))<>"",_xlfn.IFNA(INDEX(VLC!I:I,MATCH(441+ROW(A6)-1,VLC!V:V,0)),""),""),"") ->  | J87: =_xlfn.IFNA(IF(INDEX(VLC!J:J,MATCH(401+ROW(A6)-1,VLC!V:V,0))="x",_xlfn.IFNA(INDEX(VLC!J:J,MATCH(401+ROW(A6)-1,VLC!V:V,0)),""),""),"") ->  | K87: =_xlfn.IFNA(IF(INDEX(VLC!J:J,MATCH(441+ROW(A6)-1,VLC!V:V,0))="x",_xlfn.IFNA(INDEX(VLC!J:J,MATCH(441+ROW(A6)-1,VLC!V:V,0)),""),""),"") ->  | L87: 4006 | M87: 4046
A88: SK Teilnehmer 7 | B88: =_xlfn.IFNA(INDEX(VLC!A:A,MATCH(407,VLC!V:V,0)),"") ->  | C88: =_xlfn.IFNA(INDEX(VLC!A:A,MATCH(447,VLC!V:V,0)),"") ->  | D88: =_xlfn.IFNA(INDEX(VLC!B:B,MATCH(401+ROW(A7)-1,VLC!V:V,0)),"") ->  | E88: =_xlfn.IFNA(INDEX(VLC!C:C,MATCH(401+ROW(A7)-1,VLC!V:V,0)),"") ->  | F88: =_xlfn.IFNA(IF(INDEX(VLC!H:H,MATCH(401+ROW(A7)-1,VLC!V:V,0))="x",_xlfn.IFNA(INDEX(VLC!H:H,MATCH(401+ROW(A7)-1,VLC!V:V,0)),""),""),"") ->  | G88: =_xlfn.IFNA(IF(INDEX(VLC!H:H,MATCH(441+ROW(A7)-1,VLC!V:V,0))="x",_xlfn.IFNA(INDEX(VLC!H:H,MATCH(441+ROW(A7)-1,VLC!V:V,0)),""),""),"") ->  | H88: =_xlfn.IFNA(IF(INDEX(VLC!I:I,MATCH(401+ROW(A7)-1,VLC!V:V,0))<>"",_xlfn.IFNA(INDEX(VLC!I:I,MATCH(401+ROW(A7)-1,VLC!V:V,0)),""),""),"") ->  | I88: =_xlfn.IFNA(IF(INDEX(VLC!I:I,MATCH(441+ROW(A7)-1,VLC!V:V,0))<>"",_xlfn.IFNA(INDEX(VLC!I:I,MATCH(441+ROW(A7)-1,VLC!V:V,0)),""),""),"") ->  | J88: =_xlfn.IFNA(IF(INDEX(VLC!J:J,MATCH(401+ROW(A7)-1,VLC!V:V,0))="x",_xlfn.IFNA(INDEX(VLC!J:J,MATCH(401+ROW(A7)-1,VLC!V:V,0)),""),""),"") ->  | K88: =_xlfn.IFNA(IF(INDEX(VLC!J:J,MATCH(441+ROW(A7)-1,VLC!V:V,0))="x",_xlfn.IFNA(INDEX(VLC!J:J,MATCH(441+ROW(A7)-1,VLC!V:V,0)),""),""),"") ->  | L88: 4007 | M88: 4047
A89: SK Teilnehmer 8 | B89: =_xlfn.IFNA(INDEX(VLC!A:A,MATCH(408,VLC!V:V,0)),"") ->  | C89: =_xlfn.IFNA(INDEX(VLC!A:A,MATCH(448,VLC!V:V,0)),"") ->  | D89: =_xlfn.IFNA(INDEX(VLC!B:B,MATCH(401+ROW(A8)-1,VLC!V:V,0)),"") ->  | E89: =_xlfn.IFNA(INDEX(VLC!C:C,MATCH(401+ROW(A8)-1,VLC!V:V,0)),"") ->  | F89: =_xlfn.IFNA(IF(INDEX(VLC!H:H,MATCH(401+ROW(A8)-1,VLC!V:V,0))="x",_xlfn.IFNA(INDEX(VLC!H:H,MATCH(401+ROW(A8)-1,VLC!V:V,0)),""),""),"") ->  | G89: =_xlfn.IFNA(IF(INDEX(VLC!H:H,MATCH(441+ROW(A8)-1,VLC!V:V,0))="x",_xlfn.IFNA(INDEX(VLC!H:H,MATCH(441+ROW(A8)-1,VLC!V:V,0)),""),""),"") ->  | H89: =_xlfn.IFNA(IF(INDEX(VLC!I:I,MATCH(401+ROW(A8)-1,VLC!V:V,0))<>"",_xlfn.IFNA(INDEX(VLC!I:I,MATCH(401+ROW(A8)-1,VLC!V:V,0)),""),""),"") ->  | I89: =_xlfn.IFNA(IF(INDEX(VLC!I:I,MATCH(441+ROW(A8)-1,VLC!V:V,0))<>"",_xlfn.IFNA(INDEX(VLC!I:I,MATCH(441+ROW(A8)-1,VLC!V:V,0)),""),""),"") ->  | J89: =_xlfn.IFNA(IF(INDEX(VLC!J:J,MATCH(401+ROW(A8)-1,VLC!V:V,0))="x",_xlfn.IFNA(INDEX(VLC!J:J,MATCH(401+ROW(A8)-1,VLC!V:V,0)),""),""),"") ->  | K89: =_xlfn.IFNA(IF(INDEX(VLC!J:J,MATCH(441+ROW(A8)-1,VLC!V:V,0))="x",_xlfn.IFNA(INDEX(VLC!J:J,MATCH(441+ROW(A8)-1,VLC!V:V,0)),""),""),"") ->  | L89: 4008 | M89: 4048
A90: SK Teilnehmer 9 | B90: =_xlfn.IFNA(INDEX(VLC!A:A,MATCH(409,VLC!V:V,0)),"") ->  | C90: =_xlfn.IFNA(INDEX(VLC!A:A,MATCH(449,VLC!V:V,0)),"") ->  | D90: =_xlfn.IFNA(INDEX(VLC!B:B,MATCH(401+ROW(A9)-1,VLC!V:V,0)),"") ->  | E90: =_xlfn.IFNA(INDEX(VLC!C:C,MATCH(401+ROW(A9)-1,VLC!V:V,0)),"") ->  | F90: =_xlfn.IFNA(IF(INDEX(VLC!H:H,MATCH(401+ROW(A9)-1,VLC!V:V,0))="x",_xlfn.IFNA(INDEX(VLC!H:H,MATCH(401+ROW(A9)-1,VLC!V:V,0)),""),""),"") ->  | G90: =_xlfn.IFNA(IF(INDEX(VLC!H:H,MATCH(441+ROW(A9)-1,VLC!V:V,0))="x",_xlfn.IFNA(INDEX(VLC!H:H,MATCH(441+ROW(A9)-1,VLC!V:V,0)),""),""),"") ->  | H90: =_xlfn.IFNA(IF(INDEX(VLC!I:I,MATCH(401+ROW(A9)-1,VLC!V:V,0))<>"",_xlfn.IFNA(INDEX(VLC!I:I,MATCH(401+ROW(A9)-1,VLC!V:V,0)),""),""),"") ->  | I90: =_xlfn.IFNA(IF(INDEX(VLC!I:I,MATCH(441+ROW(A9)-1,VLC!V:V,0))<>"",_xlfn.IFNA(INDEX(VLC!I:I,MATCH(441+ROW(A9)-1,VLC!V:V,0)),""),""),"") ->  | J90: =_xlfn.IFNA(IF(INDEX(VLC!J:J,MATCH(401+ROW(A9)-1,VLC!V:V,0))="x",_xlfn.IFNA(INDEX(VLC!J:J,MATCH(401+ROW(A9)-1,VLC!V:V,0)),""),""),"") ->  | K90: =_xlfn.IFNA(IF(INDEX(VLC!J:J,MATCH(441+ROW(A9)-1,VLC!V:V,0))="x",_xlfn.IFNA(INDEX(VLC!J:J,MATCH(441+ROW(A9)-1,VLC!V:V,0)),""),""),"") ->  | L90: 4009 | M90: 4049
A91: SK Teilnehmer 10 | B91: =_xlfn.IFNA(INDEX(VLC!A:A,MATCH(410,VLC!V:V,0)),"") ->  | C91: =_xlfn.IFNA(INDEX(VLC!A:A,MATCH(450,VLC!V:V,0)),"") ->  | D91: =_xlfn.IFNA(INDEX(VLC!B:B,MATCH(401+ROW(A10)-1,VLC!V:V,0)),"") ->  | E91: =_xlfn.IFNA(INDEX(VLC!C:C,MATCH(401+ROW(A10)-1,VLC!V:V,0)),"") ->  | F91: =_xlfn.IFNA(IF(INDEX(VLC!H:H,MATCH(401+ROW(A10)-1,VLC!V:V,0))="x",_xlfn.IFNA(INDEX(VLC!H:H,MATCH(401+ROW(A10)-1,VLC!V:V,0)),""),""),"") ->  | G91: =_xlfn.IFNA(IF(INDEX(VLC!H:H,MATCH(441+ROW(A10)-1,VLC!V:V,0))="x",_xlfn.IFNA(INDEX(VLC!H:H,MATCH(441+ROW(A10)-1,VLC!V:V,0)),""),""),"") ->  | H91: =_xlfn.IFNA(IF(INDEX(VLC!I:I,MATCH(401+ROW(A10)-1,VLC!V:V,0))<>"",_xlfn.IFNA(INDEX(VLC!I:I,MATCH(401+ROW(A10)-1,VLC!V:V,0)),""),""),"") ->  | I91: =_xlfn.IFNA(IF(INDEX(VLC!I:I,MATCH(441+ROW(A10)-1,VLC!V:V,0))<>"",_xlfn.IFNA(INDEX(VLC!I:I,MATCH(441+ROW(A10)-1,VLC!V:V,0)),""),""),"") ->  | J91: =_xlfn.IFNA(IF(INDEX(VLC!J:J,MATCH(401+ROW(A10)-1,VLC!V:V,0))="x",_xlfn.IFNA(INDEX(VLC!J:J,MATCH(401+ROW(A10)-1,VLC!V:V,0)),""),""),"") ->  | K91: =_xlfn.IFNA(IF(INDEX(VLC!J:J,MATCH(441+ROW(A10)-1,VLC!V:V,0))="x",_xlfn.IFNA(INDEX(VLC!J:J,MATCH(441+ROW(A10)-1,VLC!V:V,0)),""),""),"") ->  | L91: 4010 | M91: 4050
A92: SK Teilnehmer 11 | B92: =_xlfn.IFNA(INDEX(VLC!A:A,MATCH(411,VLC!V:V,0)),"") ->  | C92: =_xlfn.IFNA(INDEX(VLC!A:A,MATCH(451,VLC!V:V,0)),"") ->  | D92: =_xlfn.IFNA(INDEX(VLC!B:B,MATCH(401+ROW(A11)-1,VLC!V:V,0)),"") ->  | E92: =_xlfn.IFNA(INDEX(VLC!C:C,MATCH(401+ROW(A11)-1,VLC!V:V,0)),"") ->  | F92: =_xlfn.IFNA(IF(INDEX(VLC!H:H,MATCH(401+ROW(A11)-1,VLC!V:V,0))="x",_xlfn.IFNA(INDEX(VLC!H:H,MATCH(401+ROW(A11)-1,VLC!V:V,0)),""),""),"") ->  | G92: =_xlfn.IFNA(IF(INDEX(VLC!H:H,MATCH(441+ROW(A11)-1,VLC!V:V,0))="x",_xlfn.IFNA(INDEX(VLC!H:H,MATCH(441+ROW(A11)-1,VLC!V:V,0)),""),""),"") ->  | H92: =_xlfn.IFNA(IF(INDEX(VLC!I:I,MATCH(401+ROW(A11)-1,VLC!V:V,0))<>"",_xlfn.IFNA(INDEX(VLC!I:I,MATCH(401+ROW(A11)-1,VLC!V:V,0)),""),""),"") ->  | I92: =_xlfn.IFNA(IF(INDEX(VLC!I:I,MATCH(441+ROW(A11)-1,VLC!V:V,0))<>"",_xlfn.IFNA(INDEX(VLC!I:I,MATCH(441+ROW(A11)-1,VLC!V:V,0)),""),""),"") ->  | J92: =_xlfn.IFNA(IF(INDEX(VLC!J:J,MATCH(401+ROW(A11)-1,VLC!V:V,0))="x",_xlfn.IFNA(INDEX(VLC!J:J,MATCH(401+ROW(A11)-1,VLC!V:V,0)),""),""),"") ->  | K92: =_xlfn.IFNA(IF(INDEX(VLC!J:J,MATCH(441+ROW(A11)-1,VLC!V:V,0))="x",_xlfn.IFNA(INDEX(VLC!J:J,MATCH(441+ROW(A11)-1,VLC!V:V,0)),""),""),"") ->  | L92: 4011 | M92: 4051
A93: SK Teilnehmer 12 | B93: =_xlfn.IFNA(INDEX(VLC!A:A,MATCH(412,VLC!V:V,0)),"") ->  | C93: =_xlfn.IFNA(INDEX(VLC!A:A,MATCH(452,VLC!V:V,0)),"") ->  | D93: =_xlfn.IFNA(INDEX(VLC!B:B,MATCH(401+ROW(A12)-1,VLC!V:V,0)),"") ->  | E93: =_xlfn.IFNA(INDEX(VLC!C:C,MATCH(401+ROW(A12)-1,VLC!V:V,0)),"") ->  | F93: =_xlfn.IFNA(IF(INDEX(VLC!H:H,MATCH(401+ROW(A12)-1,VLC!V:V,0))="x",_xlfn.IFNA(INDEX(VLC!H:H,MATCH(401+ROW(A12)-1,VLC!V:V,0)),""),""),"") ->  | G93: =_xlfn.IFNA(IF(INDEX(VLC!H:H,MATCH(441+ROW(A12)-1,VLC!V:V,0))="x",_xlfn.IFNA(INDEX(VLC!H:H,MATCH(441+ROW(A12)-1,VLC!V:V,0)),""),""),"") ->  | H93: =_xlfn.IFNA(IF(INDEX(VLC!I:I,MATCH(401+ROW(A12)-1,VLC!V:V,0))<>"",_xlfn.IFNA(INDEX(VLC!I:I,MATCH(401+ROW(A12)-1,VLC!V:V,0)),""),""),"") ->  | I93: =_xlfn.IFNA(IF(INDEX(VLC!I:I,MATCH(441+ROW(A12)-1,VLC!V:V,0))<>"",_xlfn.IFNA(INDEX(VLC!I:I,MATCH(441+ROW(A12)-1,VLC!V:V,0)),""),""),"") ->  | J93: =_xlfn.IFNA(IF(INDEX(VLC!J:J,MATCH(401+ROW(A12)-1,VLC!V:V,0))="x",_xlfn.IFNA(INDEX(VLC!J:J,MATCH(401+ROW(A12)-1,VLC!V:V,0)),""),""),"") ->  | K93: =_xlfn.IFNA(IF(INDEX(VLC!J:J,MATCH(441+ROW(A12)-1,VLC!V:V,0))="x",_xlfn.IFNA(INDEX(VLC!J:J,MATCH(441+ROW(A12)-1,VLC!V:V,0)),""),""),"") ->  | L93: 4012 | M93: 4052
A94: SK Teilnehmer 13 | B94: =_xlfn.IFNA(INDEX(VLC!A:A,MATCH(413,VLC!V:V,0)),"") ->  | C94: =_xlfn.IFNA(INDEX(VLC!A:A,MATCH(453,VLC!V:V,0)),"") ->  | D94: =_xlfn.IFNA(INDEX(VLC!B:B,MATCH(401+ROW(A13)-1,VLC!V:V,0)),"") ->  | E94: =_xlfn.IFNA(INDEX(VLC!C:C,MATCH(401+ROW(A13)-1,VLC!V:V,0)),"") ->  | F94: =_xlfn.IFNA(IF(INDEX(VLC!H:H,MATCH(401+ROW(A13)-1,VLC!V:V,0))="x",_xlfn.IFNA(INDEX(VLC!H:H,MATCH(401+ROW(A13)-1,VLC!V:V,0)),""),""),"") ->  | G94: =_xlfn.IFNA(IF(INDEX(VLC!H:H,MATCH(441+ROW(A13)-1,VLC!V:V,0))="x",_xlfn.IFNA(INDEX(VLC!H:H,MATCH(441+ROW(A13)-1,VLC!V:V,0)),""),""),"") ->  | H94: =_xlfn.IFNA(IF(INDEX(VLC!I:I,MATCH(401+ROW(A13)-1,VLC!V:V,0))<>"",_xlfn.IFNA(INDEX(VLC!I:I,MATCH(401+ROW(A13)-1,VLC!V:V,0)),""),""),"") ->  | I94: =_xlfn.IFNA(IF(INDEX(VLC!I:I,MATCH(441+ROW(A13)-1,VLC!V:V,0))<>"",_xlfn.IFNA(INDEX(VLC!I:I,MATCH(441+ROW(A13)-1,VLC!V:V,0)),""),""),"") ->  | J94: =_xlfn.IFNA(IF(INDEX(VLC!J:J,MATCH(401+ROW(A13)-1,VLC!V:V,0))="x",_xlfn.IFNA(INDEX(VLC!J:J,MATCH(401+ROW(A13)-1,VLC!V:V,0)),""),""),"") ->  | K94: =_xlfn.IFNA(IF(INDEX(VLC!J:J,MATCH(441+ROW(A13)-1,VLC!V:V,0))="x",_xlfn.IFNA(INDEX(VLC!J:J,MATCH(441+ROW(A13)-1,VLC!V:V,0)),""),""),"") ->  | L94: 4013 | M94: 4053
A95: SK Teilnehmer 14 | B95: =_xlfn.IFNA(INDEX(VLC!A:A,MATCH(414,VLC!V:V,0)),"") ->  | C95: =_xlfn.IFNA(INDEX(VLC!A:A,MATCH(454,VLC!V:V,0)),"") ->  | D95: =_xlfn.IFNA(INDEX(VLC!B:B,MATCH(401+ROW(A14)-1,VLC!V:V,0)),"") ->  | E95: =_xlfn.IFNA(INDEX(VLC!C:C,MATCH(401+ROW(A14)-1,VLC!V:V,0)),"") ->  | F95: =_xlfn.IFNA(IF(INDEX(VLC!H:H,MATCH(401+ROW(A14)-1,VLC!V:V,0))="x",_xlfn.IFNA(INDEX(VLC!H:H,MATCH(401+ROW(A14)-1,VLC!V:V,0)),""),""),"") ->  | G95: =_xlfn.IFNA(IF(INDEX(VLC!H:H,MATCH(441+ROW(A14)-1,VLC!V:V,0))="x",_xlfn.IFNA(INDEX(VLC!H:H,MATCH(441+ROW(A14)-1,VLC!V:V,0)),""),""),"") ->  | H95: =_xlfn.IFNA(IF(INDEX(VLC!I:I,MATCH(401+ROW(A14)-1,VLC!V:V,0))<>"",_xlfn.IFNA(INDEX(VLC!I:I,MATCH(401+ROW(A14)-1,VLC!V:V,0)),""),""),"") ->  | I95: =_xlfn.IFNA(IF(INDEX(VLC!I:I,MATCH(441+ROW(A14)-1,VLC!V:V,0))<>"",_xlfn.IFNA(INDEX(VLC!I:I,MATCH(441+ROW(A14)-1,VLC!V:V,0)),""),""),"") ->  | J95: =_xlfn.IFNA(IF(INDEX(VLC!J:J,MATCH(401+ROW(A14)-1,VLC!V:V,0))="x",_xlfn.IFNA(INDEX(VLC!J:J,MATCH(401+ROW(A14)-1,VLC!V:V,0)),""),""),"") ->  | K95: =_xlfn.IFNA(IF(INDEX(VLC!J:J,MATCH(441+ROW(A14)-1,VLC!V:V,0))="x",_xlfn.IFNA(INDEX(VLC!J:J,MATCH(441+ROW(A14)-1,VLC!V:V,0)),""),""),"") ->  | L95: 4014 | M95: 4054
A96: SK Teilnehmer 15 | B96: =_xlfn.IFNA(INDEX(VLC!A:A,MATCH(415,VLC!V:V,0)),"") ->  | C96: =_xlfn.IFNA(INDEX(VLC!A:A,MATCH(455,VLC!V:V,0)),"") ->  | D96: =_xlfn.IFNA(INDEX(VLC!B:B,MATCH(401+ROW(A15)-1,VLC!V:V,0)),"") ->  | E96: =_xlfn.IFNA(INDEX(VLC!C:C,MATCH(401+ROW(A15)-1,VLC!V:V,0)),"") ->  | F96: =_xlfn.IFNA(IF(INDEX(VLC!H:H,MATCH(401+ROW(A15)-1,VLC!V:V,0))="x",_xlfn.IFNA(INDEX(VLC!H:H,MATCH(401+ROW(A15)-1,VLC!V:V,0)),""),""),"") ->  | G96: =_xlfn.IFNA(IF(INDEX(VLC!H:H,MATCH(441+ROW(A15)-1,VLC!V:V,0))="x",_xlfn.IFNA(INDEX(VLC!H:H,MATCH(441+ROW(A15)-1,VLC!V:V,0)),""),""),"") ->  | H96: =_xlfn.IFNA(IF(INDEX(VLC!I:I,MATCH(401+ROW(A15)-1,VLC!V:V,0))<>"",_xlfn.IFNA(INDEX(VLC!I:I,MATCH(401+ROW(A15)-1,VLC!V:V,0)),""),""),"") ->  | I96: =_xlfn.IFNA(IF(INDEX(VLC!I:I,MATCH(441+ROW(A15)-1,VLC!V:V,0))<>"",_xlfn.IFNA(INDEX(VLC!I:I,MATCH(441+ROW(A15)-1,VLC!V:V,0)),""),""),"") ->  | J96: =_xlfn.IFNA(IF(INDEX(VLC!J:J,MATCH(401+ROW(A15)-1,VLC!V:V,0))="x",_xlfn.IFNA(INDEX(VLC!J:J,MATCH(401+ROW(A15)-1,VLC!V:V,0)),""),""),"") ->  | K96: =_xlfn.IFNA(IF(INDEX(VLC!J:J,MATCH(441+ROW(A15)-1,VLC!V:V,0))="x",_xlfn.IFNA(INDEX(VLC!J:J,MATCH(441+ROW(A15)-1,VLC!V:V,0)),""),""),"") ->  | L96: 4015 | M96: 4055
A97: SK Teilnehmer 16 | B97: =_xlfn.IFNA(INDEX(VLC!A:A,MATCH(416,VLC!V:V,0)),"") ->  | C97: =_xlfn.IFNA(INDEX(VLC!A:A,MATCH(456,VLC!V:V,0)),"") ->  | D97: =_xlfn.IFNA(INDEX(VLC!B:B,MATCH(401+ROW(A16)-1,VLC!V:V,0)),"") ->  | E97: =_xlfn.IFNA(INDEX(VLC!C:C,MATCH(401+ROW(A16)-1,VLC!V:V,0)),"") ->  | F97: =_xlfn.IFNA(IF(INDEX(VLC!H:H,MATCH(401+ROW(A16)-1,VLC!V:V,0))="x",_xlfn.IFNA(INDEX(VLC!H:H,MATCH(401+ROW(A16)-1,VLC!V:V,0)),""),""),"") ->  | G97: =_xlfn.IFNA(IF(INDEX(VLC!H:H,MATCH(441+ROW(A16)-1,VLC!V:V,0))="x",_xlfn.IFNA(INDEX(VLC!H:H,MATCH(441+ROW(A16)-1,VLC!V:V,0)),""),""),"") ->  | H97: =_xlfn.IFNA(IF(INDEX(VLC!I:I,MATCH(401+ROW(A16)-1,VLC!V:V,0))<>"",_xlfn.IFNA(INDEX(VLC!I:I,MATCH(401+ROW(A16)-1,VLC!V:V,0)),""),""),"") ->  | I97: =_xlfn.IFNA(IF(INDEX(VLC!I:I,MATCH(441+ROW(A16)-1,VLC!V:V,0))<>"",_xlfn.IFNA(INDEX(VLC!I:I,MATCH(441+ROW(A16)-1,VLC!V:V,0)),""),""),"") ->  | J97: =_xlfn.IFNA(IF(INDEX(VLC!J:J,MATCH(401+ROW(A16)-1,VLC!V:V,0))="x",_xlfn.IFNA(INDEX(VLC!J:J,MATCH(401+ROW(A16)-1,VLC!V:V,0)),""),""),"") ->  | K97: =_xlfn.IFNA(IF(INDEX(VLC!J:J,MATCH(441+ROW(A16)-1,VLC!V:V,0))="x",_xlfn.IFNA(INDEX(VLC!J:J,MATCH(441+ROW(A16)-1,VLC!V:V,0)),""),""),"") ->  | L97: 4016 | M97: 4056
A98: SK Teilnehmer 17 | B98: =_xlfn.IFNA(INDEX(VLC!A:A,MATCH(417,VLC!V:V,0)),"") ->  | C98: =_xlfn.IFNA(INDEX(VLC!A:A,MATCH(457,VLC!V:V,0)),"") ->  | D98: =_xlfn.IFNA(INDEX(VLC!B:B,MATCH(401+ROW(A17)-1,VLC!V:V,0)),"") ->  | E98: =_xlfn.IFNA(INDEX(VLC!C:C,MATCH(401+ROW(A17)-1,VLC!V:V,0)),"") ->  | F98: =_xlfn.IFNA(IF(INDEX(VLC!H:H,MATCH(401+ROW(A17)-1,VLC!V:V,0))="x",_xlfn.IFNA(INDEX(VLC!H:H,MATCH(401+ROW(A17)-1,VLC!V:V,0)),""),""),"") ->  | G98: =_xlfn.IFNA(IF(INDEX(VLC!H:H,MATCH(441+ROW(A17)-1,VLC!V:V,0))="x",_xlfn.IFNA(INDEX(VLC!H:H,MATCH(441+ROW(A17)-1,VLC!V:V,0)),""),""),"") ->  | H98: =_xlfn.IFNA(IF(INDEX(VLC!I:I,MATCH(401+ROW(A17)-1,VLC!V:V,0))<>"",_xlfn.IFNA(INDEX(VLC!I:I,MATCH(401+ROW(A17)-1,VLC!V:V,0)),""),""),"") ->  | I98: =_xlfn.IFNA(IF(INDEX(VLC!I:I,MATCH(441+ROW(A17)-1,VLC!V:V,0))<>"",_xlfn.IFNA(INDEX(VLC!I:I,MATCH(441+ROW(A17)-1,VLC!V:V,0)),""),""),"") ->  | J98: =_xlfn.IFNA(IF(INDEX(VLC!J:J,MATCH(401+ROW(A17)-1,VLC!V:V,0))="x",_xlfn.IFNA(INDEX(VLC!J:J,MATCH(401+ROW(A17)-1,VLC!V:V,0)),""),""),"") ->  | K98: =_xlfn.IFNA(IF(INDEX(VLC!J:J,MATCH(441+ROW(A17)-1,VLC!V:V,0))="x",_xlfn.IFNA(INDEX(VLC!J:J,MATCH(441+ROW(A17)-1,VLC!V:V,0)),""),""),"") ->  | L98: 4017 | M98: 4057
A99: SK Teilnehmer 18 | B99: =_xlfn.IFNA(INDEX(VLC!A:A,MATCH(418,VLC!V:V,0)),"") ->  | C99: =_xlfn.IFNA(INDEX(VLC!A:A,MATCH(458,VLC!V:V,0)),"") ->  | D99: =_xlfn.IFNA(INDEX(VLC!B:B,MATCH(401+ROW(A18)-1,VLC!V:V,0)),"") ->  | E99: =_xlfn.IFNA(INDEX(VLC!C:C,MATCH(401+ROW(A18)-1,VLC!V:V,0)),"") ->  | F99: =_xlfn.IFNA(IF(INDEX(VLC!H:H,MATCH(401+ROW(A18)-1,VLC!V:V,0))="x",_xlfn.IFNA(INDEX(VLC!H:H,MATCH(401+ROW(A18)-1,VLC!V:V,0)),""),""),"") ->  | G99: =_xlfn.IFNA(IF(INDEX(VLC!H:H,MATCH(441+ROW(A18)-1,VLC!V:V,0))="x",_xlfn.IFNA(INDEX(VLC!H:H,MATCH(441+ROW(A18)-1,VLC!V:V,0)),""),""),"") ->  | H99: =_xlfn.IFNA(IF(INDEX(VLC!I:I,MATCH(401+ROW(A18)-1,VLC!V:V,0))<>"",_xlfn.IFNA(INDEX(VLC!I:I,MATCH(401+ROW(A18)-1,VLC!V:V,0)),""),""),"") ->  | I99: =_xlfn.IFNA(IF(INDEX(VLC!I:I,MATCH(441+ROW(A18)-1,VLC!V:V,0))<>"",_xlfn.IFNA(INDEX(VLC!I:I,MATCH(441+ROW(A18)-1,VLC!V:V,0)),""),""),"") ->  | J99: =_xlfn.IFNA(IF(INDEX(VLC!J:J,MATCH(401+ROW(A18)-1,VLC!V:V,0))="x",_xlfn.IFNA(INDEX(VLC!J:J,MATCH(401+ROW(A18)-1,VLC!V:V,0)),""),""),"") ->  | K99: =_xlfn.IFNA(IF(INDEX(VLC!J:J,MATCH(441+ROW(A18)-1,VLC!V:V,0))="x",_xlfn.IFNA(INDEX(VLC!J:J,MATCH(441+ROW(A18)-1,VLC!V:V,0)),""),""),"") ->  | L99: 4018 | M99: 4058
A100: SK Teilnehmer 19 | B100: =_xlfn.IFNA(INDEX(VLC!A:A,MATCH(419,VLC!V:V,0)),"") ->  | C100: =_xlfn.IFNA(INDEX(VLC!A:A,MATCH(459,VLC!V:V,0)),"") ->  | D100: =_xlfn.IFNA(INDEX(VLC!B:B,MATCH(401+ROW(A19)-1,VLC!V:V,0)),"") ->  | E100: =_xlfn.IFNA(INDEX(VLC!C:C,MATCH(401+ROW(A19)-1,VLC!V:V,0)),"") ->  | F100: =_xlfn.IFNA(IF(INDEX(VLC!H:H,MATCH(401+ROW(A19)-1,VLC!V:V,0))="x",_xlfn.IFNA(INDEX(VLC!H:H,MATCH(401+ROW(A19)-1,VLC!V:V,0)),""),""),"") ->  | G100: =_xlfn.IFNA(IF(INDEX(VLC!H:H,MATCH(441+ROW(A19)-1,VLC!V:V,0))="x",_xlfn.IFNA(INDEX(VLC!H:H,MATCH(441+ROW(A19)-1,VLC!V:V,0)),""),""),"") ->  | H100: =_xlfn.IFNA(IF(INDEX(VLC!I:I,MATCH(401+ROW(A19)-1,VLC!V:V,0))<>"",_xlfn.IFNA(INDEX(VLC!I:I,MATCH(401+ROW(A19)-1,VLC!V:V,0)),""),""),"") ->  | I100: =_xlfn.IFNA(IF(INDEX(VLC!I:I,MATCH(441+ROW(A19)-1,VLC!V:V,0))<>"",_xlfn.IFNA(INDEX(VLC!I:I,MATCH(441+ROW(A19)-1,VLC!V:V,0)),""),""),"") ->  | J100: =_xlfn.IFNA(IF(INDEX(VLC!J:J,MATCH(401+ROW(A19)-1,VLC!V:V,0))="x",_xlfn.IFNA(INDEX(VLC!J:J,MATCH(401+ROW(A19)-1,VLC!V:V,0)),""),""),"") ->  | K100: =_xlfn.IFNA(IF(INDEX(VLC!J:J,MATCH(441+ROW(A19)-1,VLC!V:V,0))="x",_xlfn.IFNA(INDEX(VLC!J:J,MATCH(441+ROW(A19)-1,VLC!V:V,0)),""),""),"") ->  | L100: 4019 | M100: 4059
A101: SK Teilnehmer 20 | B101: =_xlfn.IFNA(INDEX(VLC!A:A,MATCH(420,VLC!V:V,0)),"") ->  | C101: =_xlfn.IFNA(INDEX(VLC!A:A,MATCH(460,VLC!V:V,0)),"") ->  | D101: =_xlfn.IFNA(INDEX(VLC!B:B,MATCH(401+ROW(A20)-1,VLC!V:V,0)),"") ->  | E101: =_xlfn.IFNA(INDEX(VLC!C:C,MATCH(401+ROW(A20)-1,VLC!V:V,0)),"") ->  | F101: =_xlfn.IFNA(IF(INDEX(VLC!H:H,MATCH(401+ROW(A20)-1,VLC!V:V,0))="x",_xlfn.IFNA(INDEX(VLC!H:H,MATCH(401+ROW(A20)-1,VLC!V:V,0)),""),""),"") ->  | G101: =_xlfn.IFNA(IF(INDEX(VLC!H:H,MATCH(441+ROW(A20)-1,VLC!V:V,0))="x",_xlfn.IFNA(INDEX(VLC!H:H,MATCH(441+ROW(A20)-1,VLC!V:V,0)),""),""),"") ->  | H101: =_xlfn.IFNA(IF(INDEX(VLC!I:I,MATCH(401+ROW(A20)-1,VLC!V:V,0))<>"",_xlfn.IFNA(INDEX(VLC!I:I,MATCH(401+ROW(A20)-1,VLC!V:V,0)),""),""),"") ->  | I101: =_xlfn.IFNA(IF(INDEX(VLC!I:I,MATCH(441+ROW(A20)-1,VLC!V:V,0))<>"",_xlfn.IFNA(INDEX(VLC!I:I,MATCH(441+ROW(A20)-1,VLC!V:V,0)),""),""),"") ->  | J101: =_xlfn.IFNA(IF(INDEX(VLC!J:J,MATCH(401+ROW(A20)-1,VLC!V:V,0))="x",_xlfn.IFNA(INDEX(VLC!J:J,MATCH(401+ROW(A20)-1,VLC!V:V,0)),""),""),"") ->  | K101: =_xlfn.IFNA(IF(INDEX(VLC!J:J,MATCH(441+ROW(A20)-1,VLC!V:V,0))="x",_xlfn.IFNA(INDEX(VLC!J:J,MATCH(441+ROW(A20)-1,VLC!V:V,0)),""),""),"") ->  | L101: 4020 | M101: 4060
A102: Gerätename: | B102: =$B$6 -> 0 | E102: PLC24 Stromkreis-Nummer: 5
A103: Stromkreis-Bezeichnung:
A104: Stromkreisbelegung | B104: ID 1 | C104: ID 2 | D104: Bezeichnung | E104: Zusatzinfo | F104: DL | H104: GL | J104: BL
F105: ID1 | G105: ID2 | H105: ID1 | I105: ID2 | J105: ID1 | K105: ID2
A106: SK Teilnehmer 1 | B106: =_xlfn.IFNA(INDEX(VLC!A:A,MATCH(501,VLC!V:V,0)),"") ->  | C106: =_xlfn.IFNA(INDEX(VLC!A:A,MATCH(541,VLC!V:V,0)),"") ->  | D106: =_xlfn.IFNA(INDEX(VLC!B:B,MATCH(501+ROW(A1)-1,VLC!V:V,0)),"") ->  | E106: =_xlfn.IFNA(INDEX(VLC!C:C,MATCH(501+ROW(A1)-1,VLC!V:V,0)),"") ->  | F106: =_xlfn.IFNA(IF(INDEX(VLC!H:H,MATCH(501+ROW(A1)-1,VLC!V:V,0))="x",_xlfn.IFNA(INDEX(VLC!H:H,MATCH(501+ROW(A1)-1,VLC!V:V,0)),""),""),"") ->  | G106: =_xlfn.IFNA(IF(INDEX(VLC!H:H,MATCH(541+ROW(A1)-1,VLC!V:V,0))="x",_xlfn.IFNA(INDEX(VLC!H:H,MATCH(541+ROW(A1)-1,VLC!V:V,0)),""),""),"") ->  | H106: =_xlfn.IFNA(IF(INDEX(VLC!I:I,MATCH(501+ROW(A1)-1,VLC!V:V,0))<>"",_xlfn.IFNA(INDEX(VLC!I:I,MATCH(501+ROW(A1)-1,VLC!V:V,0)),""),""),"") ->  | I106: =_xlfn.IFNA(IF(INDEX(VLC!I:I,MATCH(541+ROW(A1)-1,VLC!V:V,0))<>"",_xlfn.IFNA(INDEX(VLC!I:I,MATCH(541+ROW(A1)-1,VLC!V:V,0)),""),""),"") ->  | J106: =_xlfn.IFNA(IF(INDEX(VLC!J:J,MATCH(501+ROW(A1)-1,VLC!V:V,0))="x",_xlfn.IFNA(INDEX(VLC!J:J,MATCH(501+ROW(A1)-1,VLC!V:V,0)),""),""),"") ->  | K106: =_xlfn.IFNA(IF(INDEX(VLC!J:J,MATCH(541+ROW(A1)-1,VLC!V:V,0))="x",_xlfn.IFNA(INDEX(VLC!J:J,MATCH(541+ROW(A1)-1,VLC!V:V,0)),""),""),"") ->  | L106: =5000+ROW(A106)-105 -> 5001 | M106: =L106+40 -> 5041
A107: SK Teilnehmer 2 | B107: =_xlfn.IFNA(INDEX(VLC!A:A,MATCH(502,VLC!V:V,0)),"") ->  | C107: =_xlfn.IFNA(INDEX(VLC!A:A,MATCH(542,VLC!V:V,0)),"") ->  | D107: =_xlfn.IFNA(INDEX(VLC!B:B,MATCH(501+ROW(A2)-1,VLC!V:V,0)),"") ->  | E107: =_xlfn.IFNA(INDEX(VLC!C:C,MATCH(501+ROW(A2)-1,VLC!V:V,0)),"") ->  | F107: =_xlfn.IFNA(IF(INDEX(VLC!H:H,MATCH(501+ROW(A2)-1,VLC!V:V,0))="x",_xlfn.IFNA(INDEX(VLC!H:H,MATCH(501+ROW(A2)-1,VLC!V:V,0)),""),""),"") ->  | G107: =_xlfn.IFNA(IF(INDEX(VLC!H:H,MATCH(541+ROW(A2)-1,VLC!V:V,0))="x",_xlfn.IFNA(INDEX(VLC!H:H,MATCH(541+ROW(A2)-1,VLC!V:V,0)),""),""),"") ->  | H107: =_xlfn.IFNA(IF(INDEX(VLC!I:I,MATCH(501+ROW(A2)-1,VLC!V:V,0))<>"",_xlfn.IFNA(INDEX(VLC!I:I,MATCH(501+ROW(A2)-1,VLC!V:V,0)),""),""),"") ->  | I107: =_xlfn.IFNA(IF(INDEX(VLC!I:I,MATCH(541+ROW(A2)-1,VLC!V:V,0))<>"",_xlfn.IFNA(INDEX(VLC!I:I,MATCH(541+ROW(A2)-1,VLC!V:V,0)),""),""),"") ->  | J107: =_xlfn.IFNA(IF(INDEX(VLC!J:J,MATCH(501+ROW(A2)-1,VLC!V:V,0))="x",_xlfn.IFNA(INDEX(VLC!J:J,MATCH(501+ROW(A2)-1,VLC!V:V,0)),""),""),"") ->  | K107: =_xlfn.IFNA(IF(INDEX(VLC!J:J,MATCH(541+ROW(A2)-1,VLC!V:V,0))="x",_xlfn.IFNA(INDEX(VLC!J:J,MATCH(541+ROW(A2)-1,VLC!V:V,0)),""),""),"") ->  | L107: =5000+ROW(A107)-105 -> 5002 | M107: =L107+40 -> 5042
A108: SK Teilnehmer 3 | B108: =_xlfn.IFNA(INDEX(VLC!A:A,MATCH(503,VLC!V:V,0)),"") ->  | C108: =_xlfn.IFNA(INDEX(VLC!A:A,MATCH(543,VLC!V:V,0)),"") ->  | D108: =_xlfn.IFNA(INDEX(VLC!B:B,MATCH(501+ROW(A3)-1,VLC!V:V,0)),"") ->  | E108: =_xlfn.IFNA(INDEX(VLC!C:C,MATCH(501+ROW(A3)-1,VLC!V:V,0)),"") ->  | F108: =_xlfn.IFNA(IF(INDEX(VLC!H:H,MATCH(501+ROW(A3)-1,VLC!V:V,0))="x",_xlfn.IFNA(INDEX(VLC!H:H,MATCH(501+ROW(A3)-1,VLC!V:V,0)),""),""),"") ->  | G108: =_xlfn.IFNA(IF(INDEX(VLC!H:H,MATCH(541+ROW(A3)-1,VLC!V:V,0))="x",_xlfn.IFNA(INDEX(VLC!H:H,MATCH(541+ROW(A3)-1,VLC!V:V,0)),""),""),"") ->  | H108: =_xlfn.IFNA(IF(INDEX(VLC!I:I,MATCH(501+ROW(A3)-1,VLC!V:V,0))<>"",_xlfn.IFNA(INDEX(VLC!I:I,MATCH(501+ROW(A3)-1,VLC!V:V,0)),""),""),"") ->  | I108: =_xlfn.IFNA(IF(INDEX(VLC!I:I,MATCH(541+ROW(A3)-1,VLC!V:V,0))<>"",_xlfn.IFNA(INDEX(VLC!I:I,MATCH(541+ROW(A3)-1,VLC!V:V,0)),""),""),"") ->  | J108: =_xlfn.IFNA(IF(INDEX(VLC!J:J,MATCH(501+ROW(A3)-1,VLC!V:V,0))="x",_xlfn.IFNA(INDEX(VLC!J:J,MATCH(501+ROW(A3)-1,VLC!V:V,0)),""),""),"") ->  | K108: =_xlfn.IFNA(IF(INDEX(VLC!J:J,MATCH(541+ROW(A3)-1,VLC!V:V,0))="x",_xlfn.IFNA(INDEX(VLC!J:J,MATCH(541+ROW(A3)-1,VLC!V:V,0)),""),""),"") ->  | L108: 5003 | M108: 5043
A109: SK Teilnehmer 4 | B109: =_xlfn.IFNA(INDEX(VLC!A:A,MATCH(504,VLC!V:V,0)),"") ->  | C109: =_xlfn.IFNA(INDEX(VLC!A:A,MATCH(544,VLC!V:V,0)),"") ->  | D109: =_xlfn.IFNA(INDEX(VLC!B:B,MATCH(501+ROW(A4)-1,VLC!V:V,0)),"") ->  | E109: =_xlfn.IFNA(INDEX(VLC!C:C,MATCH(501+ROW(A4)-1,VLC!V:V,0)),"") ->  | F109: =_xlfn.IFNA(IF(INDEX(VLC!H:H,MATCH(501+ROW(A4)-1,VLC!V:V,0))="x",_xlfn.IFNA(INDEX(VLC!H:H,MATCH(501+ROW(A4)-1,VLC!V:V,0)),""),""),"") ->  | G109: =_xlfn.IFNA(IF(INDEX(VLC!H:H,MATCH(541+ROW(A4)-1,VLC!V:V,0))="x",_xlfn.IFNA(INDEX(VLC!H:H,MATCH(541+ROW(A4)-1,VLC!V:V,0)),""),""),"") ->  | H109: =_xlfn.IFNA(IF(INDEX(VLC!I:I,MATCH(501+ROW(A4)-1,VLC!V:V,0))<>"",_xlfn.IFNA(INDEX(VLC!I:I,MATCH(501+ROW(A4)-1,VLC!V:V,0)),""),""),"") ->  | I109: =_xlfn.IFNA(IF(INDEX(VLC!I:I,MATCH(541+ROW(A4)-1,VLC!V:V,0))<>"",_xlfn.IFNA(INDEX(VLC!I:I,MATCH(541+ROW(A4)-1,VLC!V:V,0)),""),""),"") ->  | J109: =_xlfn.IFNA(IF(INDEX(VLC!J:J,MATCH(501+ROW(A4)-1,VLC!V:V,0))="x",_xlfn.IFNA(INDEX(VLC!J:J,MATCH(501+ROW(A4)-1,VLC!V:V,0)),""),""),"") ->  | K109: =_xlfn.IFNA(IF(INDEX(VLC!J:J,MATCH(541+ROW(A4)-1,VLC!V:V,0))="x",_xlfn.IFNA(INDEX(VLC!J:J,MATCH(541+ROW(A4)-1,VLC!V:V,0)),""),""),"") ->  | L109: 5004 | M109: 5044
A110: SK Teilnehmer 5 | B110: =_xlfn.IFNA(INDEX(VLC!A:A,MATCH(505,VLC!V:V,0)),"") ->  | C110: =_xlfn.IFNA(INDEX(VLC!A:A,MATCH(545,VLC!V:V,0)),"") ->  | D110: =_xlfn.IFNA(INDEX(VLC!B:B,MATCH(501+ROW(A5)-1,VLC!V:V,0)),"") ->  | E110: =_xlfn.IFNA(INDEX(VLC!C:C,MATCH(501+ROW(A5)-1,VLC!V:V,0)),"") ->  | F110: =_xlfn.IFNA(IF(INDEX(VLC!H:H,MATCH(501+ROW(A5)-1,VLC!V:V,0))="x",_xlfn.IFNA(INDEX(VLC!H:H,MATCH(501+ROW(A5)-1,VLC!V:V,0)),""),""),"") ->  | G110: =_xlfn.IFNA(IF(INDEX(VLC!H:H,MATCH(541+ROW(A5)-1,VLC!V:V,0))="x",_xlfn.IFNA(INDEX(VLC!H:H,MATCH(541+ROW(A5)-1,VLC!V:V,0)),""),""),"") ->  | H110: =_xlfn.IFNA(IF(INDEX(VLC!I:I,MATCH(501+ROW(A5)-1,VLC!V:V,0))<>"",_xlfn.IFNA(INDEX(VLC!I:I,MATCH(501+ROW(A5)-1,VLC!V:V,0)),""),""),"") ->  | I110: =_xlfn.IFNA(IF(INDEX(VLC!I:I,MATCH(541+ROW(A5)-1,VLC!V:V,0))<>"",_xlfn.IFNA(INDEX(VLC!I:I,MATCH(541+ROW(A5)-1,VLC!V:V,0)),""),""),"") ->  | J110: =_xlfn.IFNA(IF(INDEX(VLC!J:J,MATCH(501+ROW(A5)-1,VLC!V:V,0))="x",_xlfn.IFNA(INDEX(VLC!J:J,MATCH(501+ROW(A5)-1,VLC!V:V,0)),""),""),"") ->  | K110: =_xlfn.IFNA(IF(INDEX(VLC!J:J,MATCH(541+ROW(A5)-1,VLC!V:V,0))="x",_xlfn.IFNA(INDEX(VLC!J:J,MATCH(541+ROW(A5)-1,VLC!V:V,0)),""),""),"") ->  | L110: 5005 | M110: 5045
A111: SK Teilnehmer 6 | B111: =_xlfn.IFNA(INDEX(VLC!A:A,MATCH(506,VLC!V:V,0)),"") ->  | C111: =_xlfn.IFNA(INDEX(VLC!A:A,MATCH(546,VLC!V:V,0)),"") ->  | D111: =_xlfn.IFNA(INDEX(VLC!B:B,MATCH(501+ROW(A6)-1,VLC!V:V,0)),"") ->  | E111: =_xlfn.IFNA(INDEX(VLC!C:C,MATCH(501+ROW(A6)-1,VLC!V:V,0)),"") ->  | F111: =_xlfn.IFNA(IF(INDEX(VLC!H:H,MATCH(501+ROW(A6)-1,VLC!V:V,0))="x",_xlfn.IFNA(INDEX(VLC!H:H,MATCH(501+ROW(A6)-1,VLC!V:V,0)),""),""),"") ->  | G111: =_xlfn.IFNA(IF(INDEX(VLC!H:H,MATCH(541+ROW(A6)-1,VLC!V:V,0))="x",_xlfn.IFNA(INDEX(VLC!H:H,MATCH(541+ROW(A6)-1,VLC!V:V,0)),""),""),"") ->  | H111: =_xlfn.IFNA(IF(INDEX(VLC!I:I,MATCH(501+ROW(A6)-1,VLC!V:V,0))<>"",_xlfn.IFNA(INDEX(VLC!I:I,MATCH(501+ROW(A6)-1,VLC!V:V,0)),""),""),"") ->  | I111: =_xlfn.IFNA(IF(INDEX(VLC!I:I,MATCH(541+ROW(A6)-1,VLC!V:V,0))<>"",_xlfn.IFNA(INDEX(VLC!I:I,MATCH(541+ROW(A6)-1,VLC!V:V,0)),""),""),"") ->  | J111: =_xlfn.IFNA(IF(INDEX(VLC!J:J,MATCH(501+ROW(A6)-1,VLC!V:V,0))="x",_xlfn.IFNA(INDEX(VLC!J:J,MATCH(501+ROW(A6)-1,VLC!V:V,0)),""),""),"") ->  | K111: =_xlfn.IFNA(IF(INDEX(VLC!J:J,MATCH(541+ROW(A6)-1,VLC!V:V,0))="x",_xlfn.IFNA(INDEX(VLC!J:J,MATCH(541+ROW(A6)-1,VLC!V:V,0)),""),""),"") ->  | L111: 5006 | M111: 5046
A112: SK Teilnehmer 7 | B112: =_xlfn.IFNA(INDEX(VLC!A:A,MATCH(507,VLC!V:V,0)),"") ->  | C112: =_xlfn.IFNA(INDEX(VLC!A:A,MATCH(547,VLC!V:V,0)),"") ->  | D112: =_xlfn.IFNA(INDEX(VLC!B:B,MATCH(501+ROW(A7)-1,VLC!V:V,0)),"") ->  | E112: =_xlfn.IFNA(INDEX(VLC!C:C,MATCH(501+ROW(A7)-1,VLC!V:V,0)),"") ->  | F112: =_xlfn.IFNA(IF(INDEX(VLC!H:H,MATCH(501+ROW(A7)-1,VLC!V:V,0))="x",_xlfn.IFNA(INDEX(VLC!H:H,MATCH(501+ROW(A7)-1,VLC!V:V,0)),""),""),"") ->  | G112: =_xlfn.IFNA(IF(INDEX(VLC!H:H,MATCH(541+ROW(A7)-1,VLC!V:V,0))="x",_xlfn.IFNA(INDEX(VLC!H:H,MATCH(541+ROW(A7)-1,VLC!V:V,0)),""),""),"") ->  | H112: =_xlfn.IFNA(IF(INDEX(VLC!I:I,MATCH(501+ROW(A7)-1,VLC!V:V,0))<>"",_xlfn.IFNA(INDEX(VLC!I:I,MATCH(501+ROW(A7)-1,VLC!V:V,0)),""),""),"") ->  | I112: =_xlfn.IFNA(IF(INDEX(VLC!I:I,MATCH(541+ROW(A7)-1,VLC!V:V,0))<>"",_xlfn.IFNA(INDEX(VLC!I:I,MATCH(541+ROW(A7)-1,VLC!V:V,0)),""),""),"") ->  | J112: =_xlfn.IFNA(IF(INDEX(VLC!J:J,MATCH(501+ROW(A7)-1,VLC!V:V,0))="x",_xlfn.IFNA(INDEX(VLC!J:J,MATCH(501+ROW(A7)-1,VLC!V:V,0)),""),""),"") ->  | K112: =_xlfn.IFNA(IF(INDEX(VLC!J:J,MATCH(541+ROW(A7)-1,VLC!V:V,0))="x",_xlfn.IFNA(INDEX(VLC!J:J,MATCH(541+ROW(A7)-1,VLC!V:V,0)),""),""),"") ->  | L112: 5007 | M112: 5047
A113: SK Teilnehmer 8 | B113: =_xlfn.IFNA(INDEX(VLC!A:A,MATCH(508,VLC!V:V,0)),"") ->  | C113: =_xlfn.IFNA(INDEX(VLC!A:A,MATCH(548,VLC!V:V,0)),"") ->  | D113: =_xlfn.IFNA(INDEX(VLC!B:B,MATCH(501+ROW(A8)-1,VLC!V:V,0)),"") ->  | E113: =_xlfn.IFNA(INDEX(VLC!C:C,MATCH(501+ROW(A8)-1,VLC!V:V,0)),"") ->  | F113: =_xlfn.IFNA(IF(INDEX(VLC!H:H,MATCH(501+ROW(A8)-1,VLC!V:V,0))="x",_xlfn.IFNA(INDEX(VLC!H:H,MATCH(501+ROW(A8)-1,VLC!V:V,0)),""),""),"") ->  | G113: =_xlfn.IFNA(IF(INDEX(VLC!H:H,MATCH(541+ROW(A8)-1,VLC!V:V,0))="x",_xlfn.IFNA(INDEX(VLC!H:H,MATCH(541+ROW(A8)-1,VLC!V:V,0)),""),""),"") ->  | H113: =_xlfn.IFNA(IF(INDEX(VLC!I:I,MATCH(501+ROW(A8)-1,VLC!V:V,0))<>"",_xlfn.IFNA(INDEX(VLC!I:I,MATCH(501+ROW(A8)-1,VLC!V:V,0)),""),""),"") ->  | I113: =_xlfn.IFNA(IF(INDEX(VLC!I:I,MATCH(541+ROW(A8)-1,VLC!V:V,0))<>"",_xlfn.IFNA(INDEX(VLC!I:I,MATCH(541+ROW(A8)-1,VLC!V:V,0)),""),""),"") ->  | J113: =_xlfn.IFNA(IF(INDEX(VLC!J:J,MATCH(501+ROW(A8)-1,VLC!V:V,0))="x",_xlfn.IFNA(INDEX(VLC!J:J,MATCH(501+ROW(A8)-1,VLC!V:V,0)),""),""),"") ->  | K113: =_xlfn.IFNA(IF(INDEX(VLC!J:J,MATCH(541+ROW(A8)-1,VLC!V:V,0))="x",_xlfn.IFNA(INDEX(VLC!J:J,MATCH(541+ROW(A8)-1,VLC!V:V,0)),""),""),"") ->  | L113: 5008 | M113: 5048
A114: SK Teilnehmer 9 | B114: =_xlfn.IFNA(INDEX(VLC!A:A,MATCH(509,VLC!V:V,0)),"") ->  | C114: =_xlfn.IFNA(INDEX(VLC!A:A,MATCH(549,VLC!V:V,0)),"") ->  | D114: =_xlfn.IFNA(INDEX(VLC!B:B,MATCH(501+ROW(A9)-1,VLC!V:V,0)),"") ->  | E114: =_xlfn.IFNA(INDEX(VLC!C:C,MATCH(501+ROW(A9)-1,VLC!V:V,0)),"") ->  | F114: =_xlfn.IFNA(IF(INDEX(VLC!H:H,MATCH(501+ROW(A9)-1,VLC!V:V,0))="x",_xlfn.IFNA(INDEX(VLC!H:H,MATCH(501+ROW(A9)-1,VLC!V:V,0)),""),""),"") ->  | G114: =_xlfn.IFNA(IF(INDEX(VLC!H:H,MATCH(541+ROW(A9)-1,VLC!V:V,0))="x",_xlfn.IFNA(INDEX(VLC!H:H,MATCH(541+ROW(A9)-1,VLC!V:V,0)),""),""),"") ->  | H114: =_xlfn.IFNA(IF(INDEX(VLC!I:I,MATCH(501+ROW(A9)-1,VLC!V:V,0))<>"",_xlfn.IFNA(INDEX(VLC!I:I,MATCH(501+ROW(A9)-1,VLC!V:V,0)),""),""),"") ->  | I114: =_xlfn.IFNA(IF(INDEX(VLC!I:I,MATCH(541+ROW(A9)-1,VLC!V:V,0))<>"",_xlfn.IFNA(INDEX(VLC!I:I,MATCH(541+ROW(A9)-1,VLC!V:V,0)),""),""),"") ->  | J114: =_xlfn.IFNA(IF(INDEX(VLC!J:J,MATCH(501+ROW(A9)-1,VLC!V:V,0))="x",_xlfn.IFNA(INDEX(VLC!J:J,MATCH(501+ROW(A9)-1,VLC!V:V,0)),""),""),"") ->  | K114: =_xlfn.IFNA(IF(INDEX(VLC!J:J,MATCH(541+ROW(A9)-1,VLC!V:V,0))="x",_xlfn.IFNA(INDEX(VLC!J:J,MATCH(541+ROW(A9)-1,VLC!V:V,0)),""),""),"") ->  | L114: 5009 | M114: 5049
A115: SK Teilnehmer 10 | B115: =_xlfn.IFNA(INDEX(VLC!A:A,MATCH(510,VLC!V:V,0)),"") ->  | C115: =_xlfn.IFNA(INDEX(VLC!A:A,MATCH(550,VLC!V:V,0)),"") ->  | D115: =_xlfn.IFNA(INDEX(VLC!B:B,MATCH(501+ROW(A10)-1,VLC!V:V,0)),"") ->  | E115: =_xlfn.IFNA(INDEX(VLC!C:C,MATCH(501+ROW(A10)-1,VLC!V:V,0)),"") ->  | F115: =_xlfn.IFNA(IF(INDEX(VLC!H:H,MATCH(501+ROW(A10)-1,VLC!V:V,0))="x",_xlfn.IFNA(INDEX(VLC!H:H,MATCH(501+ROW(A10)-1,VLC!V:V,0)),""),""),"") ->  | G115: =_xlfn.IFNA(IF(INDEX(VLC!H:H,MATCH(541+ROW(A10)-1,VLC!V:V,0))="x",_xlfn.IFNA(INDEX(VLC!H:H,MATCH(541+ROW(A10)-1,VLC!V:V,0)),""),""),"") ->  | H115: =_xlfn.IFNA(IF(INDEX(VLC!I:I,MATCH(501+ROW(A10)-1,VLC!V:V,0))<>"",_xlfn.IFNA(INDEX(VLC!I:I,MATCH(501+ROW(A10)-1,VLC!V:V,0)),""),""),"") ->  | I115: =_xlfn.IFNA(IF(INDEX(VLC!I:I,MATCH(541+ROW(A10)-1,VLC!V:V,0))<>"",_xlfn.IFNA(INDEX(VLC!I:I,MATCH(541+ROW(A10)-1,VLC!V:V,0)),""),""),"") ->  | J115: =_xlfn.IFNA(IF(INDEX(VLC!J:J,MATCH(501+ROW(A10)-1,VLC!V:V,0))="x",_xlfn.IFNA(INDEX(VLC!J:J,MATCH(501+ROW(A10)-1,VLC!V:V,0)),""),""),"") ->  | K115: =_xlfn.IFNA(IF(INDEX(VLC!J:J,MATCH(541+ROW(A10)-1,VLC!V:V,0))="x",_xlfn.IFNA(INDEX(VLC!J:J,MATCH(541+ROW(A10)-1,VLC!V:V,0)),""),""),"") ->  | L115: 5010 | M115: 5050
A116: SK Teilnehmer 11 | B116: =_xlfn.IFNA(INDEX(VLC!A:A,MATCH(511,VLC!V:V,0)),"") ->  | C116: =_xlfn.IFNA(INDEX(VLC!A:A,MATCH(551,VLC!V:V,0)),"") ->  | D116: =_xlfn.IFNA(INDEX(VLC!B:B,MATCH(501+ROW(A11)-1,VLC!V:V,0)),"") ->  | E116: =_xlfn.IFNA(INDEX(VLC!C:C,MATCH(501+ROW(A11)-1,VLC!V:V,0)),"") ->  | F116: =_xlfn.IFNA(IF(INDEX(VLC!H:H,MATCH(501+ROW(A11)-1,VLC!V:V,0))="x",_xlfn.IFNA(INDEX(VLC!H:H,MATCH(501+ROW(A11)-1,VLC!V:V,0)),""),""),"") ->  | G116: =_xlfn.IFNA(IF(INDEX(VLC!H:H,MATCH(541+ROW(A11)-1,VLC!V:V,0))="x",_xlfn.IFNA(INDEX(VLC!H:H,MATCH(541+ROW(A11)-1,VLC!V:V,0)),""),""),"") ->  | H116: =_xlfn.IFNA(IF(INDEX(VLC!I:I,MATCH(501+ROW(A11)-1,VLC!V:V,0))<>"",_xlfn.IFNA(INDEX(VLC!I:I,MATCH(501+ROW(A11)-1,VLC!V:V,0)),""),""),"") ->  | I116: =_xlfn.IFNA(IF(INDEX(VLC!I:I,MATCH(541+ROW(A11)-1,VLC!V:V,0))<>"",_xlfn.IFNA(INDEX(VLC!I:I,MATCH(541+ROW(A11)-1,VLC!V:V,0)),""),""),"") ->  | J116: =_xlfn.IFNA(IF(INDEX(VLC!J:J,MATCH(501+ROW(A11)-1,VLC!V:V,0))="x",_xlfn.IFNA(INDEX(VLC!J:J,MATCH(501+ROW(A11)-1,VLC!V:V,0)),""),""),"") ->  | K116: =_xlfn.IFNA(IF(INDEX(VLC!J:J,MATCH(541+ROW(A11)-1,VLC!V:V,0))="x",_xlfn.IFNA(INDEX(VLC!J:J,MATCH(541+ROW(A11)-1,VLC!V:V,0)),""),""),"") ->  | L116: 5011 | M116: 5051
A117: SK Teilnehmer 12 | B117: =_xlfn.IFNA(INDEX(VLC!A:A,MATCH(512,VLC!V:V,0)),"") ->  | C117: =_xlfn.IFNA(INDEX(VLC!A:A,MATCH(552,VLC!V:V,0)),"") ->  | D117: =_xlfn.IFNA(INDEX(VLC!B:B,MATCH(501+ROW(A12)-1,VLC!V:V,0)),"") ->  | E117: =_xlfn.IFNA(INDEX(VLC!C:C,MATCH(501+ROW(A12)-1,VLC!V:V,0)),"") ->  | F117: =_xlfn.IFNA(IF(INDEX(VLC!H:H,MATCH(501+ROW(A12)-1,VLC!V:V,0))="x",_xlfn.IFNA(INDEX(VLC!H:H,MATCH(501+ROW(A12)-1,VLC!V:V,0)),""),""),"") ->  | G117: =_xlfn.IFNA(IF(INDEX(VLC!H:H,MATCH(541+ROW(A12)-1,VLC!V:V,0))="x",_xlfn.IFNA(INDEX(VLC!H:H,MATCH(541+ROW(A12)-1,VLC!V:V,0)),""),""),"") ->  | H117: =_xlfn.IFNA(IF(INDEX(VLC!I:I,MATCH(501+ROW(A12)-1,VLC!V:V,0))<>"",_xlfn.IFNA(INDEX(VLC!I:I,MATCH(501+ROW(A12)-1,VLC!V:V,0)),""),""),"") ->  | I117: =_xlfn.IFNA(IF(INDEX(VLC!I:I,MATCH(541+ROW(A12)-1,VLC!V:V,0))<>"",_xlfn.IFNA(INDEX(VLC!I:I,MATCH(541+ROW(A12)-1,VLC!V:V,0)),""),""),"") ->  | J117: =_xlfn.IFNA(IF(INDEX(VLC!J:J,MATCH(501+ROW(A12)-1,VLC!V:V,0))="x",_xlfn.IFNA(INDEX(VLC!J:J,MATCH(501+ROW(A12)-1,VLC!V:V,0)),""),""),"") ->  | K117: =_xlfn.IFNA(IF(INDEX(VLC!J:J,MATCH(541+ROW(A12)-1,VLC!V:V,0))="x",_xlfn.IFNA(INDEX(VLC!J:J,MATCH(541+ROW(A12)-1,VLC!V:V,0)),""),""),"") ->  | L117: 5012 | M117: 5052
A118: SK Teilnehmer 13 | B118: =_xlfn.IFNA(INDEX(VLC!A:A,MATCH(513,VLC!V:V,0)),"") ->  | C118: =_xlfn.IFNA(INDEX(VLC!A:A,MATCH(553,VLC!V:V,0)),"") ->  | D118: =_xlfn.IFNA(INDEX(VLC!B:B,MATCH(501+ROW(A13)-1,VLC!V:V,0)),"") ->  | E118: =_xlfn.IFNA(INDEX(VLC!C:C,MATCH(501+ROW(A13)-1,VLC!V:V,0)),"") ->  | F118: =_xlfn.IFNA(IF(INDEX(VLC!H:H,MATCH(501+ROW(A13)-1,VLC!V:V,0))="x",_xlfn.IFNA(INDEX(VLC!H:H,MATCH(501+ROW(A13)-1,VLC!V:V,0)),""),""),"") ->  | G118: =_xlfn.IFNA(IF(INDEX(VLC!H:H,MATCH(541+ROW(A13)-1,VLC!V:V,0))="x",_xlfn.IFNA(INDEX(VLC!H:H,MATCH(541+ROW(A13)-1,VLC!V:V,0)),""),""),"") ->  | H118: =_xlfn.IFNA(IF(INDEX(VLC!I:I,MATCH(501+ROW(A13)-1,VLC!V:V,0))<>"",_xlfn.IFNA(INDEX(VLC!I:I,MATCH(501+ROW(A13)-1,VLC!V:V,0)),""),""),"") ->  | I118: =_xlfn.IFNA(IF(INDEX(VLC!I:I,MATCH(541+ROW(A13)-1,VLC!V:V,0))<>"",_xlfn.IFNA(INDEX(VLC!I:I,MATCH(541+ROW(A13)-1,VLC!V:V,0)),""),""),"") ->  | J118: =_xlfn.IFNA(IF(INDEX(VLC!J:J,MATCH(501+ROW(A13)-1,VLC!V:V,0))="x",_xlfn.IFNA(INDEX(VLC!J:J,MATCH(501+ROW(A13)-1,VLC!V:V,0)),""),""),"") ->  | K118: =_xlfn.IFNA(IF(INDEX(VLC!J:J,MATCH(541+ROW(A13)-1,VLC!V:V,0))="x",_xlfn.IFNA(INDEX(VLC!J:J,MATCH(541+ROW(A13)-1,VLC!V:V,0)),""),""),"") ->  | L118: 5013 | M118: 5053
A119: SK Teilnehmer 14 | B119: =_xlfn.IFNA(INDEX(VLC!A:A,MATCH(514,VLC!V:V,0)),"") ->  | C119: =_xlfn.IFNA(INDEX(VLC!A:A,MATCH(554,VLC!V:V,0)),"") ->  | D119: =_xlfn.IFNA(INDEX(VLC!B:B,MATCH(501+ROW(A14)-1,VLC!V:V,0)),"") ->  | E119: =_xlfn.IFNA(INDEX(VLC!C:C,MATCH(501+ROW(A14)-1,VLC!V:V,0)),"") ->  | F119: =_xlfn.IFNA(IF(INDEX(VLC!H:H,MATCH(501+ROW(A14)-1,VLC!V:V,0))="x",_xlfn.IFNA(INDEX(VLC!H:H,MATCH(501+ROW(A14)-1,VLC!V:V,0)),""),""),"") ->  | G119: =_xlfn.IFNA(IF(INDEX(VLC!H:H,MATCH(541+ROW(A14)-1,VLC!V:V,0))="x",_xlfn.IFNA(INDEX(VLC!H:H,MATCH(541+ROW(A14)-1,VLC!V:V,0)),""),""),"") ->  | H119: =_xlfn.IFNA(IF(INDEX(VLC!I:I,MATCH(501+ROW(A14)-1,VLC!V:V,0))<>"",_xlfn.IFNA(INDEX(VLC!I:I,MATCH(501+ROW(A14)-1,VLC!V:V,0)),""),""),"") ->  | I119: =_xlfn.IFNA(IF(INDEX(VLC!I:I,MATCH(541+ROW(A14)-1,VLC!V:V,0))<>"",_xlfn.IFNA(INDEX(VLC!I:I,MATCH(541+ROW(A14)-1,VLC!V:V,0)),""),""),"") ->  | J119: =_xlfn.IFNA(IF(INDEX(VLC!J:J,MATCH(501+ROW(A14)-1,VLC!V:V,0))="x",_xlfn.IFNA(INDEX(VLC!J:J,MATCH(501+ROW(A14)-1,VLC!V:V,0)),""),""),"") ->  | K119: =_xlfn.IFNA(IF(INDEX(VLC!J:J,MATCH(541+ROW(A14)-1,VLC!V:V,0))="x",_xlfn.IFNA(INDEX(VLC!J:J,MATCH(541+ROW(A14)-1,VLC!V:V,0)),""),""),"") ->  | L119: 5014 | M119: 5054
A120: SK Teilnehmer 15 | B120: =_xlfn.IFNA(INDEX(VLC!A:A,MATCH(515,VLC!V:V,0)),"") ->  | C120: =_xlfn.IFNA(INDEX(VLC!A:A,MATCH(555,VLC!V:V,0)),"") ->  | D120: =_xlfn.IFNA(INDEX(VLC!B:B,MATCH(501+ROW(A15)-1,VLC!V:V,0)),"") ->  | E120: =_xlfn.IFNA(INDEX(VLC!C:C,MATCH(501+ROW(A15)-1,VLC!V:V,0)),"") ->  | F120: =_xlfn.IFNA(IF(INDEX(VLC!H:H,MATCH(501+ROW(A15)-1,VLC!V:V,0))="x",_xlfn.IFNA(INDEX(VLC!H:H,MATCH(501+ROW(A15)-1,VLC!V:V,0)),""),""),"") ->  | G120: =_xlfn.IFNA(IF(INDEX(VLC!H:H,MATCH(541+ROW(A15)-1,VLC!V:V,0))="x",_xlfn.IFNA(INDEX(VLC!H:H,MATCH(541+ROW(A15)-1,VLC!V:V,0)),""),""),"") ->  | H120: =_xlfn.IFNA(IF(INDEX(VLC!I:I,MATCH(501+ROW(A15)-1,VLC!V:V,0))<>"",_xlfn.IFNA(INDEX(VLC!I:I,MATCH(501+ROW(A15)-1,VLC!V:V,0)),""),""),"") ->  | I120: =_xlfn.IFNA(IF(INDEX(VLC!I:I,MATCH(541+ROW(A15)-1,VLC!V:V,0))<>"",_xlfn.IFNA(INDEX(VLC!I:I,MATCH(541+ROW(A15)-1,VLC!V:V,0)),""),""),"") ->  | J120: =_xlfn.IFNA(IF(INDEX(VLC!J:J,MATCH(501+ROW(A15)-1,VLC!V:V,0))="x",_xlfn.IFNA(INDEX(VLC!J:J,MATCH(501+ROW(A15)-1,VLC!V:V,0)),""),""),"") ->  | K120: =_xlfn.IFNA(IF(INDEX(VLC!J:J,MATCH(541+ROW(A15)-1,VLC!V:V,0))="x",_xlfn.IFNA(INDEX(VLC!J:J,MATCH(541+ROW(A15)-1,VLC!V:V,0)),""),""),"") ->  | L120: 5015 | M120: 5055
A121: SK Teilnehmer 16 | B121: =_xlfn.IFNA(INDEX(VLC!A:A,MATCH(516,VLC!V:V,0)),"") ->  | C121: =_xlfn.IFNA(INDEX(VLC!A:A,MATCH(556,VLC!V:V,0)),"") ->  | D121: =_xlfn.IFNA(INDEX(VLC!B:B,MATCH(501+ROW(A16)-1,VLC!V:V,0)),"") ->  | E121: =_xlfn.IFNA(INDEX(VLC!C:C,MATCH(501+ROW(A16)-1,VLC!V:V,0)),"") ->  | F121: =_xlfn.IFNA(IF(INDEX(VLC!H:H,MATCH(501+ROW(A16)-1,VLC!V:V,0))="x",_xlfn.IFNA(INDEX(VLC!H:H,MATCH(501+ROW(A16)-1,VLC!V:V,0)),""),""),"") ->  | G121: =_xlfn.IFNA(IF(INDEX(VLC!H:H,MATCH(541+ROW(A16)-1,VLC!V:V,0))="x",_xlfn.IFNA(INDEX(VLC!H:H,MATCH(541+ROW(A16)-1,VLC!V:V,0)),""),""),"") ->  | H121: =_xlfn.IFNA(IF(INDEX(VLC!I:I,MATCH(501+ROW(A16)-1,VLC!V:V,0))<>"",_xlfn.IFNA(INDEX(VLC!I:I,MATCH(501+ROW(A16)-1,VLC!V:V,0)),""),""),"") ->  | I121: =_xlfn.IFNA(IF(INDEX(VLC!I:I,MATCH(541+ROW(A16)-1,VLC!V:V,0))<>"",_xlfn.IFNA(INDEX(VLC!I:I,MATCH(541+ROW(A16)-1,VLC!V:V,0)),""),""),"") ->  | J121: =_xlfn.IFNA(IF(INDEX(VLC!J:J,MATCH(501+ROW(A16)-1,VLC!V:V,0))="x",_xlfn.IFNA(INDEX(VLC!J:J,MATCH(501+ROW(A16)-1,VLC!V:V,0)),""),""),"") ->  | K121: =_xlfn.IFNA(IF(INDEX(VLC!J:J,MATCH(541+ROW(A16)-1,VLC!V:V,0))="x",_xlfn.IFNA(INDEX(VLC!J:J,MATCH(541+ROW(A16)-1,VLC!V:V,0)),""),""),"") ->  | L121: 5016 | M121: 5056
A122: SK Teilnehmer 17 | B122: =_xlfn.IFNA(INDEX(VLC!A:A,MATCH(517,VLC!V:V,0)),"") ->  | C122: =_xlfn.IFNA(INDEX(VLC!A:A,MATCH(557,VLC!V:V,0)),"") ->  | D122: =_xlfn.IFNA(INDEX(VLC!B:B,MATCH(501+ROW(A17)-1,VLC!V:V,0)),"") ->  | E122: =_xlfn.IFNA(INDEX(VLC!C:C,MATCH(501+ROW(A17)-1,VLC!V:V,0)),"") ->  | F122: =_xlfn.IFNA(IF(INDEX(VLC!H:H,MATCH(501+ROW(A17)-1,VLC!V:V,0))="x",_xlfn.IFNA(INDEX(VLC!H:H,MATCH(501+ROW(A17)-1,VLC!V:V,0)),""),""),"") ->  | G122: =_xlfn.IFNA(IF(INDEX(VLC!H:H,MATCH(541+ROW(A17)-1,VLC!V:V,0))="x",_xlfn.IFNA(INDEX(VLC!H:H,MATCH(541+ROW(A17)-1,VLC!V:V,0)),""),""),"") ->  | H122: =_xlfn.IFNA(IF(INDEX(VLC!I:I,MATCH(501+ROW(A17)-1,VLC!V:V,0))<>"",_xlfn.IFNA(INDEX(VLC!I:I,MATCH(501+ROW(A17)-1,VLC!V:V,0)),""),""),"") ->  | I122: =_xlfn.IFNA(IF(INDEX(VLC!I:I,MATCH(541+ROW(A17)-1,VLC!V:V,0))<>"",_xlfn.IFNA(INDEX(VLC!I:I,MATCH(541+ROW(A17)-1,VLC!V:V,0)),""),""),"") ->  | J122: =_xlfn.IFNA(IF(INDEX(VLC!J:J,MATCH(501+ROW(A17)-1,VLC!V:V,0))="x",_xlfn.IFNA(INDEX(VLC!J:J,MATCH(501+ROW(A17)-1,VLC!V:V,0)),""),""),"") ->  | K122: =_xlfn.IFNA(IF(INDEX(VLC!J:J,MATCH(541+ROW(A17)-1,VLC!V:V,0))="x",_xlfn.IFNA(INDEX(VLC!J:J,MATCH(541+ROW(A17)-1,VLC!V:V,0)),""),""),"") ->  | L122: 5017 | M122: 5057
A123: SK Teilnehmer 18 | B123: =_xlfn.IFNA(INDEX(VLC!A:A,MATCH(518,VLC!V:V,0)),"") ->  | C123: =_xlfn.IFNA(INDEX(VLC!A:A,MATCH(558,VLC!V:V,0)),"") ->  | D123: =_xlfn.IFNA(INDEX(VLC!B:B,MATCH(501+ROW(A18)-1,VLC!V:V,0)),"") ->  | E123: =_xlfn.IFNA(INDEX(VLC!C:C,MATCH(501+ROW(A18)-1,VLC!V:V,0)),"") ->  | F123: =_xlfn.IFNA(IF(INDEX(VLC!H:H,MATCH(501+ROW(A18)-1,VLC!V:V,0))="x",_xlfn.IFNA(INDEX(VLC!H:H,MATCH(501+ROW(A18)-1,VLC!V:V,0)),""),""),"") ->  | G123: =_xlfn.IFNA(IF(INDEX(VLC!H:H,MATCH(541+ROW(A18)-1,VLC!V:V,0))="x",_xlfn.IFNA(INDEX(VLC!H:H,MATCH(541+ROW(A18)-1,VLC!V:V,0)),""),""),"") ->  | H123: =_xlfn.IFNA(IF(INDEX(VLC!I:I,MATCH(501+ROW(A18)-1,VLC!V:V,0))<>"",_xlfn.IFNA(INDEX(VLC!I:I,MATCH(501+ROW(A18)-1,VLC!V:V,0)),""),""),"") ->  | I123: =_xlfn.IFNA(IF(INDEX(VLC!I:I,MATCH(541+ROW(A18)-1,VLC!V:V,0))<>"",_xlfn.IFNA(INDEX(VLC!I:I,MATCH(541+ROW(A18)-1,VLC!V:V,0)),""),""),"") ->  | J123: =_xlfn.IFNA(IF(INDEX(VLC!J:J,MATCH(501+ROW(A18)-1,VLC!V:V,0))="x",_xlfn.IFNA(INDEX(VLC!J:J,MATCH(501+ROW(A18)-1,VLC!V:V,0)),""),""),"") ->  | K123: =_xlfn.IFNA(IF(INDEX(VLC!J:J,MATCH(541+ROW(A18)-1,VLC!V:V,0))="x",_xlfn.IFNA(INDEX(VLC!J:J,MATCH(541+ROW(A18)-1,VLC!V:V,0)),""),""),"") ->  | L123: 5018 | M123: 5058
A124: SK Teilnehmer 19 | B124: =_xlfn.IFNA(INDEX(VLC!A:A,MATCH(519,VLC!V:V,0)),"") ->  | C124: =_xlfn.IFNA(INDEX(VLC!A:A,MATCH(559,VLC!V:V,0)),"") ->  | D124: =_xlfn.IFNA(INDEX(VLC!B:B,MATCH(501+ROW(A19)-1,VLC!V:V,0)),"") ->  | E124: =_xlfn.IFNA(INDEX(VLC!C:C,MATCH(501+ROW(A19)-1,VLC!V:V,0)),"") ->  | F124: =_xlfn.IFNA(IF(INDEX(VLC!H:H,MATCH(501+ROW(A19)-1,VLC!V:V,0))="x",_xlfn.IFNA(INDEX(VLC!H:H,MATCH(501+ROW(A19)-1,VLC!V:V,0)),""),""),"") ->  | G124: =_xlfn.IFNA(IF(INDEX(VLC!H:H,MATCH(541+ROW(A19)-1,VLC!V:V,0))="x",_xlfn.IFNA(INDEX(VLC!H:H,MATCH(541+ROW(A19)-1,VLC!V:V,0)),""),""),"") ->  | H124: =_xlfn.IFNA(IF(INDEX(VLC!I:I,MATCH(501+ROW(A19)-1,VLC!V:V,0))<>"",_xlfn.IFNA(INDEX(VLC!I:I,MATCH(501+ROW(A19)-1,VLC!V:V,0)),""),""),"") ->  | I124: =_xlfn.IFNA(IF(INDEX(VLC!I:I,MATCH(541+ROW(A19)-1,VLC!V:V,0))<>"",_xlfn.IFNA(INDEX(VLC!I:I,MATCH(541+ROW(A19)-1,VLC!V:V,0)),""),""),"") ->  | J124: =_xlfn.IFNA(IF(INDEX(VLC!J:J,MATCH(501+ROW(A19)-1,VLC!V:V,0))="x",_xlfn.IFNA(INDEX(VLC!J:J,MATCH(501+ROW(A19)-1,VLC!V:V,0)),""),""),"") ->  | K124: =_xlfn.IFNA(IF(INDEX(VLC!J:J,MATCH(541+ROW(A19)-1,VLC!V:V,0))="x",_xlfn.IFNA(INDEX(VLC!J:J,MATCH(541+ROW(A19)-1,VLC!V:V,0)),""),""),"") ->  | L124: 5019 | M124: 5059
A125: SK Teilnehmer 20 | B125: =_xlfn.IFNA(INDEX(VLC!A:A,MATCH(520,VLC!V:V,0)),"") ->  | C125: =_xlfn.IFNA(INDEX(VLC!A:A,MATCH(560,VLC!V:V,0)),"") ->  | D125: =_xlfn.IFNA(INDEX(VLC!B:B,MATCH(501+ROW(A20)-1,VLC!V:V,0)),"") ->  | E125: =_xlfn.IFNA(INDEX(VLC!C:C,MATCH(501+ROW(A20)-1,VLC!V:V,0)),"") ->  | F125: =_xlfn.IFNA(IF(INDEX(VLC!H:H,MATCH(501+ROW(A20)-1,VLC!V:V,0))="x",_xlfn.IFNA(INDEX(VLC!H:H,MATCH(501+ROW(A20)-1,VLC!V:V,0)),""),""),"") ->  | G125: =_xlfn.IFNA(IF(INDEX(VLC!H:H,MATCH(541+ROW(A20)-1,VLC!V:V,0))="x",_xlfn.IFNA(INDEX(VLC!H:H,MATCH(541+ROW(A20)-1,VLC!V:V,0)),""),""),"") ->  | H125: =_xlfn.IFNA(IF(INDEX(VLC!I:I,MATCH(501+ROW(A20)-1,VLC!V:V,0))<>"",_xlfn.IFNA(INDEX(VLC!I:I,MATCH(501+ROW(A20)-1,VLC!V:V,0)),""),""),"") ->  | I125: =_xlfn.IFNA(IF(INDEX(VLC!I:I,MATCH(541+ROW(A20)-1,VLC!V:V,0))<>"",_xlfn.IFNA(INDEX(VLC!I:I,MATCH(541+ROW(A20)-1,VLC!V:V,0)),""),""),"") ->  | J125: =_xlfn.IFNA(IF(INDEX(VLC!J:J,MATCH(501+ROW(A20)-1,VLC!V:V,0))="x",_xlfn.IFNA(INDEX(VLC!J:J,MATCH(501+ROW(A20)-1,VLC!V:V,0)),""),""),"") ->  | K125: =_xlfn.IFNA(IF(INDEX(VLC!J:J,MATCH(541+ROW(A20)-1,VLC!V:V,0))="x",_xlfn.IFNA(INDEX(VLC!J:J,MATCH(541+ROW(A20)-1,VLC!V:V,0)),""),""),"") ->  | L125: 5020 | M125: 5060
A126: Gerätename: | B126: =$B$6 -> 0 | E126: PLC24 Stromkreis-Nummer: 6
A127: Stromkreis-Bezeichnung:
A128: Stromkreisbelegung | B128: ID 1 | C128: ID 2 | D128: Bezeichnung | E128: Zusatzinfo | F128: DL | H128: GL | J128: BL
F129: ID1 | G129: ID2 | H129: ID1 | I129: ID2 | J129: ID1 | K129: ID2
A130: SK Teilnehmer 1 | B130: =_xlfn.IFNA(INDEX(VLC!A:A,MATCH(601,VLC!V:V,0)),"") ->  | C130: =_xlfn.IFNA(INDEX(VLC!A:A,MATCH(641,VLC!V:V,0)),"") ->  | D130: =_xlfn.IFNA(INDEX(VLC!B:B,MATCH(601+ROW(A1)-1,VLC!V:V,0)),"") ->  | E130: =_xlfn.IFNA(INDEX(VLC!C:C,MATCH(601+ROW(A1)-1,VLC!V:V,0)),"") ->  | F130: =_xlfn.IFNA(IF(INDEX(VLC!H:H,MATCH(601+ROW(A1)-1,VLC!V:V,0))="x",_xlfn.IFNA(INDEX(VLC!H:H,MATCH(601+ROW(A1)-1,VLC!V:V,0)),""),""),"") ->  | G130: =_xlfn.IFNA(IF(INDEX(VLC!H:H,MATCH(641+ROW(A1)-1,VLC!V:V,0))="x",_xlfn.IFNA(INDEX(VLC!H:H,MATCH(641+ROW(A1)-1,VLC!V:V,0)),""),""),"") ->  | H130: =_xlfn.IFNA(IF(INDEX(VLC!I:I,MATCH(601+ROW(A1)-1,VLC!V:V,0))<>"",_xlfn.IFNA(INDEX(VLC!I:I,MATCH(601+ROW(A1)-1,VLC!V:V,0)),""),""),"") ->  | I130: =_xlfn.IFNA(IF(INDEX(VLC!I:I,MATCH(641+ROW(A1)-1,VLC!V:V,0))<>"",_xlfn.IFNA(INDEX(VLC!I:I,MATCH(641+ROW(A1)-1,VLC!V:V,0)),""),""),"") ->  | J130: =_xlfn.IFNA(IF(INDEX(VLC!J:J,MATCH(601+ROW(A1)-1,VLC!V:V,0))="x",_xlfn.IFNA(INDEX(VLC!J:J,MATCH(601+ROW(A1)-1,VLC!V:V,0)),""),""),"") ->  | K130: =_xlfn.IFNA(IF(INDEX(VLC!J:J,MATCH(641+ROW(A1)-1,VLC!V:V,0))="x",_xlfn.IFNA(INDEX(VLC!J:J,MATCH(641+ROW(A1)-1,VLC!V:V,0)),""),""),"") ->  | L130: =6000+ROW(A130)-129 -> 6001 | M130: =L130+40 -> 6041
A131: SK Teilnehmer 2 | B131: =_xlfn.IFNA(INDEX(VLC!A:A,MATCH(602,VLC!V:V,0)),"") ->  | C131: =_xlfn.IFNA(INDEX(VLC!A:A,MATCH(642,VLC!V:V,0)),"") ->  | D131: =_xlfn.IFNA(INDEX(VLC!B:B,MATCH(601+ROW(A2)-1,VLC!V:V,0)),"") ->  | E131: =_xlfn.IFNA(INDEX(VLC!C:C,MATCH(601+ROW(A2)-1,VLC!V:V,0)),"") ->  | F131: =_xlfn.IFNA(IF(INDEX(VLC!H:H,MATCH(601+ROW(A2)-1,VLC!V:V,0))="x",_xlfn.IFNA(INDEX(VLC!H:H,MATCH(601+ROW(A2)-1,VLC!V:V,0)),""),""),"") ->  | G131: =_xlfn.IFNA(IF(INDEX(VLC!H:H,MATCH(641+ROW(A2)-1,VLC!V:V,0))="x",_xlfn.IFNA(INDEX(VLC!H:H,MATCH(641+ROW(A2)-1,VLC!V:V,0)),""),""),"") ->  | H131: =_xlfn.IFNA(IF(INDEX(VLC!I:I,MATCH(601+ROW(A2)-1,VLC!V:V,0))<>"",_xlfn.IFNA(INDEX(VLC!I:I,MATCH(601+ROW(A2)-1,VLC!V:V,0)),""),""),"") ->  | I131: =_xlfn.IFNA(IF(INDEX(VLC!I:I,MATCH(641+ROW(A2)-1,VLC!V:V,0))<>"",_xlfn.IFNA(INDEX(VLC!I:I,MATCH(641+ROW(A2)-1,VLC!V:V,0)),""),""),"") ->  | J131: =_xlfn.IFNA(IF(INDEX(VLC!J:J,MATCH(601+ROW(A2)-1,VLC!V:V,0))="x",_xlfn.IFNA(INDEX(VLC!J:J,MATCH(601+ROW(A2)-1,VLC!V:V,0)),""),""),"") ->  | K131: =_xlfn.IFNA(IF(INDEX(VLC!J:J,MATCH(641+ROW(A2)-1,VLC!V:V,0))="x",_xlfn.IFNA(INDEX(VLC!J:J,MATCH(641+ROW(A2)-1,VLC!V:V,0)),""),""),"") ->  | L131: =6000+ROW(A131)-129 -> 6002 | M131: =L131+40 -> 6042
A132: SK Teilnehmer 3 | B132: =_xlfn.IFNA(INDEX(VLC!A:A,MATCH(603,VLC!V:V,0)),"") ->  | C132: =_xlfn.IFNA(INDEX(VLC!A:A,MATCH(643,VLC!V:V,0)),"") ->  | D132: =_xlfn.IFNA(INDEX(VLC!B:B,MATCH(601+ROW(A3)-1,VLC!V:V,0)),"") ->  | E132: =_xlfn.IFNA(INDEX(VLC!C:C,MATCH(601+ROW(A3)-1,VLC!V:V,0)),"") ->  | F132: =_xlfn.IFNA(IF(INDEX(VLC!H:H,MATCH(601+ROW(A3)-1,VLC!V:V,0))="x",_xlfn.IFNA(INDEX(VLC!H:H,MATCH(601+ROW(A3)-1,VLC!V:V,0)),""),""),"") ->  | G132: =_xlfn.IFNA(IF(INDEX(VLC!H:H,MATCH(641+ROW(A3)-1,VLC!V:V,0))="x",_xlfn.IFNA(INDEX(VLC!H:H,MATCH(641+ROW(A3)-1,VLC!V:V,0)),""),""),"") ->  | H132: =_xlfn.IFNA(IF(INDEX(VLC!I:I,MATCH(601+ROW(A3)-1,VLC!V:V,0))<>"",_xlfn.IFNA(INDEX(VLC!I:I,MATCH(601+ROW(A3)-1,VLC!V:V,0)),""),""),"") ->  | I132: =_xlfn.IFNA(IF(INDEX(VLC!I:I,MATCH(641+ROW(A3)-1,VLC!V:V,0))<>"",_xlfn.IFNA(INDEX(VLC!I:I,MATCH(641+ROW(A3)-1,VLC!V:V,0)),""),""),"") ->  | J132: =_xlfn.IFNA(IF(INDEX(VLC!J:J,MATCH(601+ROW(A3)-1,VLC!V:V,0))="x",_xlfn.IFNA(INDEX(VLC!J:J,MATCH(601+ROW(A3)-1,VLC!V:V,0)),""),""),"") ->  | K132: =_xlfn.IFNA(IF(INDEX(VLC!J:J,MATCH(641+ROW(A3)-1,VLC!V:V,0))="x",_xlfn.IFNA(INDEX(VLC!J:J,MATCH(641+ROW(A3)-1,VLC!V:V,0)),""),""),"") ->  | L132: 6003 | M132: 6043
A133: SK Teilnehmer 4 | B133: =_xlfn.IFNA(INDEX(VLC!A:A,MATCH(604,VLC!V:V,0)),"") ->  | C133: =_xlfn.IFNA(INDEX(VLC!A:A,MATCH(644,VLC!V:V,0)),"") ->  | D133: =_xlfn.IFNA(INDEX(VLC!B:B,MATCH(601+ROW(A4)-1,VLC!V:V,0)),"") ->  | E133: =_xlfn.IFNA(INDEX(VLC!C:C,MATCH(601+ROW(A4)-1,VLC!V:V,0)),"") ->  | F133: =_xlfn.IFNA(IF(INDEX(VLC!H:H,MATCH(601+ROW(A4)-1,VLC!V:V,0))="x",_xlfn.IFNA(INDEX(VLC!H:H,MATCH(601+ROW(A4)-1,VLC!V:V,0)),""),""),"") ->  | G133: =_xlfn.IFNA(IF(INDEX(VLC!H:H,MATCH(641+ROW(A4)-1,VLC!V:V,0))="x",_xlfn.IFNA(INDEX(VLC!H:H,MATCH(641+ROW(A4)-1,VLC!V:V,0)),""),""),"") ->  | H133: =_xlfn.IFNA(IF(INDEX(VLC!I:I,MATCH(601+ROW(A4)-1,VLC!V:V,0))<>"",_xlfn.IFNA(INDEX(VLC!I:I,MATCH(601+ROW(A4)-1,VLC!V:V,0)),""),""),"") ->  | I133: =_xlfn.IFNA(IF(INDEX(VLC!I:I,MATCH(641+ROW(A4)-1,VLC!V:V,0))<>"",_xlfn.IFNA(INDEX(VLC!I:I,MATCH(641+ROW(A4)-1,VLC!V:V,0)),""),""),"") ->  | J133: =_xlfn.IFNA(IF(INDEX(VLC!J:J,MATCH(601+ROW(A4)-1,VLC!V:V,0))="x",_xlfn.IFNA(INDEX(VLC!J:J,MATCH(601+ROW(A4)-1,VLC!V:V,0)),""),""),"") ->  | K133: =_xlfn.IFNA(IF(INDEX(VLC!J:J,MATCH(641+ROW(A4)-1,VLC!V:V,0))="x",_xlfn.IFNA(INDEX(VLC!J:J,MATCH(641+ROW(A4)-1,VLC!V:V,0)),""),""),"") ->  | L133: 6004 | M133: 6044
A134: SK Teilnehmer 5 | B134: =_xlfn.IFNA(INDEX(VLC!A:A,MATCH(605,VLC!V:V,0)),"") ->  | C134: =_xlfn.IFNA(INDEX(VLC!A:A,MATCH(645,VLC!V:V,0)),"") ->  | D134: =_xlfn.IFNA(INDEX(VLC!B:B,MATCH(601+ROW(A5)-1,VLC!V:V,0)),"") ->  | E134: =_xlfn.IFNA(INDEX(VLC!C:C,MATCH(601+ROW(A5)-1,VLC!V:V,0)),"") ->  | F134: =_xlfn.IFNA(IF(INDEX(VLC!H:H,MATCH(601+ROW(A5)-1,VLC!V:V,0))="x",_xlfn.IFNA(INDEX(VLC!H:H,MATCH(601+ROW(A5)-1,VLC!V:V,0)),""),""),"") ->  | G134: =_xlfn.IFNA(IF(INDEX(VLC!H:H,MATCH(641+ROW(A5)-1,VLC!V:V,0))="x",_xlfn.IFNA(INDEX(VLC!H:H,MATCH(641+ROW(A5)-1,VLC!V:V,0)),""),""),"") ->  | H134: =_xlfn.IFNA(IF(INDEX(VLC!I:I,MATCH(601+ROW(A5)-1,VLC!V:V,0))<>"",_xlfn.IFNA(INDEX(VLC!I:I,MATCH(601+ROW(A5)-1,VLC!V:V,0)),""),""),"") ->  | I134: =_xlfn.IFNA(IF(INDEX(VLC!I:I,MATCH(641+ROW(A5)-1,VLC!V:V,0))<>"",_xlfn.IFNA(INDEX(VLC!I:I,MATCH(641+ROW(A5)-1,VLC!V:V,0)),""),""),"") ->  | J134: =_xlfn.IFNA(IF(INDEX(VLC!J:J,MATCH(601+ROW(A5)-1,VLC!V:V,0))="x",_xlfn.IFNA(INDEX(VLC!J:J,MATCH(601+ROW(A5)-1,VLC!V:V,0)),""),""),"") ->  | K134: =_xlfn.IFNA(IF(INDEX(VLC!J:J,MATCH(641+ROW(A5)-1,VLC!V:V,0))="x",_xlfn.IFNA(INDEX(VLC!J:J,MATCH(641+ROW(A5)-1,VLC!V:V,0)),""),""),"") ->  | L134: 6005 | M134: 6045
A135: SK Teilnehmer 6 | B135: =_xlfn.IFNA(INDEX(VLC!A:A,MATCH(606,VLC!V:V,0)),"") ->  | C135: =_xlfn.IFNA(INDEX(VLC!A:A,MATCH(646,VLC!V:V,0)),"") ->  | D135: =_xlfn.IFNA(INDEX(VLC!B:B,MATCH(601+ROW(A6)-1,VLC!V:V,0)),"") ->  | E135: =_xlfn.IFNA(INDEX(VLC!C:C,MATCH(601+ROW(A6)-1,VLC!V:V,0)),"") ->  | F135: =_xlfn.IFNA(IF(INDEX(VLC!H:H,MATCH(601+ROW(A6)-1,VLC!V:V,0))="x",_xlfn.IFNA(INDEX(VLC!H:H,MATCH(601+ROW(A6)-1,VLC!V:V,0)),""),""),"") ->  | G135: =_xlfn.IFNA(IF(INDEX(VLC!H:H,MATCH(641+ROW(A6)-1,VLC!V:V,0))="x",_xlfn.IFNA(INDEX(VLC!H:H,MATCH(641+ROW(A6)-1,VLC!V:V,0)),""),""),"") ->  | H135: =_xlfn.IFNA(IF(INDEX(VLC!I:I,MATCH(601+ROW(A6)-1,VLC!V:V,0))<>"",_xlfn.IFNA(INDEX(VLC!I:I,MATCH(601+ROW(A6)-1,VLC!V:V,0)),""),""),"") ->  | I135: =_xlfn.IFNA(IF(INDEX(VLC!I:I,MATCH(641+ROW(A6)-1,VLC!V:V,0))<>"",_xlfn.IFNA(INDEX(VLC!I:I,MATCH(641+ROW(A6)-1,VLC!V:V,0)),""),""),"") ->  | J135: =_xlfn.IFNA(IF(INDEX(VLC!J:J,MATCH(601+ROW(A6)-1,VLC!V:V,0))="x",_xlfn.IFNA(INDEX(VLC!J:J,MATCH(601+ROW(A6)-1,VLC!V:V,0)),""),""),"") ->  | K135: =_xlfn.IFNA(IF(INDEX(VLC!J:J,MATCH(641+ROW(A6)-1,VLC!V:V,0))="x",_xlfn.IFNA(INDEX(VLC!J:J,MATCH(641+ROW(A6)-1,VLC!V:V,0)),""),""),"") ->  | L135: 6006 | M135: 6046
A136: SK Teilnehmer 7 | B136: =_xlfn.IFNA(INDEX(VLC!A:A,MATCH(607,VLC!V:V,0)),"") ->  | C136: =_xlfn.IFNA(INDEX(VLC!A:A,MATCH(647,VLC!V:V,0)),"") ->  | D136: =_xlfn.IFNA(INDEX(VLC!B:B,MATCH(601+ROW(A7)-1,VLC!V:V,0)),"") ->  | E136: =_xlfn.IFNA(INDEX(VLC!C:C,MATCH(601+ROW(A7)-1,VLC!V:V,0)),"") ->  | F136: =_xlfn.IFNA(IF(INDEX(VLC!H:H,MATCH(601+ROW(A7)-1,VLC!V:V,0))="x",_xlfn.IFNA(INDEX(VLC!H:H,MATCH(601+ROW(A7)-1,VLC!V:V,0)),""),""),"") ->  | G136: =_xlfn.IFNA(IF(INDEX(VLC!H:H,MATCH(641+ROW(A7)-1,VLC!V:V,0))="x",_xlfn.IFNA(INDEX(VLC!H:H,MATCH(641+ROW(A7)-1,VLC!V:V,0)),""),""),"") ->  | H136: =_xlfn.IFNA(IF(INDEX(VLC!I:I,MATCH(601+ROW(A7)-1,VLC!V:V,0))<>"",_xlfn.IFNA(INDEX(VLC!I:I,MATCH(601+ROW(A7)-1,VLC!V:V,0)),""),""),"") ->  | I136: =_xlfn.IFNA(IF(INDEX(VLC!I:I,MATCH(641+ROW(A7)-1,VLC!V:V,0))<>"",_xlfn.IFNA(INDEX(VLC!I:I,MATCH(641+ROW(A7)-1,VLC!V:V,0)),""),""),"") ->  | J136: =_xlfn.IFNA(IF(INDEX(VLC!J:J,MATCH(601+ROW(A7)-1,VLC!V:V,0))="x",_xlfn.IFNA(INDEX(VLC!J:J,MATCH(601+ROW(A7)-1,VLC!V:V,0)),""),""),"") ->  | K136: =_xlfn.IFNA(IF(INDEX(VLC!J:J,MATCH(641+ROW(A7)-1,VLC!V:V,0))="x",_xlfn.IFNA(INDEX(VLC!J:J,MATCH(641+ROW(A7)-1,VLC!V:V,0)),""),""),"") ->  | L136: 6007 | M136: 6047
A137: SK Teilnehmer 8 | B137: =_xlfn.IFNA(INDEX(VLC!A:A,MATCH(608,VLC!V:V,0)),"") ->  | C137: =_xlfn.IFNA(INDEX(VLC!A:A,MATCH(648,VLC!V:V,0)),"") ->  | D137: =_xlfn.IFNA(INDEX(VLC!B:B,MATCH(601+ROW(A8)-1,VLC!V:V,0)),"") ->  | E137: =_xlfn.IFNA(INDEX(VLC!C:C,MATCH(601+ROW(A8)-1,VLC!V:V,0)),"") ->  | F137: =_xlfn.IFNA(IF(INDEX(VLC!H:H,MATCH(601+ROW(A8)-1,VLC!V:V,0))="x",_xlfn.IFNA(INDEX(VLC!H:H,MATCH(601+ROW(A8)-1,VLC!V:V,0)),""),""),"") ->  | G137: =_xlfn.IFNA(IF(INDEX(VLC!H:H,MATCH(641+ROW(A8)-1,VLC!V:V,0))="x",_xlfn.IFNA(INDEX(VLC!H:H,MATCH(641+ROW(A8)-1,VLC!V:V,0)),""),""),"") ->  | H137: =_xlfn.IFNA(IF(INDEX(VLC!I:I,MATCH(601+ROW(A8)-1,VLC!V:V,0))<>"",_xlfn.IFNA(INDEX(VLC!I:I,MATCH(601+ROW(A8)-1,VLC!V:V,0)),""),""),"") ->  | I137: =_xlfn.IFNA(IF(INDEX(VLC!I:I,MATCH(641+ROW(A8)-1,VLC!V:V,0))<>"",_xlfn.IFNA(INDEX(VLC!I:I,MATCH(641+ROW(A8)-1,VLC!V:V,0)),""),""),"") ->  | J137: =_xlfn.IFNA(IF(INDEX(VLC!J:J,MATCH(601+ROW(A8)-1,VLC!V:V,0))="x",_xlfn.IFNA(INDEX(VLC!J:J,MATCH(601+ROW(A8)-1,VLC!V:V,0)),""),""),"") ->  | K137: =_xlfn.IFNA(IF(INDEX(VLC!J:J,MATCH(641+ROW(A8)-1,VLC!V:V,0))="x",_xlfn.IFNA(INDEX(VLC!J:J,MATCH(641+ROW(A8)-1,VLC!V:V,0)),""),""),"") ->  | L137: 6008 | M137: 6048
A138: SK Teilnehmer 9 | B138: =_xlfn.IFNA(INDEX(VLC!A:A,MATCH(609,VLC!V:V,0)),"") ->  | C138: =_xlfn.IFNA(INDEX(VLC!A:A,MATCH(649,VLC!V:V,0)),"") ->  | D138: =_xlfn.IFNA(INDEX(VLC!B:B,MATCH(601+ROW(A9)-1,VLC!V:V,0)),"") ->  | E138: =_xlfn.IFNA(INDEX(VLC!C:C,MATCH(601+ROW(A9)-1,VLC!V:V,0)),"") ->  | F138: =_xlfn.IFNA(IF(INDEX(VLC!H:H,MATCH(601+ROW(A9)-1,VLC!V:V,0))="x",_xlfn.IFNA(INDEX(VLC!H:H,MATCH(601+ROW(A9)-1,VLC!V:V,0)),""),""),"") ->  | G138: =_xlfn.IFNA(IF(INDEX(VLC!H:H,MATCH(641+ROW(A9)-1,VLC!V:V,0))="x",_xlfn.IFNA(INDEX(VLC!H:H,MATCH(641+ROW(A9)-1,VLC!V:V,0)),""),""),"") ->  | H138: =_xlfn.IFNA(IF(INDEX(VLC!I:I,MATCH(601+ROW(A9)-1,VLC!V:V,0))<>"",_xlfn.IFNA(INDEX(VLC!I:I,MATCH(601+ROW(A9)-1,VLC!V:V,0)),""),""),"") ->  | I138: =_xlfn.IFNA(IF(INDEX(VLC!I:I,MATCH(641+ROW(A9)-1,VLC!V:V,0))<>"",_xlfn.IFNA(INDEX(VLC!I:I,MATCH(641+ROW(A9)-1,VLC!V:V,0)),""),""),"") ->  | J138: =_xlfn.IFNA(IF(INDEX(VLC!J:J,MATCH(601+ROW(A9)-1,VLC!V:V,0))="x",_xlfn.IFNA(INDEX(VLC!J:J,MATCH(601+ROW(A9)-1,VLC!V:V,0)),""),""),"") ->  | K138: =_xlfn.IFNA(IF(INDEX(VLC!J:J,MATCH(641+ROW(A9)-1,VLC!V:V,0))="x",_xlfn.IFNA(INDEX(VLC!J:J,MATCH(641+ROW(A9)-1,VLC!V:V,0)),""),""),"") ->  | L138: 6009 | M138: 6049
A139: SK Teilnehmer 10 | B139: =_xlfn.IFNA(INDEX(VLC!A:A,MATCH(610,VLC!V:V,0)),"") ->  | C139: =_xlfn.IFNA(INDEX(VLC!A:A,MATCH(650,VLC!V:V,0)),"") ->  | D139: =_xlfn.IFNA(INDEX(VLC!B:B,MATCH(601+ROW(A10)-1,VLC!V:V,0)),"") ->  | E139: =_xlfn.IFNA(INDEX(VLC!C:C,MATCH(601+ROW(A10)-1,VLC!V:V,0)),"") ->  | F139: =_xlfn.IFNA(IF(INDEX(VLC!H:H,MATCH(601+ROW(A10)-1,VLC!V:V,0))="x",_xlfn.IFNA(INDEX(VLC!H:H,MATCH(601+ROW(A10)-1,VLC!V:V,0)),""),""),"") ->  | G139: =_xlfn.IFNA(IF(INDEX(VLC!H:H,MATCH(641+ROW(A10)-1,VLC!V:V,0))="x",_xlfn.IFNA(INDEX(VLC!H:H,MATCH(641+ROW(A10)-1,VLC!V:V,0)),""),""),"") ->  | H139: =_xlfn.IFNA(IF(INDEX(VLC!I:I,MATCH(601+ROW(A10)-1,VLC!V:V,0))<>"",_xlfn.IFNA(INDEX(VLC!I:I,MATCH(601+ROW(A10)-1,VLC!V:V,0)),""),""),"") ->  | I139: =_xlfn.IFNA(IF(INDEX(VLC!I:I,MATCH(641+ROW(A10)-1,VLC!V:V,0))<>"",_xlfn.IFNA(INDEX(VLC!I:I,MATCH(641+ROW(A10)-1,VLC!V:V,0)),""),""),"") ->  | J139: =_xlfn.IFNA(IF(INDEX(VLC!J:J,MATCH(601+ROW(A10)-1,VLC!V:V,0))="x",_xlfn.IFNA(INDEX(VLC!J:J,MATCH(601+ROW(A10)-1,VLC!V:V,0)),""),""),"") ->  | K139: =_xlfn.IFNA(IF(INDEX(VLC!J:J,MATCH(641+ROW(A10)-1,VLC!V:V,0))="x",_xlfn.IFNA(INDEX(VLC!J:J,MATCH(641+ROW(A10)-1,VLC!V:V,0)),""),""),"") ->  | L139: 6010 | M139: 6050
A140: SK Teilnehmer 11 | B140: =_xlfn.IFNA(INDEX(VLC!A:A,MATCH(611,VLC!V:V,0)),"") ->  | C140: =_xlfn.IFNA(INDEX(VLC!A:A,MATCH(651,VLC!V:V,0)),"") ->  | D140: =_xlfn.IFNA(INDEX(VLC!B:B,MATCH(601+ROW(A11)-1,VLC!V:V,0)),"") ->  | E140: =_xlfn.IFNA(INDEX(VLC!C:C,MATCH(601+ROW(A11)-1,VLC!V:V,0)),"") ->  | F140: =_xlfn.IFNA(IF(INDEX(VLC!H:H,MATCH(601+ROW(A11)-1,VLC!V:V,0))="x",_xlfn.IFNA(INDEX(VLC!H:H,MATCH(601+ROW(A11)-1,VLC!V:V,0)),""),""),"") ->  | G140: =_xlfn.IFNA(IF(INDEX(VLC!H:H,MATCH(641+ROW(A11)-1,VLC!V:V,0))="x",_xlfn.IFNA(INDEX(VLC!H:H,MATCH(641+ROW(A11)-1,VLC!V:V,0)),""),""),"") ->  | H140: =_xlfn.IFNA(IF(INDEX(VLC!I:I,MATCH(601+ROW(A11)-1,VLC!V:V,0))<>"",_xlfn.IFNA(INDEX(VLC!I:I,MATCH(601+ROW(A11)-1,VLC!V:V,0)),""),""),"") ->  | I140: =_xlfn.IFNA(IF(INDEX(VLC!I:I,MATCH(641+ROW(A11)-1,VLC!V:V,0))<>"",_xlfn.IFNA(INDEX(VLC!I:I,MATCH(641+ROW(A11)-1,VLC!V:V,0)),""),""),"") ->  | J140: =_xlfn.IFNA(IF(INDEX(VLC!J:J,MATCH(601+ROW(A11)-1,VLC!V:V,0))="x",_xlfn.IFNA(INDEX(VLC!J:J,MATCH(601+ROW(A11)-1,VLC!V:V,0)),""),""),"") ->  | K140: =_xlfn.IFNA(IF(INDEX(VLC!J:J,MATCH(641+ROW(A11)-1,VLC!V:V,0))="x",_xlfn.IFNA(INDEX(VLC!J:J,MATCH(641+ROW(A11)-1,VLC!V:V,0)),""),""),"") ->  | L140: 6011 | M140: 6051
A141: SK Teilnehmer 12 | B141: =_xlfn.IFNA(INDEX(VLC!A:A,MATCH(612,VLC!V:V,0)),"") ->  | C141: =_xlfn.IFNA(INDEX(VLC!A:A,MATCH(652,VLC!V:V,0)),"") ->  | D141: =_xlfn.IFNA(INDEX(VLC!B:B,MATCH(601+ROW(A12)-1,VLC!V:V,0)),"") ->  | E141: =_xlfn.IFNA(INDEX(VLC!C:C,MATCH(601+ROW(A12)-1,VLC!V:V,0)),"") ->  | F141: =_xlfn.IFNA(IF(INDEX(VLC!H:H,MATCH(601+ROW(A12)-1,VLC!V:V,0))="x",_xlfn.IFNA(INDEX(VLC!H:H,MATCH(601+ROW(A12)-1,VLC!V:V,0)),""),""),"") ->  | G141: =_xlfn.IFNA(IF(INDEX(VLC!H:H,MATCH(641+ROW(A12)-1,VLC!V:V,0))="x",_xlfn.IFNA(INDEX(VLC!H:H,MATCH(641+ROW(A12)-1,VLC!V:V,0)),""),""),"") ->  | H141: =_xlfn.IFNA(IF(INDEX(VLC!I:I,MATCH(601+ROW(A12)-1,VLC!V:V,0))<>"",_xlfn.IFNA(INDEX(VLC!I:I,MATCH(601+ROW(A12)-1,VLC!V:V,0)),""),""),"") ->  | I141: =_xlfn.IFNA(IF(INDEX(VLC!I:I,MATCH(641+ROW(A12)-1,VLC!V:V,0))<>"",_xlfn.IFNA(INDEX(VLC!I:I,MATCH(641+ROW(A12)-1,VLC!V:V,0)),""),""),"") ->  | J141: =_xlfn.IFNA(IF(INDEX(VLC!J:J,MATCH(601+ROW(A12)-1,VLC!V:V,0))="x",_xlfn.IFNA(INDEX(VLC!J:J,MATCH(601+ROW(A12)-1,VLC!V:V,0)),""),""),"") ->  | K141: =_xlfn.IFNA(IF(INDEX(VLC!J:J,MATCH(641+ROW(A12)-1,VLC!V:V,0))="x",_xlfn.IFNA(INDEX(VLC!J:J,MATCH(641+ROW(A12)-1,VLC!V:V,0)),""),""),"") ->  | L141: 6012 | M141: 6052
A142: SK Teilnehmer 13 | B142: =_xlfn.IFNA(INDEX(VLC!A:A,MATCH(613,VLC!V:V,0)),"") ->  | C142: =_xlfn.IFNA(INDEX(VLC!A:A,MATCH(653,VLC!V:V,0)),"") ->  | D142: =_xlfn.IFNA(INDEX(VLC!B:B,MATCH(601+ROW(A13)-1,VLC!V:V,0)),"") ->  | E142: =_xlfn.IFNA(INDEX(VLC!C:C,MATCH(601+ROW(A13)-1,VLC!V:V,0)),"") ->  | F142: =_xlfn.IFNA(IF(INDEX(VLC!H:H,MATCH(601+ROW(A13)-1,VLC!V:V,0))="x",_xlfn.IFNA(INDEX(VLC!H:H,MATCH(601+ROW(A13)-1,VLC!V:V,0)),""),""),"") ->  | G142: =_xlfn.IFNA(IF(INDEX(VLC!H:H,MATCH(641+ROW(A13)-1,VLC!V:V,0))="x",_xlfn.IFNA(INDEX(VLC!H:H,MATCH(641+ROW(A13)-1,VLC!V:V,0)),""),""),"") ->  | H142: =_xlfn.IFNA(IF(INDEX(VLC!I:I,MATCH(601+ROW(A13)-1,VLC!V:V,0))<>"",_xlfn.IFNA(INDEX(VLC!I:I,MATCH(601+ROW(A13)-1,VLC!V:V,0)),""),""),"") ->  | I142: =_xlfn.IFNA(IF(INDEX(VLC!I:I,MATCH(641+ROW(A13)-1,VLC!V:V,0))<>"",_xlfn.IFNA(INDEX(VLC!I:I,MATCH(641+ROW(A13)-1,VLC!V:V,0)),""),""),"") ->  | J142: =_xlfn.IFNA(IF(INDEX(VLC!J:J,MATCH(601+ROW(A13)-1,VLC!V:V,0))="x",_xlfn.IFNA(INDEX(VLC!J:J,MATCH(601+ROW(A13)-1,VLC!V:V,0)),""),""),"") ->  | K142: =_xlfn.IFNA(IF(INDEX(VLC!J:J,MATCH(641+ROW(A13)-1,VLC!V:V,0))="x",_xlfn.IFNA(INDEX(VLC!J:J,MATCH(641+ROW(A13)-1,VLC!V:V,0)),""),""),"") ->  | L142: 6013 | M142: 6053
A143: SK Teilnehmer 14 | B143: =_xlfn.IFNA(INDEX(VLC!A:A,MATCH(614,VLC!V:V,0)),"") ->  | C143: =_xlfn.IFNA(INDEX(VLC!A:A,MATCH(654,VLC!V:V,0)),"") ->  | D143: =_xlfn.IFNA(INDEX(VLC!B:B,MATCH(601+ROW(A14)-1,VLC!V:V,0)),"") ->  | E143: =_xlfn.IFNA(INDEX(VLC!C:C,MATCH(601+ROW(A14)-1,VLC!V:V,0)),"") ->  | F143: =_xlfn.IFNA(IF(INDEX(VLC!H:H,MATCH(601+ROW(A14)-1,VLC!V:V,0))="x",_xlfn.IFNA(INDEX(VLC!H:H,MATCH(601+ROW(A14)-1,VLC!V:V,0)),""),""),"") ->  | G143: =_xlfn.IFNA(IF(INDEX(VLC!H:H,MATCH(641+ROW(A14)-1,VLC!V:V,0))="x",_xlfn.IFNA(INDEX(VLC!H:H,MATCH(641+ROW(A14)-1,VLC!V:V,0)),""),""),"") ->  | H143: =_xlfn.IFNA(IF(INDEX(VLC!I:I,MATCH(601+ROW(A14)-1,VLC!V:V,0))<>"",_xlfn.IFNA(INDEX(VLC!I:I,MATCH(601+ROW(A14)-1,VLC!V:V,0)),""),""),"") ->  | I143: =_xlfn.IFNA(IF(INDEX(VLC!I:I,MATCH(641+ROW(A14)-1,VLC!V:V,0))<>"",_xlfn.IFNA(INDEX(VLC!I:I,MATCH(641+ROW(A14)-1,VLC!V:V,0)),""),""),"") ->  | J143: =_xlfn.IFNA(IF(INDEX(VLC!J:J,MATCH(601+ROW(A14)-1,VLC!V:V,0))="x",_xlfn.IFNA(INDEX(VLC!J:J,MATCH(601+ROW(A14)-1,VLC!V:V,0)),""),""),"") ->  | K143: =_xlfn.IFNA(IF(INDEX(VLC!J:J,MATCH(641+ROW(A14)-1,VLC!V:V,0))="x",_xlfn.IFNA(INDEX(VLC!J:J,MATCH(641+ROW(A14)-1,VLC!V:V,0)),""),""),"") ->  | L143: 6014 | M143: 6054
A144: SK Teilnehmer 15 | B144: =_xlfn.IFNA(INDEX(VLC!A:A,MATCH(615,VLC!V:V,0)),"") ->  | C144: =_xlfn.IFNA(INDEX(VLC!A:A,MATCH(655,VLC!V:V,0)),"") ->  | D144: =_xlfn.IFNA(INDEX(VLC!B:B,MATCH(601+ROW(A15)-1,VLC!V:V,0)),"") ->  | E144: =_xlfn.IFNA(INDEX(VLC!C:C,MATCH(601+ROW(A15)-1,VLC!V:V,0)),"") ->  | F144: =_xlfn.IFNA(IF(INDEX(VLC!H:H,MATCH(601+ROW(A15)-1,VLC!V:V,0))="x",_xlfn.IFNA(INDEX(VLC!H:H,MATCH(601+ROW(A15)-1,VLC!V:V,0)),""),""),"") ->  | G144: =_xlfn.IFNA(IF(INDEX(VLC!H:H,MATCH(641+ROW(A15)-1,VLC!V:V,0))="x",_xlfn.IFNA(INDEX(VLC!H:H,MATCH(641+ROW(A15)-1,VLC!V:V,0)),""),""),"") ->  | H144: =_xlfn.IFNA(IF(INDEX(VLC!I:I,MATCH(601+ROW(A15)-1,VLC!V:V,0))<>"",_xlfn.IFNA(INDEX(VLC!I:I,MATCH(601+ROW(A15)-1,VLC!V:V,0)),""),""),"") ->  | I144: =_xlfn.IFNA(IF(INDEX(VLC!I:I,MATCH(641+ROW(A15)-1,VLC!V:V,0))<>"",_xlfn.IFNA(INDEX(VLC!I:I,MATCH(641+ROW(A15)-1,VLC!V:V,0)),""),""),"") ->  | J144: =_xlfn.IFNA(IF(INDEX(VLC!J:J,MATCH(601+ROW(A15)-1,VLC!V:V,0))="x",_xlfn.IFNA(INDEX(VLC!J:J,MATCH(601+ROW(A15)-1,VLC!V:V,0)),""),""),"") ->  | K144: =_xlfn.IFNA(IF(INDEX(VLC!J:J,MATCH(641+ROW(A15)-1,VLC!V:V,0))="x",_xlfn.IFNA(INDEX(VLC!J:J,MATCH(641+ROW(A15)-1,VLC!V:V,0)),""),""),"") ->  | L144: 6015 | M144: 6055
A145: SK Teilnehmer 16 | B145: =_xlfn.IFNA(INDEX(VLC!A:A,MATCH(616,VLC!V:V,0)),"") ->  | C145: =_xlfn.IFNA(INDEX(VLC!A:A,MATCH(656,VLC!V:V,0)),"") ->  | D145: =_xlfn.IFNA(INDEX(VLC!B:B,MATCH(601+ROW(A16)-1,VLC!V:V,0)),"") ->  | E145: =_xlfn.IFNA(INDEX(VLC!C:C,MATCH(601+ROW(A16)-1,VLC!V:V,0)),"") ->  | F145: =_xlfn.IFNA(IF(INDEX(VLC!H:H,MATCH(601+ROW(A16)-1,VLC!V:V,0))="x",_xlfn.IFNA(INDEX(VLC!H:H,MATCH(601+ROW(A16)-1,VLC!V:V,0)),""),""),"") ->  | G145: =_xlfn.IFNA(IF(INDEX(VLC!H:H,MATCH(641+ROW(A16)-1,VLC!V:V,0))="x",_xlfn.IFNA(INDEX(VLC!H:H,MATCH(641+ROW(A16)-1,VLC!V:V,0)),""),""),"") ->  | H145: =_xlfn.IFNA(IF(INDEX(VLC!I:I,MATCH(601+ROW(A16)-1,VLC!V:V,0))<>"",_xlfn.IFNA(INDEX(VLC!I:I,MATCH(601+ROW(A16)-1,VLC!V:V,0)),""),""),"") ->  | I145: =_xlfn.IFNA(IF(INDEX(VLC!I:I,MATCH(641+ROW(A16)-1,VLC!V:V,0))<>"",_xlfn.IFNA(INDEX(VLC!I:I,MATCH(641+ROW(A16)-1,VLC!V:V,0)),""),""),"") ->  | J145: =_xlfn.IFNA(IF(INDEX(VLC!J:J,MATCH(601+ROW(A16)-1,VLC!V:V,0))="x",_xlfn.IFNA(INDEX(VLC!J:J,MATCH(601+ROW(A16)-1,VLC!V:V,0)),""),""),"") ->  | K145: =_xlfn.IFNA(IF(INDEX(VLC!J:J,MATCH(641+ROW(A16)-1,VLC!V:V,0))="x",_xlfn.IFNA(INDEX(VLC!J:J,MATCH(641+ROW(A16)-1,VLC!V:V,0)),""),""),"") ->  | L145: 6016 | M145: 6056
A146: SK Teilnehmer 17 | B146: =_xlfn.IFNA(INDEX(VLC!A:A,MATCH(617,VLC!V:V,0)),"") ->  | C146: =_xlfn.IFNA(INDEX(VLC!A:A,MATCH(657,VLC!V:V,0)),"") ->  | D146: =_xlfn.IFNA(INDEX(VLC!B:B,MATCH(601+ROW(A17)-1,VLC!V:V,0)),"") ->  | E146: =_xlfn.IFNA(INDEX(VLC!C:C,MATCH(601+ROW(A17)-1,VLC!V:V,0)),"") ->  | F146: =_xlfn.IFNA(IF(INDEX(VLC!H:H,MATCH(601+ROW(A17)-1,VLC!V:V,0))="x",_xlfn.IFNA(INDEX(VLC!H:H,MATCH(601+ROW(A17)-1,VLC!V:V,0)),""),""),"") ->  | G146: =_xlfn.IFNA(IF(INDEX(VLC!H:H,MATCH(641+ROW(A17)-1,VLC!V:V,0))="x",_xlfn.IFNA(INDEX(VLC!H:H,MATCH(641+ROW(A17)-1,VLC!V:V,0)),""),""),"") ->  | H146: =_xlfn.IFNA(IF(INDEX(VLC!I:I,MATCH(601+ROW(A17)-1,VLC!V:V,0))<>"",_xlfn.IFNA(INDEX(VLC!I:I,MATCH(601+ROW(A17)-1,VLC!V:V,0)),""),""),"") ->  | I146: =_xlfn.IFNA(IF(INDEX(VLC!I:I,MATCH(641+ROW(A17)-1,VLC!V:V,0))<>"",_xlfn.IFNA(INDEX(VLC!I:I,MATCH(641+ROW(A17)-1,VLC!V:V,0)),""),""),"") ->  | J146: =_xlfn.IFNA(IF(INDEX(VLC!J:J,MATCH(601+ROW(A17)-1,VLC!V:V,0))="x",_xlfn.IFNA(INDEX(VLC!J:J,MATCH(601+ROW(A17)-1,VLC!V:V,0)),""),""),"") ->  | K146: =_xlfn.IFNA(IF(INDEX(VLC!J:J,MATCH(641+ROW(A17)-1,VLC!V:V,0))="x",_xlfn.IFNA(INDEX(VLC!J:J,MATCH(641+ROW(A17)-1,VLC!V:V,0)),""),""),"") ->  | L146: 6017 | M146: 6057
A147: SK Teilnehmer 18 | B147: =_xlfn.IFNA(INDEX(VLC!A:A,MATCH(618,VLC!V:V,0)),"") ->  | C147: =_xlfn.IFNA(INDEX(VLC!A:A,MATCH(658,VLC!V:V,0)),"") ->  | D147: =_xlfn.IFNA(INDEX(VLC!B:B,MATCH(601+ROW(A18)-1,VLC!V:V,0)),"") ->  | E147: =_xlfn.IFNA(INDEX(VLC!C:C,MATCH(601+ROW(A18)-1,VLC!V:V,0)),"") ->  | F147: =_xlfn.IFNA(IF(INDEX(VLC!H:H,MATCH(601+ROW(A18)-1,VLC!V:V,0))="x",_xlfn.IFNA(INDEX(VLC!H:H,MATCH(601+ROW(A18)-1,VLC!V:V,0)),""),""),"") ->  | G147: =_xlfn.IFNA(IF(INDEX(VLC!H:H,MATCH(641+ROW(A18)-1,VLC!V:V,0))="x",_xlfn.IFNA(INDEX(VLC!H:H,MATCH(641+ROW(A18)-1,VLC!V:V,0)),""),""),"") ->  | H147: =_xlfn.IFNA(IF(INDEX(VLC!I:I,MATCH(601+ROW(A18)-1,VLC!V:V,0))<>"",_xlfn.IFNA(INDEX(VLC!I:I,MATCH(601+ROW(A18)-1,VLC!V:V,0)),""),""),"") ->  | I147: =_xlfn.IFNA(IF(INDEX(VLC!I:I,MATCH(641+ROW(A18)-1,VLC!V:V,0))<>"",_xlfn.IFNA(INDEX(VLC!I:I,MATCH(641+ROW(A18)-1,VLC!V:V,0)),""),""),"") ->  | J147: =_xlfn.IFNA(IF(INDEX(VLC!J:J,MATCH(601+ROW(A18)-1,VLC!V:V,0))="x",_xlfn.IFNA(INDEX(VLC!J:J,MATCH(601+ROW(A18)-1,VLC!V:V,0)),""),""),"") ->  | K147: =_xlfn.IFNA(IF(INDEX(VLC!J:J,MATCH(641+ROW(A18)-1,VLC!V:V,0))="x",_xlfn.IFNA(INDEX(VLC!J:J,MATCH(641+ROW(A18)-1,VLC!V:V,0)),""),""),"") ->  | L147: 6018 | M147: 6058
A148: SK Teilnehmer 19 | B148: =_xlfn.IFNA(INDEX(VLC!A:A,MATCH(619,VLC!V:V,0)),"") ->  | C148: =_xlfn.IFNA(INDEX(VLC!A:A,MATCH(659,VLC!V:V,0)),"") ->  | D148: =_xlfn.IFNA(INDEX(VLC!B:B,MATCH(601+ROW(A19)-1,VLC!V:V,0)),"") ->  | E148: =_xlfn.IFNA(INDEX(VLC!C:C,MATCH(601+ROW(A19)-1,VLC!V:V,0)),"") ->  | F148: =_xlfn.IFNA(IF(INDEX(VLC!H:H,MATCH(601+ROW(A19)-1,VLC!V:V,0))="x",_xlfn.IFNA(INDEX(VLC!H:H,MATCH(601+ROW(A19)-1,VLC!V:V,0)),""),""),"") ->  | G148: =_xlfn.IFNA(IF(INDEX(VLC!H:H,MATCH(641+ROW(A19)-1,VLC!V:V,0))="x",_xlfn.IFNA(INDEX(VLC!H:H,MATCH(641+ROW(A19)-1,VLC!V:V,0)),""),""),"") ->  | H148: =_xlfn.IFNA(IF(INDEX(VLC!I:I,MATCH(601+ROW(A19)-1,VLC!V:V,0))<>"",_xlfn.IFNA(INDEX(VLC!I:I,MATCH(601+ROW(A19)-1,VLC!V:V,0)),""),""),"") ->  | I148: =_xlfn.IFNA(IF(INDEX(VLC!I:I,MATCH(641+ROW(A19)-1,VLC!V:V,0))<>"",_xlfn.IFNA(INDEX(VLC!I:I,MATCH(641+ROW(A19)-1,VLC!V:V,0)),""),""),"") ->  | J148: =_xlfn.IFNA(IF(INDEX(VLC!J:J,MATCH(601+ROW(A19)-1,VLC!V:V,0))="x",_xlfn.IFNA(INDEX(VLC!J:J,MATCH(601+ROW(A19)-1,VLC!V:V,0)),""),""),"") ->  | K148: =_xlfn.IFNA(IF(INDEX(VLC!J:J,MATCH(641+ROW(A19)-1,VLC!V:V,0))="x",_xlfn.IFNA(INDEX(VLC!J:J,MATCH(641+ROW(A19)-1,VLC!V:V,0)),""),""),"") ->  | L148: 6019 | M148: 6059
A149: SK Teilnehmer 20 | B149: =_xlfn.IFNA(INDEX(VLC!A:A,MATCH(620,VLC!V:V,0)),"") ->  | C149: =_xlfn.IFNA(INDEX(VLC!A:A,MATCH(660,VLC!V:V,0)),"") ->  | D149: =_xlfn.IFNA(INDEX(VLC!B:B,MATCH(601+ROW(A20)-1,VLC!V:V,0)),"") ->  | E149: =_xlfn.IFNA(INDEX(VLC!C:C,MATCH(601+ROW(A20)-1,VLC!V:V,0)),"") ->  | F149: =_xlfn.IFNA(IF(INDEX(VLC!H:H,MATCH(601+ROW(A20)-1,VLC!V:V,0))="x",_xlfn.IFNA(INDEX(VLC!H:H,MATCH(601+ROW(A20)-1,VLC!V:V,0)),""),""),"") ->  | G149: =_xlfn.IFNA(IF(INDEX(VLC!H:H,MATCH(641+ROW(A20)-1,VLC!V:V,0))="x",_xlfn.IFNA(INDEX(VLC!H:H,MATCH(641+ROW(A20)-1,VLC!V:V,0)),""),""),"") ->  | H149: =_xlfn.IFNA(IF(INDEX(VLC!I:I,MATCH(601+ROW(A20)-1,VLC!V:V,0))<>"",_xlfn.IFNA(INDEX(VLC!I:I,MATCH(601+ROW(A20)-1,VLC!V:V,0)),""),""),"") ->  | I149: =_xlfn.IFNA(IF(INDEX(VLC!I:I,MATCH(641+ROW(A20)-1,VLC!V:V,0))<>"",_xlfn.IFNA(INDEX(VLC!I:I,MATCH(641+ROW(A20)-1,VLC!V:V,0)),""),""),"") ->  | J149: =_xlfn.IFNA(IF(INDEX(VLC!J:J,MATCH(601+ROW(A20)-1,VLC!V:V,0))="x",_xlfn.IFNA(INDEX(VLC!J:J,MATCH(601+ROW(A20)-1,VLC!V:V,0)),""),""),"") ->  | K149: =_xlfn.IFNA(IF(INDEX(VLC!J:J,MATCH(641+ROW(A20)-1,VLC!V:V,0))="x",_xlfn.IFNA(INDEX(VLC!J:J,MATCH(641+ROW(A20)-1,VLC!V:V,0)),""),""),"") ->  | L149: 6020 | M149: 6060
A150: Gerätename: | B150: =$B$6 -> 0 | E150: PLC24 Stromkreis-Nummer: 7
A151: Stromkreis-Bezeichnung:
A152: Stromkreisbelegung | B152: ID 1 | C152: ID 2 | D152: Bezeichnung | E152: Zusatzinfo | F152: DL | H152: GL | J152: BL
F153: ID1 | G153: ID2 | H153: ID1 | I153: ID2 | J153: ID1 | K153: ID2
A154: SK Teilnehmer 1 | B154: =_xlfn.IFNA(INDEX(VLC!A:A,MATCH(701,VLC!V:V,0)),"") ->  | C154: =_xlfn.IFNA(INDEX(VLC!A:A,MATCH(741,VLC!V:V,0)),"") ->  | D154: =_xlfn.IFNA(INDEX(VLC!B:B,MATCH(701+ROW(A1)-1,VLC!V:V,0)),"") ->  | E154: =_xlfn.IFNA(INDEX(VLC!C:C,MATCH(701+ROW(A1)-1,VLC!V:V,0)),"") ->  | F154: =_xlfn.IFNA(IF(INDEX(VLC!H:H,MATCH(701+ROW(A1)-1,VLC!V:V,0))="x",_xlfn.IFNA(INDEX(VLC!H:H,MATCH(701+ROW(A1)-1,VLC!V:V,0)),""),""),"") ->  | G154: =_xlfn.IFNA(IF(INDEX(VLC!H:H,MATCH(741+ROW(A1)-1,VLC!V:V,0))="x",_xlfn.IFNA(INDEX(VLC!H:H,MATCH(741+ROW(A1)-1,VLC!V:V,0)),""),""),"") ->  | H154: =_xlfn.IFNA(IF(INDEX(VLC!I:I,MATCH(701+ROW(A1)-1,VLC!V:V,0))<>"",_xlfn.IFNA(INDEX(VLC!I:I,MATCH(701+ROW(A1)-1,VLC!V:V,0)),""),""),"") ->  | I154: =_xlfn.IFNA(IF(INDEX(VLC!I:I,MATCH(741+ROW(A1)-1,VLC!V:V,0))<>"",_xlfn.IFNA(INDEX(VLC!I:I,MATCH(741+ROW(A1)-1,VLC!V:V,0)),""),""),"") ->  | J154: =_xlfn.IFNA(IF(INDEX(VLC!J:J,MATCH(701+ROW(A1)-1,VLC!V:V,0))="x",_xlfn.IFNA(INDEX(VLC!J:J,MATCH(701+ROW(A1)-1,VLC!V:V,0)),""),""),"") ->  | K154: =_xlfn.IFNA(IF(INDEX(VLC!J:J,MATCH(741+ROW(A1)-1,VLC!V:V,0))="x",_xlfn.IFNA(INDEX(VLC!J:J,MATCH(741+ROW(A1)-1,VLC!V:V,0)),""),""),"") ->  | L154: =7000+ROW(A154)-153 -> 7001 | M154: =L154+40 -> 7041
A155: SK Teilnehmer 2 | B155: =_xlfn.IFNA(INDEX(VLC!A:A,MATCH(702,VLC!V:V,0)),"") ->  | C155: =_xlfn.IFNA(INDEX(VLC!A:A,MATCH(742,VLC!V:V,0)),"") ->  | D155: =_xlfn.IFNA(INDEX(VLC!B:B,MATCH(701+ROW(A2)-1,VLC!V:V,0)),"") ->  | E155: =_xlfn.IFNA(INDEX(VLC!C:C,MATCH(701+ROW(A2)-1,VLC!V:V,0)),"") ->  | F155: =_xlfn.IFNA(IF(INDEX(VLC!H:H,MATCH(701+ROW(A2)-1,VLC!V:V,0))="x",_xlfn.IFNA(INDEX(VLC!H:H,MATCH(701+ROW(A2)-1,VLC!V:V,0)),""),""),"") ->  | G155: =_xlfn.IFNA(IF(INDEX(VLC!H:H,MATCH(741+ROW(A2)-1,VLC!V:V,0))="x",_xlfn.IFNA(INDEX(VLC!H:H,MATCH(741+ROW(A2)-1,VLC!V:V,0)),""),""),"") ->  | H155: =_xlfn.IFNA(IF(INDEX(VLC!I:I,MATCH(701+ROW(A2)-1,VLC!V:V,0))<>"",_xlfn.IFNA(INDEX(VLC!I:I,MATCH(701+ROW(A2)-1,VLC!V:V,0)),""),""),"") ->  | I155: =_xlfn.IFNA(IF(INDEX(VLC!I:I,MATCH(741+ROW(A2)-1,VLC!V:V,0))<>"",_xlfn.IFNA(INDEX(VLC!I:I,MATCH(741+ROW(A2)-1,VLC!V:V,0)),""),""),"") ->  | J155: =_xlfn.IFNA(IF(INDEX(VLC!J:J,MATCH(701+ROW(A2)-1,VLC!V:V,0))="x",_xlfn.IFNA(INDEX(VLC!J:J,MATCH(701+ROW(A2)-1,VLC!V:V,0)),""),""),"") ->  | K155: =_xlfn.IFNA(IF(INDEX(VLC!J:J,MATCH(741+ROW(A2)-1,VLC!V:V,0))="x",_xlfn.IFNA(INDEX(VLC!J:J,MATCH(741+ROW(A2)-1,VLC!V:V,0)),""),""),"") ->  | L155: =7000+ROW(A155)-153 -> 7002 | M155: =L155+40 -> 7042
A156: SK Teilnehmer 3 | B156: =_xlfn.IFNA(INDEX(VLC!A:A,MATCH(703,VLC!V:V,0)),"") ->  | C156: =_xlfn.IFNA(INDEX(VLC!A:A,MATCH(743,VLC!V:V,0)),"") ->  | D156: =_xlfn.IFNA(INDEX(VLC!B:B,MATCH(701+ROW(A3)-1,VLC!V:V,0)),"") ->  | E156: =_xlfn.IFNA(INDEX(VLC!C:C,MATCH(701+ROW(A3)-1,VLC!V:V,0)),"") ->  | F156: =_xlfn.IFNA(IF(INDEX(VLC!H:H,MATCH(701+ROW(A3)-1,VLC!V:V,0))="x",_xlfn.IFNA(INDEX(VLC!H:H,MATCH(701+ROW(A3)-1,VLC!V:V,0)),""),""),"") ->  | G156: =_xlfn.IFNA(IF(INDEX(VLC!H:H,MATCH(741+ROW(A3)-1,VLC!V:V,0))="x",_xlfn.IFNA(INDEX(VLC!H:H,MATCH(741+ROW(A3)-1,VLC!V:V,0)),""),""),"") ->  | H156: =_xlfn.IFNA(IF(INDEX(VLC!I:I,MATCH(701+ROW(A3)-1,VLC!V:V,0))<>"",_xlfn.IFNA(INDEX(VLC!I:I,MATCH(701+ROW(A3)-1,VLC!V:V,0)),""),""),"") ->  | I156: =_xlfn.IFNA(IF(INDEX(VLC!I:I,MATCH(741+ROW(A3)-1,VLC!V:V,0))<>"",_xlfn.IFNA(INDEX(VLC!I:I,MATCH(741+ROW(A3)-1,VLC!V:V,0)),""),""),"") ->  | J156: =_xlfn.IFNA(IF(INDEX(VLC!J:J,MATCH(701+ROW(A3)-1,VLC!V:V,0))="x",_xlfn.IFNA(INDEX(VLC!J:J,MATCH(701+ROW(A3)-1,VLC!V:V,0)),""),""),"") ->  | K156: =_xlfn.IFNA(IF(INDEX(VLC!J:J,MATCH(741+ROW(A3)-1,VLC!V:V,0))="x",_xlfn.IFNA(INDEX(VLC!J:J,MATCH(741+ROW(A3)-1,VLC!V:V,0)),""),""),"") ->  | L156: 7003 | M156: 7043
A157: SK Teilnehmer 4 | B157: =_xlfn.IFNA(INDEX(VLC!A:A,MATCH(704,VLC!V:V,0)),"") ->  | C157: =_xlfn.IFNA(INDEX(VLC!A:A,MATCH(744,VLC!V:V,0)),"") ->  | D157: =_xlfn.IFNA(INDEX(VLC!B:B,MATCH(701+ROW(A4)-1,VLC!V:V,0)),"") ->  | E157: =_xlfn.IFNA(INDEX(VLC!C:C,MATCH(701+ROW(A4)-1,VLC!V:V,0)),"") ->  | F157: =_xlfn.IFNA(IF(INDEX(VLC!H:H,MATCH(701+ROW(A4)-1,VLC!V:V,0))="x",_xlfn.IFNA(INDEX(VLC!H:H,MATCH(701+ROW(A4)-1,VLC!V:V,0)),""),""),"") ->  | G157: =_xlfn.IFNA(IF(INDEX(VLC!H:H,MATCH(741+ROW(A4)-1,VLC!V:V,0))="x",_xlfn.IFNA(INDEX(VLC!H:H,MATCH(741+ROW(A4)-1,VLC!V:V,0)),""),""),"") ->  | H157: =_xlfn.IFNA(IF(INDEX(VLC!I:I,MATCH(701+ROW(A4)-1,VLC!V:V,0))<>"",_xlfn.IFNA(INDEX(VLC!I:I,MATCH(701+ROW(A4)-1,VLC!V:V,0)),""),""),"") ->  | I157: =_xlfn.IFNA(IF(INDEX(VLC!I:I,MATCH(741+ROW(A4)-1,VLC!V:V,0))<>"",_xlfn.IFNA(INDEX(VLC!I:I,MATCH(741+ROW(A4)-1,VLC!V:V,0)),""),""),"") ->  | J157: =_xlfn.IFNA(IF(INDEX(VLC!J:J,MATCH(701+ROW(A4)-1,VLC!V:V,0))="x",_xlfn.IFNA(INDEX(VLC!J:J,MATCH(701+ROW(A4)-1,VLC!V:V,0)),""),""),"") ->  | K157: =_xlfn.IFNA(IF(INDEX(VLC!J:J,MATCH(741+ROW(A4)-1,VLC!V:V,0))="x",_xlfn.IFNA(INDEX(VLC!J:J,MATCH(741+ROW(A4)-1,VLC!V:V,0)),""),""),"") ->  | L157: 7004 | M157: 7044
A158: SK Teilnehmer 5 | B158: =_xlfn.IFNA(INDEX(VLC!A:A,MATCH(705,VLC!V:V,0)),"") ->  | C158: =_xlfn.IFNA(INDEX(VLC!A:A,MATCH(745,VLC!V:V,0)),"") ->  | D158: =_xlfn.IFNA(INDEX(VLC!B:B,MATCH(701+ROW(A5)-1,VLC!V:V,0)),"") ->  | E158: =_xlfn.IFNA(INDEX(VLC!C:C,MATCH(701+ROW(A5)-1,VLC!V:V,0)),"") ->  | F158: =_xlfn.IFNA(IF(INDEX(VLC!H:H,MATCH(701+ROW(A5)-1,VLC!V:V,0))="x",_xlfn.IFNA(INDEX(VLC!H:H,MATCH(701+ROW(A5)-1,VLC!V:V,0)),""),""),"") ->  | G158: =_xlfn.IFNA(IF(INDEX(VLC!H:H,MATCH(741+ROW(A5)-1,VLC!V:V,0))="x",_xlfn.IFNA(INDEX(VLC!H:H,MATCH(741+ROW(A5)-1,VLC!V:V,0)),""),""),"") ->  | H158: =_xlfn.IFNA(IF(INDEX(VLC!I:I,MATCH(701+ROW(A5)-1,VLC!V:V,0))<>"",_xlfn.IFNA(INDEX(VLC!I:I,MATCH(701+ROW(A5)-1,VLC!V:V,0)),""),""),"") ->  | I158: =_xlfn.IFNA(IF(INDEX(VLC!I:I,MATCH(741+ROW(A5)-1,VLC!V:V,0))<>"",_xlfn.IFNA(INDEX(VLC!I:I,MATCH(741+ROW(A5)-1,VLC!V:V,0)),""),""),"") ->  | J158: =_xlfn.IFNA(IF(INDEX(VLC!J:J,MATCH(701+ROW(A5)-1,VLC!V:V,0))="x",_xlfn.IFNA(INDEX(VLC!J:J,MATCH(701+ROW(A5)-1,VLC!V:V,0)),""),""),"") ->  | K158: =_xlfn.IFNA(IF(INDEX(VLC!J:J,MATCH(741+ROW(A5)-1,VLC!V:V,0))="x",_xlfn.IFNA(INDEX(VLC!J:J,MATCH(741+ROW(A5)-1,VLC!V:V,0)),""),""),"") ->  | L158: 7005 | M158: 7045
A159: SK Teilnehmer 6 | B159: =_xlfn.IFNA(INDEX(VLC!A:A,MATCH(706,VLC!V:V,0)),"") ->  | C159: =_xlfn.IFNA(INDEX(VLC!A:A,MATCH(746,VLC!V:V,0)),"") ->  | D159: =_xlfn.IFNA(INDEX(VLC!B:B,MATCH(701+ROW(A6)-1,VLC!V:V,0)),"") ->  | E159: =_xlfn.IFNA(INDEX(VLC!C:C,MATCH(701+ROW(A6)-1,VLC!V:V,0)),"") ->  | F159: =_xlfn.IFNA(IF(INDEX(VLC!H:H,MATCH(701+ROW(A6)-1,VLC!V:V,0))="x",_xlfn.IFNA(INDEX(VLC!H:H,MATCH(701+ROW(A6)-1,VLC!V:V,0)),""),""),"") ->  | G159: =_xlfn.IFNA(IF(INDEX(VLC!H:H,MATCH(741+ROW(A6)-1,VLC!V:V,0))="x",_xlfn.IFNA(INDEX(VLC!H:H,MATCH(741+ROW(A6)-1,VLC!V:V,0)),""),""),"") ->  | H159: =_xlfn.IFNA(IF(INDEX(VLC!I:I,MATCH(701+ROW(A6)-1,VLC!V:V,0))<>"",_xlfn.IFNA(INDEX(VLC!I:I,MATCH(701+ROW(A6)-1,VLC!V:V,0)),""),""),"") ->  | I159: =_xlfn.IFNA(IF(INDEX(VLC!I:I,MATCH(741+ROW(A6)-1,VLC!V:V,0))<>"",_xlfn.IFNA(INDEX(VLC!I:I,MATCH(741+ROW(A6)-1,VLC!V:V,0)),""),""),"") ->  | J159: =_xlfn.IFNA(IF(INDEX(VLC!J:J,MATCH(701+ROW(A6)-1,VLC!V:V,0))="x",_xlfn.IFNA(INDEX(VLC!J:J,MATCH(701+ROW(A6)-1,VLC!V:V,0)),""),""),"") ->  | K159: =_xlfn.IFNA(IF(INDEX(VLC!J:J,MATCH(741+ROW(A6)-1,VLC!V:V,0))="x",_xlfn.IFNA(INDEX(VLC!J:J,MATCH(741+ROW(A6)-1,VLC!V:V,0)),""),""),"") ->  | L159: 7006 | M159: 7046
A160: SK Teilnehmer 7 | B160: =_xlfn.IFNA(INDEX(VLC!A:A,MATCH(707,VLC!V:V,0)),"") ->  | C160: =_xlfn.IFNA(INDEX(VLC!A:A,MATCH(747,VLC!V:V,0)),"") ->  | D160: =_xlfn.IFNA(INDEX(VLC!B:B,MATCH(701+ROW(A7)-1,VLC!V:V,0)),"") ->  | E160: =_xlfn.IFNA(INDEX(VLC!C:C,MATCH(701+ROW(A7)-1,VLC!V:V,0)),"") ->  | F160: =_xlfn.IFNA(IF(INDEX(VLC!H:H,MATCH(701+ROW(A7)-1,VLC!V:V,0))="x",_xlfn.IFNA(INDEX(VLC!H:H,MATCH(701+ROW(A7)-1,VLC!V:V,0)),""),""),"") ->  | G160: =_xlfn.IFNA(IF(INDEX(VLC!H:H,MATCH(741+ROW(A7)-1,VLC!V:V,0))="x",_xlfn.IFNA(INDEX(VLC!H:H,MATCH(741+ROW(A7)-1,VLC!V:V,0)),""),""),"") ->  | H160: =_xlfn.IFNA(IF(INDEX(VLC!I:I,MATCH(701+ROW(A7)-1,VLC!V:V,0))<>"",_xlfn.IFNA(INDEX(VLC!I:I,MATCH(701+ROW(A7)-1,VLC!V:V,0)),""),""),"") ->  | I160: =_xlfn.IFNA(IF(INDEX(VLC!I:I,MATCH(741+ROW(A7)-1,VLC!V:V,0))<>"",_xlfn.IFNA(INDEX(VLC!I:I,MATCH(741+ROW(A7)-1,VLC!V:V,0)),""),""),"") ->  | J160: =_xlfn.IFNA(IF(INDEX(VLC!J:J,MATCH(701+ROW(A7)-1,VLC!V:V,0))="x",_xlfn.IFNA(INDEX(VLC!J:J,MATCH(701+ROW(A7)-1,VLC!V:V,0)),""),""),"") ->  | K160: =_xlfn.IFNA(IF(INDEX(VLC!J:J,MATCH(741+ROW(A7)-1,VLC!V:V,0))="x",_xlfn.IFNA(INDEX(VLC!J:J,MATCH(741+ROW(A7)-1,VLC!V:V,0)),""),""),"") ->  | L160: 7007 | M160: 7047
A161: SK Teilnehmer 8 | B161: =_xlfn.IFNA(INDEX(VLC!A:A,MATCH(708,VLC!V:V,0)),"") ->  | C161: =_xlfn.IFNA(INDEX(VLC!A:A,MATCH(748,VLC!V:V,0)),"") ->  | D161: =_xlfn.IFNA(INDEX(VLC!B:B,MATCH(701+ROW(A8)-1,VLC!V:V,0)),"") ->  | E161: =_xlfn.IFNA(INDEX(VLC!C:C,MATCH(701+ROW(A8)-1,VLC!V:V,0)),"") ->  | F161: =_xlfn.IFNA(IF(INDEX(VLC!H:H,MATCH(701+ROW(A8)-1,VLC!V:V,0))="x",_xlfn.IFNA(INDEX(VLC!H:H,MATCH(701+ROW(A8)-1,VLC!V:V,0)),""),""),"") ->  | G161: =_xlfn.IFNA(IF(INDEX(VLC!H:H,MATCH(741+ROW(A8)-1,VLC!V:V,0))="x",_xlfn.IFNA(INDEX(VLC!H:H,MATCH(741+ROW(A8)-1,VLC!V:V,0)),""),""),"") ->  | H161: =_xlfn.IFNA(IF(INDEX(VLC!I:I,MATCH(701+ROW(A8)-1,VLC!V:V,0))<>"",_xlfn.IFNA(INDEX(VLC!I:I,MATCH(701+ROW(A8)-1,VLC!V:V,0)),""),""),"") ->  | I161: =_xlfn.IFNA(IF(INDEX(VLC!I:I,MATCH(741+ROW(A8)-1,VLC!V:V,0))<>"",_xlfn.IFNA(INDEX(VLC!I:I,MATCH(741+ROW(A8)-1,VLC!V:V,0)),""),""),"") ->  | J161: =_xlfn.IFNA(IF(INDEX(VLC!J:J,MATCH(701+ROW(A8)-1,VLC!V:V,0))="x",_xlfn.IFNA(INDEX(VLC!J:J,MATCH(701+ROW(A8)-1,VLC!V:V,0)),""),""),"") ->  | K161: =_xlfn.IFNA(IF(INDEX(VLC!J:J,MATCH(741+ROW(A8)-1,VLC!V:V,0))="x",_xlfn.IFNA(INDEX(VLC!J:J,MATCH(741+ROW(A8)-1,VLC!V:V,0)),""),""),"") ->  | L161: 7008 | M161: 7048
A162: SK Teilnehmer 9 | B162: =_xlfn.IFNA(INDEX(VLC!A:A,MATCH(709,VLC!V:V,0)),"") ->  | C162: =_xlfn.IFNA(INDEX(VLC!A:A,MATCH(749,VLC!V:V,0)),"") ->  | D162: =_xlfn.IFNA(INDEX(VLC!B:B,MATCH(701+ROW(A9)-1,VLC!V:V,0)),"") ->  | E162: =_xlfn.IFNA(INDEX(VLC!C:C,MATCH(701+ROW(A9)-1,VLC!V:V,0)),"") ->  | F162: =_xlfn.IFNA(IF(INDEX(VLC!H:H,MATCH(701+ROW(A9)-1,VLC!V:V,0))="x",_xlfn.IFNA(INDEX(VLC!H:H,MATCH(701+ROW(A9)-1,VLC!V:V,0)),""),""),"") ->  | G162: =_xlfn.IFNA(IF(INDEX(VLC!H:H,MATCH(741+ROW(A9)-1,VLC!V:V,0))="x",_xlfn.IFNA(INDEX(VLC!H:H,MATCH(741+ROW(A9)-1,VLC!V:V,0)),""),""),"") ->  | H162: =_xlfn.IFNA(IF(INDEX(VLC!I:I,MATCH(701+ROW(A9)-1,VLC!V:V,0))<>"",_xlfn.IFNA(INDEX(VLC!I:I,MATCH(701+ROW(A9)-1,VLC!V:V,0)),""),""),"") ->  | I162: =_xlfn.IFNA(IF(INDEX(VLC!I:I,MATCH(741+ROW(A9)-1,VLC!V:V,0))<>"",_xlfn.IFNA(INDEX(VLC!I:I,MATCH(741+ROW(A9)-1,VLC!V:V,0)),""),""),"") ->  | J162: =_xlfn.IFNA(IF(INDEX(VLC!J:J,MATCH(701+ROW(A9)-1,VLC!V:V,0))="x",_xlfn.IFNA(INDEX(VLC!J:J,MATCH(701+ROW(A9)-1,VLC!V:V,0)),""),""),"") ->  | K162: =_xlfn.IFNA(IF(INDEX(VLC!J:J,MATCH(741+ROW(A9)-1,VLC!V:V,0))="x",_xlfn.IFNA(INDEX(VLC!J:J,MATCH(741+ROW(A9)-1,VLC!V:V,0)),""),""),"") ->  | L162: 7009 | M162: 7049
A163: SK Teilnehmer 10 | B163: =_xlfn.IFNA(INDEX(VLC!A:A,MATCH(710,VLC!V:V,0)),"") ->  | C163: =_xlfn.IFNA(INDEX(VLC!A:A,MATCH(750,VLC!V:V,0)),"") ->  | D163: =_xlfn.IFNA(INDEX(VLC!B:B,MATCH(701+ROW(A10)-1,VLC!V:V,0)),"") ->  | E163: =_xlfn.IFNA(INDEX(VLC!C:C,MATCH(701+ROW(A10)-1,VLC!V:V,0)),"") ->  | F163: =_xlfn.IFNA(IF(INDEX(VLC!H:H,MATCH(701+ROW(A10)-1,VLC!V:V,0))="x",_xlfn.IFNA(INDEX(VLC!H:H,MATCH(701+ROW(A10)-1,VLC!V:V,0)),""),""),"") ->  | G163: =_xlfn.IFNA(IF(INDEX(VLC!H:H,MATCH(741+ROW(A10)-1,VLC!V:V,0))="x",_xlfn.IFNA(INDEX(VLC!H:H,MATCH(741+ROW(A10)-1,VLC!V:V,0)),""),""),"") ->  | H163: =_xlfn.IFNA(IF(INDEX(VLC!I:I,MATCH(701+ROW(A10)-1,VLC!V:V,0))<>"",_xlfn.IFNA(INDEX(VLC!I:I,MATCH(701+ROW(A10)-1,VLC!V:V,0)),""),""),"") ->  | I163: =_xlfn.IFNA(IF(INDEX(VLC!I:I,MATCH(741+ROW(A10)-1,VLC!V:V,0))<>"",_xlfn.IFNA(INDEX(VLC!I:I,MATCH(741+ROW(A10)-1,VLC!V:V,0)),""),""),"") ->  | J163: =_xlfn.IFNA(IF(INDEX(VLC!J:J,MATCH(701+ROW(A10)-1,VLC!V:V,0))="x",_xlfn.IFNA(INDEX(VLC!J:J,MATCH(701+ROW(A10)-1,VLC!V:V,0)),""),""),"") ->  | K163: =_xlfn.IFNA(IF(INDEX(VLC!J:J,MATCH(741+ROW(A10)-1,VLC!V:V,0))="x",_xlfn.IFNA(INDEX(VLC!J:J,MATCH(741+ROW(A10)-1,VLC!V:V,0)),""),""),"") ->  | L163: 7010 | M163: 7050
A164: SK Teilnehmer 11 | B164: =_xlfn.IFNA(INDEX(VLC!A:A,MATCH(711,VLC!V:V,0)),"") ->  | C164: =_xlfn.IFNA(INDEX(VLC!A:A,MATCH(751,VLC!V:V,0)),"") ->  | D164: =_xlfn.IFNA(INDEX(VLC!B:B,MATCH(701+ROW(A11)-1,VLC!V:V,0)),"") ->  | E164: =_xlfn.IFNA(INDEX(VLC!C:C,MATCH(701+ROW(A11)-1,VLC!V:V,0)),"") ->  | F164: =_xlfn.IFNA(IF(INDEX(VLC!H:H,MATCH(701+ROW(A11)-1,VLC!V:V,0))="x",_xlfn.IFNA(INDEX(VLC!H:H,MATCH(701+ROW(A11)-1,VLC!V:V,0)),""),""),"") ->  | G164: =_xlfn.IFNA(IF(INDEX(VLC!H:H,MATCH(741+ROW(A11)-1,VLC!V:V,0))="x",_xlfn.IFNA(INDEX(VLC!H:H,MATCH(741+ROW(A11)-1,VLC!V:V,0)),""),""),"") ->  | H164: =_xlfn.IFNA(IF(INDEX(VLC!I:I,MATCH(701+ROW(A11)-1,VLC!V:V,0))<>"",_xlfn.IFNA(INDEX(VLC!I:I,MATCH(701+ROW(A11)-1,VLC!V:V,0)),""),""),"") ->  | I164: =_xlfn.IFNA(IF(INDEX(VLC!I:I,MATCH(741+ROW(A11)-1,VLC!V:V,0))<>"",_xlfn.IFNA(INDEX(VLC!I:I,MATCH(741+ROW(A11)-1,VLC!V:V,0)),""),""),"") ->  | J164: =_xlfn.IFNA(IF(INDEX(VLC!J:J,MATCH(701+ROW(A11)-1,VLC!V:V,0))="x",_xlfn.IFNA(INDEX(VLC!J:J,MATCH(701+ROW(A11)-1,VLC!V:V,0)),""),""),"") ->  | K164: =_xlfn.IFNA(IF(INDEX(VLC!J:J,MATCH(741+ROW(A11)-1,VLC!V:V,0))="x",_xlfn.IFNA(INDEX(VLC!J:J,MATCH(741+ROW(A11)-1,VLC!V:V,0)),""),""),"") ->  | L164: 7011 | M164: 7051
A165: SK Teilnehmer 12 | B165: =_xlfn.IFNA(INDEX(VLC!A:A,MATCH(712,VLC!V:V,0)),"") ->  | C165: =_xlfn.IFNA(INDEX(VLC!A:A,MATCH(752,VLC!V:V,0)),"") ->  | D165: =_xlfn.IFNA(INDEX(VLC!B:B,MATCH(701+ROW(A12)-1,VLC!V:V,0)),"") ->  | E165: =_xlfn.IFNA(INDEX(VLC!C:C,MATCH(701+ROW(A12)-1,VLC!V:V,0)),"") ->  | F165: =_xlfn.IFNA(IF(INDEX(VLC!H:H,MATCH(701+ROW(A12)-1,VLC!V:V,0))="x",_xlfn.IFNA(INDEX(VLC!H:H,MATCH(701+ROW(A12)-1,VLC!V:V,0)),""),""),"") ->  | G165: =_xlfn.IFNA(IF(INDEX(VLC!H:H,MATCH(741+ROW(A12)-1,VLC!V:V,0))="x",_xlfn.IFNA(INDEX(VLC!H:H,MATCH(741+ROW(A12)-1,VLC!V:V,0)),""),""),"") ->  | H165: =_xlfn.IFNA(IF(INDEX(VLC!I:I,MATCH(701+ROW(A12)-1,VLC!V:V,0))<>"",_xlfn.IFNA(INDEX(VLC!I:I,MATCH(701+ROW(A12)-1,VLC!V:V,0)),""),""),"") ->  | I165: =_xlfn.IFNA(IF(INDEX(VLC!I:I,MATCH(741+ROW(A12)-1,VLC!V:V,0))<>"",_xlfn.IFNA(INDEX(VLC!I:I,MATCH(741+ROW(A12)-1,VLC!V:V,0)),""),""),"") ->  | J165: =_xlfn.IFNA(IF(INDEX(VLC!J:J,MATCH(701+ROW(A12)-1,VLC!V:V,0))="x",_xlfn.IFNA(INDEX(VLC!J:J,MATCH(701+ROW(A12)-1,VLC!V:V,0)),""),""),"") ->  | K165: =_xlfn.IFNA(IF(INDEX(VLC!J:J,MATCH(741+ROW(A12)-1,VLC!V:V,0))="x",_xlfn.IFNA(INDEX(VLC!J:J,MATCH(741+ROW(A12)-1,VLC!V:V,0)),""),""),"") ->  | L165: 7012 | M165: 7052
A166: SK Teilnehmer 13 | B166: =_xlfn.IFNA(INDEX(VLC!A:A,MATCH(713,VLC!V:V,0)),"") ->  | C166: =_xlfn.IFNA(INDEX(VLC!A:A,MATCH(753,VLC!V:V,0)),"") ->  | D166: =_xlfn.IFNA(INDEX(VLC!B:B,MATCH(701+ROW(A13)-1,VLC!V:V,0)),"") ->  | E166: =_xlfn.IFNA(INDEX(VLC!C:C,MATCH(701+ROW(A13)-1,VLC!V:V,0)),"") ->  | F166: =_xlfn.IFNA(IF(INDEX(VLC!H:H,MATCH(701+ROW(A13)-1,VLC!V:V,0))="x",_xlfn.IFNA(INDEX(VLC!H:H,MATCH(701+ROW(A13)-1,VLC!V:V,0)),""),""),"") ->  | G166: =_xlfn.IFNA(IF(INDEX(VLC!H:H,MATCH(741+ROW(A13)-1,VLC!V:V,0))="x",_xlfn.IFNA(INDEX(VLC!H:H,MATCH(741+ROW(A13)-1,VLC!V:V,0)),""),""),"") ->  | H166: =_xlfn.IFNA(IF(INDEX(VLC!I:I,MATCH(701+ROW(A13)-1,VLC!V:V,0))<>"",_xlfn.IFNA(INDEX(VLC!I:I,MATCH(701+ROW(A13)-1,VLC!V:V,0)),""),""),"") ->  | I166: =_xlfn.IFNA(IF(INDEX(VLC!I:I,MATCH(741+ROW(A13)-1,VLC!V:V,0))<>"",_xlfn.IFNA(INDEX(VLC!I:I,MATCH(741+ROW(A13)-1,VLC!V:V,0)),""),""),"") ->  | J166: =_xlfn.IFNA(IF(INDEX(VLC!J:J,MATCH(701+ROW(A13)-1,VLC!V:V,0))="x",_xlfn.IFNA(INDEX(VLC!J:J,MATCH(701+ROW(A13)-1,VLC!V:V,0)),""),""),"") ->  | K166: =_xlfn.IFNA(IF(INDEX(VLC!J:J,MATCH(741+ROW(A13)-1,VLC!V:V,0))="x",_xlfn.IFNA(INDEX(VLC!J:J,MATCH(741+ROW(A13)-1,VLC!V:V,0)),""),""),"") ->  | L166: 7013 | M166: 7053
A167: SK Teilnehmer 14 | B167: =_xlfn.IFNA(INDEX(VLC!A:A,MATCH(714,VLC!V:V,0)),"") ->  | C167: =_xlfn.IFNA(INDEX(VLC!A:A,MATCH(754,VLC!V:V,0)),"") ->  | D167: =_xlfn.IFNA(INDEX(VLC!B:B,MATCH(701+ROW(A14)-1,VLC!V:V,0)),"") ->  | E167: =_xlfn.IFNA(INDEX(VLC!C:C,MATCH(701+ROW(A14)-1,VLC!V:V,0)),"") ->  | F167: =_xlfn.IFNA(IF(INDEX(VLC!H:H,MATCH(701+ROW(A14)-1,VLC!V:V,0))="x",_xlfn.IFNA(INDEX(VLC!H:H,MATCH(701+ROW(A14)-1,VLC!V:V,0)),""),""),"") ->  | G167: =_xlfn.IFNA(IF(INDEX(VLC!H:H,MATCH(741+ROW(A14)-1,VLC!V:V,0))="x",_xlfn.IFNA(INDEX(VLC!H:H,MATCH(741+ROW(A14)-1,VLC!V:V,0)),""),""),"") ->  | H167: =_xlfn.IFNA(IF(INDEX(VLC!I:I,MATCH(701+ROW(A14)-1,VLC!V:V,0))<>"",_xlfn.IFNA(INDEX(VLC!I:I,MATCH(701+ROW(A14)-1,VLC!V:V,0)),""),""),"") ->  | I167: =_xlfn.IFNA(IF(INDEX(VLC!I:I,MATCH(741+ROW(A14)-1,VLC!V:V,0))<>"",_xlfn.IFNA(INDEX(VLC!I:I,MATCH(741+ROW(A14)-1,VLC!V:V,0)),""),""),"") ->  | J167: =_xlfn.IFNA(IF(INDEX(VLC!J:J,MATCH(701+ROW(A14)-1,VLC!V:V,0))="x",_xlfn.IFNA(INDEX(VLC!J:J,MATCH(701+ROW(A14)-1,VLC!V:V,0)),""),""),"") ->  | K167: =_xlfn.IFNA(IF(INDEX(VLC!J:J,MATCH(741+ROW(A14)-1,VLC!V:V,0))="x",_xlfn.IFNA(INDEX(VLC!J:J,MATCH(741+ROW(A14)-1,VLC!V:V,0)),""),""),"") ->  | L167: 7014 | M167: 7054
A168: SK Teilnehmer 15 | B168: =_xlfn.IFNA(INDEX(VLC!A:A,MATCH(715,VLC!V:V,0)),"") ->  | C168: =_xlfn.IFNA(INDEX(VLC!A:A,MATCH(755,VLC!V:V,0)),"") ->  | D168: =_xlfn.IFNA(INDEX(VLC!B:B,MATCH(701+ROW(A15)-1,VLC!V:V,0)),"") ->  | E168: =_xlfn.IFNA(INDEX(VLC!C:C,MATCH(701+ROW(A15)-1,VLC!V:V,0)),"") ->  | F168: =_xlfn.IFNA(IF(INDEX(VLC!H:H,MATCH(701+ROW(A15)-1,VLC!V:V,0))="x",_xlfn.IFNA(INDEX(VLC!H:H,MATCH(701+ROW(A15)-1,VLC!V:V,0)),""),""),"") ->  | G168: =_xlfn.IFNA(IF(INDEX(VLC!H:H,MATCH(741+ROW(A15)-1,VLC!V:V,0))="x",_xlfn.IFNA(INDEX(VLC!H:H,MATCH(741+ROW(A15)-1,VLC!V:V,0)),""),""),"") ->  | H168: =_xlfn.IFNA(IF(INDEX(VLC!I:I,MATCH(701+ROW(A15)-1,VLC!V:V,0))<>"",_xlfn.IFNA(INDEX(VLC!I:I,MATCH(701+ROW(A15)-1,VLC!V:V,0)),""),""),"") ->  | I168: =_xlfn.IFNA(IF(INDEX(VLC!I:I,MATCH(741+ROW(A15)-1,VLC!V:V,0))<>"",_xlfn.IFNA(INDEX(VLC!I:I,MATCH(741+ROW(A15)-1,VLC!V:V,0)),""),""),"") ->  | J168: =_xlfn.IFNA(IF(INDEX(VLC!J:J,MATCH(701+ROW(A15)-1,VLC!V:V,0))="x",_xlfn.IFNA(INDEX(VLC!J:J,MATCH(701+ROW(A15)-1,VLC!V:V,0)),""),""),"") ->  | K168: =_xlfn.IFNA(IF(INDEX(VLC!J:J,MATCH(741+ROW(A15)-1,VLC!V:V,0))="x",_xlfn.IFNA(INDEX(VLC!J:J,MATCH(741+ROW(A15)-1,VLC!V:V,0)),""),""),"") ->  | L168: 7015 | M168: 7055
A169: SK Teilnehmer 16 | B169: =_xlfn.IFNA(INDEX(VLC!A:A,MATCH(716,VLC!V:V,0)),"") ->  | C169: =_xlfn.IFNA(INDEX(VLC!A:A,MATCH(756,VLC!V:V,0)),"") ->  | D169: =_xlfn.IFNA(INDEX(VLC!B:B,MATCH(701+ROW(A16)-1,VLC!V:V,0)),"") ->  | E169: =_xlfn.IFNA(INDEX(VLC!C:C,MATCH(701+ROW(A16)-1,VLC!V:V,0)),"") ->  | F169: =_xlfn.IFNA(IF(INDEX(VLC!H:H,MATCH(701+ROW(A16)-1,VLC!V:V,0))="x",_xlfn.IFNA(INDEX(VLC!H:H,MATCH(701+ROW(A16)-1,VLC!V:V,0)),""),""),"") ->  | G169: =_xlfn.IFNA(IF(INDEX(VLC!H:H,MATCH(741+ROW(A16)-1,VLC!V:V,0))="x",_xlfn.IFNA(INDEX(VLC!H:H,MATCH(741+ROW(A16)-1,VLC!V:V,0)),""),""),"") ->  | H169: =_xlfn.IFNA(IF(INDEX(VLC!I:I,MATCH(701+ROW(A16)-1,VLC!V:V,0))<>"",_xlfn.IFNA(INDEX(VLC!I:I,MATCH(701+ROW(A16)-1,VLC!V:V,0)),""),""),"") ->  | I169: =_xlfn.IFNA(IF(INDEX(VLC!I:I,MATCH(741+ROW(A16)-1,VLC!V:V,0))<>"",_xlfn.IFNA(INDEX(VLC!I:I,MATCH(741+ROW(A16)-1,VLC!V:V,0)),""),""),"") ->  | J169: =_xlfn.IFNA(IF(INDEX(VLC!J:J,MATCH(701+ROW(A16)-1,VLC!V:V,0))="x",_xlfn.IFNA(INDEX(VLC!J:J,MATCH(701+ROW(A16)-1,VLC!V:V,0)),""),""),"") ->  | K169: =_xlfn.IFNA(IF(INDEX(VLC!J:J,MATCH(741+ROW(A16)-1,VLC!V:V,0))="x",_xlfn.IFNA(INDEX(VLC!J:J,MATCH(741+ROW(A16)-1,VLC!V:V,0)),""),""),"") ->  | L169: 7016 | M169: 7056
A170: SK Teilnehmer 17 | B170: =_xlfn.IFNA(INDEX(VLC!A:A,MATCH(717,VLC!V:V,0)),"") ->  | C170: =_xlfn.IFNA(INDEX(VLC!A:A,MATCH(757,VLC!V:V,0)),"") ->  | D170: =_xlfn.IFNA(INDEX(VLC!B:B,MATCH(701+ROW(A17)-1,VLC!V:V,0)),"") ->  | E170: =_xlfn.IFNA(INDEX(VLC!C:C,MATCH(701+ROW(A17)-1,VLC!V:V,0)),"") ->  | F170: =_xlfn.IFNA(IF(INDEX(VLC!H:H,MATCH(701+ROW(A17)-1,VLC!V:V,0))="x",_xlfn.IFNA(INDEX(VLC!H:H,MATCH(701+ROW(A17)-1,VLC!V:V,0)),""),""),"") ->  | G170: =_xlfn.IFNA(IF(INDEX(VLC!H:H,MATCH(741+ROW(A17)-1,VLC!V:V,0))="x",_xlfn.IFNA(INDEX(VLC!H:H,MATCH(741+ROW(A17)-1,VLC!V:V,0)),""),""),"") ->  | H170: =_xlfn.IFNA(IF(INDEX(VLC!I:I,MATCH(701+ROW(A17)-1,VLC!V:V,0))<>"",_xlfn.IFNA(INDEX(VLC!I:I,MATCH(701+ROW(A17)-1,VLC!V:V,0)),""),""),"") ->  | I170: =_xlfn.IFNA(IF(INDEX(VLC!I:I,MATCH(741+ROW(A17)-1,VLC!V:V,0))<>"",_xlfn.IFNA(INDEX(VLC!I:I,MATCH(741+ROW(A17)-1,VLC!V:V,0)),""),""),"") ->  | J170: =_xlfn.IFNA(IF(INDEX(VLC!J:J,MATCH(701+ROW(A17)-1,VLC!V:V,0))="x",_xlfn.IFNA(INDEX(VLC!J:J,MATCH(701+ROW(A17)-1,VLC!V:V,0)),""),""),"") ->  | K170: =_xlfn.IFNA(IF(INDEX(VLC!J:J,MATCH(741+ROW(A17)-1,VLC!V:V,0))="x",_xlfn.IFNA(INDEX(VLC!J:J,MATCH(741+ROW(A17)-1,VLC!V:V,0)),""),""),"") ->  | L170: 7017 | M170: 7057
A171: SK Teilnehmer 18 | B171: =_xlfn.IFNA(INDEX(VLC!A:A,MATCH(718,VLC!V:V,0)),"") ->  | C171: =_xlfn.IFNA(INDEX(VLC!A:A,MATCH(758,VLC!V:V,0)),"") ->  | D171: =_xlfn.IFNA(INDEX(VLC!B:B,MATCH(701+ROW(A18)-1,VLC!V:V,0)),"") ->  | E171: =_xlfn.IFNA(INDEX(VLC!C:C,MATCH(701+ROW(A18)-1,VLC!V:V,0)),"") ->  | F171: =_xlfn.IFNA(IF(INDEX(VLC!H:H,MATCH(701+ROW(A18)-1,VLC!V:V,0))="x",_xlfn.IFNA(INDEX(VLC!H:H,MATCH(701+ROW(A18)-1,VLC!V:V,0)),""),""),"") ->  | G171: =_xlfn.IFNA(IF(INDEX(VLC!H:H,MATCH(741+ROW(A18)-1,VLC!V:V,0))="x",_xlfn.IFNA(INDEX(VLC!H:H,MATCH(741+ROW(A18)-1,VLC!V:V,0)),""),""),"") ->  | H171: =_xlfn.IFNA(IF(INDEX(VLC!I:I,MATCH(701+ROW(A18)-1,VLC!V:V,0))<>"",_xlfn.IFNA(INDEX(VLC!I:I,MATCH(701+ROW(A18)-1,VLC!V:V,0)),""),""),"") ->  | I171: =_xlfn.IFNA(IF(INDEX(VLC!I:I,MATCH(741+ROW(A18)-1,VLC!V:V,0))<>"",_xlfn.IFNA(INDEX(VLC!I:I,MATCH(741+ROW(A18)-1,VLC!V:V,0)),""),""),"") ->  | J171: =_xlfn.IFNA(IF(INDEX(VLC!J:J,MATCH(701+ROW(A18)-1,VLC!V:V,0))="x",_xlfn.IFNA(INDEX(VLC!J:J,MATCH(701+ROW(A18)-1,VLC!V:V,0)),""),""),"") ->  | K171: =_xlfn.IFNA(IF(INDEX(VLC!J:J,MATCH(741+ROW(A18)-1,VLC!V:V,0))="x",_xlfn.IFNA(INDEX(VLC!J:J,MATCH(741+ROW(A18)-1,VLC!V:V,0)),""),""),"") ->  | L171: 7018 | M171: 7058
A172: SK Teilnehmer 19 | B172: =_xlfn.IFNA(INDEX(VLC!A:A,MATCH(719,VLC!V:V,0)),"") ->  | C172: =_xlfn.IFNA(INDEX(VLC!A:A,MATCH(759,VLC!V:V,0)),"") ->  | D172: =_xlfn.IFNA(INDEX(VLC!B:B,MATCH(701+ROW(A19)-1,VLC!V:V,0)),"") ->  | E172: =_xlfn.IFNA(INDEX(VLC!C:C,MATCH(701+ROW(A19)-1,VLC!V:V,0)),"") ->  | F172: =_xlfn.IFNA(IF(INDEX(VLC!H:H,MATCH(701+ROW(A19)-1,VLC!V:V,0))="x",_xlfn.IFNA(INDEX(VLC!H:H,MATCH(701+ROW(A19)-1,VLC!V:V,0)),""),""),"") ->  | G172: =_xlfn.IFNA(IF(INDEX(VLC!H:H,MATCH(741+ROW(A19)-1,VLC!V:V,0))="x",_xlfn.IFNA(INDEX(VLC!H:H,MATCH(741+ROW(A19)-1,VLC!V:V,0)),""),""),"") ->  | H172: =_xlfn.IFNA(IF(INDEX(VLC!I:I,MATCH(701+ROW(A19)-1,VLC!V:V,0))<>"",_xlfn.IFNA(INDEX(VLC!I:I,MATCH(701+ROW(A19)-1,VLC!V:V,0)),""),""),"") ->  | I172: =_xlfn.IFNA(IF(INDEX(VLC!I:I,MATCH(741+ROW(A19)-1,VLC!V:V,0))<>"",_xlfn.IFNA(INDEX(VLC!I:I,MATCH(741+ROW(A19)-1,VLC!V:V,0)),""),""),"") ->  | J172: =_xlfn.IFNA(IF(INDEX(VLC!J:J,MATCH(701+ROW(A19)-1,VLC!V:V,0))="x",_xlfn.IFNA(INDEX(VLC!J:J,MATCH(701+ROW(A19)-1,VLC!V:V,0)),""),""),"") ->  | K172: =_xlfn.IFNA(IF(INDEX(VLC!J:J,MATCH(741+ROW(A19)-1,VLC!V:V,0))="x",_xlfn.IFNA(INDEX(VLC!J:J,MATCH(741+ROW(A19)-1,VLC!V:V,0)),""),""),"") ->  | L172: 7019 | M172: 7059
A173: SK Teilnehmer 20 | B173: =_xlfn.IFNA(INDEX(VLC!A:A,MATCH(720,VLC!V:V,0)),"") ->  | C173: =_xlfn.IFNA(INDEX(VLC!A:A,MATCH(760,VLC!V:V,0)),"") ->  | D173: =_xlfn.IFNA(INDEX(VLC!B:B,MATCH(701+ROW(A20)-1,VLC!V:V,0)),"") ->  | E173: =_xlfn.IFNA(INDEX(VLC!C:C,MATCH(701+ROW(A20)-1,VLC!V:V,0)),"") ->  | F173: =_xlfn.IFNA(IF(INDEX(VLC!H:H,MATCH(701+ROW(A20)-1,VLC!V:V,0))="x",_xlfn.IFNA(INDEX(VLC!H:H,MATCH(701+ROW(A20)-1,VLC!V:V,0)),""),""),"") ->  | G173: =_xlfn.IFNA(IF(INDEX(VLC!H:H,MATCH(741+ROW(A20)-1,VLC!V:V,0))="x",_xlfn.IFNA(INDEX(VLC!H:H,MATCH(741+ROW(A20)-1,VLC!V:V,0)),""),""),"") ->  | H173: =_xlfn.IFNA(IF(INDEX(VLC!I:I,MATCH(701+ROW(A20)-1,VLC!V:V,0))<>"",_xlfn.IFNA(INDEX(VLC!I:I,MATCH(701+ROW(A20)-1,VLC!V:V,0)),""),""),"") ->  | I173: =_xlfn.IFNA(IF(INDEX(VLC!I:I,MATCH(741+ROW(A20)-1,VLC!V:V,0))<>"",_xlfn.IFNA(INDEX(VLC!I:I,MATCH(741+ROW(A20)-1,VLC!V:V,0)),""),""),"") ->  | J173: =_xlfn.IFNA(IF(INDEX(VLC!J:J,MATCH(701+ROW(A20)-1,VLC!V:V,0))="x",_xlfn.IFNA(INDEX(VLC!J:J,MATCH(701+ROW(A20)-1,VLC!V:V,0)),""),""),"") ->  | K173: =_xlfn.IFNA(IF(INDEX(VLC!J:J,MATCH(741+ROW(A20)-1,VLC!V:V,0))="x",_xlfn.IFNA(INDEX(VLC!J:J,MATCH(741+ROW(A20)-1,VLC!V:V,0)),""),""),"") ->  | L173: 7020 | M173: 7060
A174: Gerätename: | B174: =$B$6 -> 0 | E174: PLC24 Stromkreis-Nummer: 8
A175: Stromkreis-Bezeichnung:
A176: Stromkreisbelegung | B176: ID 1 | C176: ID 2 | D176: Bezeichnung | E176: Zusatzinfo | F176: DL | H176: GL | J176: BL
F177: ID1 | G177: ID2 | H177: ID1 | I177: ID2 | J177: ID1 | K177: ID2
A178: SK Teilnehmer 1 | B178: =_xlfn.IFNA(INDEX(VLC!A:A,MATCH(801,VLC!V:V,0)),"") ->  | C178: =_xlfn.IFNA(INDEX(VLC!A:A,MATCH(841,VLC!V:V,0)),"") ->  | D178: =_xlfn.IFNA(INDEX(VLC!B:B,MATCH(801+ROW(A1)-1,VLC!V:V,0)),"") ->  | E178: =_xlfn.IFNA(INDEX(VLC!C:C,MATCH(801+ROW(A1)-1,VLC!V:V,0)),"") ->  | F178: =_xlfn.IFNA(IF(INDEX(VLC!H:H,MATCH(801+ROW(A1)-1,VLC!V:V,0))="x",_xlfn.IFNA(INDEX(VLC!H:H,MATCH(801+ROW(A1)-1,VLC!V:V,0)),""),""),"") ->  | G178: =_xlfn.IFNA(IF(INDEX(VLC!H:H,MATCH(841+ROW(A1)-1,VLC!V:V,0))="x",_xlfn.IFNA(INDEX(VLC!H:H,MATCH(841+ROW(A1)-1,VLC!V:V,0)),""),""),"") ->  | H178: =_xlfn.IFNA(IF(INDEX(VLC!I:I,MATCH(801+ROW(A1)-1,VLC!V:V,0))<>"",_xlfn.IFNA(INDEX(VLC!I:I,MATCH(801+ROW(A1)-1,VLC!V:V,0)),""),""),"") ->  | I178: =_xlfn.IFNA(IF(INDEX(VLC!I:I,MATCH(841+ROW(A1)-1,VLC!V:V,0))<>"",_xlfn.IFNA(INDEX(VLC!I:I,MATCH(841+ROW(A1)-1,VLC!V:V,0)),""),""),"") ->  | J178: =_xlfn.IFNA(IF(INDEX(VLC!J:J,MATCH(801+ROW(A1)-1,VLC!V:V,0))="x",_xlfn.IFNA(INDEX(VLC!J:J,MATCH(801+ROW(A1)-1,VLC!V:V,0)),""),""),"") ->  | K178: =_xlfn.IFNA(IF(INDEX(VLC!J:J,MATCH(841+ROW(A1)-1,VLC!V:V,0))="x",_xlfn.IFNA(INDEX(VLC!J:J,MATCH(841+ROW(A1)-1,VLC!V:V,0)),""),""),"") ->  | L178: =8000+ROW(A178)-177 -> 8001 | M178: =L178+40 -> 8041
A179: SK Teilnehmer 2 | B179: =_xlfn.IFNA(INDEX(VLC!A:A,MATCH(802,VLC!V:V,0)),"") ->  | C179: =_xlfn.IFNA(INDEX(VLC!A:A,MATCH(842,VLC!V:V,0)),"") ->  | D179: =_xlfn.IFNA(INDEX(VLC!B:B,MATCH(801+ROW(A2)-1,VLC!V:V,0)),"") ->  | E179: =_xlfn.IFNA(INDEX(VLC!C:C,MATCH(801+ROW(A2)-1,VLC!V:V,0)),"") ->  | F179: =_xlfn.IFNA(IF(INDEX(VLC!H:H,MATCH(801+ROW(A2)-1,VLC!V:V,0))="x",_xlfn.IFNA(INDEX(VLC!H:H,MATCH(801+ROW(A2)-1,VLC!V:V,0)),""),""),"") ->  | G179: =_xlfn.IFNA(IF(INDEX(VLC!H:H,MATCH(841+ROW(A2)-1,VLC!V:V,0))="x",_xlfn.IFNA(INDEX(VLC!H:H,MATCH(841+ROW(A2)-1,VLC!V:V,0)),""),""),"") ->  | H179: =_xlfn.IFNA(IF(INDEX(VLC!I:I,MATCH(801+ROW(A2)-1,VLC!V:V,0))<>"",_xlfn.IFNA(INDEX(VLC!I:I,MATCH(801+ROW(A2)-1,VLC!V:V,0)),""),""),"") ->  | I179: =_xlfn.IFNA(IF(INDEX(VLC!I:I,MATCH(841+ROW(A2)-1,VLC!V:V,0))<>"",_xlfn.IFNA(INDEX(VLC!I:I,MATCH(841+ROW(A2)-1,VLC!V:V,0)),""),""),"") ->  | J179: =_xlfn.IFNA(IF(INDEX(VLC!J:J,MATCH(801+ROW(A2)-1,VLC!V:V,0))="x",_xlfn.IFNA(INDEX(VLC!J:J,MATCH(801+ROW(A2)-1,VLC!V:V,0)),""),""),"") ->  | K179: =_xlfn.IFNA(IF(INDEX(VLC!J:J,MATCH(841+ROW(A2)-1,VLC!V:V,0))="x",_xlfn.IFNA(INDEX(VLC!J:J,MATCH(841+ROW(A2)-1,VLC!V:V,0)),""),""),"") ->  | L179: =8000+ROW(A179)-177 -> 8002 | M179: =L179+40 -> 8042
A180: SK Teilnehmer 3 | B180: =_xlfn.IFNA(INDEX(VLC!A:A,MATCH(803,VLC!V:V,0)),"") ->  | C180: =_xlfn.IFNA(INDEX(VLC!A:A,MATCH(843,VLC!V:V,0)),"") ->  | D180: =_xlfn.IFNA(INDEX(VLC!B:B,MATCH(801+ROW(A3)-1,VLC!V:V,0)),"") ->  | E180: =_xlfn.IFNA(INDEX(VLC!C:C,MATCH(801+ROW(A3)-1,VLC!V:V,0)),"") ->  | F180: =_xlfn.IFNA(IF(INDEX(VLC!H:H,MATCH(801+ROW(A3)-1,VLC!V:V,0))="x",_xlfn.IFNA(INDEX(VLC!H:H,MATCH(801+ROW(A3)-1,VLC!V:V,0)),""),""),"") ->  | G180: =_xlfn.IFNA(IF(INDEX(VLC!H:H,MATCH(841+ROW(A3)-1,VLC!V:V,0))="x",_xlfn.IFNA(INDEX(VLC!H:H,MATCH(841+ROW(A3)-1,VLC!V:V,0)),""),""),"") ->  | H180: =_xlfn.IFNA(IF(INDEX(VLC!I:I,MATCH(801+ROW(A3)-1,VLC!V:V,0))<>"",_xlfn.IFNA(INDEX(VLC!I:I,MATCH(801+ROW(A3)-1,VLC!V:V,0)),""),""),"") ->  | I180: =_xlfn.IFNA(IF(INDEX(VLC!I:I,MATCH(841+ROW(A3)-1,VLC!V:V,0))<>"",_xlfn.IFNA(INDEX(VLC!I:I,MATCH(841+ROW(A3)-1,VLC!V:V,0)),""),""),"") ->  | J180: =_xlfn.IFNA(IF(INDEX(VLC!J:J,MATCH(801+ROW(A3)-1,VLC!V:V,0))="x",_xlfn.IFNA(INDEX(VLC!J:J,MATCH(801+ROW(A3)-1,VLC!V:V,0)),""),""),"") ->  | K180: =_xlfn.IFNA(IF(INDEX(VLC!J:J,MATCH(841+ROW(A3)-1,VLC!V:V,0))="x",_xlfn.IFNA(INDEX(VLC!J:J,MATCH(841+ROW(A3)-1,VLC!V:V,0)),""),""),"") ->  | L180: 8003 | M180: 8043
A181: SK Teilnehmer 4 | B181: =_xlfn.IFNA(INDEX(VLC!A:A,MATCH(804,VLC!V:V,0)),"") ->  | C181: =_xlfn.IFNA(INDEX(VLC!A:A,MATCH(844,VLC!V:V,0)),"") ->  | D181: =_xlfn.IFNA(INDEX(VLC!B:B,MATCH(801+ROW(A4)-1,VLC!V:V,0)),"") ->  | E181: =_xlfn.IFNA(INDEX(VLC!C:C,MATCH(801+ROW(A4)-1,VLC!V:V,0)),"") ->  | F181: =_xlfn.IFNA(IF(INDEX(VLC!H:H,MATCH(801+ROW(A4)-1,VLC!V:V,0))="x",_xlfn.IFNA(INDEX(VLC!H:H,MATCH(801+ROW(A4)-1,VLC!V:V,0)),""),""),"") ->  | G181: =_xlfn.IFNA(IF(INDEX(VLC!H:H,MATCH(841+ROW(A4)-1,VLC!V:V,0))="x",_xlfn.IFNA(INDEX(VLC!H:H,MATCH(841+ROW(A4)-1,VLC!V:V,0)),""),""),"") ->  | H181: =_xlfn.IFNA(IF(INDEX(VLC!I:I,MATCH(801+ROW(A4)-1,VLC!V:V,0))<>"",_xlfn.IFNA(INDEX(VLC!I:I,MATCH(801+ROW(A4)-1,VLC!V:V,0)),""),""),"") ->  | I181: =_xlfn.IFNA(IF(INDEX(VLC!I:I,MATCH(841+ROW(A4)-1,VLC!V:V,0))<>"",_xlfn.IFNA(INDEX(VLC!I:I,MATCH(841+ROW(A4)-1,VLC!V:V,0)),""),""),"") ->  | J181: =_xlfn.IFNA(IF(INDEX(VLC!J:J,MATCH(801+ROW(A4)-1,VLC!V:V,0))="x",_xlfn.IFNA(INDEX(VLC!J:J,MATCH(801+ROW(A4)-1,VLC!V:V,0)),""),""),"") ->  | K181: =_xlfn.IFNA(IF(INDEX(VLC!J:J,MATCH(841+ROW(A4)-1,VLC!V:V,0))="x",_xlfn.IFNA(INDEX(VLC!J:J,MATCH(841+ROW(A4)-1,VLC!V:V,0)),""),""),"") ->  | L181: 8004 | M181: 8044
A182: SK Teilnehmer 5 | B182: =_xlfn.IFNA(INDEX(VLC!A:A,MATCH(805,VLC!V:V,0)),"") ->  | C182: =_xlfn.IFNA(INDEX(VLC!A:A,MATCH(845,VLC!V:V,0)),"") ->  | D182: =_xlfn.IFNA(INDEX(VLC!B:B,MATCH(801+ROW(A5)-1,VLC!V:V,0)),"") ->  | E182: =_xlfn.IFNA(INDEX(VLC!C:C,MATCH(801+ROW(A5)-1,VLC!V:V,0)),"") ->  | F182: =_xlfn.IFNA(IF(INDEX(VLC!H:H,MATCH(801+ROW(A5)-1,VLC!V:V,0))="x",_xlfn.IFNA(INDEX(VLC!H:H,MATCH(801+ROW(A5)-1,VLC!V:V,0)),""),""),"") ->  | G182: =_xlfn.IFNA(IF(INDEX(VLC!H:H,MATCH(841+ROW(A5)-1,VLC!V:V,0))="x",_xlfn.IFNA(INDEX(VLC!H:H,MATCH(841+ROW(A5)-1,VLC!V:V,0)),""),""),"") ->  | H182: =_xlfn.IFNA(IF(INDEX(VLC!I:I,MATCH(801+ROW(A5)-1,VLC!V:V,0))<>"",_xlfn.IFNA(INDEX(VLC!I:I,MATCH(801+ROW(A5)-1,VLC!V:V,0)),""),""),"") ->  | I182: =_xlfn.IFNA(IF(INDEX(VLC!I:I,MATCH(841+ROW(A5)-1,VLC!V:V,0))<>"",_xlfn.IFNA(INDEX(VLC!I:I,MATCH(841+ROW(A5)-1,VLC!V:V,0)),""),""),"") ->  | J182: =_xlfn.IFNA(IF(INDEX(VLC!J:J,MATCH(801+ROW(A5)-1,VLC!V:V,0))="x",_xlfn.IFNA(INDEX(VLC!J:J,MATCH(801+ROW(A5)-1,VLC!V:V,0)),""),""),"") ->  | K182: =_xlfn.IFNA(IF(INDEX(VLC!J:J,MATCH(841+ROW(A5)-1,VLC!V:V,0))="x",_xlfn.IFNA(INDEX(VLC!J:J,MATCH(841+ROW(A5)-1,VLC!V:V,0)),""),""),"") ->  | L182: 8005 | M182: 8045
A183: SK Teilnehmer 6 | B183: =_xlfn.IFNA(INDEX(VLC!A:A,MATCH(806,VLC!V:V,0)),"") ->  | C183: =_xlfn.IFNA(INDEX(VLC!A:A,MATCH(846,VLC!V:V,0)),"") ->  | D183: =_xlfn.IFNA(INDEX(VLC!B:B,MATCH(801+ROW(A6)-1,VLC!V:V,0)),"") ->  | E183: =_xlfn.IFNA(INDEX(VLC!C:C,MATCH(801+ROW(A6)-1,VLC!V:V,0)),"") ->  | F183: =_xlfn.IFNA(IF(INDEX(VLC!H:H,MATCH(801+ROW(A6)-1,VLC!V:V,0))="x",_xlfn.IFNA(INDEX(VLC!H:H,MATCH(801+ROW(A6)-1,VLC!V:V,0)),""),""),"") ->  | G183: =_xlfn.IFNA(IF(INDEX(VLC!H:H,MATCH(841+ROW(A6)-1,VLC!V:V,0))="x",_xlfn.IFNA(INDEX(VLC!H:H,MATCH(841+ROW(A6)-1,VLC!V:V,0)),""),""),"") ->  | H183: =_xlfn.IFNA(IF(INDEX(VLC!I:I,MATCH(801+ROW(A6)-1,VLC!V:V,0))<>"",_xlfn.IFNA(INDEX(VLC!I:I,MATCH(801+ROW(A6)-1,VLC!V:V,0)),""),""),"") ->  | I183: =_xlfn.IFNA(IF(INDEX(VLC!I:I,MATCH(841+ROW(A6)-1,VLC!V:V,0))<>"",_xlfn.IFNA(INDEX(VLC!I:I,MATCH(841+ROW(A6)-1,VLC!V:V,0)),""),""),"") ->  | J183: =_xlfn.IFNA(IF(INDEX(VLC!J:J,MATCH(801+ROW(A6)-1,VLC!V:V,0))="x",_xlfn.IFNA(INDEX(VLC!J:J,MATCH(801+ROW(A6)-1,VLC!V:V,0)),""),""),"") ->  | K183: =_xlfn.IFNA(IF(INDEX(VLC!J:J,MATCH(841+ROW(A6)-1,VLC!V:V,0))="x",_xlfn.IFNA(INDEX(VLC!J:J,MATCH(841+ROW(A6)-1,VLC!V:V,0)),""),""),"") ->  | L183: 8006 | M183: 8046
A184: SK Teilnehmer 7 | B184: =_xlfn.IFNA(INDEX(VLC!A:A,MATCH(807,VLC!V:V,0)),"") ->  | C184: =_xlfn.IFNA(INDEX(VLC!A:A,MATCH(847,VLC!V:V,0)),"") ->  | D184: =_xlfn.IFNA(INDEX(VLC!B:B,MATCH(801+ROW(A7)-1,VLC!V:V,0)),"") ->  | E184: =_xlfn.IFNA(INDEX(VLC!C:C,MATCH(801+ROW(A7)-1,VLC!V:V,0)),"") ->  | F184: =_xlfn.IFNA(IF(INDEX(VLC!H:H,MATCH(801+ROW(A7)-1,VLC!V:V,0))="x",_xlfn.IFNA(INDEX(VLC!H:H,MATCH(801+ROW(A7)-1,VLC!V:V,0)),""),""),"") ->  | G184: =_xlfn.IFNA(IF(INDEX(VLC!H:H,MATCH(841+ROW(A7)-1,VLC!V:V,0))="x",_xlfn.IFNA(INDEX(VLC!H:H,MATCH(841+ROW(A7)-1,VLC!V:V,0)),""),""),"") ->  | H184: =_xlfn.IFNA(IF(INDEX(VLC!I:I,MATCH(801+ROW(A7)-1,VLC!V:V,0))<>"",_xlfn.IFNA(INDEX(VLC!I:I,MATCH(801+ROW(A7)-1,VLC!V:V,0)),""),""),"") ->  | I184: =_xlfn.IFNA(IF(INDEX(VLC!I:I,MATCH(841+ROW(A7)-1,VLC!V:V,0))<>"",_xlfn.IFNA(INDEX(VLC!I:I,MATCH(841+ROW(A7)-1,VLC!V:V,0)),""),""),"") ->  | J184: =_xlfn.IFNA(IF(INDEX(VLC!J:J,MATCH(801+ROW(A7)-1,VLC!V:V,0))="x",_xlfn.IFNA(INDEX(VLC!J:J,MATCH(801+ROW(A7)-1,VLC!V:V,0)),""),""),"") ->  | K184: =_xlfn.IFNA(IF(INDEX(VLC!J:J,MATCH(841+ROW(A7)-1,VLC!V:V,0))="x",_xlfn.IFNA(INDEX(VLC!J:J,MATCH(841+ROW(A7)-1,VLC!V:V,0)),""),""),"") ->  | L184: 8007 | M184: 8047
A185: SK Teilnehmer 8 | B185: =_xlfn.IFNA(INDEX(VLC!A:A,MATCH(808,VLC!V:V,0)),"") ->  | C185: =_xlfn.IFNA(INDEX(VLC!A:A,MATCH(848,VLC!V:V,0)),"") ->  | D185: =_xlfn.IFNA(INDEX(VLC!B:B,MATCH(801+ROW(A8)-1,VLC!V:V,0)),"") ->  | E185: =_xlfn.IFNA(INDEX(VLC!C:C,MATCH(801+ROW(A8)-1,VLC!V:V,0)),"") ->  | F185: =_xlfn.IFNA(IF(INDEX(VLC!H:H,MATCH(801+ROW(A8)-1,VLC!V:V,0))="x",_xlfn.IFNA(INDEX(VLC!H:H,MATCH(801+ROW(A8)-1,VLC!V:V,0)),""),""),"") ->  | G185: =_xlfn.IFNA(IF(INDEX(VLC!H:H,MATCH(841+ROW(A8)-1,VLC!V:V,0))="x",_xlfn.IFNA(INDEX(VLC!H:H,MATCH(841+ROW(A8)-1,VLC!V:V,0)),""),""),"") ->  | H185: =_xlfn.IFNA(IF(INDEX(VLC!I:I,MATCH(801+ROW(A8)-1,VLC!V:V,0))<>"",_xlfn.IFNA(INDEX(VLC!I:I,MATCH(801+ROW(A8)-1,VLC!V:V,0)),""),""),"") ->  | I185: =_xlfn.IFNA(IF(INDEX(VLC!I:I,MATCH(841+ROW(A8)-1,VLC!V:V,0))<>"",_xlfn.IFNA(INDEX(VLC!I:I,MATCH(841+ROW(A8)-1,VLC!V:V,0)),""),""),"") ->  | J185: =_xlfn.IFNA(IF(INDEX(VLC!J:J,MATCH(801+ROW(A8)-1,VLC!V:V,0))="x",_xlfn.IFNA(INDEX(VLC!J:J,MATCH(801+ROW(A8)-1,VLC!V:V,0)),""),""),"") ->  | K185: =_xlfn.IFNA(IF(INDEX(VLC!J:J,MATCH(841+ROW(A8)-1,VLC!V:V,0))="x",_xlfn.IFNA(INDEX(VLC!J:J,MATCH(841+ROW(A8)-1,VLC!V:V,0)),""),""),"") ->  | L185: 8008 | M185: 8048
A186: SK Teilnehmer 9 | B186: =_xlfn.IFNA(INDEX(VLC!A:A,MATCH(809,VLC!V:V,0)),"") ->  | C186: =_xlfn.IFNA(INDEX(VLC!A:A,MATCH(849,VLC!V:V,0)),"") ->  | D186: =_xlfn.IFNA(INDEX(VLC!B:B,MATCH(801+ROW(A9)-1,VLC!V:V,0)),"") ->  | E186: =_xlfn.IFNA(INDEX(VLC!C:C,MATCH(801+ROW(A9)-1,VLC!V:V,0)),"") ->  | F186: =_xlfn.IFNA(IF(INDEX(VLC!H:H,MATCH(801+ROW(A9)-1,VLC!V:V,0))="x",_xlfn.IFNA(INDEX(VLC!H:H,MATCH(801+ROW(A9)-1,VLC!V:V,0)),""),""),"") ->  | G186: =_xlfn.IFNA(IF(INDEX(VLC!H:H,MATCH(841+ROW(A9)-1,VLC!V:V,0))="x",_xlfn.IFNA(INDEX(VLC!H:H,MATCH(841+ROW(A9)-1,VLC!V:V,0)),""),""),"") ->  | H186: =_xlfn.IFNA(IF(INDEX(VLC!I:I,MATCH(801+ROW(A9)-1,VLC!V:V,0))<>"",_xlfn.IFNA(INDEX(VLC!I:I,MATCH(801+ROW(A9)-1,VLC!V:V,0)),""),""),"") ->  | I186: =_xlfn.IFNA(IF(INDEX(VLC!I:I,MATCH(841+ROW(A9)-1,VLC!V:V,0))<>"",_xlfn.IFNA(INDEX(VLC!I:I,MATCH(841+ROW(A9)-1,VLC!V:V,0)),""),""),"") ->  | J186: =_xlfn.IFNA(IF(INDEX(VLC!J:J,MATCH(801+ROW(A9)-1,VLC!V:V,0))="x",_xlfn.IFNA(INDEX(VLC!J:J,MATCH(801+ROW(A9)-1,VLC!V:V,0)),""),""),"") ->  | K186: =_xlfn.IFNA(IF(INDEX(VLC!J:J,MATCH(841+ROW(A9)-1,VLC!V:V,0))="x",_xlfn.IFNA(INDEX(VLC!J:J,MATCH(841+ROW(A9)-1,VLC!V:V,0)),""),""),"") ->  | L186: 8009 | M186: 8049
A187: SK Teilnehmer 10 | B187: =_xlfn.IFNA(INDEX(VLC!A:A,MATCH(810,VLC!V:V,0)),"") ->  | C187: =_xlfn.IFNA(INDEX(VLC!A:A,MATCH(850,VLC!V:V,0)),"") ->  | D187: =_xlfn.IFNA(INDEX(VLC!B:B,MATCH(801+ROW(A10)-1,VLC!V:V,0)),"") ->  | E187: =_xlfn.IFNA(INDEX(VLC!C:C,MATCH(801+ROW(A10)-1,VLC!V:V,0)),"") ->  | F187: =_xlfn.IFNA(IF(INDEX(VLC!H:H,MATCH(801+ROW(A10)-1,VLC!V:V,0))="x",_xlfn.IFNA(INDEX(VLC!H:H,MATCH(801+ROW(A10)-1,VLC!V:V,0)),""),""),"") ->  | G187: =_xlfn.IFNA(IF(INDEX(VLC!H:H,MATCH(841+ROW(A10)-1,VLC!V:V,0))="x",_xlfn.IFNA(INDEX(VLC!H:H,MATCH(841+ROW(A10)-1,VLC!V:V,0)),""),""),"") ->  | H187: =_xlfn.IFNA(IF(INDEX(VLC!I:I,MATCH(801+ROW(A10)-1,VLC!V:V,0))<>"",_xlfn.IFNA(INDEX(VLC!I:I,MATCH(801+ROW(A10)-1,VLC!V:V,0)),""),""),"") ->  | I187: =_xlfn.IFNA(IF(INDEX(VLC!I:I,MATCH(841+ROW(A10)-1,VLC!V:V,0))<>"",_xlfn.IFNA(INDEX(VLC!I:I,MATCH(841+ROW(A10)-1,VLC!V:V,0)),""),""),"") ->  | J187: =_xlfn.IFNA(IF(INDEX(VLC!J:J,MATCH(801+ROW(A10)-1,VLC!V:V,0))="x",_xlfn.IFNA(INDEX(VLC!J:J,MATCH(801+ROW(A10)-1,VLC!V:V,0)),""),""),"") ->  | K187: =_xlfn.IFNA(IF(INDEX(VLC!J:J,MATCH(841+ROW(A10)-1,VLC!V:V,0))="x",_xlfn.IFNA(INDEX(VLC!J:J,MATCH(841+ROW(A10)-1,VLC!V:V,0)),""),""),"") ->  | L187: 8010 | M187: 8050
A188: SK Teilnehmer 11 | B188: =_xlfn.IFNA(INDEX(VLC!A:A,MATCH(811,VLC!V:V,0)),"") ->  | C188: =_xlfn.IFNA(INDEX(VLC!A:A,MATCH(851,VLC!V:V,0)),"") ->  | D188: =_xlfn.IFNA(INDEX(VLC!B:B,MATCH(801+ROW(A11)-1,VLC!V:V,0)),"") ->  | E188: =_xlfn.IFNA(INDEX(VLC!C:C,MATCH(801+ROW(A11)-1,VLC!V:V,0)),"") ->  | F188: =_xlfn.IFNA(IF(INDEX(VLC!H:H,MATCH(801+ROW(A11)-1,VLC!V:V,0))="x",_xlfn.IFNA(INDEX(VLC!H:H,MATCH(801+ROW(A11)-1,VLC!V:V,0)),""),""),"") ->  | G188: =_xlfn.IFNA(IF(INDEX(VLC!H:H,MATCH(841+ROW(A11)-1,VLC!V:V,0))="x",_xlfn.IFNA(INDEX(VLC!H:H,MATCH(841+ROW(A11)-1,VLC!V:V,0)),""),""),"") ->  | H188: =_xlfn.IFNA(IF(INDEX(VLC!I:I,MATCH(801+ROW(A11)-1,VLC!V:V,0))<>"",_xlfn.IFNA(INDEX(VLC!I:I,MATCH(801+ROW(A11)-1,VLC!V:V,0)),""),""),"") ->  | I188: =_xlfn.IFNA(IF(INDEX(VLC!I:I,MATCH(841+ROW(A11)-1,VLC!V:V,0))<>"",_xlfn.IFNA(INDEX(VLC!I:I,MATCH(841+ROW(A11)-1,VLC!V:V,0)),""),""),"") ->  | J188: =_xlfn.IFNA(IF(INDEX(VLC!J:J,MATCH(801+ROW(A11)-1,VLC!V:V,0))="x",_xlfn.IFNA(INDEX(VLC!J:J,MATCH(801+ROW(A11)-1,VLC!V:V,0)),""),""),"") ->  | K188: =_xlfn.IFNA(IF(INDEX(VLC!J:J,MATCH(841+ROW(A11)-1,VLC!V:V,0))="x",_xlfn.IFNA(INDEX(VLC!J:J,MATCH(841+ROW(A11)-1,VLC!V:V,0)),""),""),"") ->  | L188: 8011 | M188: 8051
A189: SK Teilnehmer 12 | B189: =_xlfn.IFNA(INDEX(VLC!A:A,MATCH(812,VLC!V:V,0)),"") ->  | C189: =_xlfn.IFNA(INDEX(VLC!A:A,MATCH(852,VLC!V:V,0)),"") ->  | D189: =_xlfn.IFNA(INDEX(VLC!B:B,MATCH(801+ROW(A12)-1,VLC!V:V,0)),"") ->  | E189: =_xlfn.IFNA(INDEX(VLC!C:C,MATCH(801+ROW(A12)-1,VLC!V:V,0)),"") ->  | F189: =_xlfn.IFNA(IF(INDEX(VLC!H:H,MATCH(801+ROW(A12)-1,VLC!V:V,0))="x",_xlfn.IFNA(INDEX(VLC!H:H,MATCH(801+ROW(A12)-1,VLC!V:V,0)),""),""),"") ->  | G189: =_xlfn.IFNA(IF(INDEX(VLC!H:H,MATCH(841+ROW(A12)-1,VLC!V:V,0))="x",_xlfn.IFNA(INDEX(VLC!H:H,MATCH(841+ROW(A12)-1,VLC!V:V,0)),""),""),"") ->  | H189: =_xlfn.IFNA(IF(INDEX(VLC!I:I,MATCH(801+ROW(A12)-1,VLC!V:V,0))<>"",_xlfn.IFNA(INDEX(VLC!I:I,MATCH(801+ROW(A12)-1,VLC!V:V,0)),""),""),"") ->  | I189: =_xlfn.IFNA(IF(INDEX(VLC!I:I,MATCH(841+ROW(A12)-1,VLC!V:V,0))<>"",_xlfn.IFNA(INDEX(VLC!I:I,MATCH(841+ROW(A12)-1,VLC!V:V,0)),""),""),"") ->  | J189: =_xlfn.IFNA(IF(INDEX(VLC!J:J,MATCH(801+ROW(A12)-1,VLC!V:V,0))="x",_xlfn.IFNA(INDEX(VLC!J:J,MATCH(801+ROW(A12)-1,VLC!V:V,0)),""),""),"") ->  | K189: =_xlfn.IFNA(IF(INDEX(VLC!J:J,MATCH(841+ROW(A12)-1,VLC!V:V,0))="x",_xlfn.IFNA(INDEX(VLC!J:J,MATCH(841+ROW(A12)-1,VLC!V:V,0)),""),""),"") ->  | L189: 8012 | M189: 8052
A190: SK Teilnehmer 13 | B190: =_xlfn.IFNA(INDEX(VLC!A:A,MATCH(813,VLC!V:V,0)),"") ->  | C190: =_xlfn.IFNA(INDEX(VLC!A:A,MATCH(853,VLC!V:V,0)),"") ->  | D190: =_xlfn.IFNA(INDEX(VLC!B:B,MATCH(801+ROW(A13)-1,VLC!V:V,0)),"") ->  | E190: =_xlfn.IFNA(INDEX(VLC!C:C,MATCH(801+ROW(A13)-1,VLC!V:V,0)),"") ->  | F190: =_xlfn.IFNA(IF(INDEX(VLC!H:H,MATCH(801+ROW(A13)-1,VLC!V:V,0))="x",_xlfn.IFNA(INDEX(VLC!H:H,MATCH(801+ROW(A13)-1,VLC!V:V,0)),""),""),"") ->  | G190: =_xlfn.IFNA(IF(INDEX(VLC!H:H,MATCH(841+ROW(A13)-1,VLC!V:V,0))="x",_xlfn.IFNA(INDEX(VLC!H:H,MATCH(841+ROW(A13)-1,VLC!V:V,0)),""),""),"") ->  | H190: =_xlfn.IFNA(IF(INDEX(VLC!I:I,MATCH(801+ROW(A13)-1,VLC!V:V,0))<>"",_xlfn.IFNA(INDEX(VLC!I:I,MATCH(801+ROW(A13)-1,VLC!V:V,0)),""),""),"") ->  | I190: =_xlfn.IFNA(IF(INDEX(VLC!I:I,MATCH(841+ROW(A13)-1,VLC!V:V,0))<>"",_xlfn.IFNA(INDEX(VLC!I:I,MATCH(841+ROW(A13)-1,VLC!V:V,0)),""),""),"") ->  | J190: =_xlfn.IFNA(IF(INDEX(VLC!J:J,MATCH(801+ROW(A13)-1,VLC!V:V,0))="x",_xlfn.IFNA(INDEX(VLC!J:J,MATCH(801+ROW(A13)-1,VLC!V:V,0)),""),""),"") ->  | K190: =_xlfn.IFNA(IF(INDEX(VLC!J:J,MATCH(841+ROW(A13)-1,VLC!V:V,0))="x",_xlfn.IFNA(INDEX(VLC!J:J,MATCH(841+ROW(A13)-1,VLC!V:V,0)),""),""),"") ->  | L190: 8013 | M190: 8053
A191: SK Teilnehmer 14 | B191: =_xlfn.IFNA(INDEX(VLC!A:A,MATCH(814,VLC!V:V,0)),"") ->  | C191: =_xlfn.IFNA(INDEX(VLC!A:A,MATCH(854,VLC!V:V,0)),"") ->  | D191: =_xlfn.IFNA(INDEX(VLC!B:B,MATCH(801+ROW(A14)-1,VLC!V:V,0)),"") ->  | E191: =_xlfn.IFNA(INDEX(VLC!C:C,MATCH(801+ROW(A14)-1,VLC!V:V,0)),"") ->  | F191: =_xlfn.IFNA(IF(INDEX(VLC!H:H,MATCH(801+ROW(A14)-1,VLC!V:V,0))="x",_xlfn.IFNA(INDEX(VLC!H:H,MATCH(801+ROW(A14)-1,VLC!V:V,0)),""),""),"") ->  | G191: =_xlfn.IFNA(IF(INDEX(VLC!H:H,MATCH(841+ROW(A14)-1,VLC!V:V,0))="x",_xlfn.IFNA(INDEX(VLC!H:H,MATCH(841+ROW(A14)-1,VLC!V:V,0)),""),""),"") ->  | H191: =_xlfn.IFNA(IF(INDEX(VLC!I:I,MATCH(801+ROW(A14)-1,VLC!V:V,0))<>"",_xlfn.IFNA(INDEX(VLC!I:I,MATCH(801+ROW(A14)-1,VLC!V:V,0)),""),""),"") ->  | I191: =_xlfn.IFNA(IF(INDEX(VLC!I:I,MATCH(841+ROW(A14)-1,VLC!V:V,0))<>"",_xlfn.IFNA(INDEX(VLC!I:I,MATCH(841+ROW(A14)-1,VLC!V:V,0)),""),""),"") ->  | J191: =_xlfn.IFNA(IF(INDEX(VLC!J:J,MATCH(801+ROW(A14)-1,VLC!V:V,0))="x",_xlfn.IFNA(INDEX(VLC!J:J,MATCH(801+ROW(A14)-1,VLC!V:V,0)),""),""),"") ->  | K191: =_xlfn.IFNA(IF(INDEX(VLC!J:J,MATCH(841+ROW(A14)-1,VLC!V:V,0))="x",_xlfn.IFNA(INDEX(VLC!J:J,MATCH(841+ROW(A14)-1,VLC!V:V,0)),""),""),"") ->  | L191: 8014 | M191: 8054
A192: SK Teilnehmer 15 | B192: =_xlfn.IFNA(INDEX(VLC!A:A,MATCH(815,VLC!V:V,0)),"") ->  | C192: =_xlfn.IFNA(INDEX(VLC!A:A,MATCH(855,VLC!V:V,0)),"") ->  | D192: =_xlfn.IFNA(INDEX(VLC!B:B,MATCH(801+ROW(A15)-1,VLC!V:V,0)),"") ->  | E192: =_xlfn.IFNA(INDEX(VLC!C:C,MATCH(801+ROW(A15)-1,VLC!V:V,0)),"") ->  | F192: =_xlfn.IFNA(IF(INDEX(VLC!H:H,MATCH(801+ROW(A15)-1,VLC!V:V,0))="x",_xlfn.IFNA(INDEX(VLC!H:H,MATCH(801+ROW(A15)-1,VLC!V:V,0)),""),""),"") ->  | G192: =_xlfn.IFNA(IF(INDEX(VLC!H:H,MATCH(841+ROW(A15)-1,VLC!V:V,0))="x",_xlfn.IFNA(INDEX(VLC!H:H,MATCH(841+ROW(A15)-1,VLC!V:V,0)),""),""),"") ->  | H192: =_xlfn.IFNA(IF(INDEX(VLC!I:I,MATCH(801+ROW(A15)-1,VLC!V:V,0))<>"",_xlfn.IFNA(INDEX(VLC!I:I,MATCH(801+ROW(A15)-1,VLC!V:V,0)),""),""),"") ->  | I192: =_xlfn.IFNA(IF(INDEX(VLC!I:I,MATCH(841+ROW(A15)-1,VLC!V:V,0))<>"",_xlfn.IFNA(INDEX(VLC!I:I,MATCH(841+ROW(A15)-1,VLC!V:V,0)),""),""),"") ->  | J192: =_xlfn.IFNA(IF(INDEX(VLC!J:J,MATCH(801+ROW(A15)-1,VLC!V:V,0))="x",_xlfn.IFNA(INDEX(VLC!J:J,MATCH(801+ROW(A15)-1,VLC!V:V,0)),""),""),"") ->  | K192: =_xlfn.IFNA(IF(INDEX(VLC!J:J,MATCH(841+ROW(A15)-1,VLC!V:V,0))="x",_xlfn.IFNA(INDEX(VLC!J:J,MATCH(841+ROW(A15)-1,VLC!V:V,0)),""),""),"") ->  | L192: 8015 | M192: 8055
A193: SK Teilnehmer 16 | B193: =_xlfn.IFNA(INDEX(VLC!A:A,MATCH(816,VLC!V:V,0)),"") ->  | C193: =_xlfn.IFNA(INDEX(VLC!A:A,MATCH(856,VLC!V:V,0)),"") ->  | D193: =_xlfn.IFNA(INDEX(VLC!B:B,MATCH(801+ROW(A16)-1,VLC!V:V,0)),"") ->  | E193: =_xlfn.IFNA(INDEX(VLC!C:C,MATCH(801+ROW(A16)-1,VLC!V:V,0)),"") ->  | F193: =_xlfn.IFNA(IF(INDEX(VLC!H:H,MATCH(801+ROW(A16)-1,VLC!V:V,0))="x",_xlfn.IFNA(INDEX(VLC!H:H,MATCH(801+ROW(A16)-1,VLC!V:V,0)),""),""),"") ->  | G193: =_xlfn.IFNA(IF(INDEX(VLC!H:H,MATCH(841+ROW(A16)-1,VLC!V:V,0))="x",_xlfn.IFNA(INDEX(VLC!H:H,MATCH(841+ROW(A16)-1,VLC!V:V,0)),""),""),"") ->  | H193: =_xlfn.IFNA(IF(INDEX(VLC!I:I,MATCH(801+ROW(A16)-1,VLC!V:V,0))<>"",_xlfn.IFNA(INDEX(VLC!I:I,MATCH(801+ROW(A16)-1,VLC!V:V,0)),""),""),"") ->  | I193: =_xlfn.IFNA(IF(INDEX(VLC!I:I,MATCH(841+ROW(A16)-1,VLC!V:V,0))<>"",_xlfn.IFNA(INDEX(VLC!I:I,MATCH(841+ROW(A16)-1,VLC!V:V,0)),""),""),"") ->  | J193: =_xlfn.IFNA(IF(INDEX(VLC!J:J,MATCH(801+ROW(A16)-1,VLC!V:V,0))="x",_xlfn.IFNA(INDEX(VLC!J:J,MATCH(801+ROW(A16)-1,VLC!V:V,0)),""),""),"") ->  | K193: =_xlfn.IFNA(IF(INDEX(VLC!J:J,MATCH(841+ROW(A16)-1,VLC!V:V,0))="x",_xlfn.IFNA(INDEX(VLC!J:J,MATCH(841+ROW(A16)-1,VLC!V:V,0)),""),""),"") ->  | L193: 8016 | M193: 8056
A194: SK Teilnehmer 17 | B194: =_xlfn.IFNA(INDEX(VLC!A:A,MATCH(817,VLC!V:V,0)),"") ->  | C194: =_xlfn.IFNA(INDEX(VLC!A:A,MATCH(857,VLC!V:V,0)),"") ->  | D194: =_xlfn.IFNA(INDEX(VLC!B:B,MATCH(801+ROW(A17)-1,VLC!V:V,0)),"") ->  | E194: =_xlfn.IFNA(INDEX(VLC!C:C,MATCH(801+ROW(A17)-1,VLC!V:V,0)),"") ->  | F194: =_xlfn.IFNA(IF(INDEX(VLC!H:H,MATCH(801+ROW(A17)-1,VLC!V:V,0))="x",_xlfn.IFNA(INDEX(VLC!H:H,MATCH(801+ROW(A17)-1,VLC!V:V,0)),""),""),"") ->  | G194: =_xlfn.IFNA(IF(INDEX(VLC!H:H,MATCH(841+ROW(A17)-1,VLC!V:V,0))="x",_xlfn.IFNA(INDEX(VLC!H:H,MATCH(841+ROW(A17)-1,VLC!V:V,0)),""),""),"") ->  | H194: =_xlfn.IFNA(IF(INDEX(VLC!I:I,MATCH(801+ROW(A17)-1,VLC!V:V,0))<>"",_xlfn.IFNA(INDEX(VLC!I:I,MATCH(801+ROW(A17)-1,VLC!V:V,0)),""),""),"") ->  | I194: =_xlfn.IFNA(IF(INDEX(VLC!I:I,MATCH(841+ROW(A17)-1,VLC!V:V,0))<>"",_xlfn.IFNA(INDEX(VLC!I:I,MATCH(841+ROW(A17)-1,VLC!V:V,0)),""),""),"") ->  | J194: =_xlfn.IFNA(IF(INDEX(VLC!J:J,MATCH(801+ROW(A17)-1,VLC!V:V,0))="x",_xlfn.IFNA(INDEX(VLC!J:J,MATCH(801+ROW(A17)-1,VLC!V:V,0)),""),""),"") ->  | K194: =_xlfn.IFNA(IF(INDEX(VLC!J:J,MATCH(841+ROW(A17)-1,VLC!V:V,0))="x",_xlfn.IFNA(INDEX(VLC!J:J,MATCH(841+ROW(A17)-1,VLC!V:V,0)),""),""),"") ->  | L194: 8017 | M194: 8057
A195: SK Teilnehmer 18 | B195: =_xlfn.IFNA(INDEX(VLC!A:A,MATCH(818,VLC!V:V,0)),"") ->  | C195: =_xlfn.IFNA(INDEX(VLC!A:A,MATCH(858,VLC!V:V,0)),"") ->  | D195: =_xlfn.IFNA(INDEX(VLC!B:B,MATCH(801+ROW(A18)-1,VLC!V:V,0)),"") ->  | E195: =_xlfn.IFNA(INDEX(VLC!C:C,MATCH(801+ROW(A18)-1,VLC!V:V,0)),"") ->  | F195: =_xlfn.IFNA(IF(INDEX(VLC!H:H,MATCH(801+ROW(A18)-1,VLC!V:V,0))="x",_xlfn.IFNA(INDEX(VLC!H:H,MATCH(801+ROW(A18)-1,VLC!V:V,0)),""),""),"") ->  | G195: =_xlfn.IFNA(IF(INDEX(VLC!H:H,MATCH(841+ROW(A18)-1,VLC!V:V,0))="x",_xlfn.IFNA(INDEX(VLC!H:H,MATCH(841+ROW(A18)-1,VLC!V:V,0)),""),""),"") ->  | H195: =_xlfn.IFNA(IF(INDEX(VLC!I:I,MATCH(801+ROW(A18)-1,VLC!V:V,0))<>"",_xlfn.IFNA(INDEX(VLC!I:I,MATCH(801+ROW(A18)-1,VLC!V:V,0)),""),""),"") ->  | I195: =_xlfn.IFNA(IF(INDEX(VLC!I:I,MATCH(841+ROW(A18)-1,VLC!V:V,0))<>"",_xlfn.IFNA(INDEX(VLC!I:I,MATCH(841+ROW(A18)-1,VLC!V:V,0)),""),""),"") ->  | J195: =_xlfn.IFNA(IF(INDEX(VLC!J:J,MATCH(801+ROW(A18)-1,VLC!V:V,0))="x",_xlfn.IFNA(INDEX(VLC!J:J,MATCH(801+ROW(A18)-1,VLC!V:V,0)),""),""),"") ->  | K195: =_xlfn.IFNA(IF(INDEX(VLC!J:J,MATCH(841+ROW(A18)-1,VLC!V:V,0))="x",_xlfn.IFNA(INDEX(VLC!J:J,MATCH(841+ROW(A18)-1,VLC!V:V,0)),""),""),"") ->  | L195: 8018 | M195: 8058
A196: SK Teilnehmer 19 | B196: =_xlfn.IFNA(INDEX(VLC!A:A,MATCH(819,VLC!V:V,0)),"") ->  | C196: =_xlfn.IFNA(INDEX(VLC!A:A,MATCH(859,VLC!V:V,0)),"") ->  | D196: =_xlfn.IFNA(INDEX(VLC!B:B,MATCH(801+ROW(A19)-1,VLC!V:V,0)),"") ->  | E196: =_xlfn.IFNA(INDEX(VLC!C:C,MATCH(801+ROW(A19)-1,VLC!V:V,0)),"") ->  | F196: =_xlfn.IFNA(IF(INDEX(VLC!H:H,MATCH(801+ROW(A19)-1,VLC!V:V,0))="x",_xlfn.IFNA(INDEX(VLC!H:H,MATCH(801+ROW(A19)-1,VLC!V:V,0)),""),""),"") ->  | G196: =_xlfn.IFNA(IF(INDEX(VLC!H:H,MATCH(841+ROW(A19)-1,VLC!V:V,0))="x",_xlfn.IFNA(INDEX(VLC!H:H,MATCH(841+ROW(A19)-1,VLC!V:V,0)),""),""),"") ->  | H196: =_xlfn.IFNA(IF(INDEX(VLC!I:I,MATCH(801+ROW(A19)-1,VLC!V:V,0))<>"",_xlfn.IFNA(INDEX(VLC!I:I,MATCH(801+ROW(A19)-1,VLC!V:V,0)),""),""),"") ->  | I196: =_xlfn.IFNA(IF(INDEX(VLC!I:I,MATCH(841+ROW(A19)-1,VLC!V:V,0))<>"",_xlfn.IFNA(INDEX(VLC!I:I,MATCH(841+ROW(A19)-1,VLC!V:V,0)),""),""),"") ->  | J196: =_xlfn.IFNA(IF(INDEX(VLC!J:J,MATCH(801+ROW(A19)-1,VLC!V:V,0))="x",_xlfn.IFNA(INDEX(VLC!J:J,MATCH(801+ROW(A19)-1,VLC!V:V,0)),""),""),"") ->  | K196: =_xlfn.IFNA(IF(INDEX(VLC!J:J,MATCH(841+ROW(A19)-1,VLC!V:V,0))="x",_xlfn.IFNA(INDEX(VLC!J:J,MATCH(841+ROW(A19)-1,VLC!V:V,0)),""),""),"") ->  | L196: 8019 | M196: 8059
A197: SK Teilnehmer 20 | B197: =_xlfn.IFNA(INDEX(VLC!A:A,MATCH(820,VLC!V:V,0)),"") ->  | C197: =_xlfn.IFNA(INDEX(VLC!A:A,MATCH(860,VLC!V:V,0)),"") ->  | D197: =_xlfn.IFNA(INDEX(VLC!B:B,MATCH(801+ROW(A20)-1,VLC!V:V,0)),"") ->  | E197: =_xlfn.IFNA(INDEX(VLC!C:C,MATCH(801+ROW(A20)-1,VLC!V:V,0)),"") ->  | F197: =_xlfn.IFNA(IF(INDEX(VLC!H:H,MATCH(801+ROW(A20)-1,VLC!V:V,0))="x",_xlfn.IFNA(INDEX(VLC!H:H,MATCH(801+ROW(A20)-1,VLC!V:V,0)),""),""),"") ->  | G197: =_xlfn.IFNA(IF(INDEX(VLC!H:H,MATCH(841+ROW(A20)-1,VLC!V:V,0))="x",_xlfn.IFNA(INDEX(VLC!H:H,MATCH(841+ROW(A20)-1,VLC!V:V,0)),""),""),"") ->  | H197: =_xlfn.IFNA(IF(INDEX(VLC!I:I,MATCH(801+ROW(A20)-1,VLC!V:V,0))<>"",_xlfn.IFNA(INDEX(VLC!I:I,MATCH(801+ROW(A20)-1,VLC!V:V,0)),""),""),"") ->  | I197: =_xlfn.IFNA(IF(INDEX(VLC!I:I,MATCH(841+ROW(A20)-1,VLC!V:V,0))<>"",_xlfn.IFNA(INDEX(VLC!I:I,MATCH(841+ROW(A20)-1,VLC!V:V,0)),""),""),"") ->  | J197: =_xlfn.IFNA(IF(INDEX(VLC!J:J,MATCH(801+ROW(A20)-1,VLC!V:V,0))="x",_xlfn.IFNA(INDEX(VLC!J:J,MATCH(801+ROW(A20)-1,VLC!V:V,0)),""),""),"") ->  | K197: =_xlfn.IFNA(IF(INDEX(VLC!J:J,MATCH(841+ROW(A20)-1,VLC!V:V,0))="x",_xlfn.IFNA(INDEX(VLC!J:J,MATCH(841+ROW(A20)-1,VLC!V:V,0)),""),""),"") ->  | L197: 8020 | M197: 8060
A198: Gerätename: | B198: =$B$6 -> 0 | E198: PLC24 Stromkreis-Nummer: 9
A199: Stromkreis-Bezeichnung:
A200: Stromkreisbelegung | B200: ID 1 | C200: ID 2 | D200: Bezeichnung | E200: Zusatzinfo | F200: DL | H200: GL | J200: BL
F201: ID1 | G201: ID2 | H201: ID1 | I201: ID2 | J201: ID1 | K201: ID2
... 188 more rows

Sheet CB32 (hidden)
A1: Bauvorhaben / Anlage: | C1: ELEKTRO-Unternehmen :
A3: verantwortlicher Monteur:
A4: externer Bus Nummer: 1
A5: Bezeichnung: | D5: Version | E5: 5.0
A6: Busbelegung | B6: ID | C6: Bezeichnung | D6: Zusatzinfo
A7: Bus Teilnehmer 1
A8: Bus Teilnehmer 2
A9: Bus Teilnehmer 3
A10: Bus Teilnehmer 4
A11: Bus Teilnehmer 5
A12: Bus Teilnehmer 6
A13: Bus Teilnehmer 7
A14: Bus Teilnehmer 8
A15: Bus Teilnehmer 9
A16: Bus Teilnehmer 10
A17: Bus Teilnehmer 11
A18: Bus Teilnehmer 12
A19: Bus Teilnehmer 13
A20: Bus Teilnehmer 14
A21: Bus Teilnehmer 15
A22: Bus Teilnehmer 16
A23: Bus Teilnehmer 17
A24: Bus Teilnehmer 18
A25: Bus Teilnehmer 19
A26: Bus Teilnehmer 20
A27: Bus Teilnehmer 21
A28: Bus Teilnehmer 22
A29: Bus Teilnehmer 23
A30: Bus Teilnehmer 24
A31: Bus Teilnehmer 25
A32: Bus Teilnehmer 26
A33: Bus Teilnehmer 27
A34: Bus Teilnehmer 28
A35: Bus Teilnehmer 29
A36: Bus Teilnehmer 30
A37: Bus Teilnehmer 31
A38: Bus Teilnehmer 32
A39: externer Bus Nummer: 2
A40: Bezeichnung:
A41: Busbelegung | B41: ID | C41: Bezeichnung | D41: Zusatzinfo
A42: Bus Teilnehmer 1
A43: Bus Teilnehmer 2
A44: Bus Teilnehmer 3
A45: Bus Teilnehmer 4
A46: Bus Teilnehmer 5
A47: Bus Teilnehmer 6
A48: Bus Teilnehmer 7
A49: Bus Teilnehmer 8
A50: Bus Teilnehmer 9
A51: Bus Teilnehmer 10
A52: Bus Teilnehmer 11
A53: Bus Teilnehmer 12
A54: Bus Teilnehmer 13
A55: Bus Teilnehmer 14
A56: Bus Teilnehmer 15
A57: Bus Teilnehmer 16
A58: Bus Teilnehmer 17
A59: Bus Teilnehmer 18
A60: Bus Teilnehmer 19
A61: Bus Teilnehmer 20
A62: Bus Teilnehmer 21
A63: Bus Teilnehmer 22
A64: Bus Teilnehmer 23
A65: Bus Teilnehmer 24
A66: Bus Teilnehmer 25
A67: Bus Teilnehmer 26
A68: Bus Teilnehmer 27
A69: Bus Teilnehmer 28
A70: Bus Teilnehmer 29
A71: Bus Teilnehmer 30
A72: Bus Teilnehmer 31
A73: Bus Teilnehmer 32
A74: externer Bus Nummer: 3
A75: Bezeichnung:
A76: Busbelegung | B76: ID | C76: Bezeichnung | D76: Zusatzinfo
A77: Bus Teilnehmer 1
A78: Bus Teilnehmer 2
A79: Bus Teilnehmer 3
A80: Bus Teilnehmer 4
A81: Bus Teilnehmer 5
A82: Bus Teilnehmer 6
A83: Bus Teilnehmer 7
A84: Bus Teilnehmer 8
A85: Bus Teilnehmer 9
A86: Bus Teilnehmer 10
A87: Bus Teilnehmer 11
A88: Bus Teilnehmer 12
A89: Bus Teilnehmer 13
A90: Bus Teilnehmer 14
A91: Bus Teilnehmer 15
A92: Bus Teilnehmer 16
A93: Bus Teilnehmer 17
A94: Bus Teilnehmer 18
A95: Bus Teilnehmer 19
A96: Bus Teilnehmer 20
A97: Bus Teilnehmer 21
A98: Bus Teilnehmer 22
A99: Bus Teilnehmer 23
A100: Bus Teilnehmer 24
A101: Bus Teilnehmer 25
A102: Bus Teilnehmer 26
A103: Bus Teilnehmer 27
A104: Bus Teilnehmer 28
A105: Bus Teilnehmer 29
A106: Bus Teilnehmer 30
A107: Bus Teilnehmer 31
A108: Bus Teilnehmer 32
A109: externer Bus Nummer: 4
A110: Bezeichnung:
A111: Busbelegung | B111: ID | C111: Bezeichnung | D111: Zusatzinfo
A112: Bus Teilnehmer 1
A113: Bus Teilnehmer 2
A114: Bus Teilnehmer 3
A115: Bus Teilnehmer 4
A116: Bus Teilnehmer 5
A117: Bus Teilnehmer 6
A118: Bus Teilnehmer 7
A119: Bus Teilnehmer 8
A120: Bus Teilnehmer 9
A121: Bus Teilnehmer 10
A122: Bus Teilnehmer 11
A123: Bus Teilnehmer 12
A124: Bus Teilnehmer 13
A125: Bus Teilnehmer 14
A126: Bus Teilnehmer 15
A127: Bus Teilnehmer 16
A128: Bus Teilnehmer 17
A129: Bus Teilnehmer 18
A130: Bus Teilnehmer 19
A131: Bus Teilnehmer 20
A132: Bus Teilnehmer 21
A133: Bus Teilnehmer 22
A134: Bus Teilnehmer 23
A135: Bus Teilnehmer 24
A136: Bus Teilnehmer 25
A137: Bus Teilnehmer 26
A138: Bus Teilnehmer 27
A139: Bus Teilnehmer 28
A140: Bus Teilnehmer 29
A141: Bus Teilnehmer 30
A142: Bus Teilnehmer 31
A143: Bus Teilnehmer 32

Sheet VLC
A1: Leuchten-ID | B1: Bezeichnung | C1: Zusatzinfo | F1: Stromkreis | G1: Adresse | H1: DL | I1: GL | J1: BL | K1: Stromkreis | L1: Adresse | P1: autozuweisung | Q1: Manuelle Adresse(max.1-20) | R1: manuelle Zuweisung | T1: Adressen öfter vergeben | V1: Adresse für Sheet
K2: =IFERROR(VALUE(RIGHT(F2,LEN(F2)-2)),"") ->  | L2: =IFERROR(VALUE(RIGHT(G2,2)),"") ->  | N2: =ISNUMBER(L2) -> FALSE | O2: =VALUE(IF(N2, L2, RIGHT(G2,1))) ->  | P2: =K2*100+O2 ->  | R2: =IF(Q2="","",IFERROR(Q2+100*K2,"")) ->  | S2: =COUNTIF(R:R,VALUE(R2)) -> 0 | T2: =IF(S2>1, 1, 0) -> 0 | U2: =IF(Q2="",COUNTIF(R:R,P2),0) -> 0 | V2: =IFERROR(VALUE(IF(R2="",P2,R2)),"") ->  | W2: =COUNTIF(A:A,A2) -> 0 | X2: =IFERROR(LEN(V2),"") -> 0 | Y2: =IF(X2=3,COUNTIF(V:V,V2),0) -> 0
N3: =ISNUMBER(L3) -> FALSE | P3: =K3*100+O3 ->  | R3: =IF(Q3="","",IFERROR(Q3+100*K3,"")) ->  | S3: =COUNTIF(R:R,VALUE(R3)) -> 0 | T3: =IF(S3>1, 1, 0) -> 0 | U3: =IF(Q3="",COUNTIF(R:R,P3),0) -> 0 | W3: 0 | X3: =IFERROR(LEN(V3),"") -> 0 | Y3: =IF(X3=3,COUNTIF(V:V,V3),0) -> 0
N4: FALSE | R4: =IF(Q4="","",IFERROR(Q4+100*K4,"")) ->  | S4: =COUNTIF(R:R,VALUE(R4)) -> 0 | T4: =IF(S4>1, 1, 0) -> 0 | U4: =IF(Q4="",COUNTIF(R:R,P4),0) -> 0 | W4: 0 | X4: =IFERROR(LEN(V4),"") -> 0 | Y4: =IF(X4=3,COUNTIF(V:V,V4),0) -> 0
N5: FALSE | R5: =IF(Q5="","",IFERROR(Q5+100*K5,"")) ->  | S5: =COUNTIF(R:R,VALUE(R5)) -> 0 | T5: =IF(S5>1, 1, 0) -> 0 | U5: =IF(Q5="",COUNTIF(R:R,P5),0) -> 0 | W5: 0 | X5: =IFERROR(LEN(V5),"") -> 0 | Y5: =IF(X5=3,COUNTIF(V:V,V5),0) -> 0
N6: =ISNUMBER(L6) -> FALSE | P6: =K6*100+O6 ->  | S6: =COUNTIF(R:R,VALUE(R6)) -> 0 | T6: =IF(S6>1, 1, 0) -> 0 | U6: =IF(Q6="",COUNTIF(R:R,P6),0) -> 0 | W6: 0 | X6: =IFERROR(LEN(V6),"") -> 0 | Y6: =IF(X6=3,COUNTIF(V:V,V6),0) -> 0
N7: FALSE | S7: 0 | T7: 0 | U7: 0 | W7: 0 | X7: 0 | Y7: 0
N8: FALSE | S8: 0 | T8: 0 | U8: 0 | W8: 0 | X8: 0 | Y8: 0
N9: FALSE | S9: 0 | T9: 0 | U9: 0 | W9: 0 | X9: 0 | Y9: 0
N10: FALSE | S10: 0 | T10: 0 | U10: 0 | W10: 0 | X10: 0 | Y10: 0
N11: FALSE | S11: 0 | T11: 0 | U11: 0 | W11: 0 | X11: 0 | Y11: 0
N12: FALSE | S12: 0 | T12: 0 | U12: 0 | W12: 0 | X12: 0 | Y12: 0
N13: FALSE | S13: 0 | T13: 0 | U13: 0 | W13: 0 | X13: 0 | Y13: 0
N14: FALSE | S14: 0 | T14: 0 | U14: 0 | W14: 0 | X14: 0 | Y14: 0
N15: FALSE | S15: 0 | T15: 0 | U15: 0 | W15: 0 | X15: 0 | Y15: 0
N16: FALSE | S16: 0 | T16: 0 | U16: 0 | W16: 0 | X16: 0 | Y16: 0
N17: FALSE | S17: =COUNTIF(R:R,VALUE(R17)) -> 0 | T17: =IF(S17>1, 1, 0) -> 0 | U17: =IF(Q17="",COUNTIF(R:R,P17),0) -> 0 | W17: 0 | X17: =IFERROR(LEN(V17),"") -> 0 | Y17: =IF(X17=3,COUNTIF(V:V,V17),0) -> 0
N18: FALSE | S18: 0 | T18: 0 | U18: 0 | W18: 0 | X18: 0 | Y18: 0
N19: FALSE | S19: 0 | T19: 0 | U19: 0 | W19: 0 | X19: 0 | Y19: 0
N20: FALSE | S20: 0 | T20: 0 | U20: 0 | W20: 0 | X20: 0 | Y20: 0
N21: FALSE | S21: 0 | T21: 0 | U21: 0 | W21: 0 | X21: 0 | Y21: 0
N22: FALSE | S22: 0 | T22: 0 | U22: 0 | W22: 0 | X22: 0 | Y22: 0
N23: FALSE | S23: 0 | T23: 0 | U23: 0 | W23: 0 | X23: 0 | Y23: 0
N24: FALSE | S24: 0 | T24: 0 | U24: 0 | W24: 0 | X24: 0 | Y24: 0
N25: FALSE | S25: 0 | T25: 0 | U25: 0 | W25: 0 | X25: 0 | Y25: 0
N26: FALSE | S26: 0 | T26: 0 | U26: 0 | W26: 0 | X26: 0 | Y26: 0
N27: FALSE | S27: 0 | T27: 0 | U27: 0 | W27: 0 | X27: 0 | Y27: 0
N28: FALSE | S28: 0 | T28: 0 | U28: 0 | W28: 0 | X28: 0 | Y28: 0
N29: FALSE | S29: 0 | T29: 0 | U29: 0 | W29: 0 | X29: 0 | Y29: 0
N30: FALSE | S30: 0 | T30: 0 | U30: 0 | W30: 0 | X30: 0 | Y30: 0
N31: FALSE | S31: 0 | T31: 0 | U31: 0 | W31: 0 | X31: 0 | Y31: 0
N32: FALSE | S32: 0 | T32: 0 | U32: 0 | W32: 0 | X32: 0 | Y32: 0
N33: FALSE | S33: 0 | T33: 0 | U33: 0 | W33: 0 | X33: 0 | Y33: 0
N34: FALSE | S34: 0 | T34: 0 | U34: 0 | W34: 0 | X34: 0 | Y34: 0
N35: FALSE | S35: 0 | T35: 0 | U35: 0 | W35: 0 | X35: 0 | Y35: 0
N36: FALSE | R36: =IF(Q36="","",IFERROR(Q36+100*K36,"")) ->  | S36: 0 | T36: 0 | U36: 0 | W36: 0 | X36: 0 | Y36: 0
N37: FALSE | S37: 0 | T37: 0 | U37: 0 | W37: 0 | X37: 0 | Y37: 0
N38: FALSE | S38: 0 | T38: 0 | U38: 0 | W38: 0 | X38: 0 | Y38: 0
N39: FALSE | S39: 0 | T39: 0 | U39: 0 | W39: 0 | X39: 0 | Y39: 0
N40: FALSE | S40: 0 | T40: 0 | U40: 0 | W40: 0 | X40: 0 | Y40: 0
N41: FALSE | S41: 0 | T41: 0 | U41: 0 | W41: 0 | X41: 0 | Y41: 0
N42: FALSE | S42: 0 | T42: 0 | U42: 0 | W42: 0 | X42: 0 | Y42: 0
N43: FALSE | S43: 0 | T43: 0 | U43: 0 | W43: 0 | X43: 0 | Y43: 0
N44: FALSE | S44: 0 | T44: 0 | U44: 0 | W44: 0 | X44: 0 | Y44: 0
N45: FALSE | S45: 0 | T45: 0 | U45: 0 | W45: 0 | X45: 0 | Y45: 0
N46: FALSE | S46: 0 | T46: 0 | U46: 0 | W46: 0 | X46: 0 | Y46: 0
N47: FALSE | S47: 0 | T47: 0 | U47: 0 | W47: 0 | X47: 0 | Y47: 0
N48: FALSE | S48: 0 | T48: 0 | U48: 0 | W48: 0 | X48: 0 | Y48: 0
N49: FALSE | S49: 0 | T49: 0 | U49: 0 | W49: 0 | X49: 0 | Y49: 0
N50: FALSE | S50: 0 | T50: 0 | U50: 0 | W50: 0 | X50: 0 | Y50: 0
N51: FALSE | S51: 0 | T51: 0 | U51: 0 | W51: 0 | X51: 0 | Y51: 0
N52: FALSE | S52: 0 | T52: 0 | U52: 0 | W52: 0 | X52: 0 | Y52: 0
N53: FALSE | S53: 0 | T53: 0 | U53: 0 | W53: 0 | X53: 0 | Y53: 0
N54: FALSE | S54: 0 | T54: 0 | U54: 0 | W54: 0 | X54: 0 | Y54: 0
N55: FALSE | S55: 0 | T55: 0 | U55: 0 | W55: 0 | X55: 0 | Y55: 0
N56: FALSE | S56: 0 | T56: 0 | U56: 0 | W56: 0 | X56: 0 | Y56: 0
N57: FALSE | S57: 0 | T57: 0 | U57: 0 | W57: 0 | X57: 0 | Y57: 0
N58: FALSE | S58: 0 | T58: 0 | U58: 0 | W58: 0 | X58: 0 | Y58: 0
N59: FALSE | S59: 0 | T59: 0 | U59: 0 | W59: 0 | X59: 0 | Y59: 0
N60: FALSE | S60: 0 | T60: 0 | U60: 0 | W60: 0 | X60: 0 | Y60: 0
N61: FALSE | S61: 0 | T61: 0 | U61: 0 | W61: 0 | X61: 0 | Y61: 0
N62: FALSE | S62: 0 | T62: 0 | U62: 0 | W62: 0 | X62: 0 | Y62: 0
N63: FALSE | S63: 0 | T63: 0 | U63: 0 | W63: 0 | X63: 0 | Y63: 0
N64: FALSE | S64: 0 | T64: 0 | U64: 0 | W64: 0 | X64: 0 | Y64: 0
N65: FALSE | S65: 0 | T65: 0 | U65: 0 | W65: 0 | X65: 0 | Y65: 0
K66: =IFERROR(VALUE(RIGHT(F66,LEN(F66)-2)),"") ->  | L66: =IFERROR(VALUE(RIGHT(G66,2)),"") ->  | N66: FALSE | O66: =VALUE(IF(N66, L66, RIGHT(G66,1))) ->  | S66: 0 | T66: 0 | U66: 0 | V66: =IFERROR(VALUE(IF(R66="",P66,R66)),"") ->  | W66: =COUNTIF(A:A,A66) -> 0 | X66: 0 | Y66: 0
N67: =ISNUMBER(L67) -> FALSE | P67: =K67*100+O67 ->  | R67: =IF(Q67="","",IFERROR(Q67+100*K67,"")) ->  | S67: 0 | T67: 0 | U67: 0 | W67: 0 | X67: 0 | Y67: 0
N68: FALSE | S68: 0 | T68: 0 | U68: 0 | W68: 0 | X68: 0 | Y68: 0
N69: FALSE | S69: 0 | T69: 0 | U69: 0 | W69: 0 | X69: 0 | Y69: 0
N70: FALSE | S70: 0 | T70: 0 | U70: 0 | W70: 0 | X70: 0 | Y70: 0
N71: FALSE | S71: =COUNTIF(R:R,VALUE(R71)) -> 0 | T71: =IF(S71>1, 1, 0) -> 0 | U71: =IF(Q71="",COUNTIF(R:R,P71),0) -> 0 | W71: 0 | X71: =IFERROR(LEN(V71),"") -> 0 | Y71: =IF(X71=3,COUNTIF(V:V,V71),0) -> 0
N72: FALSE | S72: 0 | T72: 0 | U72: 0 | W72: 0 | X72: 0 | Y72: 0
N73: FALSE | S73: 0 | T73: 0 | U73: 0 | W73: 0 | X73: 0 | Y73: 0
N74: FALSE | S74: 0 | T74: 0 | U74: 0 | W74: 0 | X74: 0 | Y74: 0
N75: FALSE | S75: 0 | T75: 0 | U75: 0 | W75: 0 | X75: 0 | Y75: 0
N76: FALSE | S76: 0 | T76: 0 | U76: 0 | W76: 0 | X76: 0 | Y76: 0
N77: FALSE | S77: 0 | T77: 0 | U77: 0 | W77: 0 | X77: 0 | Y77: 0
N78: FALSE | S78: 0 | T78: 0 | U78: 0 | W78: 0 | X78: 0 | Y78: 0
N79: FALSE | S79: 0 | T79: 0 | U79: 0 | W79: 0 | X79: 0 | Y79: 0
N80: FALSE | S80: 0 | T80: 0 | U80: 0 | W80: 0 | X80: 0 | Y80: 0
N81: FALSE | S81: 0 | T81: 0 | U81: 0 | W81: 0 | X81: 0 | Y81: 0
N82: FALSE | S82: 0 | T82: 0 | U82: 0 | W82: 0 | X82: 0 | Y82: 0
N83: FALSE | S83: 0 | T83: 0 | U83: 0 | W83: 0 | X83: 0 | Y83: 0
N84: FALSE | S84: 0 | T84: 0 | U84: 0 | W84: 0 | X84: 0 | Y84: 0
N85: FALSE | S85: 0 | T85: 0 | U85: 0 | W85: 0 | X85: 0 | Y85: 0
N86: FALSE | S86: 0 | T86: 0 | U86: 0 | W86: 0 | X86: 0 | Y86: 0
N87: FALSE | S87: 0 | T87: 0 | U87: 0 | W87: 0 | X87: 0 | Y87: 0
N88: FALSE | S88: 0 | T88: 0 | U88: 0 | W88: 0 | X88: 0 | Y88: 0
N89: FALSE | S89: 0 | T89: 0 | U89: 0 | W89: 0 | X89: 0 | Y89: 0
N90: FALSE | S90: 0 | T90: 0 | U90: 0 | W90: 0 | X90: 0 | Y90: 0
N91: FALSE | S91: 0 | T91: 0 | U91: 0 | W91: 0 | X91: 0 | Y91: 0
N92: FALSE | S92: 0 | T92: 0 | U92: 0 | W92: 0 | X92: 0 | Y92: 0
N93: FALSE | S93: 0 | T93: 0 | U93: 0 | W93: 0 | X93: 0 | Y93: 0
N94: FALSE | S94: 0 | T94: 0 | U94: 0 | W94: 0 | X94: 0 | Y94: 0
N95: FALSE | S95: 0 | T95: 0 | U95: 0 | W95: 0 | X95: 0 | Y95: 0
N96: FALSE | S96: 0 | T96: 0 | U96: 0 | W96: 0 | X96: 0 | Y96: 0
N97: FALSE | S97: 0 | T97: 0 | U97: 0 | W97: 0 | X97: 0 | Y97: 0
N98: FALSE | S98: 0 | T98: 0 | U98: 0 | W98: 0 | X98: 0 | Y98: 0
N99: FALSE | S99: 0 | T99: 0 | U99: 0 | W99: 0 | X99: 0 | Y99: 0
N100: FALSE | S100: 0 | T100: 0 | U100: 0 | W100: 0 | X100: 0 | Y100: 0
N101: FALSE | S101: 0 | T101: 0 | U101: 0 | W101: 0 | X101: 0 | Y101: 0
N102: FALSE | S102: 0 | T102: 0 | U102: 0 | W102: 0 | X102: 0 | Y102: 0
N103: FALSE | S103: 0 | T103: 0 | U103: 0 | W103: 0 | X103: 0 | Y103: 0
N104: FALSE | S104: 0 | T104: 0 | U104: 0 | W104: 0 | X104: 0 | Y104: 0
N105: FALSE | S105: 0 | T105: 0 | U105: 0 | W105: 0 | X105: 0 | Y105: 0
N106: FALSE | S106: 0 | T106: 0 | U106: 0 | W106: 0 | X106: 0 | Y106: 0
N107: FALSE | S107: 0 | T107: 0 | U107: 0 | W107: 0 | X107: 0 | Y107: 0
N108: FALSE | S108: 0 | T108: 0 | U108: 0 | W108: 0 | X108: 0 | Y108: 0
N109: FALSE | S109: 0 | T109: 0 | U109: 0 | W109: 0 | X109: 0 | Y109: 0
N110: FALSE | S110: 0 | T110: 0 | U110: 0 | W110: 0 | X110: 0 | Y110: 0
N111: FALSE | S111: 0 | T111: 0 | U111: 0 | W111: 0 | X111: 0 | Y111: 0
N112: FALSE | S112: 0 | T112: 0 | U112: 0 | W112: 0 | X112: 0 | Y112: 0
N113: FALSE | S113: 0 | T113: 0 | U113: 0 | W113: 0 | X113: 0 | Y113: 0
N114: FALSE | S114: 0 | T114: 0 | U114: 0 | W114: 0 | X114: 0 | Y114: 0
N115: FALSE | S115: 0 | T115: 0 | U115: 0 | W115: 0 | X115: 0 | Y115: 0
N116: FALSE | S116: 0 | T116: 0 | U116: 0 | W116: 0 | X116: 0 | Y116: 0
N117: FALSE | S117: 0 | T117: 0 | U117: 0 | W117: 0 | X117: 0 | Y117: 0
N118: FALSE | S118: 0 | T118: 0 | U118: 0 | W118: 0 | X118: 0 | Y118: 0
N119: FALSE | S119: 0 | T119: 0 | U119: 0 | W119: 0 | X119: 0 | Y119: 0
N120: FALSE | S120: 0 | T120: 0 | U120: 0 | W120: 0 | X120: 0 | Y120: 0
N121: FALSE | S121: 0 | T121: 0 | U121: 0 | W121: 0 | X121: 0 | Y121: 0
N122: =ISNUMBER(L122) -> FALSE | P122: =K122*100+O122 ->  | R122: =IF(Q122="","",IFERROR(Q122+100*K122,"")) ->  | S122: =COUNTIF(R:R,VALUE(R122)) -> 0 | T122: =IF(S122>1, 1, 0) -> 0 | U122: =IF(Q122="",COUNTIF(R:R,P122),0) -> 0 | W122: 0 | X122: =IFERROR(LEN(V122),"") -> 0 | Y122: =IF(X122=3,COUNTIF(V:V,V122),0) -> 0
N123: FALSE | S123: 0 | T123: 0 | U123: 0 | W123: 0 | X123: 0 | Y123: 0
N124: FALSE | S124: 0 | T124: 0 | U124: 0 | W124: 0 | X124: 0 | Y124: 0
N125: FALSE | S125: 0 | T125: 0 | U125: 0 | W125: 0 | X125: 0 | Y125: 0
N126: FALSE | S126: 0 | T126: 0 | U126: 0 | W126: 0 | X126: 0 | Y126: 0
N127: FALSE | S127: 0 | T127: 0 | U127: 0 | W127: 0 | X127: 0 | Y127: 0
N128: FALSE | S128: 0 | T128: 0 | U128: 0 | W128: 0 | X128: 0 | Y128: 0
N129: FALSE | S129: 0 | T129: 0 | U129: 0 | W129: 0 | X129: 0 | Y129: 0
K130: =IFERROR(VALUE(RIGHT(F130,LEN(F130)-2)),"") ->  | L130: =IFERROR(VALUE(RIGHT(G130,2)),"") ->  | N130: FALSE | O130: =VALUE(IF(N130, L130, RIGHT(G130,1))) ->  | S130: 0 | T130: 0 | U130: 0 | V130: =IFERROR(VALUE(IF(R130="",P130,R130)),"") ->  | W130: =COUNTIF(A:A,A130) -> 0 | X130: 0 | Y130: 0
N131: FALSE | S131: 0 | T131: 0 | U131: 0 | W131: 0 | X131: 0 | Y131: 0
N132: FALSE | S132: 0 | T132: 0 | U132: 0 | W132: 0 | X132: 0 | Y132: 0
N133: FALSE | S133: 0 | T133: 0 | U133: 0 | W133: 0 | X133: 0 | Y133: 0
N134: FALSE | S134: 0 | T134: 0 | U134: 0 | W134: 0 | X134: 0 | Y134: 0
N135: FALSE | S135: 0 | T135: 0 | U135: 0 | W135: 0 | X135: 0 | Y135: 0
N136: FALSE | S136: 0 | T136: 0 | U136: 0 | W136: 0 | X136: 0 | Y136: 0
N137: FALSE | S137: 0 | T137: 0 | U137: 0 | W137: 0 | X137: 0 | Y137: 0
N138: FALSE | S138: 0 | T138: 0 | U138: 0 | W138: 0 | X138: 0 | Y138: 0
N139: FALSE | S139: 0 | T139: 0 | U139: 0 | W139: 0 | X139: 0 | Y139: 0
N140: FALSE | S140: 0 | T140: 0 | U140: 0 | W140: 0 | X140: 0 | Y140: 0
N141: FALSE | S141: 0 | T141: 0 | U141: 0 | W141: 0 | X141: 0 | Y141: 0
N142: FALSE | S142: 0 | T142: 0 | U142: 0 | W142: 0 | X142: 0 | Y142: 0
N143: FALSE | S143: 0 | T143: 0 | U143: 0 | W143: 0 | X143: 0 | Y143: 0
N144: FALSE | S144: 0 | T144: 0 | U144: 0 | W144: 0 | X144: 0 | Y144: 0
N145: FALSE | S145: 0 | T145: 0 | U145: 0 | W145: 0 | X145: 0 | Y145: 0
N146: FALSE | S146: 0 | T146: 0 | U146: 0 | W146: 0 | X146: 0 | Y146: 0
N147: FALSE | S147: 0 | T147: 0 | U147: 0 | W147: 0 | X147: 0 | Y147: 0
N148: FALSE | S148: 0 | T148: 0 | U148: 0 | W148: 0 | X148: 0 | Y148: 0
N149: FALSE | S149: 0 | T149: 0 | U149: 0 | W149: 0 | X149: 0 | Y149: 0
N150: FALSE | S150: 0 | T150: 0 | U150: 0 | W150: 0 | X150: 0 | Y150: 0
N151: FALSE | S151: 0 | T151: 0 | U151: 0 | W151: 0 | X151: 0 | Y151: 0
N152: FALSE | S152: 0 | T152: 0 | U152: 0 | W152: 0 | X152: 0 | Y152: 0
N153: FALSE | S153: 0 | T153: 0 | U153: 0 | W153: 0 | X153: 0 | Y153: 0
N154: FALSE | S154: 0 | T154: 0 | U154: 0 | W154: 0 | X154: 0 | Y154: 0
N155: FALSE | S155: 0 | T155: 0 | U155: 0 | W155: 0 | X155: 0 | Y155: 0
N156: FALSE | S156: 0 | T156: 0 | U156: 0 | W156: 0 | X156: 0 | Y156: 0
N157: FALSE | S157: 0 | T157: 0 | U157: 0 | W157: 0 | X157: 0 | Y157: 0
N158: FALSE | S158: 0 | T158: 0 | U158: 0 | W158: 0 | X158: 0 | Y158: 0
N159: FALSE | S159: 0 | T159: 0 | U159: 0 | W159: 0 | X159: 0 | Y159: 0
N160: FALSE | S160: 0 | T160: 0 | U160: 0 | W160: 0 | X160: 0 | Y160: 0
N161: FALSE | S161: 0 | T161: 0 | U161: 0 | W161: 0 | X161: 0 | Y161: 0
N162: FALSE | S162: 0 | T162: 0 | U162: 0 | W162: 0 | X162: 0 | Y162: 0
N163: FALSE | S163: 0 | T163: 0 | U163: 0 | W163: 0 | X163: 0 | Y163: 0
N164: FALSE | S164: 0 | T164: 0 | U164: 0 | W164: 0 | X164: 0 | Y164: 0
N165: FALSE | S165: 0 | T165: 0 | U165: 0 | W165: 0 | X165: 0 | Y165: 0
N166: FALSE | S166: 0 | T166: 0 | U166: 0 | W166: 0 | X166: 0 | Y166: 0
N167: FALSE | S167: 0 | T167: 0 | U167: 0 | W167: 0 | X167: 0 | Y167: 0
N168: FALSE | S168: 0 | T168: 0 | U168: 0 | W168: 0 | X168: 0 | Y168: 0
N169: FALSE | S169: 0 | T169: 0 | U169: 0 | W169: 0 | X169: 0 | Y169: 0
N170: FALSE | S170: 0 | T170: 0 | U170: 0 | W170: 0 | X170: 0 | Y170: 0
N171: FALSE | S171: 0 | T171: 0 | U171: 0 | W171: 0 | X171: 0 | Y171: 0
N172: FALSE | S172: 0 | T172: 0 | U172: 0 | W172: 0 | X172: 0 | Y172: 0
N173: FALSE | S173: 0 | T173: 0 | U173: 0 | W173: 0 | X173: 0 | Y173: 0
N174: FALSE | S174: 0 | T174: 0 | U174: 0 | W174: 0 | X174: 0 | Y174: 0
N175: FALSE | S175: 0 | T175: 0 | U175: 0 | W175: 0 | X175: 0 | Y175: 0
N176: FALSE | S176: 0 | T176: 0 | U176: 0 | W176: 0 | X176: 0 | Y176: 0
N177: FALSE | S177: 0 | T177: 0 | U177: 0 | W177: 0 | X177: 0 | Y177: 0
N178: FALSE | S178: 0 | T178: 0 | U178: 0 | W178: 0 | X178: 0 | Y178: 0
N179: FALSE | S179: 0 | T179: 0 | U179: 0 | W179: 0 | X179: 0 | Y179: 0
N180: FALSE | S180: 0 | T180: 0 | U180: 0 | W180: 0 | X180: 0 | Y180: 0
N181: FALSE | S181: 0 | T181: 0 | U181: 0 | W181: 0 | X181: 0 | Y181: 0
N182: FALSE | S182: 0 | T182: 0 | U182: 0 | W182: 0 | X182: 0 | Y182: 0
N183: FALSE | S183: 0 | T183: 0 | U183: 0 | W183: 0 | X183: 0 | Y183: 0
N184: FALSE | S184: 0 | T184: 0 | U184: 0 | W184: 0 | X184: 0 | Y184: 0
N185: FALSE | S185: 0 | T185: 0 | U185: 0 | W185: 0 | X185: 0 | Y185: 0
N186: =ISNUMBER(L186) -> FALSE | P186: =K186*100+O186 ->  | R186: =IF(Q186="","",IFERROR(Q186+100*K186,"")) ->  | S186: =COUNTIF(R:R,VALUE(R186)) -> 0 | T186: =IF(S186>1, 1, 0) -> 0 | U186: =IF(Q186="",COUNTIF(R:R,P186),0) -> 0 | W186: 0 | X186: =IFERROR(LEN(V186),"") -> 0 | Y186: =IF(X186=3,COUNTIF(V:V,V186),0) -> 0
N187: FALSE | S187: 0 | T187: 0 | U187: 0 | W187: 0 | X187: 0 | Y187: 0
N188: FALSE | S188: 0 | T188: 0 | U188: 0 | W188: 0 | X188: 0 | Y188: 0
N189: FALSE | S189: 0 | T189: 0 | U189: 0 | W189: 0 | X189: 0 | Y189: 0
N190: FALSE | S190: 0 | T190: 0 | U190: 0 | W190: 0 | X190: 0 | Y190: 0
N191: FALSE | S191: 0 | T191: 0 | U191: 0 | W191: 0 | X191: 0 | Y191: 0
N192: FALSE | S192: 0 | T192: 0 | U192: 0 | W192: 0 | X192: 0 | Y192: 0
N193: FALSE | S193: 0 | T193: 0 | U193: 0 | W193: 0 | X193: 0 | Y193: 0
K194: =IFERROR(VALUE(RIGHT(F194,LEN(F194)-2)),"") ->  | L194: =IFERROR(VALUE(RIGHT(G194,2)),"") ->  | N194: FALSE | O194: =VALUE(IF(N194, L194, RIGHT(G194,1))) ->  | S194: 0 | T194: 0 | U194: 0 | V194: =IFERROR(VALUE(IF(R194="",P194,R194)),"") ->  | W194: =COUNTIF(A:A,A194) -> 0 | X194: 0 | Y194: 0
N195: FALSE | S195: 0 | T195: 0 | U195: 0 | W195: 0 | X195: 0 | Y195: 0
N196: FALSE | S196: 0 | T196: 0 | U196: 0 | W196: 0 | X196: 0 | Y196: 0
N197: FALSE | S197: 0 | T197: 0 | U197: 0 | W197: 0 | X197: 0 | Y197: 0
N198: FALSE | S198: 0 | T198: 0 | U198: 0 | W198: 0 | X198: 0 | Y198: 0
N199: FALSE | S199: 0 | T199: 0 | U199: 0 | W199: 0 | X199: 0 | Y199: 0
N200: FALSE | S200: 0 | T200: 0 | U200: 0 | W200: 0 | X200: 0 | Y200: 0
... 160 more rows

Sheet Step by step guide
A1: 1) | B1: Wechsel in die "VLC" Tabelle.
A2: 2) | B2: Wähle die Zelle A2 aus.
A3: 3) | B3: Nun kann mittels VLC Sensor die Adresse der Leuchte augelesen werden.
A4: 4) | B4: Die Spalten "Bezeichnung" und "Zusatzinfo" können beliebig befüllt werden. Achtung: Die maximale Zeichenanzahl für "Bezeichnung" beträgt 100 Zeichen und für "Zusatzinfo" 1000 Zeichen und dürfen nicht überschritten werden.
A5: 5) | B5: In den Spalten DL bzw BL kann mittels eines "x" entweder Dauer oder Bereitschaftslicht ausgewählt werden. Bei GL kannst du Eingänge wählen mit welchen das Licht geschaltet werden soll.
A6: 6) | B6: Sollte die automatische Adresse falsch sein kann diese in der Spalte manuelle Adresse überschrieben werden. Bei Duo-Leuchten wird die zweite Adresse automatisch mit geändert.
B7: Wenn kein Eintrag in der manuellen Adresse vorhanden ist wird die automatisch vergebene als Adresse der jeweiligen Leuchte genommen.
A8: 7) | B8: Nach fertiger Konfiguration der Leuchte (Bezeichnung, Zusatzinfo, DL/BL/GL, manuelle Adressvergabe ja/nein) muss der Cursor in die nächste A-Zeile gesetzt werden.
A9: 8) | B9: Wiederhole die Schritte 3 bis 7 bis alle Leuchten eingetragen sind.
A10: 9) | B10: Da die Leuchtenliste Makros enthält ist es wichtig sie immer als .xslm Datei abzuspeichern.
A12: Generelle Informationen:
B13: Sobald eine Leuchte fertig konfiguriert ist in der "VLC" Tabelle wird sie automatisch in der "PLC24" Tabelle richtig eingereiht.
A15: Farbcode: | C15: färbt sich ein Feld, in der Spalte "manuelle Adresse" rot bzw. Zellen in der "Stromkreis"Spalte orange bedeutet dies, dass durch die manuelle Adressvergabe eine Doppeladressierung erfolgt ist.
C16: Die rote Zelle gibt in diesem Fall direkt an welche automatische Adresse manuell noch überschrieben werden muss um wieder einzigartige Adressierung zu gewährleisten.
C18: Behebung: Ausfüllen der roten Zelle mit einer noch nicht vergebenen Adresse im jeweiligen Stromkreis.
C20: Der Zweite Fall ist ein rotes Feld in der "Leuchten ID" Spalte, dies bedeutet dass diese ID bereits vergeben ist.
C22: Behebung: Es wurde 2 mal die selbe Leuchte ausgelesen => 1 Leuchtezeile löschen.
A24: DUO Leuchten Logik: | C24: ID1 | D24: ID2 | E24: Diese wird beim scannen einer DUO Leuchte automatisch vergeben.
C25: Adr1 | D25: Adr41
C26: Adr2 | D26: Adr42
C27: Adr3 | D27: Adr43
C28: Adr4 | D28: Adr44
C29: Adr5 | D29: Adr45
C30: Adr6 | D30: Adr46
C31: Adr7 | D31: Adr47
C32: Adr8 | D32: Adr48
C33: Adr9 | D33: Adr49
C34: Adr10 | D34: Adr50
C35: Adr11 | D35: Adr51
C36: Adr12 | D36: Adr52
C37: Adr13 | D37: Adr53
C38: Adr14 | D38: Adr54
C39: Adr15 | D39: Adr55
C40: Adr16 | D40: Adr56
C41: Adr17 | D41: Adr57
C42: Adr18 | D42: Adr58
C43: Adr19 | D43: Adr59
C44: Adr20 | D44: Adr60
